Workbook

Sheet Capa
C39: Tabela de Preços
C43: Maio 2026

Sheet Finder
C1: Tabela de Preços | E1: Correspondências '..' | Z1: Exclude
A2: Worksheets | C2: Sheet | D2: Referencia | E2: Descrição | F2: PVP
A4: Capa
A5: 𝑺𝑬𝑹𝑽𝑰Ç𝑶𝑺 𝑭𝑶𝑹𝑴𝑨ÇÂ𝑶
A6: Det PIR
A7: Det Dupla Tecnolo
A8: Det Quebra Vidros
A9: Det Sismicos e Inércia
A10: Contactos_Pânico_Inundação
A11: Deteção Perimétrica
A12: Série Advanced + Everon
A13: Via Rádio ATS
A14: Sinalização
A15: Integração
A16: Comunicações
A17: Controlo Acessos
A18: CCTV Câmaras HD-TVI
A19: CCTV Câmaras IP
A20: CCTV Domes PTZ
A21: CCTV Câmaras Especiais
A22: CCTV Gravadores & Monitores
A23: CCTV Suportes e Acessórios
A24: Encoders e Network Products IFS
A25: Fontes & Baterias
A26: Cabos & Acessórios Instalação
A27: Condições Gerais de Venda
A28: Links
A29: Tabela

Sheet 𝑺𝑬𝑹𝑽𝑰Ç𝑶𝑺 𝑭𝑶𝑹𝑴𝑨ÇÂ𝑶
C1: Serviço técnico e formação
C5: Serviços de apoio técnico e formação
C6: Serviços de apoio técnico e formação de sistemas de segurança Aritech • Certificação Anual de Grau Técnico de Intrusão da Aritech • Certificação Anual de Grau Técnico de Intrusão da Aritech • Certificação anual de grau técnico de CCTV da Aritech • Certificação anual de grau técnico de CCTV da Aritech • Certificação anual da Aritech Grau técnico da Aritech Software de gestão de consultores integradores • Certificação anual da Aritech Grau técnico da Aritech Software de gestão de consultores integradores • Certificação anual de nível técnico da Aritech + Suporte remoto certificado da Aritech (4 horas) • Certificação anual de nível técnico da Aritech + Suporte remoto certificado da Aritech (4 horas) • Suporte Aritech certificado no local • Suporte Aritech certificado Remoto
B17: Referência | C17: Descrição | D17: Pessoas | E17: Duração/h | F17: Preço Liquido
B18: TRNG-INTR-ATS | C18: Certificação Anual de Grau Técnico de Intrusão da Aritech | D18: 1 | E18: 6 | F18: 300
B19: TRNG-INTR-ATS | C19: Certificação Anual de Grau Técnico de Intrusão da Aritech | D19: 5 | E19: 6 | F19: 1000
B20: TRNG-CTCCTV001 | C20: Certificação anual de grau técnico de CCTV da Aritech | D20: 1 | E20: 6 | F20: 300
B21: TRNG-CTCCTV001 | C21: Certificação anual de grau técnico de CCTV da Aritech | D21: 5 | E21: 6 | F21: 1000
B22: TRNG-INTR-ATS | C22: Certificação anual da Aritech Grau técnico da Aritech Software de gestão de consultores integradores | D22: 1 | E22: 12 | F22: 1000
B23: TRNG-INTR-ATS | C23: Certificação anual da Aritech Grau técnico da Aritech Software de gestão de consultores integradores | D23: 5 | E23: 12 | F23: 4000
B24: TRNG-ONSITETECHCH1D | C24: Certificação anual de nível técnico da Aritech + Suporte remoto certificado da Aritech (4 horas) | D24: 1 | E24: 4 | F24: 600
B25: TRNG-ONSITETECHCH1D | C25: Certificação anual de nível técnico da Aritech + Suporte remoto certificado da Aritech (4 horas) | D25: 1 | E25: 4 | F25: 800
B26: TRNG-ONSITETECHCH1D | C26: Colocação em funcionamento a pedido | D26: Sob consulta
B27: TRNG-ACCESS-ONSITE | C27: ACCESS CONTROL TRAINING ON SITE | F27: 652.04
B28: TRNG-SOFTMNGT-ONSITE | C28: SOFTWARE MANAGEMENT TRAINING ON SITE | F28: 1707.75
B29: TRNG-X500A-ONSITE | C29: X500A TRAINING ON SITE | F29: 652.04
B30: TRNG-X700A-ONSITE | C30: X700A TRAINING ON SITE | F30: 636.5194

Sheet Det PIR
C1: Deteção PIR
G2: 0
C4: Status | E4: PVP | G4: Desconto | H4: Preço Liquido
A5: PIRCAM | C5: Detetor PIR com Video | E5: PVP | G5: Desconto | H5: Preço Liquido
C6: Everon Blinx - Sensor PIR com fios e câmara integrada • Até um máximo de 6 Everon Blinx por sistema Everon (*) • Ligação por BUS de 4 fios, para distâncias até 100 metros • 9 cortinas de espelhos de alta densidade para uma detecção precisa de movimento • Utiliza o protocolo UltraSync para uma comunicação segura e fiável • Mudança automática de imagem entre os modos dia/noite • Transmissão de vídeo em tempo real através da API Edge diretamente para a CRA • Gravação pré e pós-alarme • Integrado com a aplicação móvel Advisor Advanced pro • Configuração através da aplicação web Everon
B18: EVERON-PCAM | C18: =_xlfn.XLOOKUP($B18,Tabela!$A:$A,Tabela!$C:$C,"não encontrado") -> NPI | D18: Sensor PIR de 12 m com câmara integrada a cores | E18: =_xlfn.XLOOKUP($B18,Tabela!$A:$A,Tabela!$D:$D,"não encontrado") -> 239.25 | F18: =IF(B18 =ISTEXT(qualquer), "", HYPERLINK("https://pt.firesecurityproducts.com/pt/search?q="&B18, "Link Web")) -> Link Web | G18: =$G$2 -> 0 | H18: =IF(ISBLANK(G18),"",E18-(E18*$G18)) -> 239.25
A20: EV10xx e EV11xx | C20: Detetores Volumétrico PIR
C21: • Detetor Volumétrico PIR Série EV 1000/1100 • Espelho ótico 'Tri-Brid' • Bloco Ótico Selado • Autofocus - Controlo real de alcance • 5D - Processamento de sinal (ASIC) • Deteção através de gabardines e chapéus de chuva • Deteção de rastejamento • Certificação EN-50131 Grau 2
B30: EV101x | E30: PVP | G30: Desconto | H30: Preço Liquido
B31: EV1012 | C31: =_xlfn.XLOOKUP($B31,Tabela!$A:$A,Tabela!$C:$C,"não encontrado") -> Mature | D31: Detetor Volumétrico PIR 9 cortinas 12m - EN50131 Grau 2 | E31: =_xlfn.XLOOKUP($B31,Tabela!$A:$A,Tabela!$D:$D,"não encontrado") -> 44.28 | F31: =IF(B31 =ISTEXT(qualquer), "", HYPERLINK("https://pt.firesecurityproducts.com/pt/search?q="&B31, "Link Web")) -> Link Web | G31: =$G$2 -> 0 | H31: =IF(ISBLANK(G31),"",E31-(E31*$G31)) -> 44.28
B32: EV1012PI | C32: =_xlfn.XLOOKUP($B32,Tabela!$A:$A,Tabela!$C:$C,"não encontrado") -> Mature | D32: Detetor Volumétrico PIR 9 cortinas 12m (imune a animais) - EN50131 Grau 2 | E32: =_xlfn.XLOOKUP($B32,Tabela!$A:$A,Tabela!$D:$D,"não encontrado") -> 44.74 | F32: =IF(B32 =ISTEXT(qualquer), "", HYPERLINK("https://pt.firesecurityproducts.com/pt/search?q="&B32, "Link Web")) -> Link Web | G32: =$G$2 -> 0 | H32: =IF(ISBLANK(G32),"",E32-(E32*$G32)) -> 44.74
F33: =IF(B33 =ISTEXT(qualquer), "", HYPERLINK("https://pt.firesecurityproducts.com/pt/search?q="&B33, "Link Web")) -> 
B34: EV111x
B35: EV1116 | C35: =_xlfn.XLOOKUP($B35,Tabela!$A:$A,Tabela!$C:$C,"não encontrado") -> Mature | D35: Detetor Volumétrico PIR 9 cortinas 16m - EN50131 Grau 2 | E35: =_xlfn.XLOOKUP($B35,Tabela!$A:$A,Tabela!$D:$D,"não encontrado") -> 58.65 | F35: =IF(B35 =ISTEXT(qualquer), "", HYPERLINK("https://pt.firesecurityproducts.com/pt/search?q="&B35, "Link Web")) -> Link Web | G35: =$G$2 -> 0 | H35: =IF(ISBLANK(G35),"",E35-(E35*$G35)) -> 58.65
F36: =IF(B36 =ISTEXT(qualquer), "", HYPERLINK("https://pt.firesecurityproducts.com/pt/search?q="&B36, "Link Web")) -> 
A37: EV10xx e EV11xx AM | C37: Detetores Volumétrico PIR Anti Máscara | F37: =IF(B37 =ISTEXT(qualquer), "", HYPERLINK("https://pt.firesecurityproducts.com/pt/search?q="&B37, "Link Web")) -> 
C38: • Detetor Volumétrico PIR com Anti máscara • Espelho ótico 'Tri-Brid' • Bloco Ótico Selado • Autofocus - Controlo real de alcance • 5D - Processamento de sinal (ASIC) • Deteção através de gabardines e chapéus de chuva • Deteção de rastejamento • Certificação EN-50131 Grau 3 | F38: =IF(B38 =ISTEXT(qualquer), "", HYPERLINK("https://pt.firesecurityproducts.com/pt/search?q="&B38, "Link Web")) -> 
F39: =IF(B39 =ISTEXT(qualquer), "", HYPERLINK("https://pt.firesecurityproducts.com/pt/search?q="&B39, "Link Web")) -> 
F40: =IF(B40 =ISTEXT(qualquer), "", HYPERLINK("https://pt.firesecurityproducts.com/pt/search?q="&B40, "Link Web")) -> 
F42: =IF(B42 =ISTEXT(qualquer), "", HYPERLINK("https://pt.firesecurityproducts.com/pt/search?q="&B42, "Link Web")) -> 
F43: =IF(B43 =ISTEXT(qualquer), "", HYPERLINK("https://pt.firesecurityproducts.com/pt/search?q="&B43, "Link Web")) -> 
F44: =IF(B44 =ISTEXT(qualquer), "", HYPERLINK("https://pt.firesecurityproducts.com/pt/search?q="&B44, "Link Web")) -> 
F45: =IF(B45 =ISTEXT(qualquer), "", HYPERLINK("https://pt.firesecurityproducts.com/pt/search?q="&B45, "Link Web")) -> 
F46: =IF(B46 =ISTEXT(qualquer), "", HYPERLINK("https://pt.firesecurityproducts.com/pt/search?q="&B46, "Link Web")) -> 
F47: =IF(B47 =ISTEXT(qualquer), "", HYPERLINK("https://pt.firesecurityproducts.com/pt/search?q="&B47, "Link Web")) -> 
B48: EV101x-AM
B49: EV1012AM | C49: =_xlfn.XLOOKUP($B49,Tabela!$A:$A,Tabela!$C:$C,"não encontrado") -> Mature | D49: Detetor PIR 9 cortinas de 12 m Anti Máscara - EN50131 Grau 3 | E49: =_xlfn.XLOOKUP($B49,Tabela!$A:$A,Tabela!$D:$D,"não encontrado") -> 89.04 | F49: =IF(B49 =ISTEXT(qualquer), "", HYPERLINK("https://pt.firesecurityproducts.com/pt/search?q="&B49, "Link Web")) -> Link Web | G49: =$G$2 -> 0 | H49: =IF(ISBLANK(G49),"",E49-(E49*$G49)) -> 89.04
F50: =IF(B50 =ISTEXT(qualquer), "", HYPERLINK("https://pt.firesecurityproducts.com/pt/search?q="&B50, "Link Web")) -> 
B51: EV111x-AM
B52: EV1116AM | C52: =_xlfn.XLOOKUP($B52,Tabela!$A:$A,Tabela!$C:$C,"não encontrado") -> Mature | D52: Detetor PIR 11 cortinas de 16 m Anti Máscara - EN50131 Grau 3 | E52: =_xlfn.XLOOKUP($B52,Tabela!$A:$A,Tabela!$D:$D,"não encontrado") -> 114.85 | F52: =IF(B52 =ISTEXT(qualquer), "", HYPERLINK("https://pt.firesecurityproducts.com/pt/search?q="&B52, "Link Web")) -> Link Web | G52: =$G$2 -> 0 | H52: =IF(ISBLANK(G52),"",E52-(E52*$G52)) -> 114.85
F53: =IF(B53 =ISTEXT(qualquer), "", HYPERLINK("https://pt.firesecurityproducts.com/pt/search?q="&B53, "Link Web")) -> 
A54: VE10xx e VE11xx | C54: Detetores Volumétrico Vector PIR | F54: =IF(B54 =ISTEXT(qualquer), "", HYPERLINK("https://pt.firesecurityproducts.com/pt/search?q="&B54, "Link Web")) -> 
C55: • Detetor Volumétrico PIR • Espelho ótico 'Tri-Brid' • Bloco Ótico Selado • Autofocus - Controlo real de alcance • Processamento "V2E" • Deteção através de gabardines e chapéus de chuva • Deteção de rastejamento • Certificação EN-50131 Grau 2 | F55: =IF(B55 =ISTEXT(qualquer), "", HYPERLINK("https://pt.firesecurityproducts.com/pt/search?q="&B55, "Link Web")) -> 
F56: =IF(B56 =ISTEXT(qualquer), "", HYPERLINK("https://pt.firesecurityproducts.com/pt/search?q="&B56, "Link Web")) -> 
F57: =IF(B57 =ISTEXT(qualquer), "", HYPERLINK("https://pt.firesecurityproducts.com/pt/search?q="&B57, "Link Web")) -> 
F58: =IF(B58 =ISTEXT(qualquer), "", HYPERLINK("https://pt.firesecurityproducts.com/pt/search?q="&B58, "Link Web")) -> 
F59: =IF(B59 =ISTEXT(qualquer), "", HYPERLINK("https://pt.firesecurityproducts.com/pt/search?q="&B59, "Link Web")) -> 
F60: =IF(B60 =ISTEXT(qualquer), "", HYPERLINK("https://pt.firesecurityproducts.com/pt/search?q="&B60, "Link Web")) -> 
F61: =IF(B61 =ISTEXT(qualquer), "", HYPERLINK("https://pt.firesecurityproducts.com/pt/search?q="&B61, "Link Web")) -> 
F62: =IF(B62 =ISTEXT(qualquer), "", HYPERLINK("https://pt.firesecurityproducts.com/pt/search?q="&B62, "Link Web")) -> 
F63: =IF(B63 =ISTEXT(qualquer), "", HYPERLINK("https://pt.firesecurityproducts.com/pt/search?q="&B63, "Link Web")) -> 
B64: VE10xx
B65: VE1012 | C65: =_xlfn.XLOOKUP($B65,Tabela!$A:$A,Tabela!$C:$C,"não encontrado") -> Mature | D65: Detetor Volumétrico PIR V2E 9 cortinas 12 m - EN50131 Grau 2 | E65: =_xlfn.XLOOKUP($B65,Tabela!$A:$A,Tabela!$D:$D,"não encontrado") -> 52.83 | F65: =IF(B65 =ISTEXT(qualquer), "", HYPERLINK("https://pt.firesecurityproducts.com/pt/search?q="&B65, "Link Web")) -> Link Web | G65: =$G$2 -> 0 | H65: =IF(ISBLANK(G65),"",E65-(E65*$G65)) -> 52.83
B66: VE1012PI | C66: =_xlfn.XLOOKUP($B66,Tabela!$A:$A,Tabela!$C:$C,"não encontrado") -> Mature | D66: Detetor Volumétrico PIR V2E 9 cortinas 12 m- Imune animais- EN50131 Grau 2 | E66: =_xlfn.XLOOKUP($B66,Tabela!$A:$A,Tabela!$D:$D,"não encontrado") -> 55.49 | F66: =IF(B66 =ISTEXT(qualquer), "", HYPERLINK("https://pt.firesecurityproducts.com/pt/search?q="&B66, "Link Web")) -> Link Web | G66: =$G$2 -> 0 | H66: 55.49
B67: VE1016 | C67: =_xlfn.XLOOKUP($B67,Tabela!$A:$A,Tabela!$C:$C,"não encontrado") -> Mature | D67: Detetor Volumétrico PIR V2E - 9 cortinas 16 m - EN50131 Grau 2 | E67: =_xlfn.XLOOKUP($B67,Tabela!$A:$A,Tabela!$D:$D,"não encontrado") -> 67.17 | F67: =IF(B67 =ISTEXT(qualquer), "", HYPERLINK("https://pt.firesecurityproducts.com/pt/search?q="&B67, "Link Web")) -> Link Web | G67: =$G$2 -> 0 | H67: 67.17
F68: =IF(B68 =ISTEXT(qualquer), "", HYPERLINK("https://pt.firesecurityproducts.com/pt/search?q="&B68, "Link Web")) -> 
B69: VE11xx
B70: VE1120 | C70: =_xlfn.XLOOKUP($B70,Tabela!$A:$A,Tabela!$C:$C,"não encontrado") -> Mature | D70: Detetor Volumétrico PIR V2E - 11 cortinas de 20 m - EN50131 Grau 2 | E70: =_xlfn.XLOOKUP($B70,Tabela!$A:$A,Tabela!$D:$D,"não encontrado") -> 80.17 | F70: =IF(B70 =ISTEXT(qualquer), "", HYPERLINK("https://pt.firesecurityproducts.com/pt/search?q="&B70, "Link Web")) -> Link Web | G70: =$G$2 -> 0 | H70: =IF(ISBLANK(G70),"",E70-(E70*$G70)) -> 80.17
F71: =IF(B71 =ISTEXT(qualquer), "", HYPERLINK("https://pt.firesecurityproducts.com/pt/search?q="&B71, "Link Web")) -> 
A72: VE10xx e VE11xx AM | C72: Detetores Volumétrico Vector PIR Anti Mascara | F72: =IF(B72 =ISTEXT(qualquer), "", HYPERLINK("https://pt.firesecurityproducts.com/pt/search?q="&B72, "Link Web")) -> 
C73: • Detetor Volumétrico PIR com Anti máscara • Espelho ótico 'Tri-Brid' • Bloco Ótico Selado • Autofocus - Controlo real de alcance • Processamento "V2E • Deteção através de gabardines e chapéus de chuva • Deteção de rastejamento • Certificação EN-50131 Grau 3 | F73: =IF(B73 =ISTEXT(qualquer), "", HYPERLINK("https://pt.firesecurityproducts.com/pt/search?q="&B73, "Link Web")) -> 
F74: =IF(B74 =ISTEXT(qualquer), "", HYPERLINK("https://pt.firesecurityproducts.com/pt/search?q="&B74, "Link Web")) -> 
F75: =IF(B75 =ISTEXT(qualquer), "", HYPERLINK("https://pt.firesecurityproducts.com/pt/search?q="&B75, "Link Web")) -> 
F77: =IF(B77 =ISTEXT(qualquer), "", HYPERLINK("https://pt.firesecurityproducts.com/pt/search?q="&B77, "Link Web")) -> 
F78: =IF(B78 =ISTEXT(qualquer), "", HYPERLINK("https://pt.firesecurityproducts.com/pt/search?q="&B78, "Link Web")) -> 
F79: =IF(B79 =ISTEXT(qualquer), "", HYPERLINK("https://pt.firesecurityproducts.com/pt/search?q="&B79, "Link Web")) -> 
F80: =IF(B80 =ISTEXT(qualquer), "", HYPERLINK("https://pt.firesecurityproducts.com/pt/search?q="&B80, "Link Web")) -> 
F81: =IF(B81 =ISTEXT(qualquer), "", HYPERLINK("https://pt.firesecurityproducts.com/pt/search?q="&B81, "Link Web")) -> 
F82: =IF(B82 =ISTEXT(qualquer), "", HYPERLINK("https://pt.firesecurityproducts.com/pt/search?q="&B82, "Link Web")) -> 
B83: VE10xxAM
B84: VE1012AM | C84: =_xlfn.XLOOKUP($B84,Tabela!$A:$A,Tabela!$C:$C,"não encontrado") -> Mature | D84: Detetor Volumétrico PIR V2E - 9 cortinas 12 m Anti Máscara EN50131 Grau 3 | E84: =_xlfn.XLOOKUP($B84,Tabela!$A:$A,Tabela!$D:$D,"não encontrado") -> 95.71 | F84: =IF(B84 =ISTEXT(qualquer), "", HYPERLINK("https://pt.firesecurityproducts.com/pt/search?q="&B84, "Link Web")) -> Link Web | G84: =$G$2 -> 0 | H84: =IF(ISBLANK(G84),"",E84-(E84*$G84)) -> 95.71
B85: VE1016AM | C85: =_xlfn.XLOOKUP($B85,Tabela!$A:$A,Tabela!$C:$C,"não encontrado") -> Mature | D85: Detetor Volumétrico PIR V2E - 9 cortinas de 16 m Anti Máscara EN50131 Grau 3 | E85: =_xlfn.XLOOKUP($B85,Tabela!$A:$A,Tabela!$D:$D,"não encontrado") -> 123.56 | F85: =IF(B85 =ISTEXT(qualquer), "", HYPERLINK("https://pt.firesecurityproducts.com/pt/search?q="&B85, "Link Web")) -> Link Web | G85: =$G$2 -> 0 | H85: 123.56
F86: =IF(B86 =ISTEXT(qualquer), "", HYPERLINK("https://pt.firesecurityproducts.com/pt/search?q="&B86, "Link Web")) -> 
B87: VE11xxAM
B88: VE1120AM | C88: =_xlfn.XLOOKUP($B88,Tabela!$A:$A,Tabela!$C:$C,"não encontrado") -> Mature | D88: Detetor Volumétrico PIR V2E - 11 cortinas de 20 m Anti Máscara EN50131 Grau 3 | E88: =_xlfn.XLOOKUP($B88,Tabela!$A:$A,Tabela!$D:$D,"não encontrado") -> 151.45 | F88: =IF(B88 =ISTEXT(qualquer), "", HYPERLINK("https://pt.firesecurityproducts.com/pt/search?q="&B88, "Link Web")) -> Link Web | G88: =$G$2 -> 0 | H88: =IF(ISBLANK(G88),"",E88-(E88*$G88)) -> 151.45
F89: =IF(B89 =ISTEXT(qualquer), "", HYPERLINK("https://pt.firesecurityproducts.com/pt/search?q="&B89, "Link Web")) -> 
A90: VE7xx e VE7xxAM | C90: Detetores Volumétrico PIR com Cortina de Longo Alcance | F90: =IF(B90 =ISTEXT(qualquer), "", HYPERLINK("https://pt.firesecurityproducts.com/pt/search?q="&B90, "Link Web")) -> 
C91: • Detetor Volumétrico PIR com cortina de longo alcance • Espelhos óticos 'Step & Gliding Focus" • Bloco Ótico Selado • Autofocus - Controlo real de alcance • Algoritmo "Vector Verified Enhanced" • Deteção através de gabardines e chapéus de chuva • Deteção de rastejamento • VE7xx - Certificação EN-50131 Grau 2 • VE7xxAM -Certificação EN-50131 Grau 3 | F91: =IF(B91 =ISTEXT(qualquer), "", HYPERLINK("https://pt.firesecurityproducts.com/pt/search?q="&B91, "Link Web")) -> 
F92: =IF(B92 =ISTEXT(qualquer), "", HYPERLINK("https://pt.firesecurityproducts.com/pt/search?q="&B92, "Link Web")) -> 
F93: =IF(B93 =ISTEXT(qualquer), "", HYPERLINK("https://pt.firesecurityproducts.com/pt/search?q="&B93, "Link Web")) -> 
F94: =IF(B94 =ISTEXT(qualquer), "", HYPERLINK("https://pt.firesecurityproducts.com/pt/search?q="&B94, "Link Web")) -> 
F95: =IF(B95 =ISTEXT(qualquer), "", HYPERLINK("https://pt.firesecurityproducts.com/pt/search?q="&B95, "Link Web")) -> 
F96: =IF(B96 =ISTEXT(qualquer), "", HYPERLINK("https://pt.firesecurityproducts.com/pt/search?q="&B96, "Link Web")) -> 
F97: =IF(B97 =ISTEXT(qualquer), "", HYPERLINK("https://pt.firesecurityproducts.com/pt/search?q="&B97, "Link Web")) -> 
F98: =IF(B98 =ISTEXT(qualquer), "", HYPERLINK("https://pt.firesecurityproducts.com/pt/search?q="&B98, "Link Web")) -> 
F99: =IF(B99 =ISTEXT(qualquer), "", HYPERLINK("https://pt.firesecurityproducts.com/pt/search?q="&B99, "Link Web")) -> 
B100: VE7xx
B101: VE735 | C101: =_xlfn.XLOOKUP($B101,Tabela!$A:$A,Tabela!$C:$C,"não encontrado") -> Mature | D101: Detetor PIR , 1 cortina de 60m, 10 cortinas 20m, V2E EN50131 Grau 2 | E101: =_xlfn.XLOOKUP($B101,Tabela!$A:$A,Tabela!$D:$D,"não encontrado") -> 175.38 | F101: =IF(B101 =ISTEXT(qualquer), "", HYPERLINK("https://pt.firesecurityproducts.com/pt/search?q="&B101, "Link Web")) -> Link Web | G101: =$G$2 -> 0 | H101: =IF(ISBLANK(G101),"",E101-(E101*$G101)) -> 175.38
F102: =IF(B102 =ISTEXT(qualquer), "", HYPERLINK("https://pt.firesecurityproducts.com/pt/search?q="&B102, "Link Web")) -> 
B103: VE7xxAM
B104: VE735AM | C104: =_xlfn.XLOOKUP($B104,Tabela!$A:$A,Tabela!$C:$C,"não encontrado") -> Mature | D104: Detetor PIR , 1 cortina de 60m, 10 cortinas 20m, V2E, Anti Máscara EN50131 Grau 3 | E104: =_xlfn.XLOOKUP($B104,Tabela!$A:$A,Tabela!$D:$D,"não encontrado") -> 238.97 | F104: =IF(B104 =ISTEXT(qualquer), "", HYPERLINK("https://pt.firesecurityproducts.com/pt/search?q="&B104, "Link Web")) -> Link Web | G104: =$G$2 -> 0 | H104: =IF(ISBLANK(G104),"",E104-(E104*$G104)) -> 238.97
F105: =IF(B105 =ISTEXT(qualquer), "", HYPERLINK("https://pt.firesecurityproducts.com/pt/search?q="&B105, "Link Web")) -> 
A106: 2X-AFR | B106: Acessórios
B107: VE710 | C107: =_xlfn.XLOOKUP($B107,Tabela!$A:$A,Tabela!$C:$C,"não encontrado") -> Mature | D107: Ferramenta de Alinhamento Laser | E107: =_xlfn.XLOOKUP($B107,Tabela!$A:$A,Tabela!$D:$D,"não encontrado") -> 64.76 | F107: =IF(B107 =ISTEXT(qualquer), "", HYPERLINK("https://pt.firesecurityproducts.com/pt/search?q="&B107, "Link Web")) -> Link Web | G107: =$G$2 -> 0 | H107: =IF(ISBLANK(G107),"",E107-(E107*$G107)) -> 64.76
F108: =IF(B108 =ISTEXT(qualquer), "", HYPERLINK("https://pt.firesecurityproducts.com/pt/search?q="&B108, "Link Web")) -> 
A109: EV66x | C109: Detetores Volumétrico PIR 360º | F109: =IF(B109 =ISTEXT(qualquer), "", HYPERLINK("https://pt.firesecurityproducts.com/pt/search?q="&B109, "Link Web")) -> 
C110: • Detetor Volumétrico Teto PIR • Padrão de cobertura a 360º • 2 x pyros; 2 x espelhos; 2 x ASIC • Padrão conversível, cortina a cortina ou eletrónico a 180º • Deteção anti rastejamento total • 4D - Processamento de sinal (ASIC) • Programável para ambientes hostis • Incorpora memória de alarme • Certificação EN-50131 | F110: =IF(B110 =ISTEXT(qualquer), "", HYPERLINK("https://pt.firesecurityproducts.com/pt/search?q="&B110, "Link Web")) -> 
F111: =IF(B111 =ISTEXT(qualquer), "", HYPERLINK("https://pt.firesecurityproducts.com/pt/search?q="&B111, "Link Web")) -> 
F112: =IF(B112 =ISTEXT(qualquer), "", HYPERLINK("https://pt.firesecurityproducts.com/pt/search?q="&B112, "Link Web")) -> 
F113: =IF(B113 =ISTEXT(qualquer), "", HYPERLINK("https://pt.firesecurityproducts.com/pt/search?q="&B113, "Link Web")) -> 
F115: =IF(B115 =ISTEXT(qualquer), "", HYPERLINK("https://pt.firesecurityproducts.com/pt/search?q="&B115, "Link Web")) -> 
F116: =IF(B116 =ISTEXT(qualquer), "", HYPERLINK("https://pt.firesecurityproducts.com/pt/search?q="&B116, "Link Web")) -> 
F117: =IF(B117 =ISTEXT(qualquer), "", HYPERLINK("https://pt.firesecurityproducts.com/pt/search?q="&B117, "Link Web")) -> 
F118: =IF(B118 =ISTEXT(qualquer), "", HYPERLINK("https://pt.firesecurityproducts.com/pt/search?q="&B118, "Link Web")) -> 
F119: =IF(B119 =ISTEXT(qualquer), "", HYPERLINK("https://pt.firesecurityproducts.com/pt/search?q="&B119, "Link Web")) -> 
B120: EV66x
B121: EV669 | C121: =_xlfn.XLOOKUP($B121,Tabela!$A:$A,Tabela!$C:$C,"não encontrado") -> Mature | D121: Detetor PIR 360º 18 cortinas de 10 m- Diâmetro de cobertura 20 m EN50131 Grau 2 | E121: =_xlfn.XLOOKUP($B121,Tabela!$A:$A,Tabela!$D:$D,"não encontrado") -> 162.16 | F121: =IF(B121 =ISTEXT(qualquer), "", HYPERLINK("https://pt.firesecurityproducts.com/pt/search?q="&B121, "Link Web")) -> Link Web | G121: =$G$2 -> 0 | H121: =IF(ISBLANK(G121),"",E121-(E121*$G121)) -> 162.16

Sheet Det Dupla Tecnolo
C1: Deteção Dupla Tecnologia
G2: 0
C4: Status | E4: PVP | G4: Desconto | H4: Preço Liquido
A5: DD101x-N | C5: Detetores de Dupla Tecnologia
C6: • Detetor Dupla Tecnologia • PIR & Micro-ondas • Decisão de alarme inteligente na clarificação dos sinais RF & PIR • Auto diagnóstico contínuo • Espelhos óticos de focagem facetada • Tecnologia Controlo de alcance de radar "Gated Radar" • Possibilidade de desligar o radar quando o sistema está desarmado • EN-50131 Grau 2
B15: DD10xx-N | E15: PVP | G15: Desconto | H15: Preço Liquido
B16: DD1012-N | C16: =_xlfn.XLOOKUP($B16,Tabela!$A:$A,Tabela!$C:$C,"não encontrado") -> Mature | D16: Detetor Dupla Tecnologia 9 cortinas de 12 m, Pyro Digital - EN50131 Grau 2 | E16: =_xlfn.XLOOKUP($B16,Tabela!$A:$A,Tabela!$D:$D,"não encontrado") -> 62.79 | F16: =IF(B16 =ISTEXT(qualquer), "", HYPERLINK("https://pt.firesecurityproducts.com/pt/search?q="&B16, "Link Web")) -> Link Web | G16: =$G$2 -> 0 | H16: =IF(ISBLANK(G16),"",E16-(E16*$G16)) -> 62.79
B17: DD1012PI-N | C17: =_xlfn.XLOOKUP($B17,Tabela!$A:$A,Tabela!$C:$C,"não encontrado") -> Mature | D17: Detetor Dupla Tecnologia 9 cortinas de 12 m Imune a Pequenos Animais, Pyro Digital - EN50131 Grau 2 | E17: =_xlfn.XLOOKUP($B17,Tabela!$A:$A,Tabela!$D:$D,"não encontrado") -> 63.61 | F17: =IF(B17 =ISTEXT(qualquer), "", HYPERLINK("https://pt.firesecurityproducts.com/pt/search?q="&B17, "Link Web")) -> Link Web | G17: =$G$2 -> 0 | H17: =IF(ISBLANK(G17),"",E17-(E17*$G17)) -> 63.61
F18: =IF(B18 =ISTEXT(qualquer), "", HYPERLINK("https://pt.firesecurityproducts.com/pt/search?q="&B18, "Link Web")) -> 
A19: DD101xAM-N | C19: Detetores de Dupla Tecnologia Anti Máscara | F19: =IF(B19 =ISTEXT(qualquer), "", HYPERLINK("https://pt.firesecurityproducts.com/pt/search?q="&B19, "Link Web")) -> 
C20: • Detetor Dupla Tecnologia • PIR & Micro-ondas • Decisão de alarme inteligente na clarificação dos sinais RF & PIR • Auto diagnóstico contínuo • Espelhos óticos de focagem facetada • Tecnologia Controlo de alcance de radar "Gated Radar" • Possibilidade de desligar o radar quando o sistema está desarmado • EN-50131 Grau 3 | F20: =IF(B20 =ISTEXT(qualquer), "", HYPERLINK("https://pt.firesecurityproducts.com/pt/search?q="&B20, "Link Web")) -> 
F21: =IF(B21 =ISTEXT(qualquer), "", HYPERLINK("https://pt.firesecurityproducts.com/pt/search?q="&B21, "Link Web")) -> 
F22: =IF(B22 =ISTEXT(qualquer), "", HYPERLINK("https://pt.firesecurityproducts.com/pt/search?q="&B22, "Link Web")) -> 
F23: =IF(B23 =ISTEXT(qualquer), "", HYPERLINK("https://pt.firesecurityproducts.com/pt/search?q="&B23, "Link Web")) -> 
F24: =IF(B24 =ISTEXT(qualquer), "", HYPERLINK("https://pt.firesecurityproducts.com/pt/search?q="&B24, "Link Web")) -> 
F25: =IF(B25 =ISTEXT(qualquer), "", HYPERLINK("https://pt.firesecurityproducts.com/pt/search?q="&B25, "Link Web")) -> 
F26: =IF(B26 =ISTEXT(qualquer), "", HYPERLINK("https://pt.firesecurityproducts.com/pt/search?q="&B26, "Link Web")) -> 
F27: =IF(B27 =ISTEXT(qualquer), "", HYPERLINK("https://pt.firesecurityproducts.com/pt/search?q="&B27, "Link Web")) -> 
F28: =IF(B28 =ISTEXT(qualquer), "", HYPERLINK("https://pt.firesecurityproducts.com/pt/search?q="&B28, "Link Web")) -> 
B29: DD101xAM-N
B30: DD1012AM-N | C30: =_xlfn.XLOOKUP($B30,Tabela!$A:$A,Tabela!$C:$C,"não encontrado") -> Mature | D30: Detetor de Dupla Tecnologia IR+MO 12m Anti Mascara - EN50131 Grau 3 | E30: =_xlfn.XLOOKUP($B30,Tabela!$A:$A,Tabela!$D:$D,"não encontrado") -> 122.25 | F30: =IF(B30 =ISTEXT(qualquer), "", HYPERLINK("https://pt.firesecurityproducts.com/pt/search?q="&B30, "Link Web")) -> Link Web | G30: =$G$2 -> 0 | H30: =IF(ISBLANK(G30),"",E30-(E30*$G30)) -> 122.25
F31: =IF(B31 =ISTEXT(qualquer), "", HYPERLINK("https://pt.firesecurityproducts.com/pt/search?q="&B31, "Link Web")) -> 
A32: DDV10xxAM | C32: Detetores de Dupla Tecnologia Anti Máscara | F32: =IF(B32 =ISTEXT(qualquer), "", HYPERLINK("https://pt.firesecurityproducts.com/pt/search?q="&B32, "Link Web")) -> 
C33: • Detetor Dupla Tecnologia com Anti Máscara • Pyro Digital e Algoritmo Neural • Decisão de alarme inteligente na clarificação dos sinais RF & PIR • Auto diagnóstico contínuo • Espelhos óticos de focagem facetada • Tecnologia Controlo de alcance de radar "Gated Radar" • Possibilidade de desligar o radar quando o sistema está desarmado • Certificação EN-50131 Grau 3 | F33: =IF(B33 =ISTEXT(qualquer), "", HYPERLINK("https://pt.firesecurityproducts.com/pt/search?q="&B33, "Link Web")) -> 
F34: =IF(B34 =ISTEXT(qualquer), "", HYPERLINK("https://pt.firesecurityproducts.com/pt/search?q="&B34, "Link Web")) -> 
F35: =IF(B35 =ISTEXT(qualquer), "", HYPERLINK("https://pt.firesecurityproducts.com/pt/search?q="&B35, "Link Web")) -> 
F36: =IF(B36 =ISTEXT(qualquer), "", HYPERLINK("https://pt.firesecurityproducts.com/pt/search?q="&B36, "Link Web")) -> 
F37: =IF(B37 =ISTEXT(qualquer), "", HYPERLINK("https://pt.firesecurityproducts.com/pt/search?q="&B37, "Link Web")) -> 
F38: =IF(B38 =ISTEXT(qualquer), "", HYPERLINK("https://pt.firesecurityproducts.com/pt/search?q="&B38, "Link Web")) -> 
F39: =IF(B39 =ISTEXT(qualquer), "", HYPERLINK("https://pt.firesecurityproducts.com/pt/search?q="&B39, "Link Web")) -> 
F40: =IF(B40 =ISTEXT(qualquer), "", HYPERLINK("https://pt.firesecurityproducts.com/pt/search?q="&B40, "Link Web")) -> 
F41: =IF(B41 =ISTEXT(qualquer), "", HYPERLINK("https://pt.firesecurityproducts.com/pt/search?q="&B41, "Link Web")) -> 
B42: DDVxxAM | E42: PVP | G42: Desconto | H42: Preço Liquido
B43: DDV1016-N | C43: =_xlfn.XLOOKUP($B43,Tabela!$A:$A,Tabela!$C:$C,"não encontrado") -> Mature | D43: 16 M, DUAL TECHNOLOGY MOTION SENSOR VECTOR | E43: =_xlfn.XLOOKUP($B43,Tabela!$A:$A,Tabela!$D:$D,"não encontrado") -> 88.71 | F43: =IF(B43 =ISTEXT(qualquer), "", HYPERLINK("https://pt.firesecurityproducts.com/pt/search?q="&B43, "Link Web")) -> Link Web | G43: =$G$2 -> 0 | H43: =IF(ISBLANK(G43),"",E43-(E43*$G43)) -> 88.71
B44: DDV1016AM-N | C44: =_xlfn.XLOOKUP($B44,Tabela!$A:$A,Tabela!$C:$C,"não encontrado") -> Mature | D44: 16 M, DUAL TECHNOLOGY MOTION SENSOR VECTOR, ANTI-MASK | E44: =_xlfn.XLOOKUP($B44,Tabela!$A:$A,Tabela!$D:$D,"não encontrado") -> 160.84 | F44: =IF(B44 =ISTEXT(qualquer), "", HYPERLINK("https://pt.firesecurityproducts.com/pt/search?q="&B44, "Link Web")) -> Link Web | G44: =$G$2 -> 0 | H44: =IF(ISBLANK(G44),"",E44-(E44*$G44)) -> 160.84
B45: DDV1016AM-D-B-N | C45: =_xlfn.XLOOKUP($B45,Tabela!$A:$A,Tabela!$C:$C,"não encontrado") -> Mature | D45: 16 M, DUAL TECHNOLOGY MOTION SENSOR VECTOR, ANTI-MASK, VDS APPROVED, BLACK | E45: =_xlfn.XLOOKUP($B45,Tabela!$A:$A,Tabela!$D:$D,"não encontrado") -> 202.68 | F45: =IF(B45 =ISTEXT(qualquer), "", HYPERLINK("https://pt.firesecurityproducts.com/pt/search?q="&B45, "Link Web")) -> Link Web | G45: =$G$2 -> 0 | H45: 202.68
F46: =IF(B46 =ISTEXT(qualquer), "", HYPERLINK("https://pt.firesecurityproducts.com/pt/search?q="&B46, "Link Web")) -> 
F47: =IF(B47 =ISTEXT(qualquer), "", HYPERLINK("https://pt.firesecurityproducts.com/pt/search?q="&B47, "Link Web")) -> 
A48: DD6xx e DD6xxAM | C48: Detetores Dupla Tecnologia 360º | F48: =IF(B48 =ISTEXT(qualquer), "", HYPERLINK("https://pt.firesecurityproducts.com/pt/search?q="&B48, "Link Web")) -> 
C49: • Detetor PIR 360º e Micro-ondas • Micro-ondas banda C • Possibilidade de operação só com micro-ondas "Stealth mode" • Modo dia/noite (desativação de micro-ondas com sistema desarmado) • Anti mascara por micro-ondas, escudo virtual de 40 cm • Altura de instalação de 2.5 a 5 m • Memória de alarme • Padrão de cobertura selecionável • Certificação EN-50131 | F49: =IF(B49 =ISTEXT(qualquer), "", HYPERLINK("https://pt.firesecurityproducts.com/pt/search?q="&B49, "Link Web")) -> 
F50: =IF(B50 =ISTEXT(qualquer), "", HYPERLINK("https://pt.firesecurityproducts.com/pt/search?q="&B50, "Link Web")) -> 
F51: =IF(B51 =ISTEXT(qualquer), "", HYPERLINK("https://pt.firesecurityproducts.com/pt/search?q="&B51, "Link Web")) -> 
F52: =IF(B52 =ISTEXT(qualquer), "", HYPERLINK("https://pt.firesecurityproducts.com/pt/search?q="&B52, "Link Web")) -> 
F54: =IF(B54 =ISTEXT(qualquer), "", HYPERLINK("https://pt.firesecurityproducts.com/pt/search?q="&B54, "Link Web")) -> 
F55: =IF(B55 =ISTEXT(qualquer), "", HYPERLINK("https://pt.firesecurityproducts.com/pt/search?q="&B55, "Link Web")) -> 
F56: =IF(B56 =ISTEXT(qualquer), "", HYPERLINK("https://pt.firesecurityproducts.com/pt/search?q="&B56, "Link Web")) -> 
F57: =IF(B57 =ISTEXT(qualquer), "", HYPERLINK("https://pt.firesecurityproducts.com/pt/search?q="&B57, "Link Web")) -> 
F58: =IF(B58 =ISTEXT(qualquer), "", HYPERLINK("https://pt.firesecurityproducts.com/pt/search?q="&B58, "Link Web")) -> 
B59: DD6xx
B60: DD669 | C60: =_xlfn.XLOOKUP($B60,Tabela!$A:$A,Tabela!$C:$C,"não encontrado") -> Mature | D60: Detetor Dupla Tecnologia 20m 360º EN50131 Grau 2 | E60: =_xlfn.XLOOKUP($B60,Tabela!$A:$A,Tabela!$D:$D,"não encontrado") -> 205.4 | F60: =IF(B60 =ISTEXT(qualquer), "", HYPERLINK("https://pt.firesecurityproducts.com/pt/search?q="&B60, "Link Web")) -> Link Web | G60: =$G$2 -> 0 | H60: =IF(ISBLANK(G60),"",E60-(E60*$G60)) -> 205.4
F61: =IF(B61 =ISTEXT(qualquer), "", HYPERLINK("https://pt.firesecurityproducts.com/pt/search?q="&B61, "Link Web")) -> 
B62: DD6xxAM
B63: DD669AM | C63: =_xlfn.XLOOKUP($B63,Tabela!$A:$A,Tabela!$C:$C,"não encontrado") -> Mature | D63: Detetor Dupla Tecnologia 360º Anti máscara- 18 cortinas de 10 m EN50131 Grau 3 | E63: =_xlfn.XLOOKUP($B63,Tabela!$A:$A,Tabela!$D:$D,"não encontrado") -> 260.7 | F63: =IF(B63 =ISTEXT(qualquer), "", HYPERLINK("https://pt.firesecurityproducts.com/pt/search?q="&B63, "Link Web")) -> Link Web | G63: =$G$2 -> 0 | H63: =IF(ISBLANK(G63),"",E63-(E63*$G63)) -> 260.7
F64: =IF(B64 =ISTEXT(qualquer), "", HYPERLINK("https://pt.firesecurityproducts.com/pt/search?q="&B64, "Link Web")) -> 

Sheet Det Quebra Vidros
C1: Deteção Quebra de Vidros
G2: 0
C4: Status | E4: PVP | G4: Desconto | H4: Preço Liquido
A5: GS960 | C5: Detetor Acústico de Quebra de Vidros
C6: • Detetor Acústico de Quebra Vidros • Proteção múltiplas janelas na mesma sala • Alcance de deteção até 9m com um angulo de 165º • Certificação EN-50131
B11: GS9xx | E11: PVP | G11: Desconto | H11: Preço Liquido
B12: GS960 | C12: =_xlfn.XLOOKUP($B12,Tabela!$A:$A,Tabela!$C:$C,"não encontrado") -> Mature | D12: Detetor Quebra Vidros Acústico Certificado EN50131 Grau 2 | E12: =_xlfn.XLOOKUP($B12,Tabela!$A:$A,Tabela!$D:$D,"não encontrado") -> 126.17 | F12: =IF(B12 =ISTEXT(qualquer), "", HYPERLINK("https://pt.firesecurityproducts.com/pt/search?q="&B12, "Link Web")) -> Link Web | G12: =$G$2 -> 0 | H12: =IF(ISBLANK(G12),"",E12-(E12*$G12)) -> 126.17
F13: =IF(B13 =ISTEXT(qualquer), "", HYPERLINK("https://pt.firesecurityproducts.com/pt/search?q="&B13, "Link Web")) -> 
B14: GS9xxAM
B15: GS960AM | C15: =_xlfn.XLOOKUP($B15,Tabela!$A:$A,Tabela!$C:$C,"não encontrado") -> Mature | D15: Detetor Quebra Vidros Acústico AM Certificado EN50131 Grau 3 | E15: =_xlfn.XLOOKUP($B15,Tabela!$A:$A,Tabela!$D:$D,"não encontrado") -> 175.1 | F15: =IF(B15 =ISTEXT(qualquer), "", HYPERLINK("https://pt.firesecurityproducts.com/pt/search?q="&B15, "Link Web")) -> Link Web | G15: =$G$2 -> 0 | H15: =IF(ISBLANK(G15),"",E15-(E15*$G15)) -> 175.1
F16: =IF(B16 =ISTEXT(qualquer), "", HYPERLINK("https://pt.firesecurityproducts.com/pt/search?q="&B16, "Link Web")) -> 
B17: Acessórios
B18: GS960-TR | C18: =_xlfn.XLOOKUP($B18,Tabela!$A:$A,Tabela!$C:$C,"não encontrado") -> Mature | D18: Ferramenta de teste/calibração para a série GS960 | E18: =_xlfn.XLOOKUP($B18,Tabela!$A:$A,Tabela!$D:$D,"não encontrado") -> 338.45 | F18: =IF(B18 =ISTEXT(qualquer), "", HYPERLINK("https://pt.firesecurityproducts.com/pt/search?q="&B18, "Link Web")) -> Link Web | G18: =$G$2 -> 0 | H18: =IF(ISBLANK(G18),"",E18-(E18*$G18)) -> 338.45
B19: GS960-RB | C19: =_xlfn.XLOOKUP($B19,Tabela!$A:$A,Tabela!$C:$C,"não encontrado") -> Mature | D19: PCB EOL para GS9xx | E19: =_xlfn.XLOOKUP($B19,Tabela!$A:$A,Tabela!$D:$D,"não encontrado") -> 10.17 | F19: =IF(B19 =ISTEXT(qualquer), "", HYPERLINK("https://pt.firesecurityproducts.com/pt/search?q="&B19, "Link Web")) -> Link Web | G19: =$G$2 -> 0 | H19: =IF(ISBLANK(G19),"",E19-(E19*$G19)) -> 10.17
F20: =IF(B20 =ISTEXT(qualquer), "", HYPERLINK("https://pt.firesecurityproducts.com/pt/search?q="&B20, "Link Web")) -> 
A21: ShatterPro2 | C21: Detetor Acústico de Quebra de Vidros | F21: =IF(B21 =ISTEXT(qualquer), "", HYPERLINK("https://pt.firesecurityproducts.com/pt/search?q="&B21, "Link Web")) -> 
C22: • Sensor acústico - Omni direcional • Deteção em 360º - raio de deteção 7,5 mt • Filtragem com Processamento Digital • Sem ajuste de sensibilidade • Superior imunidade a RFI e vibrações • Proteção tamper - memória de alarme • Plástico ABS Auto extinguível, branco | F22: =IF(B22 =ISTEXT(qualquer), "", HYPERLINK("https://pt.firesecurityproducts.com/pt/search?q="&B22, "Link Web")) -> 
F23: =IF(B23 =ISTEXT(qualquer), "", HYPERLINK("https://pt.firesecurityproducts.com/pt/search?q="&B23, "Link Web")) -> 
F24: =IF(B24 =ISTEXT(qualquer), "", HYPERLINK("https://pt.firesecurityproducts.com/pt/search?q="&B24, "Link Web")) -> 
F26: =IF(B26 =ISTEXT(qualquer), "", HYPERLINK("https://pt.firesecurityproducts.com/pt/search?q="&B26, "Link Web")) -> 
F27: =IF(B27 =ISTEXT(qualquer), "", HYPERLINK("https://pt.firesecurityproducts.com/pt/search?q="&B27, "Link Web")) -> 
F28: =IF(B28 =ISTEXT(qualquer), "", HYPERLINK("https://pt.firesecurityproducts.com/pt/search?q="&B28, "Link Web")) -> 
F29: =IF(B29 =ISTEXT(qualquer), "", HYPERLINK("https://pt.firesecurityproducts.com/pt/search?q="&B29, "Link Web")) -> 
B30: GS90x
B31: GS903N | C31: =_xlfn.XLOOKUP($B31,Tabela!$A:$A,Tabela!$C:$C,"não encontrado") -> Mature | D31: Detetor quebra de vidros 360º -raio 7,5 m, memória e aprovação VDS | E31: =_xlfn.XLOOKUP($B31,Tabela!$A:$A,Tabela!$D:$D,"não encontrado") -> 99.52 | F31: =IF(B31 =ISTEXT(qualquer), "", HYPERLINK("https://pt.firesecurityproducts.com/pt/search?q="&B31, "Link Web")) -> Link Web | G31: =$G$2 -> 0 | H31: =IF(ISBLANK(G31),"",E31-(E31*$G31)) -> 99.52
F32: =IF(B32 =ISTEXT(qualquer), "", HYPERLINK("https://pt.firesecurityproducts.com/pt/search?q="&B32, "Link Web")) -> 
B33: GS91x
B34: GS913N | C34: =_xlfn.XLOOKUP($B34,Tabela!$A:$A,Tabela!$C:$C,"não encontrado") -> Mature | D34: Detetor quebra de vidros 360º -raio 7,5 m, montagem de embutir | E34: =_xlfn.XLOOKUP($B34,Tabela!$A:$A,Tabela!$D:$D,"não encontrado") -> 125.89 | F34: =IF(B34 =ISTEXT(qualquer), "", HYPERLINK("https://pt.firesecurityproducts.com/pt/search?q="&B34, "Link Web")) -> Link Web | G34: =$G$2 -> 0 | H34: =IF(ISBLANK(G34),"",E34-(E34*$G34)) -> 125.89
F35: =IF(B35 =ISTEXT(qualquer), "", HYPERLINK("https://pt.firesecurityproducts.com/pt/search?q="&B35, "Link Web")) -> 
A36: Acessórios | C36: Detetor Acústico de Quebra de Vidros | F36: =IF(B36 =ISTEXT(qualquer), "", HYPERLINK("https://pt.firesecurityproducts.com/pt/search?q="&B36, "Link Web")) -> 
F37: =IF(B37 =ISTEXT(qualquer), "", HYPERLINK("https://pt.firesecurityproducts.com/pt/search?q="&B37, "Link Web")) -> 
B38: GS905 | C38: =_xlfn.XLOOKUP($B38,Tabela!$A:$A,Tabela!$C:$C,"não encontrado") -> Mature | D38: Unidade de teste p/ detetores de quebra de vidro, Som real de quebra de vidro Diferentes sons: - Vidro laminado - Vidro temperado - Vidro normal | E38: =_xlfn.XLOOKUP($B38,Tabela!$A:$A,Tabela!$D:$D,"não encontrado") -> 208.04 | F38: =IF(B38 =ISTEXT(qualquer), "", HYPERLINK("https://pt.firesecurityproducts.com/pt/search?q="&B38, "Link Web")) -> Link Web | G38: =$G$2 -> 0 | H38: =IF(ISBLANK(G38),"",E38-(E38*$G38)) -> 208.04
F39: =IF(B39 =ISTEXT(qualquer), "", HYPERLINK("https://pt.firesecurityproducts.com/pt/search?q="&B39, "Link Web")) -> 
A40: GS3xx | C40: Detetores Piezo de Quebra de Vidros | F40: =IF(B40 =ISTEXT(qualquer), "", HYPERLINK("https://pt.firesecurityproducts.com/pt/search?q="&B40, "Link Web")) -> 
C41: A Série GS300 foi concebida para detetar a gama específica de frequências ultrassónicas, produzidas pela quebra de vidro. As pancadas e outras perturbações normais de uma janela não acionam um alarme. • Modelos para cada tipo de vidro • Proteção 2 m raio • LED de indicação de ativação • Fornecido com cabo de ligação diferentes comprimentos • Alimentação de 3 a 16 VDC • Versões com saída de relé | F41: =IF(B41 =ISTEXT(qualquer), "", HYPERLINK("https://pt.firesecurityproducts.com/pt/search?q="&B41, "Link Web")) -> 
F42: =IF(B42 =ISTEXT(qualquer), "", HYPERLINK("https://pt.firesecurityproducts.com/pt/search?q="&B42, "Link Web")) -> 
F43: =IF(B43 =ISTEXT(qualquer), "", HYPERLINK("https://pt.firesecurityproducts.com/pt/search?q="&B43, "Link Web")) -> 
F44: =IF(B44 =ISTEXT(qualquer), "", HYPERLINK("https://pt.firesecurityproducts.com/pt/search?q="&B44, "Link Web")) -> 
F46: =IF(B46 =ISTEXT(qualquer), "", HYPERLINK("https://pt.firesecurityproducts.com/pt/search?q="&B46, "Link Web")) -> 
F47: =IF(B47 =ISTEXT(qualquer), "", HYPERLINK("https://pt.firesecurityproducts.com/pt/search?q="&B47, "Link Web")) -> 
F48: =IF(B48 =ISTEXT(qualquer), "", HYPERLINK("https://pt.firesecurityproducts.com/pt/search?q="&B48, "Link Web")) -> 
F49: =IF(B49 =ISTEXT(qualquer), "", HYPERLINK("https://pt.firesecurityproducts.com/pt/search?q="&B49, "Link Web")) -> 
B50: GS300 | C50: =_xlfn.XLOOKUP($B50,Tabela!$A:$A,Tabela!$C:$C,"não encontrado") -> Mature | D50: Detetor Piezo de Quebra de Vidro Normal (Plated) - 2m cabo | E50: =_xlfn.XLOOKUP($B50,Tabela!$A:$A,Tabela!$D:$D,"não encontrado") -> 34.57 | F50: =IF(B50 =ISTEXT(qualquer), "", HYPERLINK("https://pt.firesecurityproducts.com/pt/search?q="&B50, "Link Web")) -> Link Web | G50: =$G$2 -> 0 | H50: =IF(ISBLANK(G50),"",E50-(E50*$G50)) -> 34.57
B51: GS301 | C51: =_xlfn.XLOOKUP($B51,Tabela!$A:$A,Tabela!$C:$C,"não encontrado") -> Mature | D51: Detetor Piezo de Quebra de Vidro Normal (Plated) - 6m cabo | E51: =_xlfn.XLOOKUP($B51,Tabela!$A:$A,Tabela!$D:$D,"não encontrado") -> 39.95 | F51: =IF(B51 =ISTEXT(qualquer), "", HYPERLINK("https://pt.firesecurityproducts.com/pt/search?q="&B51, "Link Web")) -> Link Web | G51: 0 | H51: =IF(ISBLANK(G51),"",E51-(E51*$G51)) -> 39.95
F52: =IF(B52 =ISTEXT(qualquer), "", HYPERLINK("https://pt.firesecurityproducts.com/pt/search?q="&B52, "Link Web")) -> 
A53: 2X-AFR | B53: Acessórios
B54: GS313 | C54: =_xlfn.XLOOKUP($B54,Tabela!$A:$A,Tabela!$C:$C,"não encontrado") -> Mature | D54: Kit fixação detetores piezo de quebra de vidros laminados (cola e toalhetes) | E54: =_xlfn.XLOOKUP($B54,Tabela!$A:$A,Tabela!$D:$D,"não encontrado") -> 67 | F54: =IF(B54 =ISTEXT(qualquer), "", HYPERLINK("https://pt.firesecurityproducts.com/pt/search?q="&B54, "Link Web")) -> Link Web | G54: =$G$2 -> 0 | H54: =IF(ISBLANK(G54),"",E54-(E54*$G54)) -> 67
B55: GS330 | C55: =_xlfn.XLOOKUP($B55,Tabela!$A:$A,Tabela!$C:$C,"não encontrado") -> Mature | D55: Interface de relé para expansão de linha de deteção | E55: =_xlfn.XLOOKUP($B55,Tabela!$A:$A,Tabela!$D:$D,"não encontrado") -> 99.05 | F55: =IF(B55 =ISTEXT(qualquer), "", HYPERLINK("https://pt.firesecurityproducts.com/pt/search?q="&B55, "Link Web")) -> Link Web | G55: =$G$2 -> 0 | H55: =IF(ISBLANK(G55),"",E55-(E55*$G55)) -> 99.05
B56: GS331 | C56: =_xlfn.XLOOKUP($B56,Tabela!$A:$A,Tabela!$C:$C,"não encontrado") -> Mature | D56: Unidade para teste de detetores piezo | E56: =_xlfn.XLOOKUP($B56,Tabela!$A:$A,Tabela!$D:$D,"não encontrado") -> 355.92 | F56: =IF(B56 =ISTEXT(qualquer), "", HYPERLINK("https://pt.firesecurityproducts.com/pt/search?q="&B56, "Link Web")) -> Link Web | G56: =$G$2 -> 0 | H56: =IF(ISBLANK(G56),"",E56-(E56*$G56)) -> 355.92

Sheet Det Sismicos e Inércia
C1: Detetores Sísmicos / Choque Inércia
G2: 0
C4: Status | E4: PVP | G4: Desconto | H4: Preço Liquido
A5: GS6xx | C5: Sensores Miniatura de Choque e Inércia
C6: • Sensor de choque/inércia - eletromecânico • Contactos dourados • Instalação Vertical ou Horizontal • Necessita de analisador - GS615 • Pode ser ligado diretamente a zonas da ATSx500 (dispensa analisador) • Proteção tamper - dimensões 17 x 42 mm • Hermeticamente fechado plástico ABS
E13: PVP | G13: Desconto | H13: Preço Liquido
B14: GS600 | C14: =_xlfn.XLOOKUP($B14,Tabela!A:A,Tabela!C:C,"não encontrado") -> Mature | D14: Mini sensor de choque/inércia - 4 fios com 2 m | E14: =_xlfn.XLOOKUP($B14,Tabela!$A:$A,Tabela!$D:$D,"não encontrado") -> 48.28 | F14: =IF(B14 =ISTEXT(qualquer), "", HYPERLINK("https://pt.firesecurityproducts.com/pt/search?q="&B14, "Link Web")) -> Link Web | G14: =$G$2 -> 0 | H14: =IF(ISBLANK(G14),"",E14-(E14*$G14)) -> 48.28
F15: =IF(B15 =ISTEXT(qualquer), "", HYPERLINK("https://pt.firesecurityproducts.com/pt/search?q="&B15, "Link Web")) -> 
A16: GS7xx | C16: Sensores Choque e Inércia Com e Sem Contato Magnético | F16: =IF(B16 =ISTEXT(qualquer), "", HYPERLINK("https://pt.firesecurityproducts.com/pt/search?q="&B16, "Link Web")) -> 
C17: • Sensor de choque/inércia - eletromecânico • Contactos dourados • Instalação Vertical ou Horizontal • Necessita de analisador - GS615 • Pode ser ligado diretamente a zonas da ATSx500 (dispensa analisador) • Proteção tamper - dimensões 17 x 42 mm • Hermeticamente fechado plástico ABS | F17: =IF(B17 =ISTEXT(qualquer), "", HYPERLINK("https://pt.firesecurityproducts.com/pt/search?q="&B17, "Link Web")) -> 
F19: =IF(B19 =ISTEXT(qualquer), "", HYPERLINK("https://pt.firesecurityproducts.com/pt/search?q="&B19, "Link Web")) -> 
F20: =IF(B20 =ISTEXT(qualquer), "", HYPERLINK("https://pt.firesecurityproducts.com/pt/search?q="&B20, "Link Web")) -> 
F21: =IF(B21 =ISTEXT(qualquer), "", HYPERLINK("https://pt.firesecurityproducts.com/pt/search?q="&B21, "Link Web")) -> 
F22: =IF(B22 =ISTEXT(qualquer), "", HYPERLINK("https://pt.firesecurityproducts.com/pt/search?q="&B22, "Link Web")) -> 
F23: =IF(B23 =ISTEXT(qualquer), "", HYPERLINK("https://pt.firesecurityproducts.com/pt/search?q="&B23, "Link Web")) -> 
F24: =IF(B24 =ISTEXT(qualquer), "", HYPERLINK("https://pt.firesecurityproducts.com/pt/search?q="&B24, "Link Web")) -> 
B25: Branco
B26: GS710 | C26: =_xlfn.XLOOKUP($B26,Tabela!A:A,Tabela!C:C,"não encontrado") -> Mature | D26: Sensor de choque/inércia - eletromecânico - Branco | E26: =_xlfn.XLOOKUP($B26,Tabela!$A:$A,Tabela!$D:$D,"não encontrado") -> 51.9 | F26: =IF(B26 =ISTEXT(qualquer), "", HYPERLINK("https://pt.firesecurityproducts.com/pt/search?q="&B26, "Link Web")) -> Link Web | G26: =$G$2 -> 0 | H26: =IF(ISBLANK(G26),"",E26-(E26*$G26)) -> 51.9
B27: GS711 | C27: =_xlfn.XLOOKUP($B27,Tabela!A:A,Tabela!C:C,"não encontrado") -> Mature | D27: Sensor de choque/inércia - eletromecânico com contacto magnético - Branco | E27: =_xlfn.XLOOKUP($B27,Tabela!$A:$A,Tabela!$D:$D,"não encontrado") -> 63.37 | F27: =IF(B27 =ISTEXT(qualquer), "", HYPERLINK("https://pt.firesecurityproducts.com/pt/search?q="&B27, "Link Web")) -> Link Web | G27: =$G$2 -> 0 | H27: =IF(ISBLANK(G27),"",E27-(E27*$G27)) -> 63.37
F28: =IF(B28 =ISTEXT(qualquer), "", HYPERLINK("https://pt.firesecurityproducts.com/pt/search?q="&B28, "Link Web")) -> 
B29: Castanho
B30: GS710B | C30: =_xlfn.XLOOKUP($B30,Tabela!A:A,Tabela!C:C,"não encontrado") -> Mature | D30: Sensor de choque/inércia - eletromecânico - Castanho | E30: =_xlfn.XLOOKUP($B30,Tabela!$A:$A,Tabela!$D:$D,"não encontrado") -> 51.9 | F30: =IF(B30 =ISTEXT(qualquer), "", HYPERLINK("https://pt.firesecurityproducts.com/pt/search?q="&B30, "Link Web")) -> Link Web | G30: =$G$2 -> 0 | H30: =IF(ISBLANK(G30),"",E30-(E30*$G30)) -> 51.9
B31: GS711B | C31: =_xlfn.XLOOKUP($B31,Tabela!A:A,Tabela!C:C,"não encontrado") -> Mature | D31: Sensor de choque/inércia - eletromecânico com contacto magnético - Castanho | E31: =_xlfn.XLOOKUP($B31,Tabela!$A:$A,Tabela!$D:$D,"não encontrado") -> 63.84 | F31: =IF(B31 =ISTEXT(qualquer), "", HYPERLINK("https://pt.firesecurityproducts.com/pt/search?q="&B31, "Link Web")) -> Link Web | G31: =$G$2 -> 0 | H31: =IF(ISBLANK(G31),"",E31-(E31*$G31)) -> 63.84
F32: =IF(B32 =ISTEXT(qualquer), "", HYPERLINK("https://pt.firesecurityproducts.com/pt/search?q="&B32, "Link Web")) -> 
A33: Analisadores | C33: Sensores Choque e Inércia | F33: =IF(B33 =ISTEXT(qualquer), "", HYPERLINK("https://pt.firesecurityproducts.com/pt/search?q="&B33, "Link Web")) -> 
F34: =IF(B34 =ISTEXT(qualquer), "", HYPERLINK("https://pt.firesecurityproducts.com/pt/search?q="&B34, "Link Web")) -> 
B35: GS614 | C35: =_xlfn.XLOOKUP($B35,Tabela!A:A,Tabela!C:C,"não encontrado") -> Mature | D35: Analisador para detetores choque/inercia, Configuração de sensibilidade, Contador de impulsos 2, 4, 5, ou 8, Indicação LED, Permite o máximo de 12 detetores. Utilizar com GS 600/610/611/710/711 | E35: =_xlfn.XLOOKUP($B35,Tabela!$A:$A,Tabela!$D:$D,"não encontrado") -> 68.69 | F35: =IF(B35 =ISTEXT(qualquer), "", HYPERLINK("https://pt.firesecurityproducts.com/pt/search?q="&B35, "Link Web")) -> Link Web | G35: =$G$2 -> 0 | H35: =IF(ISBLANK(G35),"",E35-(E35*$G35)) -> 68.69
B36: GS615 | C36: =_xlfn.XLOOKUP($B36,Tabela!A:A,Tabela!C:C,"não encontrado") -> Mature | D36: Analisador para detetores choque/inercia, Configuração de sensibilidade, Contador de impulsos 1-9, Indicação LED, Permite o máximo de 20 detetores. Utilizar com GS 600/610/611/710/711 | E36: =_xlfn.XLOOKUP($B36,Tabela!$A:$A,Tabela!$D:$D,"não encontrado") -> 74.47 | F36: =IF(B36 =ISTEXT(qualquer), "", HYPERLINK("https://pt.firesecurityproducts.com/pt/search?q="&B36, "Link Web")) -> Link Web | G36: =$G$2 -> 0 | H36: =IF(ISBLANK(G36),"",E36-(E36*$G36)) -> 74.47
F37: =IF(B37 =ISTEXT(qualquer), "", HYPERLINK("https://pt.firesecurityproducts.com/pt/search?q="&B37, "Link Web")) -> 
A38: GS62xx | C38: Sensores Choque e Inércia Autónomo | F38: =IF(B38 =ISTEXT(qualquer), "", HYPERLINK("https://pt.firesecurityproducts.com/pt/search?q="&B38, "Link Web")) -> 
C39: • Sensor de choque/inércia - eletromecânico • Contactos dourados • Instalação Vertical ou Horizontal • Analisador integrado • Sensibilidade ajustável • Proteção tamper • Dimensões 93 x 30 x 24 mm | F39: =IF(B39 =ISTEXT(qualquer), "", HYPERLINK("https://pt.firesecurityproducts.com/pt/search?q="&B39, "Link Web")) -> 
F40: =IF(B40 =ISTEXT(qualquer), "", HYPERLINK("https://pt.firesecurityproducts.com/pt/search?q="&B40, "Link Web")) -> 
F41: =IF(B41 =ISTEXT(qualquer), "", HYPERLINK("https://pt.firesecurityproducts.com/pt/search?q="&B41, "Link Web")) -> 
F43: =IF(B43 =ISTEXT(qualquer), "", HYPERLINK("https://pt.firesecurityproducts.com/pt/search?q="&B43, "Link Web")) -> 
F44: =IF(B44 =ISTEXT(qualquer), "", HYPERLINK("https://pt.firesecurityproducts.com/pt/search?q="&B44, "Link Web")) -> 
F45: =IF(B45 =ISTEXT(qualquer), "", HYPERLINK("https://pt.firesecurityproducts.com/pt/search?q="&B45, "Link Web")) -> 
F46: =IF(B46 =ISTEXT(qualquer), "", HYPERLINK("https://pt.firesecurityproducts.com/pt/search?q="&B46, "Link Web")) -> 
B47: Branco
B48: GS620N | C48: =_xlfn.XLOOKUP($B48,Tabela!A:A,Tabela!C:C,"não encontrado") -> Mature | D48: Sensor choque/inercia - STAND ALONE - Branco | E48: =_xlfn.XLOOKUP($B48,Tabela!$A:$A,Tabela!$D:$D,"não encontrado") -> 65.97 | F48: =IF(B48 =ISTEXT(qualquer), "", HYPERLINK("https://pt.firesecurityproducts.com/pt/search?q="&B48, "Link Web")) -> Link Web | G48: =$G$2 -> 0 | H48: =IF(ISBLANK(G48),"",E48-(E48*$G48)) -> 65.97
F49: =IF(B49 =ISTEXT(qualquer), "", HYPERLINK("https://pt.firesecurityproducts.com/pt/search?q="&B49, "Link Web")) -> 
B50: Castanho
B51: GS620BN | C51: =_xlfn.XLOOKUP($B51,Tabela!A:A,Tabela!C:C,"não encontrado") -> Mature | D51: Detetor Volumétrico PIR V2E 9 cortinas 12 m- Imune animais- EN50131 G2 | E51: =_xlfn.XLOOKUP($B51,Tabela!$A:$A,Tabela!$D:$D,"não encontrado") -> 69.29 | F51: =IF(B51 =ISTEXT(qualquer), "", HYPERLINK("https://pt.firesecurityproducts.com/pt/search?q="&B51, "Link Web")) -> Link Web | G51: =$G$2 -> 0 | H51: =IF(ISBLANK(G51),"",E51-(E51*$G51)) -> 69.29
F52: =IF(B52 =ISTEXT(qualquer), "", HYPERLINK("https://pt.firesecurityproducts.com/pt/search?q="&B52, "Link Web")) -> 
A53: VV600 Plus | C53: Detetores Sísmicos | F53: =IF(B53 =ISTEXT(qualquer), "", HYPERLINK("https://pt.firesecurityproducts.com/pt/search?q="&B53, "Link Web")) -> 
C54: • Raio de deteção 1 a 14 m - 3 canais de deteção distintos • Deteção de sabotagem: • Térmico • Magnético • Alteração de tensão de alimentação • Abertura e remoção • Aprovação VDS | F54: =IF(B54 =ISTEXT(qualquer), "", HYPERLINK("https://pt.firesecurityproducts.com/pt/search?q="&B54, "Link Web")) -> 
F55: =IF(B55 =ISTEXT(qualquer), "", HYPERLINK("https://pt.firesecurityproducts.com/pt/search?q="&B55, "Link Web")) -> 
F57: =IF(B57 =ISTEXT(qualquer), "", HYPERLINK("https://pt.firesecurityproducts.com/pt/search?q="&B57, "Link Web")) -> 
F58: =IF(B58 =ISTEXT(qualquer), "", HYPERLINK("https://pt.firesecurityproducts.com/pt/search?q="&B58, "Link Web")) -> 
F59: =IF(B59 =ISTEXT(qualquer), "", HYPERLINK("https://pt.firesecurityproducts.com/pt/search?q="&B59, "Link Web")) -> 
F60: =IF(B60 =ISTEXT(qualquer), "", HYPERLINK("https://pt.firesecurityproducts.com/pt/search?q="&B60, "Link Web")) -> 
F61: =IF(B61 =ISTEXT(qualquer), "", HYPERLINK("https://pt.firesecurityproducts.com/pt/search?q="&B61, "Link Web")) -> 
B62: Cofres e Casas Fortes | E62: PVP | G62: Desconto | H62: Preço Liquido
B63: VV600-Plus | C63: =_xlfn.XLOOKUP($B63,Tabela!A:A,Tabela!C:C,"não encontrado") -> Mature | D63: SEISMIC DETECTOR REDESIGN | E63: =_xlfn.XLOOKUP($B63,Tabela!$A:$A,Tabela!$D:$D,"não encontrado") -> 201.69 | F63: =IF(B63 =ISTEXT(qualquer), "", HYPERLINK("https://pt.firesecurityproducts.com/pt/search?q="&B63, "Link Web")) -> Link Web | G63: =$G$2 -> 0 | H63: =IF(ISBLANK(G63),"",E63-(E63*$G63)) -> 201.69
F64: =IF(B64 =ISTEXT(qualquer), "", HYPERLINK("https://pt.firesecurityproducts.com/pt/search?q="&B64, "Link Web")) -> 
B65: ATM e Cofres Noturnos
B66: VV602-Plus | C66: =_xlfn.XLOOKUP($B66,Tabela!A:A,Tabela!C:C,"não encontrado") -> Mature | D66: COFRE NOCTURNO - DETECTOR DE MULTIBANCO | E66: =_xlfn.XLOOKUP($B66,Tabela!$A:$A,Tabela!$D:$D,"não encontrado") -> 201.69 | F66: =IF(B66 =ISTEXT(qualquer), "", HYPERLINK("https://pt.firesecurityproducts.com/pt/search?q="&B66, "Link Web")) -> Link Web | G66: =$G$2 -> 0 | H66: =IF(ISBLANK(G66),"",E66-(E66*$G66)) -> 201.69
B67: VV620-PLUS | C67: =_xlfn.XLOOKUP($B67,Tabela!A:A,Tabela!C:C,"não encontrado") -> Mature | D67: SEISM. DET. FORM C RELAY | E67: =_xlfn.XLOOKUP($B67,Tabela!$A:$A,Tabela!$D:$D,"não encontrado") -> 223.56 | F67: =IF(B67 =ISTEXT(qualquer), "", HYPERLINK("https://pt.firesecurityproducts.com/pt/search?q="&B67, "Link Web")) -> Link Web | G67: =$G$2 -> 0 | H67: =IF(ISBLANK(G67),"",E67-(E67*$G67)) -> 223.56
B68: VV622-PLUS | C68: =_xlfn.XLOOKUP($B68,Tabela!A:A,Tabela!C:C,"não encontrado") -> Mature | D68: NIGHT SAFE - ATM DETECTOR, FORM C | E68: =_xlfn.XLOOKUP($B68,Tabela!$A:$A,Tabela!$D:$D,"não encontrado") -> 223.56 | F68: =IF(B68 =ISTEXT(qualquer), "", HYPERLINK("https://pt.firesecurityproducts.com/pt/search?q="&B68, "Link Web")) -> Link Web | G68: 0 | H68: 223.56
F69: =IF(B69 =ISTEXT(qualquer), "", HYPERLINK("https://pt.firesecurityproducts.com/pt/search?q="&B69, "Link Web")) -> 
F70: =IF(B70 =ISTEXT(qualquer), "", HYPERLINK("https://pt.firesecurityproducts.com/pt/search?q="&B70, "Link Web")) -> 
A71: Acessórios | C71: Detetores Sísmicos | F71: =IF(B71 =ISTEXT(qualquer), "", HYPERLINK("https://pt.firesecurityproducts.com/pt/search?q="&B71, "Link Web")) -> 
E72: PVP | F72: =IF(B72 =ISTEXT(qualquer), "", HYPERLINK("https://pt.firesecurityproducts.com/pt/search?q="&B72, "Link Web")) ->  | G72: Desconto | H72: Preço Liquido
B73: VT612-N | C73: =_xlfn.XLOOKUP($B73,Tabela!A:A,Tabela!C:C,"não encontrado") -> NPI | D73: UNIDADE DE TESTE PARA A SÉRIE VV600 | E73: =_xlfn.XLOOKUP($B73,Tabela!$A:$A,Tabela!$D:$D,"não encontrado") -> 280.15 | F73: =IF(B73 =ISTEXT(qualquer), "", HYPERLINK("https://pt.firesecurityproducts.com/pt/search?q="&B73, "Link Web")) -> Link Web | G73: =$G$2 -> 0 | H73: =IF(ISBLANK(G73),"",E73-(E73*$G73)) -> 280.15
B74: VT705P | C74: =_xlfn.XLOOKUP($B74,Tabela!A:A,Tabela!C:C,"não encontrado") -> Mature | D74: Unidade de teste emissora de vibrações instalação no detetor | E74: =_xlfn.XLOOKUP($B74,Tabela!$A:$A,Tabela!$D:$D,"não encontrado") -> 38 | F74: =IF(B74 =ISTEXT(qualquer), "", HYPERLINK("https://pt.firesecurityproducts.com/pt/search?q="&B74, "Link Web")) -> Link Web | G74: 0 | H74: 38
B75: VM600P | C75: =_xlfn.XLOOKUP($B75,Tabela!A:A,Tabela!C:C,"não encontrado") -> Mature | D75: Prato de montagem, Dimensões: 80x97x5mm | E75: =_xlfn.XLOOKUP($B75,Tabela!$A:$A,Tabela!$D:$D,"não encontrado") -> 15.69 | F75: =IF(B75 =ISTEXT(qualquer), "", HYPERLINK("https://pt.firesecurityproducts.com/pt/search?q="&B75, "Link Web")) -> Link Web | G75: 0 | H75: 15.69
B76: VM652P | C76: =_xlfn.XLOOKUP($B76,Tabela!A:A,Tabela!C:C,"não encontrado") -> Mature | D76: Placa de proteção de aço reforçado para proteção do olho da fechadura | E76: =_xlfn.XLOOKUP($B76,Tabela!$A:$A,Tabela!$D:$D,"não encontrado") -> 117.93 | F76: =IF(B76 =ISTEXT(qualquer), "", HYPERLINK("https://pt.firesecurityproducts.com/pt/search?q="&B76, "Link Web")) -> Link Web | G76: 0 | H76: 117.93
B77: VM653P | C77: =_xlfn.XLOOKUP($B77,Tabela!A:A,Tabela!C:C,"não encontrado") -> Mature | D77: Espaçador de 5mm para VM652 | E77: =_xlfn.XLOOKUP($B77,Tabela!$A:$A,Tabela!$D:$D,"não encontrado") -> 18.93 | F77: =IF(B77 =ISTEXT(qualquer), "", HYPERLINK("https://pt.firesecurityproducts.com/pt/search?q="&B77, "Link Web")) -> Link Web | G77: 0 | H77: 18.93
B78: VM602P | C78: =_xlfn.XLOOKUP($B78,Tabela!A:A,Tabela!C:C,"não encontrado") -> Mature | D78: Kit para montagem embutida | E78: =_xlfn.XLOOKUP($B78,Tabela!$A:$A,Tabela!$D:$D,"não encontrado") -> 196.22 | F78: =IF(B78 =ISTEXT(qualquer), "", HYPERLINK("https://pt.firesecurityproducts.com/pt/search?q="&B78, "Link Web")) -> Link Web | G78: 0 | H78: 196.22
B79: VM603P | C79: =_xlfn.XLOOKUP($B79,Tabela!A:A,Tabela!C:C,"não encontrado") -> Mature | D79: Kit para montagem exterior ( Anti intempéries ) | E79: =_xlfn.XLOOKUP($B79,Tabela!$A:$A,Tabela!$D:$D,"não encontrado") -> 141.73 | F79: =IF(B79 =ISTEXT(qualquer), "", HYPERLINK("https://pt.firesecurityproducts.com/pt/search?q="&B79, "Link Web")) -> Link Web | G79: 0 | H79: 141.73
B80: VM611P | C80: =_xlfn.XLOOKUP($B80,Tabela!A:A,Tabela!C:C,"não encontrado") -> Mature | D80: Caixa para montagem no chão | E80: =_xlfn.XLOOKUP($B80,Tabela!$A:$A,Tabela!$D:$D,"não encontrado") -> 217.2 | F80: =IF(B80 =ISTEXT(qualquer), "", HYPERLINK("https://pt.firesecurityproducts.com/pt/search?q="&B80, "Link Web")) -> Link Web | G80: 0 | H80: 217.2
B81: VM651P | C81: =_xlfn.XLOOKUP($B81,Tabela!A:A,Tabela!C:C,"não encontrado") -> Mature | D81: Prato de montagem amovível dia/noite | E81: =_xlfn.XLOOKUP($B81,Tabela!$A:$A,Tabela!$D:$D,"não encontrado") -> 136.57 | F81: =IF(B81 =ISTEXT(qualquer), "", HYPERLINK("https://pt.firesecurityproducts.com/pt/search?q="&B81, "Link Web")) -> Link Web | G81: 0 | H81: 136.57
B82: VM654P | C82: =_xlfn.XLOOKUP($B82,Tabela!A:A,Tabela!C:C,"não encontrado") -> Mature | D82: Kit de cabo blindado | E82: =_xlfn.XLOOKUP($B82,Tabela!$A:$A,Tabela!$D:$D,"não encontrado") -> 46.53 | F82: =IF(B82 =ISTEXT(qualquer), "", HYPERLINK("https://pt.firesecurityproducts.com/pt/search?q="&B82, "Link Web")) -> Link Web | G82: 0 | H82: 46.53
B83: VM655P | C83: =_xlfn.XLOOKUP($B83,Tabela!A:A,Tabela!C:C,"não encontrado") -> Mature | D83: Caixa de junção com proteção contra arrombamento | E83: =_xlfn.XLOOKUP($B83,Tabela!$A:$A,Tabela!$D:$D,"não encontrado") -> 118.78 | F83: =IF(B83 =ISTEXT(qualquer), "", HYPERLINK("https://pt.firesecurityproducts.com/pt/search?q="&B83, "Link Web")) -> Link Web | G83: 0 | H83: 118.78
B84: VM704P | C84: =_xlfn.XLOOKUP($B84,Tabela!A:A,Tabela!C:C,"não encontrado") -> Mature | D84: Placa de fixação por soldadura para montagem de VV60X e VV700 | E84: =_xlfn.XLOOKUP($B84,Tabela!$A:$A,Tabela!$D:$D,"não encontrado") -> 27.12 | F84: =IF(B84 =ISTEXT(qualquer), "", HYPERLINK("https://pt.firesecurityproducts.com/pt/search?q="&B84, "Link Web")) -> Link Web | G84: 0 | H84: 27.12

Sheet Contactos_Pânico_Inundação
C1: Contactos, Pânico e Inundação
G2: 0
C4: Status | E4: PVP | G4: Desconto | H4: Preço Liquido
A5: Série DC101 | C5: Contato Magnético de Superfície - Standard
C6: Os contactos magnéticos de superfície da série DC101 foram concebidos para utilização em instalações onde é necessária uma unidade pequena e selada. • Encapsulamento em poliuretano • GAP: 15mm • Contato NF (100V / 0,5A máx) • Dimensões 50 x 9 x 9 mm
B13: Branco | E13: PVP | G13: Desconto | H13: Preço Liquido
B14: DC101 | C14: =_xlfn.XLOOKUP($B14,Tabela!A:A,Tabela!C:C,"não encontrado") -> Mature | D14: Contacto std superfície Branco - GAP: 15mm - Contacto NF cabo de 2,5m | E14: =_xlfn.XLOOKUP($B14,Tabela!$A:$A,Tabela!$D:$D,"não encontrado") -> 11.31 | F14: =IF(B14 =ISTEXT(qualquer), "", HYPERLINK("https://pt.firesecurityproducts.com/pt/search?q="&B14, "Link Web")) -> Link Web | G14: =$G$2 -> 0 | H14: =IF(ISBLANK(G14),"",E14-(E14*$G14)) -> 11.31
B15: DC101S60 | C15: =_xlfn.XLOOKUP($B15,Tabela!A:A,Tabela!C:C,"não encontrado") -> Mature | D15: Contacto std superfície Branco - GAP: 15mm - Contacto NF cabo de 6 m | E15: =_xlfn.XLOOKUP($B15,Tabela!$A:$A,Tabela!$D:$D,"não encontrado") -> 15.44 | F15: =IF(B15 =ISTEXT(qualquer), "", HYPERLINK("https://pt.firesecurityproducts.com/pt/search?q="&B15, "Link Web")) -> Link Web | G15: =$G$2 -> 0 | H15: =IF(ISBLANK(G15),"",E15-(E15*$G15)) -> 15.44
F16: =IF(B16 =ISTEXT(qualquer), "", HYPERLINK("https://pt.firesecurityproducts.com/pt/search?q="&B16, "Link Web")) -> 
B17: Castanho
B18: DC101B | C18: =_xlfn.XLOOKUP($B18,Tabela!A:A,Tabela!C:C,"não encontrado") -> Mature | D18: Contacto std superfície Castanho - GAP: 15mm- Contacto NF cabo de 2,5m | E18: =_xlfn.XLOOKUP($B18,Tabela!$A:$A,Tabela!$D:$D,"não encontrado") -> 11.31 | F18: =IF(B18 =ISTEXT(qualquer), "", HYPERLINK("https://pt.firesecurityproducts.com/pt/search?q="&B18, "Link Web")) -> Link Web | G18: =$G$2 -> 0 | H18: =IF(ISBLANK(G18),"",E18-(E18*$G18)) -> 11.31
F19: =IF(B19 =ISTEXT(qualquer), "", HYPERLINK("https://pt.firesecurityproducts.com/pt/search?q="&B19, "Link Web")) -> 
B20: Com Resistência EOL
B21: DC101R4.7 | C21: =_xlfn.XLOOKUP($B21,Tabela!A:A,Tabela!C:C,"não encontrado") -> Mature | D21: Contacto std superfície Branco - GAP: 15mm- Resistência EOL de 4.7K - cabo de 2,5m | E21: =_xlfn.XLOOKUP($B21,Tabela!$A:$A,Tabela!$D:$D,"não encontrado") -> 14.98 | F21: =IF(B21 =ISTEXT(qualquer), "", HYPERLINK("https://pt.firesecurityproducts.com/pt/search?q="&B21, "Link Web")) -> Link Web | G21: =$G$2 -> 0 | H21: =IF(ISBLANK(G21),"",E21-(E21*$G21)) -> 14.98
F22: =IF(B22 =ISTEXT(qualquer), "", HYPERLINK("https://pt.firesecurityproducts.com/pt/search?q="&B22, "Link Web")) -> 
A23: Série DC102 | C23: Contato Magnético de Superfície com Terminais - Standard | F23: =IF(B23 =ISTEXT(qualquer), "", HYPERLINK("https://pt.firesecurityproducts.com/pt/search?q="&B23, "Link Web")) -> 
C24: Os contactos magnéticos de superfície da série DC1xx foram concebidos para utilização em instalações onde é necessário a utilização de terminais de ligação. • Reed banhado a ródio ou ruténio e hermeticamente seladas em nitrogénio seco • Ter minais de aperto mecânico • GAP: 18mm • Contato NF (100V / 0,5A máx) • Dimensões 62 x 12 x 19 mm | F24: =IF(B24 =ISTEXT(qualquer), "", HYPERLINK("https://pt.firesecurityproducts.com/pt/search?q="&B24, "Link Web")) -> 
F25: =IF(B25 =ISTEXT(qualquer), "", HYPERLINK("https://pt.firesecurityproducts.com/pt/search?q="&B25, "Link Web")) -> 
F26: =IF(B26 =ISTEXT(qualquer), "", HYPERLINK("https://pt.firesecurityproducts.com/pt/search?q="&B26, "Link Web")) -> 
F27: =IF(B27 =ISTEXT(qualquer), "", HYPERLINK("https://pt.firesecurityproducts.com/pt/search?q="&B27, "Link Web")) -> 
F28: =IF(B28 =ISTEXT(qualquer), "", HYPERLINK("https://pt.firesecurityproducts.com/pt/search?q="&B28, "Link Web")) -> 
F29: =IF(B29 =ISTEXT(qualquer), "", HYPERLINK("https://pt.firesecurityproducts.com/pt/search?q="&B29, "Link Web")) -> 
F30: =IF(B30 =ISTEXT(qualquer), "", HYPERLINK("https://pt.firesecurityproducts.com/pt/search?q="&B30, "Link Web")) -> 
F31: =IF(B31 =ISTEXT(qualquer), "", HYPERLINK("https://pt.firesecurityproducts.com/pt/search?q="&B31, "Link Web")) -> 
B32: Branco
B33: DC102 | C33: =_xlfn.XLOOKUP($B33,Tabela!A:A,Tabela!C:C,"não encontrado") -> Mature | D33: Contacto std superfície Branco - GAP: 18mm - Contacto NF - 3 terminais | E33: =_xlfn.XLOOKUP($B33,Tabela!$A:$A,Tabela!$D:$D,"não encontrado") -> 8.9 | F33: =IF(B33 =ISTEXT(qualquer), "", HYPERLINK("https://pt.firesecurityproducts.com/pt/search?q="&B33, "Link Web")) -> Link Web | G33: =$G$2 -> 0 | H33: =IF(ISBLANK(G33),"",E33-(E33*$G33)) -> 8.9
B34: DC123 | C34: =_xlfn.XLOOKUP($B34,Tabela!A:A,Tabela!C:C,"não encontrado") -> Mature | D34: Contacto std superfície Banco - GAP:18mm - Contactos NF/C/NA - 3 terminais | E34: =_xlfn.XLOOKUP($B34,Tabela!$A:$A,Tabela!$D:$D,"não encontrado") -> 14.85 | F34: =IF(B34 =ISTEXT(qualquer), "", HYPERLINK("https://pt.firesecurityproducts.com/pt/search?q="&B34, "Link Web")) -> Link Web | G34: =$G$2 -> 0 | H34: =IF(ISBLANK(G34),"",E34-(E34*$G34)) -> 14.85
F35: =IF(B35 =ISTEXT(qualquer), "", HYPERLINK("https://pt.firesecurityproducts.com/pt/search?q="&B35, "Link Web")) -> 
B36: Castanho
B37: DC102B | C37: =_xlfn.XLOOKUP($B37,Tabela!A:A,Tabela!C:C,"não encontrado") -> Mature | D37: Contacto std superfície Castanho - GAP: 18mm - Contacto NF - 3 terminais | E37: =_xlfn.XLOOKUP($B37,Tabela!$A:$A,Tabela!$D:$D,"não encontrado") -> 8.18 | F37: =IF(B37 =ISTEXT(qualquer), "", HYPERLINK("https://pt.firesecurityproducts.com/pt/search?q="&B37, "Link Web")) -> Link Web | G37: =$G$2 -> 0 | H37: =IF(ISBLANK(G37),"",E37-(E37*$G37)) -> 8.18
F38: =IF(B38 =ISTEXT(qualquer), "", HYPERLINK("https://pt.firesecurityproducts.com/pt/search?q="&B38, "Link Web")) -> 
B39: Com Resistência EOL
B40: DC102R4.7 | C40: =_xlfn.XLOOKUP($B40,Tabela!A:A,Tabela!C:C,"não encontrado") -> Mature | D40: Contacto Standard - GAP: 1,5 cm- Contacto NF com EOL 4K7 cabo de 2,5m - Branco, 5x0,9x0,9 cm (LxHxD) - 100V máx/0,5A máx. | E40: =_xlfn.XLOOKUP($B40,Tabela!$A:$A,Tabela!$D:$D,"não encontrado") -> 11.31 | F40: =IF(B40 =ISTEXT(qualquer), "", HYPERLINK("https://pt.firesecurityproducts.com/pt/search?q="&B40, "Link Web")) -> Link Web | G40: =$G$2 -> 0 | H40: =IF(ISBLANK(G40),"",E40-(E40*$G40)) -> 11.31
F41: =IF(B41 =ISTEXT(qualquer), "", HYPERLINK("https://pt.firesecurityproducts.com/pt/search?q="&B41, "Link Web")) -> 
A42: Balanceados | C42: Contato Magnético de Superfície - Segurança | F42: =IF(B42 =ISTEXT(qualquer), "", HYPERLINK("https://pt.firesecurityproducts.com/pt/search?q="&B42, "Link Web")) -> 
C43: Os contactos magnéticos balanceados de superfície da série DC1xx foram concebidos para utilização em instalações onde são necessário contatos de alta segurança. Reed banhado a ródio ou ruténio e hermeticamente seladas em nitrogénio seco | F43: =IF(B43 =ISTEXT(qualquer), "", HYPERLINK("https://pt.firesecurityproducts.com/pt/search?q="&B43, "Link Web")) -> 
F44: =IF(B44 =ISTEXT(qualquer), "", HYPERLINK("https://pt.firesecurityproducts.com/pt/search?q="&B44, "Link Web")) -> 
F45: =IF(B45 =ISTEXT(qualquer), "", HYPERLINK("https://pt.firesecurityproducts.com/pt/search?q="&B45, "Link Web")) -> 
F46: =IF(B46 =ISTEXT(qualquer), "", HYPERLINK("https://pt.firesecurityproducts.com/pt/search?q="&B46, "Link Web")) -> 
B47: DC103 | C47: =_xlfn.XLOOKUP($B47,Tabela!A:A,Tabela!C:C,"não encontrado") -> Mature | D47: Contacto std superfície Branco - GAP: 18mm - Contacto NF - 3 terminais | E47: =_xlfn.XLOOKUP($B47,Tabela!$A:$A,Tabela!$D:$D,"não encontrado") -> 51.22 | F47: =IF(B47 =ISTEXT(qualquer), "", HYPERLINK("https://pt.firesecurityproducts.com/pt/search?q="&B47, "Link Web")) -> Link Web | G47: =$G$2 -> 0 | H47: =IF(ISBLANK(G47),"",E47-(E47*$G47)) -> 51.22
B48: DC104 | C48: =_xlfn.XLOOKUP($B48,Tabela!A:A,Tabela!C:C,"não encontrado") -> Mature | D48: Contacto std superfície Banco - GAP:18mm - Contactos NF/C/NA - 3 terminais | E48: =_xlfn.XLOOKUP($B48,Tabela!$A:$A,Tabela!$D:$D,"não encontrado") -> 61.56 | F48: =IF(B48 =ISTEXT(qualquer), "", HYPERLINK("https://pt.firesecurityproducts.com/pt/search?q="&B48, "Link Web")) -> Link Web | G48: =$G$2 -> 0 | H48: =IF(ISBLANK(G48),"",E48-(E48*$G48)) -> 61.56
B49: DC143 | C49: =_xlfn.XLOOKUP($B49,Tabela!A:A,Tabela!C:C,"não encontrado") -> Mature | D49: Contacto GAP largo superfície - GAP: min. 0,9 /máx. 7,5 cm - NF/C/NA - Creme, 100V máx/0,5A máx - 9,9x1,7x1,5 cm, | E49: =_xlfn.XLOOKUP($B49,Tabela!$A:$A,Tabela!$D:$D,"não encontrado") -> 45.06 | F49: =IF(B49 =ISTEXT(qualquer), "", HYPERLINK("https://pt.firesecurityproducts.com/pt/search?q="&B49, "Link Web")) -> Link Web | G49: =$G$2 -> 0 | H49: =IF(ISBLANK(G49),"",E49-(E49*$G49)) -> 45.06
F50: =IF(B50 =ISTEXT(qualquer), "", HYPERLINK("https://pt.firesecurityproducts.com/pt/search?q="&B50, "Link Web")) -> 
A51: GAP Extra | C51: Contato Magnético de Superfície - Standard | F51: =IF(B51 =ISTEXT(qualquer), "", HYPERLINK("https://pt.firesecurityproducts.com/pt/search?q="&B51, "Link Web")) -> 
E52: PVP | F52: =IF(B52 =ISTEXT(qualquer), "", HYPERLINK("https://pt.firesecurityproducts.com/pt/search?q="&B52, "Link Web")) ->  | G52: Desconto | H52: Preço Liquido
B53: DC134 | C53: =_xlfn.XLOOKUP($B53,Tabela!A:A,Tabela!C:C,"não encontrado") -> Mature | D53: Contacto std superfície Creme - GAP: 37 cm- Contacto NF 65 x 13 x 17 mm | E53: =_xlfn.XLOOKUP($B53,Tabela!$A:$A,Tabela!$D:$D,"não encontrado") -> 13.07 | F53: =IF(B53 =ISTEXT(qualquer), "", HYPERLINK("https://pt.firesecurityproducts.com/pt/search?q="&B53, "Link Web")) -> Link Web | G53: =$G$2 -> 0 | H53: =IF(ISBLANK(G53),"",E53-(E53*$G53)) -> 13.07
B54: DC137 | C54: =_xlfn.XLOOKUP($B54,Tabela!A:A,Tabela!C:C,"não encontrado") -> Mature | D54: Contacto std superfície Banco - GAP:37mm - Contactos NF 63 x 12 x 19 mm | E54: =_xlfn.XLOOKUP($B54,Tabela!$A:$A,Tabela!$D:$D,"não encontrado") -> 11.89 | F54: =IF(B54 =ISTEXT(qualquer), "", HYPERLINK("https://pt.firesecurityproducts.com/pt/search?q="&B54, "Link Web")) -> Link Web | G54: =$G$2 -> 0 | H54: 11.89
B55: DC105 | C55: =_xlfn.XLOOKUP($B55,Tabela!A:A,Tabela!C:C,"não encontrado") -> Mature | D55: Contacto combinado superfície/embutir - GAP:1,2 cm - Contacto NF - Creme SW Ø 0,6x2,8 comp./ Mag Ø 0,6x3,1 comp./cx 5x0,9x0,9 - cabo 2,5m | E55: =_xlfn.XLOOKUP($B55,Tabela!$A:$A,Tabela!$D:$D,"não encontrado") -> 12.48 | F55: =IF(B55 =ISTEXT(qualquer), "", HYPERLINK("https://pt.firesecurityproducts.com/pt/search?q="&B55, "Link Web")) -> Link Web | G55: =$G$2 -> 0 | H55: 12.48
B56: DC116 | C56: =_xlfn.XLOOKUP($B56,Tabela!A:A,Tabela!C:C,"não encontrado") -> Mature | D56: Contacto std superfície Creme - GAP: 31mm - Contacto NF 99 x 17 x 15 mm | E56: =_xlfn.XLOOKUP($B56,Tabela!$A:$A,Tabela!$D:$D,"não encontrado") -> 16.34 | F56: =IF(B56 =ISTEXT(qualquer), "", HYPERLINK("https://pt.firesecurityproducts.com/pt/search?q="&B56, "Link Web")) -> Link Web | G56: =$G$2 -> 0 | H56: 16.34
B57: DC142 | C57: =_xlfn.XLOOKUP($B57,Tabela!A:A,Tabela!C:C,"não encontrado") -> Mature | D57: Contacto std superfície Banco - GAP: 75mm - Contactos NF 99 x 17 x 15 mm | E57: =_xlfn.XLOOKUP($B57,Tabela!$A:$A,Tabela!$D:$D,"não encontrado") -> 19.33 | F57: =IF(B57 =ISTEXT(qualquer), "", HYPERLINK("https://pt.firesecurityproducts.com/pt/search?q="&B57, "Link Web")) -> Link Web | G57: =$G$2 -> 0 | H57: 19.33
F58: =IF(B58 =ISTEXT(qualquer), "", HYPERLINK("https://pt.firesecurityproducts.com/pt/search?q="&B58, "Link Web")) -> 
A59: Industriais | C59: Contato Magnético de Superfície | F59: =IF(B59 =ISTEXT(qualquer), "", HYPERLINK("https://pt.firesecurityproducts.com/pt/search?q="&B59, "Link Web")) -> 
F60: =IF(B60 =ISTEXT(qualquer), "", HYPERLINK("https://pt.firesecurityproducts.com/pt/search?q="&B60, "Link Web")) -> 
B61: DC108 | C61: =_xlfn.XLOOKUP($B61,Tabela!A:A,Tabela!C:C,"não encontrado") -> Mature | D61: Contacto industrial alumínio aplicação no solo - GAP: máx 7,5 cm - NF - cabo aramado 2m, mag 8,9x3,9x3,9 cm- sw 8,9x1,0x3,9 cm | E61: =_xlfn.XLOOKUP($B61,Tabela!$A:$A,Tabela!$D:$D,"não encontrado") -> 48.67 | F61: =IF(B61 =ISTEXT(qualquer), "", HYPERLINK("https://pt.firesecurityproducts.com/pt/search?q="&B61, "Link Web")) -> Link Web | G61: =$G$2 -> 0 | H61: =IF(ISBLANK(G61),"",E61-(E61*$G61)) -> 48.67
B62: DC108R4.7 | C62: =_xlfn.XLOOKUP($B62,Tabela!A:A,Tabela!C:C,"não encontrado") -> Mature | D62: Contacto industrial alumínio aplicação no solo - GAP: máx 7,5 cm - NF - cabo aramado 2m, mag 8,9x3,9x3,9 cm- sw 8,9x1,0x3,9 cm | E62: =_xlfn.XLOOKUP($B62,Tabela!$A:$A,Tabela!$D:$D,"não encontrado") -> 44.51 | F62: =IF(B62 =ISTEXT(qualquer), "", HYPERLINK("https://pt.firesecurityproducts.com/pt/search?q="&B62, "Link Web")) -> Link Web | G62: =$G$2 -> 0 | H62: 44.51
B63: DC110 | C63: =_xlfn.XLOOKUP($B63,Tabela!A:A,Tabela!C:C,"não encontrado") -> Mature | D63: Contacto industrial anodizado - Balanceado GAP: 19 mm (min.); 63 mm (max.)- C/NF/NA - cabo aramado 2m, Magneto 76x25x12 mm Contato 88x38x11mm | E63: =_xlfn.XLOOKUP($B63,Tabela!$A:$A,Tabela!$D:$D,"não encontrado") -> 100.93 | F63: =IF(B63 =ISTEXT(qualquer), "", HYPERLINK("https://pt.firesecurityproducts.com/pt/search?q="&B63, "Link Web")) -> Link Web | G63: =$G$2 -> 0 | H63: 100.93
B64: DC118 | C64: =_xlfn.XLOOKUP($B64,Tabela!A:A,Tabela!C:C,"não encontrado") -> Mature | D64: Contacto industrial anodizado -GAP: máx 7,5 cm - NF - cabo aramado 2m, mag 7,6x2,5x1,2 | E64: =_xlfn.XLOOKUP($B64,Tabela!$A:$A,Tabela!$D:$D,"não encontrado") -> 67.41 | F64: =IF(B64 =ISTEXT(qualquer), "", HYPERLINK("https://pt.firesecurityproducts.com/pt/search?q="&B64, "Link Web")) -> Link Web | G64: =$G$2 -> 0 | H64: 67.41
B65: DC115 | C65: =_xlfn.XLOOKUP($B65,Tabela!A:A,Tabela!C:C,"não encontrado") -> Mature | D65: Contacto industrial anodizado alta seg.- GAP: máx 7,5 cm - NF/C/NA - cabo aramado 2m, mag 7,6x2,5x1,2 | E65: =_xlfn.XLOOKUP($B65,Tabela!$A:$A,Tabela!$D:$D,"não encontrado") -> 95.02 | F65: =IF(B65 =ISTEXT(qualquer), "", HYPERLINK("https://pt.firesecurityproducts.com/pt/search?q="&B65, "Link Web")) -> Link Web | G65: =$G$2 -> 0 | H65: 95.02
B66: IM1640PAG | C66: =_xlfn.XLOOKUP($B66,Tabela!A:A,Tabela!C:C,"não encontrado") -> Mature | D66: MAG CT PLAS SF C/W CBL | E66: =_xlfn.XLOOKUP($B66,Tabela!$A:$A,Tabela!$D:$D,"não encontrado") -> 22.62 | F66: =IF(B66 =ISTEXT(qualquer), "", HYPERLINK("https://pt.firesecurityproducts.com/pt/search?q="&B66, "Link Web")) -> Link Web | G66: =$G$2 -> 0 | H66: 22.62
B67: IM1640PAG01JB | C67: =_xlfn.XLOOKUP($B67,Tabela!A:A,Tabela!C:C,"não encontrado") -> Mature | D67: SURFACE MNT CONTACT 1M AMOURED CABLE INCL JUNCT BOX | E67: =_xlfn.XLOOKUP($B67,Tabela!$A:$A,Tabela!$D:$D,"não encontrado") -> 26.46 | F67: =IF(B67 =ISTEXT(qualquer), "", HYPERLINK("https://pt.firesecurityproducts.com/pt/search?q="&B67, "Link Web")) -> Link Web | G67: 0 | H67: 26.46
B68: IM1640PAG-G3 | C68: =_xlfn.XLOOKUP($B68,Tabela!A:A,Tabela!C:C,"não encontrado") -> Mature | D68: SURFACE MOUNT CONTACT, ARMORED CABLE, EN GRADE 3 & NFA2P 3 SHIELDS | E68: =_xlfn.XLOOKUP($B68,Tabela!$A:$A,Tabela!$D:$D,"não encontrado") -> 50.15 | F68: =IF(B68 =ISTEXT(qualquer), "", HYPERLINK("https://pt.firesecurityproducts.com/pt/search?q="&B68, "Link Web")) -> Link Web | G68: 0 | H68: 50.15
B69: IM1640PSG | C69: =_xlfn.XLOOKUP($B69,Tabela!A:A,Tabela!C:C,"não encontrado") -> Mature | D69: MAG CT PLAS SF W/O CBL | E69: =_xlfn.XLOOKUP($B69,Tabela!$A:$A,Tabela!$D:$D,"não encontrado") -> 20.26 | F69: =IF(B69 =ISTEXT(qualquer), "", HYPERLINK("https://pt.firesecurityproducts.com/pt/search?q="&B69, "Link Web")) -> Link Web | G69: 0 | H69: 20.26
B70: IM1640PSG-G3 | C70: =_xlfn.XLOOKUP($B70,Tabela!A:A,Tabela!C:C,"não encontrado") -> Mature | D70: SURFACE MOUNT CONTACT, SUPERVISED CABLE, EN GRADE 3 & NFA2P 3 SHIELDS | E70: =_xlfn.XLOOKUP($B70,Tabela!$A:$A,Tabela!$D:$D,"não encontrado") -> 48.75 | F70: =IF(B70 =ISTEXT(qualquer), "", HYPERLINK("https://pt.firesecurityproducts.com/pt/search?q="&B70, "Link Web")) -> Link Web | G70: 0 | H70: =IF(ISBLANK(G70),"",E70-(E70*$G70)) -> 48.75
F71: =IF(B71 =ISTEXT(qualquer), "", HYPERLINK("https://pt.firesecurityproducts.com/pt/search?q="&B71, "Link Web")) -> 
A72: DC10x | C72: Contacto Magnético de Embutir com Fixação por Parafuso | F72: =IF(B72 =ISTEXT(qualquer), "", HYPERLINK("https://pt.firesecurityproducts.com/pt/search?q="&B72, "Link Web")) -> 
C73: Os contactos de encastrar DC106 foram concebidos para aplicações em que é necessária a integridade adicional dos parafusos de fixação. As unidades podem ser utilizadas em portas e janelas com moldura de madeira e metal. • Cabo de 2.5m • Versão com resistência incorporada • GAP: 12mm • Cor branca • Dimensões 19 x 33 : Orifício 9.5mm • EN 50131 Grau 2 | F73: =IF(B73 =ISTEXT(qualquer), "", HYPERLINK("https://pt.firesecurityproducts.com/pt/search?q="&B73, "Link Web")) -> 
F74: =IF(B74 =ISTEXT(qualquer), "", HYPERLINK("https://pt.firesecurityproducts.com/pt/search?q="&B74, "Link Web")) -> 
F75: =IF(B75 =ISTEXT(qualquer), "", HYPERLINK("https://pt.firesecurityproducts.com/pt/search?q="&B75, "Link Web")) -> 
F76: =IF(B76 =ISTEXT(qualquer), "", HYPERLINK("https://pt.firesecurityproducts.com/pt/search?q="&B76, "Link Web")) -> 
F77: =IF(B77 =ISTEXT(qualquer), "", HYPERLINK("https://pt.firesecurityproducts.com/pt/search?q="&B77, "Link Web")) -> 
F78: =IF(B78 =ISTEXT(qualquer), "", HYPERLINK("https://pt.firesecurityproducts.com/pt/search?q="&B78, "Link Web")) -> 
F79: =IF(B79 =ISTEXT(qualquer), "", HYPERLINK("https://pt.firesecurityproducts.com/pt/search?q="&B79, "Link Web")) -> 
F80: =IF(B80 =ISTEXT(qualquer), "", HYPERLINK("https://pt.firesecurityproducts.com/pt/search?q="&B80, "Link Web")) -> 
F81: =IF(B81 =ISTEXT(qualquer), "", HYPERLINK("https://pt.firesecurityproducts.com/pt/search?q="&B81, "Link Web")) -> 
B82: DC106 | C82: =_xlfn.XLOOKUP($B82,Tabela!A:A,Tabela!C:C,"não encontrado") -> Mature | D82: Contacto std embutir - GAP: 12mm - Cabo 2m EN 50131 Grau 2 | E82: =_xlfn.XLOOKUP($B82,Tabela!$A:$A,Tabela!$D:$D,"não encontrado") -> 13.34 | F82: =IF(B82 =ISTEXT(qualquer), "", HYPERLINK("https://pt.firesecurityproducts.com/pt/search?q="&B82, "Link Web")) -> Link Web | G82: =$G$2 -> 0 | H82: =IF(ISBLANK(G82),"",E82-(E82*$G82)) -> 13.34
B83: DC106S9 | C83: =_xlfn.XLOOKUP($B83,Tabela!A:A,Tabela!C:C,"não encontrado") -> Mature | D83: Contacto std embutir - GAP: 12mm - Cabo 3m EN 50131 Grau 2 | E83: =_xlfn.XLOOKUP($B83,Tabela!$A:$A,Tabela!$D:$D,"não encontrado") -> 13.94 | F83: =IF(B83 =ISTEXT(qualquer), "", HYPERLINK("https://pt.firesecurityproducts.com/pt/search?q="&B83, "Link Web")) -> Link Web | G83: =$G$2 -> 0 | H83: 13.94
B84: DC106R4.7 | C84: =_xlfn.XLOOKUP($B84,Tabela!A:A,Tabela!C:C,"não encontrado") -> Mature | D84: Contacto std embutir - GAP: 12mm - Cabo 3m EO L4.7K EN 50131 Grau 2 | E84: =_xlfn.XLOOKUP($B84,Tabela!$A:$A,Tabela!$D:$D,"não encontrado") -> 18.42 | F84: =IF(B84 =ISTEXT(qualquer), "", HYPERLINK("https://pt.firesecurityproducts.com/pt/search?q="&B84, "Link Web")) -> Link Web | G84: =$G$2 -> 0 | H84: 18.42
F85: =IF(B85 =ISTEXT(qualquer), "", HYPERLINK("https://pt.firesecurityproducts.com/pt/search?q="&B85, "Link Web")) -> 
A86: DC12x | C86: Contacto Magnético de Embutir com Fixação por Pressão | F86: =IF(B86 =ISTEXT(qualquer), "", HYPERLINK("https://pt.firesecurityproducts.com/pt/search?q="&B86, "Link Web")) -> 
C87: Os contactos de encastrar DC120 foram concebidos para aplicações onde o espaço é limitado. As unidades podem ser utilizadas em portas e janelas com moldura de madeira e metal. • Cabo de 2m ou 6m • GAP: 18mm • Cor Branco • Dimensões 19mm : Orifício 9mm • EN 50131 Grau 2 | F87: =IF(B87 =ISTEXT(qualquer), "", HYPERLINK("https://pt.firesecurityproducts.com/pt/search?q="&B87, "Link Web")) -> 
F88: =IF(B88 =ISTEXT(qualquer), "", HYPERLINK("https://pt.firesecurityproducts.com/pt/search?q="&B88, "Link Web")) -> 
F89: =IF(B89 =ISTEXT(qualquer), "", HYPERLINK("https://pt.firesecurityproducts.com/pt/search?q="&B89, "Link Web")) -> 
F90: =IF(B90 =ISTEXT(qualquer), "", HYPERLINK("https://pt.firesecurityproducts.com/pt/search?q="&B90, "Link Web")) -> 
F91: =IF(B91 =ISTEXT(qualquer), "", HYPERLINK("https://pt.firesecurityproducts.com/pt/search?q="&B91, "Link Web")) -> 
F92: =IF(B92 =ISTEXT(qualquer), "", HYPERLINK("https://pt.firesecurityproducts.com/pt/search?q="&B92, "Link Web")) -> 
F93: =IF(B93 =ISTEXT(qualquer), "", HYPERLINK("https://pt.firesecurityproducts.com/pt/search?q="&B93, "Link Web")) -> 
F94: =IF(B94 =ISTEXT(qualquer), "", HYPERLINK("https://pt.firesecurityproducts.com/pt/search?q="&B94, "Link Web")) -> 
B95: DC120 | C95: =_xlfn.XLOOKUP($B95,Tabela!A:A,Tabela!C:C,"não encontrado") -> Mature | D95: Contacto std embutir por pressão - GAP: 18mm cabo 2,5m EN 50131 Grau 2 | E95: =_xlfn.XLOOKUP($B95,Tabela!$A:$A,Tabela!$D:$D,"não encontrado") -> 18.85 | F95: =IF(B95 =ISTEXT(qualquer), "", HYPERLINK("https://pt.firesecurityproducts.com/pt/search?q="&B95, "Link Web")) -> Link Web | G95: =$G$2 -> 0 | H95: =IF(ISBLANK(G95),"",E95-(E95*$G95)) -> 18.85
B96: DC120S60 | C96: =_xlfn.XLOOKUP($B96,Tabela!A:A,Tabela!C:C,"não encontrado") -> Mature | D96: Contacto std embutir por pressão - GAP: 18mm cabo 6m EN 50131 Grau 2 | E96: =_xlfn.XLOOKUP($B96,Tabela!$A:$A,Tabela!$D:$D,"não encontrado") -> 28.8 | F96: =IF(B96 =ISTEXT(qualquer), "", HYPERLINK("https://pt.firesecurityproducts.com/pt/search?q="&B96, "Link Web")) -> Link Web | G96: =$G$2 -> 0 | H96: 28.8
F97: =IF(B97 =ISTEXT(qualquer), "", HYPERLINK("https://pt.firesecurityproducts.com/pt/search?q="&B97, "Link Web")) -> 
A98: DC12x Extra Fluxo | C98: Contacto Magnético de Embutir com Fixação por Pressão | F98: =IF(B98 =ISTEXT(qualquer), "", HYPERLINK("https://pt.firesecurityproducts.com/pt/search?q="&B98, "Link Web")) -> 
C99: Os contactos de encastrar DC121 e DC127 (Extra GAP) foram concebidos para aplicações em portas e janelas com moldura de madeira e metal. • Cabo de 2m ou 6m • Versão com resistência incorporada • GAP DC121: 12mm • GAP DC127: 31mm • Cor Branco • Dimensões 33mm : Orifício 10mm | F99: =IF(B99 =ISTEXT(qualquer), "", HYPERLINK("https://pt.firesecurityproducts.com/pt/search?q="&B99, "Link Web")) -> 
F100: =IF(B100 =ISTEXT(qualquer), "", HYPERLINK("https://pt.firesecurityproducts.com/pt/search?q="&B100, "Link Web")) -> 
F101: =IF(B101 =ISTEXT(qualquer), "", HYPERLINK("https://pt.firesecurityproducts.com/pt/search?q="&B101, "Link Web")) -> 
F102: =IF(B102 =ISTEXT(qualquer), "", HYPERLINK("https://pt.firesecurityproducts.com/pt/search?q="&B102, "Link Web")) -> 
F104: =IF(B104 =ISTEXT(qualquer), "", HYPERLINK("https://pt.firesecurityproducts.com/pt/search?q="&B104, "Link Web")) -> 
F105: =IF(B105 =ISTEXT(qualquer), "", HYPERLINK("https://pt.firesecurityproducts.com/pt/search?q="&B105, "Link Web")) -> 
F106: =IF(B106 =ISTEXT(qualquer), "", HYPERLINK("https://pt.firesecurityproducts.com/pt/search?q="&B106, "Link Web")) -> 
E107: PVP | F107: =IF(B107 =ISTEXT(qualquer), "", HYPERLINK("https://pt.firesecurityproducts.com/pt/search?q="&B107, "Link Web")) ->  | G107: Desconto | H107: Preço Liquido
B108: DC121 | C108: =_xlfn.XLOOKUP($B108,Tabela!A:A,Tabela!C:C,"não encontrado") -> Mature | D108: Contacto std embutir por pressão - GAP: 12mm- Contacto NF - cabo 2m | E108: =_xlfn.XLOOKUP($B108,Tabela!$A:$A,Tabela!$D:$D,"não encontrado") -> 11.58 | F108: =IF(B108 =ISTEXT(qualquer), "", HYPERLINK("https://pt.firesecurityproducts.com/pt/search?q="&B108, "Link Web")) -> Link Web | G108: =$G$2 -> 0 | H108: =IF(ISBLANK(G108),"",E108-(E108*$G108)) -> 11.58
B109: DC121S60 | C109: =_xlfn.XLOOKUP($B109,Tabela!A:A,Tabela!C:C,"não encontrado") -> Mature | D109: Contacto std embutir por pressão - GAP: 12mm- Contacto NF - cabo 6m | E109: =_xlfn.XLOOKUP($B109,Tabela!$A:$A,Tabela!$D:$D,"não encontrado") -> 25.81 | F109: =IF(B109 =ISTEXT(qualquer), "", HYPERLINK("https://pt.firesecurityproducts.com/pt/search?q="&B109, "Link Web")) -> Link Web | G109: =$G$2 -> 0 | H109: 25.81
B110: DC127 | C110: =_xlfn.XLOOKUP($B110,Tabela!A:A,Tabela!C:C,"não encontrado") -> Mature | D110: Contacto std embutir por pressão - GAP: 31mm- Contacto NF - cabo 2m | E110: =_xlfn.XLOOKUP($B110,Tabela!$A:$A,Tabela!$D:$D,"não encontrado") -> 15.44 | F110: =IF(B110 =ISTEXT(qualquer), "", HYPERLINK("https://pt.firesecurityproducts.com/pt/search?q="&B110, "Link Web")) -> Link Web | G110: =$G$2 -> 0 | H110: 15.44
F111: =IF(B111 =ISTEXT(qualquer), "", HYPERLINK("https://pt.firesecurityproducts.com/pt/search?q="&B111, "Link Web")) -> 
A112: DC12x Extra Fluxo | C112: Contacto Magnético de Embutir com Fixação por Pressão | F112: =IF(B112 =ISTEXT(qualquer), "", HYPERLINK("https://pt.firesecurityproducts.com/pt/search?q="&B112, "Link Web")) -> 
C113: Os contactos de encastrar DC107, DC124 foram concebidos especificamente para aplicações em portas metálicas. • Cabo de 2.5m • Versão com resistência incorporada • GAP DC107: 9mm • GAP DC127: 31mm • Cor branca • Dimensões 39mm : Orifício 19mm • EN 50131 Grau 2 | F113: =IF(B113 =ISTEXT(qualquer), "", HYPERLINK("https://pt.firesecurityproducts.com/pt/search?q="&B113, "Link Web")) -> 
F114: =IF(B114 =ISTEXT(qualquer), "", HYPERLINK("https://pt.firesecurityproducts.com/pt/search?q="&B114, "Link Web")) -> 
F115: =IF(B115 =ISTEXT(qualquer), "", HYPERLINK("https://pt.firesecurityproducts.com/pt/search?q="&B115, "Link Web")) -> 
F116: =IF(B116 =ISTEXT(qualquer), "", HYPERLINK("https://pt.firesecurityproducts.com/pt/search?q="&B116, "Link Web")) -> 
F117: =IF(B117 =ISTEXT(qualquer), "", HYPERLINK("https://pt.firesecurityproducts.com/pt/search?q="&B117, "Link Web")) -> 
F118: =IF(B118 =ISTEXT(qualquer), "", HYPERLINK("https://pt.firesecurityproducts.com/pt/search?q="&B118, "Link Web")) -> 
F119: =IF(B119 =ISTEXT(qualquer), "", HYPERLINK("https://pt.firesecurityproducts.com/pt/search?q="&B119, "Link Web")) -> 
F120: =IF(B120 =ISTEXT(qualquer), "", HYPERLINK("https://pt.firesecurityproducts.com/pt/search?q="&B120, "Link Web")) -> 
F121: =IF(B121 =ISTEXT(qualquer), "", HYPERLINK("https://pt.firesecurityproducts.com/pt/search?q="&B121, "Link Web")) -> 
B122: DC107 | C122: =_xlfn.XLOOKUP($B122,Tabela!A:A,Tabela!C:C,"não encontrado") -> Mature | D122: Contacto embutir portas de ferro - GAP: 9mm - cabo 2,5 m | E122: =_xlfn.XLOOKUP($B122,Tabela!$A:$A,Tabela!$D:$D,"não encontrado") -> 22.56 | F122: =IF(B122 =ISTEXT(qualquer), "", HYPERLINK("https://pt.firesecurityproducts.com/pt/search?q="&B122, "Link Web")) -> Link Web | G122: =$G$2 -> 0 | H122: =IF(ISBLANK(G122),"",E122-(E122*$G122)) -> 22.56
B123: DC107S60 | C123: =_xlfn.XLOOKUP($B123,Tabela!A:A,Tabela!C:C,"não encontrado") -> Mature | D123: Contacto embutir portas de ferro - GAP: 9mm - cabo 6 m | E123: =_xlfn.XLOOKUP($B123,Tabela!$A:$A,Tabela!$D:$D,"não encontrado") -> 20.37 | F123: =IF(B123 =ISTEXT(qualquer), "", HYPERLINK("https://pt.firesecurityproducts.com/pt/search?q="&B123, "Link Web")) -> Link Web | G123: =$G$2 -> 0 | H123: 20.37
B124: DC107R4.7 | C124: =_xlfn.XLOOKUP($B124,Tabela!A:A,Tabela!C:C,"não encontrado") -> Mature | D124: Contacto embutir porta ferro - GAP: 9mm - EOL4K7, cabo 2,5m | E124: =_xlfn.XLOOKUP($B124,Tabela!$A:$A,Tabela!$D:$D,"não encontrado") -> 23.46 | F124: =IF(B124 =ISTEXT(qualquer), "", HYPERLINK("https://pt.firesecurityproducts.com/pt/search?q="&B124, "Link Web")) -> Link Web | G124: =$G$2 -> 0 | H124: 23.46
B125: DC124 | C125: =_xlfn.XLOOKUP($B125,Tabela!A:A,Tabela!C:C,"não encontrado") -> Mature | D125: Contacto embutir portas ferro - GAP9 cm - NA/C/NF, cabo 2,5m | E125: =_xlfn.XLOOKUP($B125,Tabela!$A:$A,Tabela!$D:$D,"não encontrado") -> 25.81 | F125: =IF(B125 =ISTEXT(qualquer), "", HYPERLINK("https://pt.firesecurityproducts.com/pt/search?q="&B125, "Link Web")) -> Link Web | G125: =$G$2 -> 0 | H125: 25.81
F126: =IF(B126 =ISTEXT(qualquer), "", HYPERLINK("https://pt.firesecurityproducts.com/pt/search?q="&B126, "Link Web")) -> 
A127: Pressão | C127: Contacto Magnético de Pressão e Montagem de Embutir | F127: =IF(B127 =ISTEXT(qualquer), "", HYPERLINK("https://pt.firesecurityproducts.com/pt/search?q="&B127, "Link Web")) -> 
F128: =IF(B128 =ISTEXT(qualquer), "", HYPERLINK("https://pt.firesecurityproducts.com/pt/search?q="&B128, "Link Web")) -> 
B129: DC113 | C129: =_xlfn.XLOOKUP($B129,Tabela!A:A,Tabela!C:C,"não encontrado") -> Mature | D129: Contacto sw interruptor embutir - Contacto NF - 4 Fios 2m - Creme, 120V máx/0,5A máx. Diâmetro -1,9x3,8 comp. | E129: =_xlfn.XLOOKUP($B129,Tabela!$A:$A,Tabela!$D:$D,"não encontrado") -> 26.71 | F129: =IF(B129 =ISTEXT(qualquer), "", HYPERLINK("https://pt.firesecurityproducts.com/pt/search?q="&B129, "Link Web")) -> Link Web | G129: =$G$2 -> 0 | H129: =IF(ISBLANK(G129),"",E129-(E129*$G129)) -> 26.71
B130: DC114 | C130: =_xlfn.XLOOKUP($B130,Tabela!A:A,Tabela!C:C,"não encontrado") -> Mature | D130: Contacto sw interruptor ajustável embutir - - Contacto NF - 4 Fios 2m - Creme, 120V máx/0,5A máx, Diâmetro -1,2x4,0 comp. | E130: =_xlfn.XLOOKUP($B130,Tabela!$A:$A,Tabela!$D:$D,"não encontrado") -> 26.54 | F130: =IF(B130 =ISTEXT(qualquer), "", HYPERLINK("https://pt.firesecurityproducts.com/pt/search?q="&B130, "Link Web")) -> Link Web | G130: =$G$2 -> 0 | H130: 26.54
B131: DC501 | C131: =_xlfn.XLOOKUP($B131,Tabela!A:A,Tabela!C:C,"não encontrado") -> Mature | D131: Mini contacto magnético superfície - Contacto NF - 4 Fios 2m - Creme, Mag: 5 x 0,2 Cont: 3,8 x 0,7 cm | E131: =_xlfn.XLOOKUP($B131,Tabela!$A:$A,Tabela!$D:$D,"não encontrado") -> 17.83 | F131: =IF(B131 =ISTEXT(qualquer), "", HYPERLINK("https://pt.firesecurityproducts.com/pt/search?q="&B131, "Link Web")) -> Link Web | G131: =$G$2 -> 0 | H131: 17.83
F132: =IF(B132 =ISTEXT(qualquer), "", HYPERLINK("https://pt.firesecurityproducts.com/pt/search?q="&B132, "Link Web")) -> 
A133: DC11x | C133: Contacto Magnético de Superfície - EN 50131 Grau 3 | F133: =IF(B133 =ISTEXT(qualquer), "", HYPERLINK("https://pt.firesecurityproducts.com/pt/search?q="&B133, "Link Web")) -> 
C134: Os reed com triplo balanceamento do contato magnético DC111 tornam virtualmente impossível a sua sabotagem. Para maior segurança, a alteração do campo magnético e a remoção são características padrão. • Alumínio Anodizado • Cabo de 2m com bainha de aço • Proteção Tamper • GAP: 5mm - 15mm • Dimensões 108 x 38 x 19 • EN 50131-2-6 Grade 3 e VDS | F134: =IF(B134 =ISTEXT(qualquer), "", HYPERLINK("https://pt.firesecurityproducts.com/pt/search?q="&B134, "Link Web")) -> 
F135: =IF(B135 =ISTEXT(qualquer), "", HYPERLINK("https://pt.firesecurityproducts.com/pt/search?q="&B135, "Link Web")) -> 
F136: =IF(B136 =ISTEXT(qualquer), "", HYPERLINK("https://pt.firesecurityproducts.com/pt/search?q="&B136, "Link Web")) -> 
F137: =IF(B137 =ISTEXT(qualquer), "", HYPERLINK("https://pt.firesecurityproducts.com/pt/search?q="&B137, "Link Web")) -> 
F138: =IF(B138 =ISTEXT(qualquer), "", HYPERLINK("https://pt.firesecurityproducts.com/pt/search?q="&B138, "Link Web")) -> 
F139: =IF(B139 =ISTEXT(qualquer), "", HYPERLINK("https://pt.firesecurityproducts.com/pt/search?q="&B139, "Link Web")) -> 
F140: =IF(B140 =ISTEXT(qualquer), "", HYPERLINK("https://pt.firesecurityproducts.com/pt/search?q="&B140, "Link Web")) -> 
F141: =IF(B141 =ISTEXT(qualquer), "", HYPERLINK("https://pt.firesecurityproducts.com/pt/search?q="&B141, "Link Web")) -> 
F142: =IF(B142 =ISTEXT(qualquer), "", HYPERLINK("https://pt.firesecurityproducts.com/pt/search?q="&B142, "Link Web")) -> 
B143: DC111 | C143: =_xlfn.XLOOKUP($B143,Tabela!A:A,Tabela!C:C,"não encontrado") -> Mature | D143: Contacto balanceado triplo de alta segurança EN50131 Grau 3 | E143: =_xlfn.XLOOKUP($B143,Tabela!$A:$A,Tabela!$D:$D,"não encontrado") -> 220.94 | F143: =IF(B143 =ISTEXT(qualquer), "", HYPERLINK("https://pt.firesecurityproducts.com/pt/search?q="&B143, "Link Web")) -> Link Web | G143: =$G$2 -> 0 | H143: =IF(ISBLANK(G143),"",E143-(E143*$G143)) -> 220.94
F144: =IF(B144 =ISTEXT(qualquer), "", HYPERLINK("https://pt.firesecurityproducts.com/pt/search?q="&B144, "Link Web")) -> 
A145: DC14x | C145: Contacto Magnético de Superfície - EN 50131 Grau 3 | F145: =IF(B145 =ISTEXT(qualquer), "", HYPERLINK("https://pt.firesecurityproducts.com/pt/search?q="&B145, "Link Web")) -> 
C146: Os contactos magnéticos de grau 3 são contactos de alta segurança que satisfazem os seguintes requisitos: precisão da distância de abertura, polarização do íman, resistência do íman) • IP67 • Cabo de 2m ou 6m • Verão com resistência incorporada • Proteção Tamper • GAP em não porta metálicas: 19mm, +/-4mm • GAP em porta metálicas: 12mm, +/-4mm • Dimensões 54 x 13 x 12.5 mm • EN 50131-2-6 Grade 3 e VDS certified | F146: =IF(B146 =ISTEXT(qualquer), "", HYPERLINK("https://pt.firesecurityproducts.com/pt/search?q="&B146, "Link Web")) -> 
F147: =IF(B147 =ISTEXT(qualquer), "", HYPERLINK("https://pt.firesecurityproducts.com/pt/search?q="&B147, "Link Web")) -> 
F148: =IF(B148 =ISTEXT(qualquer), "", HYPERLINK("https://pt.firesecurityproducts.com/pt/search?q="&B148, "Link Web")) -> 
F149: =IF(B149 =ISTEXT(qualquer), "", HYPERLINK("https://pt.firesecurityproducts.com/pt/search?q="&B149, "Link Web")) -> 
F150: =IF(B150 =ISTEXT(qualquer), "", HYPERLINK("https://pt.firesecurityproducts.com/pt/search?q="&B150, "Link Web")) -> 
F151: =IF(B151 =ISTEXT(qualquer), "", HYPERLINK("https://pt.firesecurityproducts.com/pt/search?q="&B151, "Link Web")) -> 
F152: =IF(B152 =ISTEXT(qualquer), "", HYPERLINK("https://pt.firesecurityproducts.com/pt/search?q="&B152, "Link Web")) -> 
F153: =IF(B153 =ISTEXT(qualquer), "", HYPERLINK("https://pt.firesecurityproducts.com/pt/search?q="&B153, "Link Web")) -> 
F154: =IF(B154 =ISTEXT(qualquer), "", HYPERLINK("https://pt.firesecurityproducts.com/pt/search?q="&B154, "Link Web")) -> 
F155: =IF(B155 =ISTEXT(qualquer), "", HYPERLINK("https://pt.firesecurityproducts.com/pt/search?q="&B155, "Link Web")) -> 
E156: PVP | F156: =IF(B156 =ISTEXT(qualquer), "", HYPERLINK("https://pt.firesecurityproducts.com/pt/search?q="&B156, "Link Web")) ->  | G156: Desconto | H156: Preço Liquido
B157: DC148 | C157: =_xlfn.XLOOKUP($B157,Tabela!A:A,Tabela!C:C,"não encontrado") -> Mature | D157: Contacto Superfície com 2m de cabo EN50131 Grau 3 | E157: =_xlfn.XLOOKUP($B157,Tabela!$A:$A,Tabela!$D:$D,"não encontrado") -> 38.64 | F157: =IF(B157 =ISTEXT(qualquer), "", HYPERLINK("https://pt.firesecurityproducts.com/pt/search?q="&B157, "Link Web")) -> Link Web | G157: =$G$2 -> 0 | H157: =IF(ISBLANK(G157),"",E157-(E157*$G157)) -> 38.64
B158: DC148S60 | C158: =_xlfn.XLOOKUP($B158,Tabela!A:A,Tabela!C:C,"não encontrado") -> Mature | D158: Contacto Superfície com 6m de cabo EN50131 Grau 3 | E158: =_xlfn.XLOOKUP($B158,Tabela!$A:$A,Tabela!$D:$D,"não encontrado") -> 44.41 | F158: =IF(B158 =ISTEXT(qualquer), "", HYPERLINK("https://pt.firesecurityproducts.com/pt/search?q="&B158, "Link Web")) -> Link Web | G158: =$G$2 -> 0 | H158: 44.41
B159: DC148R4.7 | C159: =_xlfn.XLOOKUP($B159,Tabela!A:A,Tabela!C:C,"não encontrado") -> Mature | D159: Contacto Superfície com 6m de cabo, resistência EOL 4K7 EN50131 Grau 3 | E159: =_xlfn.XLOOKUP($B159,Tabela!$A:$A,Tabela!$D:$D,"não encontrado") -> 42.07 | F159: =IF(B159 =ISTEXT(qualquer), "", HYPERLINK("https://pt.firesecurityproducts.com/pt/search?q="&B159, "Link Web")) -> Link Web | G159: =$G$2 -> 0 | H159: 42.07
F160: =IF(B160 =ISTEXT(qualquer), "", HYPERLINK("https://pt.firesecurityproducts.com/pt/search?q="&B160, "Link Web")) -> 
A161: DC40x | C161: Contacto Magnético Montagem Industrial - EN 50131 Grau 3 | F161: =IF(B161 =ISTEXT(qualquer), "", HYPERLINK("https://pt.firesecurityproducts.com/pt/search?q="&B161, "Link Web")) -> 
C162: Os contactos magnéticos industriais de grau 3 são contactos de alta segurança que satisfazem os seguintes requisitos: precisão da distância de abertura, polarização do íman, resistência do íman) • IP67 : Class III - Exterior • Cabo de 2m com bainha de aço • Verão com resistência incorporada • Proteção Tamper • GAP: 34mm • Cor cinza • Dimensões 144 x 50 x 16,5 mm • EN 50131-2-6 Grade 3 e VDS certified | F162: =IF(B162 =ISTEXT(qualquer), "", HYPERLINK("https://pt.firesecurityproducts.com/pt/search?q="&B162, "Link Web")) -> 
F163: =IF(B163 =ISTEXT(qualquer), "", HYPERLINK("https://pt.firesecurityproducts.com/pt/search?q="&B163, "Link Web")) -> 
F164: =IF(B164 =ISTEXT(qualquer), "", HYPERLINK("https://pt.firesecurityproducts.com/pt/search?q="&B164, "Link Web")) -> 
F165: =IF(B165 =ISTEXT(qualquer), "", HYPERLINK("https://pt.firesecurityproducts.com/pt/search?q="&B165, "Link Web")) -> 
F166: =IF(B166 =ISTEXT(qualquer), "", HYPERLINK("https://pt.firesecurityproducts.com/pt/search?q="&B166, "Link Web")) -> 
F167: =IF(B167 =ISTEXT(qualquer), "", HYPERLINK("https://pt.firesecurityproducts.com/pt/search?q="&B167, "Link Web")) -> 
F168: =IF(B168 =ISTEXT(qualquer), "", HYPERLINK("https://pt.firesecurityproducts.com/pt/search?q="&B168, "Link Web")) -> 
F169: =IF(B169 =ISTEXT(qualquer), "", HYPERLINK("https://pt.firesecurityproducts.com/pt/search?q="&B169, "Link Web")) -> 
F170: =IF(B170 =ISTEXT(qualquer), "", HYPERLINK("https://pt.firesecurityproducts.com/pt/search?q="&B170, "Link Web")) -> 
F171: =IF(B171 =ISTEXT(qualquer), "", HYPERLINK("https://pt.firesecurityproducts.com/pt/search?q="&B171, "Link Web")) -> 
F172: =IF(B172 =ISTEXT(qualquer), "", HYPERLINK("https://pt.firesecurityproducts.com/pt/search?q="&B172, "Link Web")) -> 
B173: DC408 | C173: =_xlfn.XLOOKUP($B173,Tabela!A:A,Tabela!C:C,"não encontrado") -> Mature | D173: Contacto magnético Industrial de montagem no solo. EN50131 Grau 3 | E173: =_xlfn.XLOOKUP($B173,Tabela!$A:$A,Tabela!$D:$D,"não encontrado") -> 89.31 | F173: =IF(B173 =ISTEXT(qualquer), "", HYPERLINK("https://pt.firesecurityproducts.com/pt/search?q="&B173, "Link Web")) -> Link Web | G173: =$G$2 -> 0 | H173: =IF(ISBLANK(G173),"",E173-(E173*$G173)) -> 89.31
B174: DC408R4.7 | C174: =_xlfn.XLOOKUP($B174,Tabela!A:A,Tabela!C:C,"não encontrado") -> Mature | D174: Contacto magnético Industrial de montagem no solo, com resistência EOL de 4.7K EN50131 Grau 3 | E174: =_xlfn.XLOOKUP($B174,Tabela!$A:$A,Tabela!$D:$D,"não encontrado") -> 92.77 | F174: =IF(B174 =ISTEXT(qualquer), "", HYPERLINK("https://pt.firesecurityproducts.com/pt/search?q="&B174, "Link Web")) -> Link Web | G174: =$G$2 -> 0 | H174: =IF(ISBLANK(G174),"",E174-(E174*$G174)) -> 92.77
F175: =IF(B175 =ISTEXT(qualquer), "", HYPERLINK("https://pt.firesecurityproducts.com/pt/search?q="&B175, "Link Web")) -> 
A176: DC12x | C176: Contacto Magnético Embutir Montagem Industrial - EN 50131 Grau 3 | F176: =IF(B176 =ISTEXT(qualquer), "", HYPERLINK("https://pt.firesecurityproducts.com/pt/search?q="&B176, "Link Web")) -> 
C177: Os contactos magnéticos industriais de grau 3 são contactos de alta segurança que satisfazem os seguintes requisitos: precisão da distância de abertura, polarização do íman, resistência do íman) • IP67 : Class III - Exterior • Cabo de 2m ou 6m • Verão com resistência incorporada • Proteção Tamper • GAP: 12mm • Cor branca • Dimensões 8 x 32 • EN 50131-2-6 Grade 3 e VDS certified | F177: =IF(B177 =ISTEXT(qualquer), "", HYPERLINK("https://pt.firesecurityproducts.com/pt/search?q="&B177, "Link Web")) -> 
F178: =IF(B178 =ISTEXT(qualquer), "", HYPERLINK("https://pt.firesecurityproducts.com/pt/search?q="&B178, "Link Web")) -> 
F179: =IF(B179 =ISTEXT(qualquer), "", HYPERLINK("https://pt.firesecurityproducts.com/pt/search?q="&B179, "Link Web")) -> 
F180: =IF(B180 =ISTEXT(qualquer), "", HYPERLINK("https://pt.firesecurityproducts.com/pt/search?q="&B180, "Link Web")) -> 
F181: =IF(B181 =ISTEXT(qualquer), "", HYPERLINK("https://pt.firesecurityproducts.com/pt/search?q="&B181, "Link Web")) -> 
F182: =IF(B182 =ISTEXT(qualquer), "", HYPERLINK("https://pt.firesecurityproducts.com/pt/search?q="&B182, "Link Web")) -> 
F183: =IF(B183 =ISTEXT(qualquer), "", HYPERLINK("https://pt.firesecurityproducts.com/pt/search?q="&B183, "Link Web")) -> 
F184: =IF(B184 =ISTEXT(qualquer), "", HYPERLINK("https://pt.firesecurityproducts.com/pt/search?q="&B184, "Link Web")) -> 
F185: =IF(B185 =ISTEXT(qualquer), "", HYPERLINK("https://pt.firesecurityproducts.com/pt/search?q="&B185, "Link Web")) -> 
F186: =IF(B186 =ISTEXT(qualquer), "", HYPERLINK("https://pt.firesecurityproducts.com/pt/search?q="&B186, "Link Web")) -> 
F187: =IF(B187 =ISTEXT(qualquer), "", HYPERLINK("https://pt.firesecurityproducts.com/pt/search?q="&B187, "Link Web")) -> 
B188: DC128 | C188: =_xlfn.XLOOKUP($B188,Tabela!A:A,Tabela!C:C,"não encontrado") -> Mature | D188: Contacto magnético Industrial de embutir, 2m cabo EN 50131-2-6 Grau 3 | E188: =_xlfn.XLOOKUP($B188,Tabela!$A:$A,Tabela!$D:$D,"não encontrado") -> 31.71 | F188: =IF(B188 =ISTEXT(qualquer), "", HYPERLINK("https://pt.firesecurityproducts.com/pt/search?q="&B188, "Link Web")) -> Link Web | G188: =$G$2 -> 0 | H188: =IF(ISBLANK(G188),"",E188-(E188*$G188)) -> 31.71
B189: DC128S60 | C189: =_xlfn.XLOOKUP($B189,Tabela!A:A,Tabela!C:C,"não encontrado") -> Mature | D189: Contacto magnético Industrial de embutir, 6m cabo EN 50131-2-6 Grau 3 | E189: =_xlfn.XLOOKUP($B189,Tabela!$A:$A,Tabela!$D:$D,"não encontrado") -> 37.46 | F189: =IF(B189 =ISTEXT(qualquer), "", HYPERLINK("https://pt.firesecurityproducts.com/pt/search?q="&B189, "Link Web")) -> Link Web | G189: =$G$2 -> 0 | H189: 37.46
B190: DC128R4.7 | C190: =_xlfn.XLOOKUP($B190,Tabela!A:A,Tabela!C:C,"não encontrado") -> Mature | D190: Contacto magnético Industrial de embutir, 2m cabo, EOL4K7 EN 50131 Grau 3 | E190: =_xlfn.XLOOKUP($B190,Tabela!$A:$A,Tabela!$D:$D,"não encontrado") -> 35.16 | F190: =IF(B190 =ISTEXT(qualquer), "", HYPERLINK("https://pt.firesecurityproducts.com/pt/search?q="&B190, "Link Web")) -> Link Web | G190: =$G$2 -> 0 | H190: 35.16
F191: =IF(B191 =ISTEXT(qualquer), "", HYPERLINK("https://pt.firesecurityproducts.com/pt/search?q="&B191, "Link Web")) -> 
A192: DC13x | C192: Contacto Magnético Embutir Montagem Industrial - EN 50131 Grau 3 | F192: =IF(B192 =ISTEXT(qualquer), "", HYPERLINK("https://pt.firesecurityproducts.com/pt/search?q="&B192, "Link Web")) -> 
C193: Os contactos magnéticos industriais de grau 3 são contactos de alta segurança que satisfazem os seguintes requisitos: precisão da distância de abertura, polarização do íman, resistência do íman) • IP67 : Class III - Exterior • Cabo de 2m ou 6m • Verão com resistência incorporada • Proteção Tamper • GAP: 12mm • Cor branca • Dimensões 8 x 32 • EN 50131-2-6 Grade 3 e VDS certified | F193: =IF(B193 =ISTEXT(qualquer), "", HYPERLINK("https://pt.firesecurityproducts.com/pt/search?q="&B193, "Link Web")) -> 
F194: =IF(B194 =ISTEXT(qualquer), "", HYPERLINK("https://pt.firesecurityproducts.com/pt/search?q="&B194, "Link Web")) -> 
F196: =IF(B196 =ISTEXT(qualquer), "", HYPERLINK("https://pt.firesecurityproducts.com/pt/search?q="&B196, "Link Web")) -> 
F197: =IF(B197 =ISTEXT(qualquer), "", HYPERLINK("https://pt.firesecurityproducts.com/pt/search?q="&B197, "Link Web")) -> 
F198: =IF(B198 =ISTEXT(qualquer), "", HYPERLINK("https://pt.firesecurityproducts.com/pt/search?q="&B198, "Link Web")) -> 
F200: =IF(B200 =ISTEXT(qualquer), "", HYPERLINK("https://pt.firesecurityproducts.com/pt/search?q="&B200, "Link Web")) -> 
F201: =IF(B201 =ISTEXT(qualquer), "", HYPERLINK("https://pt.firesecurityproducts.com/pt/search?q="&B201, "Link Web")) -> 
F202: =IF(B202 =ISTEXT(qualquer), "", HYPERLINK("https://pt.firesecurityproducts.com/pt/search?q="&B202, "Link Web")) -> 
F203: =IF(B203 =ISTEXT(qualquer), "", HYPERLINK("https://pt.firesecurityproducts.com/pt/search?q="&B203, "Link Web")) -> 
B204: DC138 | C204: =_xlfn.XLOOKUP($B204,Tabela!A:A,Tabela!C:C,"não encontrado") -> Mature | D204: Contacto magnético Industrial de embutir, para portas metálicas. Branco com 2m de cabo EN 50131-2-6 Grau 3 e certificação VDS | E204: =_xlfn.XLOOKUP($B204,Tabela!$A:$A,Tabela!$D:$D,"não encontrado") -> 34.56 | F204: =IF(B204 =ISTEXT(qualquer), "", HYPERLINK("https://pt.firesecurityproducts.com/pt/search?q="&B204, "Link Web")) -> Link Web | G204: =$G$2 -> 0 | H204: =IF(ISBLANK(G204),"",E204-(E204*$G204)) -> 34.56
B205: DC138S60 | C205: =_xlfn.XLOOKUP($B205,Tabela!A:A,Tabela!C:C,"não encontrado") -> Mature | D205: Contacto magnético Industrial de embutir, para portas metálicas. Branco com 6m de cabo EN 50131-2-6 Grau 3 e certificação VDS | E205: =_xlfn.XLOOKUP($B205,Tabela!$A:$A,Tabela!$D:$D,"não encontrado") -> 40.36 | F205: =IF(B205 =ISTEXT(qualquer), "", HYPERLINK("https://pt.firesecurityproducts.com/pt/search?q="&B205, "Link Web")) -> Link Web | G205: =$G$2 -> 0 | H205: =IF(ISBLANK(G205),"",E205-(E205*$G205)) -> 40.36
B206: DC138R4.7 | C206: =_xlfn.XLOOKUP($B206,Tabela!A:A,Tabela!C:C,"não encontrado") -> Mature | D206: Contacto magnético Industrial de embutir, para portas metálicas com resistência EOL 4K7, 2m de cabo, EN50131-2-6 Grau 3 e certificação VDS | E206: =_xlfn.XLOOKUP($B206,Tabela!$A:$A,Tabela!$D:$D,"não encontrado") -> 38 | F206: =IF(B206 =ISTEXT(qualquer), "", HYPERLINK("https://pt.firesecurityproducts.com/pt/search?q="&B206, "Link Web")) -> Link Web | G206: =$G$2 -> 0 | H206: =IF(ISBLANK(G206),"",E206-(E206*$G206)) -> 38
F207: =IF(B207 =ISTEXT(qualquer), "", HYPERLINK("https://pt.firesecurityproducts.com/pt/search?q="&B207, "Link Web")) -> 
A208: DC4xx | C208: Contacto Magnético Montagem Superfície - EN 50131 Grau 4 | F208: =IF(B208 =ISTEXT(qualquer), "", HYPERLINK("https://pt.firesecurityproducts.com/pt/search?q="&B208, "Link Web")) -> 
C209: Contatos magnéticos, certificados de acordo com os requisitos da EN 50131-2-6 grau 4 e VdS classe C, permite a monitorização da abertura sem contacto de portas e janelas, de acordo com as mais elevadas especificações de segurança. Em comparação com outros contactos magnéticos de alta segurança, este produto incorpora um controlo reforçado do campo externo, que pode ser utilizado para detetar uma diferença anormalmente grande entre o código que foi aplicado e o código que foi ensinado. • EN 50131-2-6 Grade 4 e VDS | F209: =IF(B209 =ISTEXT(qualquer), "", HYPERLINK("https://pt.firesecurityproducts.com/pt/search?q="&B209, "Link Web")) -> 
F210: =IF(B210 =ISTEXT(qualquer), "", HYPERLINK("https://pt.firesecurityproducts.com/pt/search?q="&B210, "Link Web")) -> 
... 52 more rows

Sheet Deteção Perimétrica
C1: Deteção Perimétrica
G2: 0
C4: Status | E4: PVP | G4: Desconto | H4: Preço Liquido
A5: Série 63xx | C5: Mini Detetor Exterior
C6: Este mini detetor utiliza dois detetores de infravermelhos passivos independentes. Para que seja originado é necessária a ativação simultânea dos 2 sensores. • Versão Dupla Tecnologia • Deteção: 15m • Campo visão: 70º • Frequência Micro-ondas: 10.525GHz (6820P) • Dimensões; 70 x 120 x 75mm • Altura de instalação: 3 a 6 m • Cor: Bronze • IP65
B17: Detetor PIR | E17: PVP | G17: Desconto | H17: Preço Liquido
B18: 6910P | C18: =_xlfn.XLOOKUP($B18,Tabela!A:A,Tabela!C:C,"não encontrado") -> Mature | D18: Detetor PIR Mini exterior, 15 m, Duplo PIR, Angulo deteção 14º-70º, IP65 | E18: =_xlfn.XLOOKUP($B18,Tabela!$A:$A,Tabela!$D:$D,"não encontrado") -> 179.36 | F18: =IF(B18 =ISTEXT(qualquer), "", HYPERLINK("https://pt.firesecurityproducts.com/pt/search?q="&B18, "Link Web")) -> Link Web | G18: =$G$2 -> 0 | H18: =IF(ISBLANK(G18),"",E18-(E18*$G18)) -> 179.36
F19: =IF(B19 =ISTEXT(qualquer), "", HYPERLINK("https://pt.firesecurityproducts.com/pt/search?q="&B19, "Link Web")) -> 
A20: Série DI6xx e DDI6xx | C20: Detetor Longo Alcance | F20: =IF(B20 =ISTEXT(qualquer), "", HYPERLINK("https://pt.firesecurityproducts.com/pt/search?q="&B20, "Link Web")) -> 
C21: Este detetor utiliza dois detetores de infravermelhos passivos independentes. Para que seja originado é necessária a ativação simultânea dos 2 sensores. Versão Dupla Tecnologia • Deteção: 10 , 20, 30m (programável) • Campo visão: 10º a 70º • Frequência Micro-ondas: 10.525GHz (DDI602-F1) • Dimensões; 70 x 120 x 75mm • Altura de instalação: 3 a 6 m • Cor: Prata • IP55 | F21: =IF(B21 =ISTEXT(qualquer), "", HYPERLINK("https://pt.firesecurityproducts.com/pt/search?q="&B21, "Link Web")) -> 
F22: =IF(B22 =ISTEXT(qualquer), "", HYPERLINK("https://pt.firesecurityproducts.com/pt/search?q="&B22, "Link Web")) -> 
F23: =IF(B23 =ISTEXT(qualquer), "", HYPERLINK("https://pt.firesecurityproducts.com/pt/search?q="&B23, "Link Web")) -> 
F24: =IF(B24 =ISTEXT(qualquer), "", HYPERLINK("https://pt.firesecurityproducts.com/pt/search?q="&B24, "Link Web")) -> 
F25: =IF(B25 =ISTEXT(qualquer), "", HYPERLINK("https://pt.firesecurityproducts.com/pt/search?q="&B25, "Link Web")) -> 
F26: =IF(B26 =ISTEXT(qualquer), "", HYPERLINK("https://pt.firesecurityproducts.com/pt/search?q="&B26, "Link Web")) -> 
F27: =IF(B27 =ISTEXT(qualquer), "", HYPERLINK("https://pt.firesecurityproducts.com/pt/search?q="&B27, "Link Web")) -> 
F28: =IF(B28 =ISTEXT(qualquer), "", HYPERLINK("https://pt.firesecurityproducts.com/pt/search?q="&B28, "Link Web")) -> 
F29: =IF(B29 =ISTEXT(qualquer), "", HYPERLINK("https://pt.firesecurityproducts.com/pt/search?q="&B29, "Link Web")) -> 
F30: =IF(B30 =ISTEXT(qualquer), "", HYPERLINK("https://pt.firesecurityproducts.com/pt/search?q="&B30, "Link Web")) -> 
B31: PIR Longo Alcance
B32: DI601 | C32: =_xlfn.XLOOKUP($B32,Tabela!A:A,Tabela!C:C,"não encontrado") -> Mature | D32: Detetor PIR para Exterior Longo alcance - 30 metros Classe Ambiental IV - IP55 | E32: =_xlfn.XLOOKUP($B32,Tabela!$A:$A,Tabela!$D:$D,"não encontrado") -> 198.31 | F32: =IF(B32 =ISTEXT(qualquer), "", HYPERLINK("https://pt.firesecurityproducts.com/pt/search?q="&B32, "Link Web")) -> Link Web | G32: =$G$2 -> 0 | H32: =IF(ISBLANK(G32),"",E32-(E32*$G32)) -> 198.31
F33: =IF(B33 =ISTEXT(qualquer), "", HYPERLINK("https://pt.firesecurityproducts.com/pt/search?q="&B33, "Link Web")) -> 
B34: Dupla Tecnologia Longo Alcance
B35: DDI602-F1 | C35: =_xlfn.XLOOKUP($B35,Tabela!A:A,Tabela!C:C,"não encontrado") -> Mature | D35: Detetor PIR/MO para Exterior Longo alcance - 30 metros Classe Ambiental IV - IP55 | E35: =_xlfn.XLOOKUP($B35,Tabela!$A:$A,Tabela!$D:$D,"não encontrado") -> 339.95 | F35: =IF(B35 =ISTEXT(qualquer), "", HYPERLINK("https://pt.firesecurityproducts.com/pt/search?q="&B35, "Link Web")) -> Link Web | G35: =$G$2 -> 0 | H35: =IF(ISBLANK(G35),"",E35-(E35*$G35)) -> 339.95
B36: DDI602AM-F4 | C36: =_xlfn.XLOOKUP($B36,Tabela!A:A,Tabela!C:C,"não encontrado") -> NPI | D36: OUTDOOR DUAL/AM TECHNOLOGY DETECTOR 9.35 GHZ | E36: =_xlfn.XLOOKUP($B36,Tabela!$A:$A,Tabela!$D:$D,"não encontrado") -> 418.92 | F36: =IF(B36 =ISTEXT(qualquer), "", HYPERLINK("https://pt.firesecurityproducts.com/pt/search?q="&B36, "Link Web")) -> Link Web | G36: =$G$2 -> 0 | H36: =IF(ISBLANK(G36),"",E36-(E36*$G36)) -> 418.92
F37: =IF(B37 =ISTEXT(qualquer), "", HYPERLINK("https://pt.firesecurityproducts.com/pt/search?q="&B37, "Link Web")) -> 
B38: PIR Longo Alcance Anti Máscara - EN50131 Grau 3
B39: DI601AM | C39: =_xlfn.XLOOKUP($B39,Tabela!A:A,Tabela!C:C,"não encontrado") -> Mature | D39: Detetor PIR para exterior, Anti Máscara - 30 metros - EN50131 Grau 3 | E39: =_xlfn.XLOOKUP($B39,Tabela!$A:$A,Tabela!$D:$D,"não encontrado") -> 283.08 | F39: =IF(B39 =ISTEXT(qualquer), "", HYPERLINK("https://pt.firesecurityproducts.com/pt/search?q="&B39, "Link Web")) -> Link Web | G39: =$G$2 -> 0 | H39: =IF(ISBLANK(G39),"",E39-(E39*$G39)) -> 283.08
F40: =IF(B40 =ISTEXT(qualquer), "", HYPERLINK("https://pt.firesecurityproducts.com/pt/search?q="&B40, "Link Web")) -> 
B41: Dupla Tecnologia Longo Alcance Anti Máscara - EN50131 Grau 3
B42: DDI602AM-F1 | C42: =_xlfn.XLOOKUP($B42,Tabela!A:A,Tabela!C:C,"não encontrado") -> Mature | D42: Detetor Dupla Tecnologia, Anti Máscara - 30m - EN50131 Grau 3 | E42: =_xlfn.XLOOKUP($B42,Tabela!$A:$A,Tabela!$D:$D,"não encontrado") -> 427.3 | F42: =IF(B42 =ISTEXT(qualquer), "", HYPERLINK("https://pt.firesecurityproducts.com/pt/search?q="&B42, "Link Web")) -> Link Web | G42: =$G$2 -> 0 | H42: =IF(ISBLANK(G42),"",E42-(E42*$G42)) -> 427.3
F43: =IF(B43 =ISTEXT(qualquer), "", HYPERLINK("https://pt.firesecurityproducts.com/pt/search?q="&B43, "Link Web")) -> 
B44: Ferramenta
B45: DI601-WT | C45: =_xlfn.XLOOKUP($B45,Tabela!A:A,Tabela!C:C,"não encontrado") -> Mature | D45: Walk tester para as séries DI601 e DDI602 | E45: =_xlfn.XLOOKUP($B45,Tabela!$A:$A,Tabela!$D:$D,"não encontrado") -> 138.37 | F45: =IF(B45 =ISTEXT(qualquer), "", HYPERLINK("https://pt.firesecurityproducts.com/pt/search?q="&B45, "Link Web")) -> Link Web | G45: =$G$2 -> 0 | H45: =IF(ISBLANK(G45),"",E45-(E45*$G45)) -> 138.37
F46: =IF(B46 =ISTEXT(qualquer), "", HYPERLINK("https://pt.firesecurityproducts.com/pt/search?q="&B46, "Link Web")) -> 
A47: Série SB | C47: Barreira de Infravermelhos Ativos | F47: =IF(B47 =ISTEXT(qualquer), "", HYPERLINK("https://pt.firesecurityproducts.com/pt/search?q="&B47, "Link Web")) -> 
C48: As barreiras de infravermelhos ativos (AIR) da série SB é disponibilizada em versões de 2 e 4 beams. O alarme é gerando quando são interrompidos 1 ou 2 feixes. São constituídos por dois módulos de detetores idênticos, equipados com células de deteção que integram funções de transmissão e receção. Estes módulos são instalados virados um para o outro ao longo da distância a proteger, proporcionando uma zona de deteção invisível • Deteção: 50 a 200m • 4 canais de operação • Alimentação: 10 - 15 VDC • Função de desqualificação • Aquecimento incorporado • Possibilidade de montagem em pilar | F48: =IF(B48 =ISTEXT(qualquer), "", HYPERLINK("https://pt.firesecurityproducts.com/pt/search?q="&B48, "Link Web")) -> 
F49: =IF(B49 =ISTEXT(qualquer), "", HYPERLINK("https://pt.firesecurityproducts.com/pt/search?q="&B49, "Link Web")) -> 
F50: =IF(B50 =ISTEXT(qualquer), "", HYPERLINK("https://pt.firesecurityproducts.com/pt/search?q="&B50, "Link Web")) -> 
F51: =IF(B51 =ISTEXT(qualquer), "", HYPERLINK("https://pt.firesecurityproducts.com/pt/search?q="&B51, "Link Web")) -> 
F52: =IF(B52 =ISTEXT(qualquer), "", HYPERLINK("https://pt.firesecurityproducts.com/pt/search?q="&B52, "Link Web")) -> 
F53: =IF(B53 =ISTEXT(qualquer), "", HYPERLINK("https://pt.firesecurityproducts.com/pt/search?q="&B53, "Link Web")) -> 
F54: =IF(B54 =ISTEXT(qualquer), "", HYPERLINK("https://pt.firesecurityproducts.com/pt/search?q="&B54, "Link Web")) -> 
F55: =IF(B55 =ISTEXT(qualquer), "", HYPERLINK("https://pt.firesecurityproducts.com/pt/search?q="&B55, "Link Web")) -> 
F57: =IF(B57 =ISTEXT(qualquer), "", HYPERLINK("https://pt.firesecurityproducts.com/pt/search?q="&B57, "Link Web")) -> 
F58: =IF(B58 =ISTEXT(qualquer), "", HYPERLINK("https://pt.firesecurityproducts.com/pt/search?q="&B58, "Link Web")) -> 
B59: 50 m | E59: PVP | G59: Desconto | H59: Preço Liquido
B60: SB250-N | C60: =_xlfn.XLOOKUP($B60,Tabela!A:A,Tabela!C:C,"não encontrado") -> Mature | D60: Infravermelho Ativo Linear de 2 beams infravermelhos - 50m exterior Alcance interior: 125 m - Dimensões: 280 x 84 x 113 mm | E60: =_xlfn.XLOOKUP($B60,Tabela!$A:$A,Tabela!$D:$D,"não encontrado") -> 527.37 | F60: =IF(B60 =ISTEXT(qualquer), "", HYPERLINK("https://pt.firesecurityproducts.com/pt/search?q="&B60, "Link Web")) -> Link Web | G60: =$G$2 -> 0 | H60: =IF(ISBLANK(G60),"",E60-(E60*$G60)) -> 527.37
B61: SB450-N | C61: =_xlfn.XLOOKUP($B61,Tabela!A:A,Tabela!C:C,"não encontrado") -> Mature | D61: Infravermelho Ativo Linear de 4 beams infravermelhos - 50m exterior Alcance interior: 125 m - Dimensões: 390 x 84 x 113 mm | E61: =_xlfn.XLOOKUP($B61,Tabela!$A:$A,Tabela!$D:$D,"não encontrado") -> 814.45 | F61: =IF(B61 =ISTEXT(qualquer), "", HYPERLINK("https://pt.firesecurityproducts.com/pt/search?q="&B61, "Link Web")) -> Link Web | G61: =$G$2 -> 0 | H61: =IF(ISBLANK(G61),"",E61-(E61*$G61)) -> 814.45
F62: =IF(B62 =ISTEXT(qualquer), "", HYPERLINK("https://pt.firesecurityproducts.com/pt/search?q="&B62, "Link Web")) -> 
B63: 100 m
B64: SB2100-N | C64: =_xlfn.XLOOKUP($B64,Tabela!A:A,Tabela!C:C,"não encontrado") -> Mature | D64: Infravermelho Ativo Linear de 2 beams infravermelhos - 100m exterior Alcance interior: 250 m - Dimensões: 280 x 84 x 113 mm | E64: =_xlfn.XLOOKUP($B64,Tabela!$A:$A,Tabela!$D:$D,"não encontrado") -> 592.92 | F64: =IF(B64 =ISTEXT(qualquer), "", HYPERLINK("https://pt.firesecurityproducts.com/pt/search?q="&B64, "Link Web")) -> Link Web | G64: =$G$2 -> 0 | H64: =IF(ISBLANK(G64),"",E64-(E64*$G64)) -> 592.92
B65: SB4100-N | C65: =_xlfn.XLOOKUP($B65,Tabela!A:A,Tabela!C:C,"não encontrado") -> Mature | D65: Infravermelho Ativo Linear de 4 beams infravermelhos - 100m exterior Alcance interior: 250 m - Dimensões: 390 x 84 x 113 mm | E65: =_xlfn.XLOOKUP($B65,Tabela!$A:$A,Tabela!$D:$D,"não encontrado") -> 958.04 | F65: =IF(B65 =ISTEXT(qualquer), "", HYPERLINK("https://pt.firesecurityproducts.com/pt/search?q="&B65, "Link Web")) -> Link Web | G65: =$G$2 -> 0 | H65: =IF(ISBLANK(G65),"",E65-(E65*$G65)) -> 958.04
F66: =IF(B66 =ISTEXT(qualquer), "", HYPERLINK("https://pt.firesecurityproducts.com/pt/search?q="&B66, "Link Web")) -> 
B67: 200 m
B68: SB4200-N | C68: =_xlfn.XLOOKUP($B68,Tabela!A:A,Tabela!C:C,"não encontrado") -> Mature | D68: Infravermelho Ativo Linear de 4 beams infravermelhos - 200m exterior Alcance interior: 500 m - Dimensões: 390 x 84 x 113 mm | E68: =_xlfn.XLOOKUP($B68,Tabela!$A:$A,Tabela!$D:$D,"não encontrado") -> 1120.31 | F68: =IF(B68 =ISTEXT(qualquer), "", HYPERLINK("https://pt.firesecurityproducts.com/pt/search?q="&B68, "Link Web")) -> Link Web | G68: =$G$2 -> 0 | H68: =IF(ISBLANK(G68),"",E68-(E68*$G68)) -> 1120.31
F69: =IF(B69 =ISTEXT(qualquer), "", HYPERLINK("https://pt.firesecurityproducts.com/pt/search?q="&B69, "Link Web")) -> 
B70: Pilares para montagem
B71: SB15 | C71: =_xlfn.XLOOKUP($B71,Tabela!A:A,Tabela!C:C,"não encontrado") -> Mature | D71: Pilar em alumínio com switch de tamper - 1,5 m (unidade) | E71: =_xlfn.XLOOKUP($B71,Tabela!$A:$A,Tabela!$D:$D,"não encontrado") -> 605.38 | F71: =IF(B71 =ISTEXT(qualquer), "", HYPERLINK("https://pt.firesecurityproducts.com/pt/search?q="&B71, "Link Web")) -> Link Web | G71: =$G$2 -> 0 | H71: =IF(ISBLANK(G71),"",E71-(E71*$G71)) -> 605.38
B72: SB20 | C72: =_xlfn.XLOOKUP($B72,Tabela!A:A,Tabela!C:C,"não encontrado") -> Mature | D72: Pilar em alumínio com switch de tamper - 2 m (unidade) | E72: =_xlfn.XLOOKUP($B72,Tabela!$A:$A,Tabela!$D:$D,"não encontrado") -> 667.77 | F72: =IF(B72 =ISTEXT(qualquer), "", HYPERLINK("https://pt.firesecurityproducts.com/pt/search?q="&B72, "Link Web")) -> Link Web | G72: =$G$2 -> 0 | H72: 667.77
B73: SB25 | C73: =_xlfn.XLOOKUP($B73,Tabela!A:A,Tabela!C:C,"não encontrado") -> Mature | D73: Pilar em alumínio com switch de tamper - 2,5m (unidade) | E73: =_xlfn.XLOOKUP($B73,Tabela!$A:$A,Tabela!$D:$D,"não encontrado") -> 786.43 | F73: =IF(B73 =ISTEXT(qualquer), "", HYPERLINK("https://pt.firesecurityproducts.com/pt/search?q="&B73, "Link Web")) -> Link Web | G73: =$G$2 -> 0 | H73: 786.43
B74: SB30 | C74: =_xlfn.XLOOKUP($B74,Tabela!A:A,Tabela!C:C,"não encontrado") -> Mature | D74: Pilar em alumínio com switch de tamper - 3,5 m (unidade) | E74: =_xlfn.XLOOKUP($B74,Tabela!$A:$A,Tabela!$D:$D,"não encontrado") -> 948.64 | F74: =IF(B74 =ISTEXT(qualquer), "", HYPERLINK("https://pt.firesecurityproducts.com/pt/search?q="&B74, "Link Web")) -> Link Web | G74: =$G$2 -> 0 | H74: 948.64
F75: =IF(B75 =ISTEXT(qualquer), "", HYPERLINK("https://pt.firesecurityproducts.com/pt/search?q="&B75, "Link Web")) -> 
B76: Base Fixação de Pilar
B77: SB53 | C77: =_xlfn.XLOOKUP($B77,Tabela!A:A,Tabela!C:C,"não encontrado") -> Mature | D77: Base para fixação de Pilar - 250 x 250 mm | E77: =_xlfn.XLOOKUP($B77,Tabela!$A:$A,Tabela!$D:$D,"não encontrado") -> 349.52 | F77: =IF(B77 =ISTEXT(qualquer), "", HYPERLINK("https://pt.firesecurityproducts.com/pt/search?q="&B77, "Link Web")) -> Link Web | G77: =$G$2 -> 0 | H77: =IF(ISBLANK(G77),"",E77-(E77*$G77)) -> 349.52
F78: =IF(B78 =ISTEXT(qualquer), "", HYPERLINK("https://pt.firesecurityproducts.com/pt/search?q="&B78, "Link Web")) -> 
B79: Anti Escalada
B80: SB18 | C80: =_xlfn.XLOOKUP($B80,Tabela!A:A,Tabela!C:C,"não encontrado") -> Mature | D80: Detetor anti escalamento (unidade) | E80: =_xlfn.XLOOKUP($B80,Tabela!$A:$A,Tabela!$D:$D,"não encontrado") -> 649.07 | F80: =IF(B80 =ISTEXT(qualquer), "", HYPERLINK("https://pt.firesecurityproducts.com/pt/search?q="&B80, "Link Web")) -> Link Web | G80: =$G$2 -> 0 | H80: =IF(ISBLANK(G80),"",E80-(E80*$G80)) -> 649.07
B81: SB20 | C81: =_xlfn.XLOOKUP($B81,Tabela!A:A,Tabela!C:C,"não encontrado") -> Mature | D81: Pilar em alumínio com switch de tamper - 2 m (unidade) | E81: =_xlfn.XLOOKUP($B81,Tabela!$A:$A,Tabela!$D:$D,"não encontrado") -> 667.77 | F81: =IF(B81 =ISTEXT(qualquer), "", HYPERLINK("https://pt.firesecurityproducts.com/pt/search?q="&B81, "Link Web")) -> Link Web | G81: =$G$2 -> 0 | H81: 667.77
B82: SB25 | C82: =_xlfn.XLOOKUP($B82,Tabela!A:A,Tabela!C:C,"não encontrado") -> Mature | D82: Pilar em alumínio com switch de tamper - 2,5m (unidade) | E82: =_xlfn.XLOOKUP($B82,Tabela!$A:$A,Tabela!$D:$D,"não encontrado") -> 786.43 | F82: =IF(B82 =ISTEXT(qualquer), "", HYPERLINK("https://pt.firesecurityproducts.com/pt/search?q="&B82, "Link Web")) -> Link Web | G82: =$G$2 -> 0 | H82: 786.43
B83: SB30 | C83: =_xlfn.XLOOKUP($B83,Tabela!A:A,Tabela!C:C,"não encontrado") -> Mature | D83: Pilar em alumínio com switch de tamper - 3,5 m (unidade) | E83: =_xlfn.XLOOKUP($B83,Tabela!$A:$A,Tabela!$D:$D,"não encontrado") -> 948.64 | F83: =IF(B83 =ISTEXT(qualquer), "", HYPERLINK("https://pt.firesecurityproducts.com/pt/search?q="&B83, "Link Web")) -> Link Web | G83: =$G$2 -> 0 | H83: 948.64
F84: =IF(B84 =ISTEXT(qualquer), "", HYPERLINK("https://pt.firesecurityproducts.com/pt/search?q="&B84, "Link Web")) -> 
B85: Coberturas Substituição | E85: PVP | G85: Desconto | H85: Preço Liquido
B86: SB13 | C86: =_xlfn.XLOOKUP($B86,Tabela!A:A,Tabela!C:C,"não encontrado") -> Mature | D86: Cobertura de substituição para SB2xx - 1 unidade | E86: =_xlfn.XLOOKUP($B86,Tabela!$A:$A,Tabela!$D:$D,"não encontrado") -> 127.93 | F86: =IF(B86 =ISTEXT(qualquer), "", HYPERLINK("https://pt.firesecurityproducts.com/pt/search?q="&B86, "Link Web")) -> Link Web | G86: =$G$2 -> 0 | H86: =IF(ISBLANK(G86),"",E86-(E86*$G86)) -> 127.93
B87: SB14 | C87: =_xlfn.XLOOKUP($B87,Tabela!A:A,Tabela!C:C,"não encontrado") -> Mature | D87: Cobertura de substituição para SB4xx - 1 unidade | E87: =_xlfn.XLOOKUP($B87,Tabela!$A:$A,Tabela!$D:$D,"não encontrado") -> 154.57 | F87: =IF(B87 =ISTEXT(qualquer), "", HYPERLINK("https://pt.firesecurityproducts.com/pt/search?q="&B87, "Link Web")) -> Link Web | G87: 0 | H87: =IF(ISBLANK(G87),"",E87-(E87*$G87)) -> 154.57
B88: SB17 | C88: =_xlfn.XLOOKUP($B88,Tabela!A:A,Tabela!C:C,"não encontrado") -> Mature | D88: Cobertura substituição para pilar 1.50m | E88: =_xlfn.XLOOKUP($B88,Tabela!$A:$A,Tabela!$D:$D,"não encontrado") -> 362.03 | F88: =IF(B88 =ISTEXT(qualquer), "", HYPERLINK("https://pt.firesecurityproducts.com/pt/search?q="&B88, "Link Web")) -> Link Web | G88: 0 | H88: 362.03
B89: SB22 | C89: =_xlfn.XLOOKUP($B89,Tabela!A:A,Tabela!C:C,"não encontrado") -> Mature | D89: Cobertura substituição para pilar 2m | E89: =_xlfn.XLOOKUP($B89,Tabela!$A:$A,Tabela!$D:$D,"não encontrado") -> 380.68 | F89: =IF(B89 =ISTEXT(qualquer), "", HYPERLINK("https://pt.firesecurityproducts.com/pt/search?q="&B89, "Link Web")) -> Link Web | G89: 0 | H89: 380.68
B90: SB27 | C90: =_xlfn.XLOOKUP($B90,Tabela!A:A,Tabela!C:C,"não encontrado") -> Mature | D90: Cobertura substituição para pilar 2.50m | E90: =_xlfn.XLOOKUP($B90,Tabela!$A:$A,Tabela!$D:$D,"não encontrado") -> 471.2 | F90: =IF(B90 =ISTEXT(qualquer), "", HYPERLINK("https://pt.firesecurityproducts.com/pt/search?q="&B90, "Link Web")) -> Link Web | G90: 0 | H90: 471.2
B91: SB32 | C91: =_xlfn.XLOOKUP($B91,Tabela!A:A,Tabela!C:C,"não encontrado") -> Mature | D91: Cobertura substituição para pilar 3.50m | E91: =_xlfn.XLOOKUP($B91,Tabela!$A:$A,Tabela!$D:$D,"não encontrado") -> 555.46 | F91: =IF(B91 =ISTEXT(qualquer), "", HYPERLINK("https://pt.firesecurityproducts.com/pt/search?q="&B91, "Link Web")) -> Link Web | G91: 0 | H91: 555.46
F92: =IF(B92 =ISTEXT(qualquer), "", HYPERLINK("https://pt.firesecurityproducts.com/pt/search?q="&B92, "Link Web")) -> 
B93: Kits 180º
B94: SB16 | C94: =_xlfn.XLOOKUP($B94,Tabela!A:A,Tabela!C:C,"não encontrado") -> não encontrado | D94: Kit para 180º para pilar de 1,5m (unidade) | E94: =_xlfn.XLOOKUP($B94,Tabela!$A:$A,Tabela!$D:$D,"não encontrado") -> não encontrado | F94: =IF(B94 =ISTEXT(qualquer), "", HYPERLINK("https://pt.firesecurityproducts.com/pt/search?q="&B94, "Link Web")) -> Link Web | G94: =$G$2 -> 0 | H94: =IF(ISBLANK(G94),"",E94-(E94*$G94)) -> 
B95: SB21 | C95: =_xlfn.XLOOKUP($B95,Tabela!A:A,Tabela!C:C,"não encontrado") -> Mature | D95: Kit para 180º para pilar de 2m (unidade) | E95: =_xlfn.XLOOKUP($B95,Tabela!$A:$A,Tabela!$D:$D,"não encontrado") -> 474.34 | F95: =IF(B95 =ISTEXT(qualquer), "", HYPERLINK("https://pt.firesecurityproducts.com/pt/search?q="&B95, "Link Web")) -> Link Web | G95: =$G$2 -> 0 | H95: 474.34
B96: SB26 | C96: =_xlfn.XLOOKUP($B96,Tabela!A:A,Tabela!C:C,"não encontrado") -> Mature | D96: Kit para 180º para pilar de 2,5m (unidade) | E96: =_xlfn.XLOOKUP($B96,Tabela!$A:$A,Tabela!$D:$D,"não encontrado") -> 514.91 | F96: =IF(B96 =ISTEXT(qualquer), "", HYPERLINK("https://pt.firesecurityproducts.com/pt/search?q="&B96, "Link Web")) -> Link Web | G96: =$G$2 -> 0 | H96: 514.91
B97: SB31 | C97: =_xlfn.XLOOKUP($B97,Tabela!A:A,Tabela!C:C,"não encontrado") -> Mature | D97: Kit para 360º para pilar de 3m (unidade) | E97: =_xlfn.XLOOKUP($B97,Tabela!$A:$A,Tabela!$D:$D,"não encontrado") -> 615.18 | F97: =IF(B97 =ISTEXT(qualquer), "", HYPERLINK("https://pt.firesecurityproducts.com/pt/search?q="&B97, "Link Web")) -> Link Web | G97: =$G$2 -> 0 | H97: 615.18
F98: =IF(B98 =ISTEXT(qualquer), "", HYPERLINK("https://pt.firesecurityproducts.com/pt/search?q="&B98, "Link Web")) -> 
B99: Fonte Alimentação para Pilar
B100: SB52 | C100: =_xlfn.XLOOKUP($B100,Tabela!A:A,Tabela!C:C,"não encontrado") -> Mature | D100: Fonte de alimentação 230 VAC - 12 VAC 1A & 12VDC 500mA Capacidade para bateria de backup 1.2Ah | E100: =_xlfn.XLOOKUP($B100,Tabela!$A:$A,Tabela!$D:$D,"não encontrado") -> 327.68 | F100: =IF(B100 =ISTEXT(qualquer), "", HYPERLINK("https://pt.firesecurityproducts.com/pt/search?q="&B100, "Link Web")) -> Link Web | G100: =$G$2 -> 0 | H100: =IF(ISBLANK(G100),"",E100-(E100*$G100)) -> 327.68
F101: =IF(B101 =ISTEXT(qualquer), "", HYPERLINK("https://pt.firesecurityproducts.com/pt/search?q="&B101, "Link Web")) -> 
A102: Série PB | C102: Barreira de Infravermelhos Ativos | F102: =IF(B102 =ISTEXT(qualquer), "", HYPERLINK("https://pt.firesecurityproducts.com/pt/search?q="&B102, "Link Web")) -> 
C103: As barreiras de infravermelhos ativos (AIR) da série PB é disponibilizada em versões de 2 e 4 beams. São constituídos por dois módulos de detetores idênticos, equipados com células de deteção que integram funções de transmissão e receção. Estes módulos são instalados virados um para o outro ao longo da distância a proteger, proporcionando uma zona de deteção invisível. • Deteção exterior: 20 a 200m • 4 canais de operação • Alimentação: 10 - 15 VDC • Aquecimento incorporado • Controlo AGC | F103: =IF(B103 =ISTEXT(qualquer), "", HYPERLINK("https://pt.firesecurityproducts.com/pt/search?q="&B103, "Link Web")) -> 
F104: =IF(B104 =ISTEXT(qualquer), "", HYPERLINK("https://pt.firesecurityproducts.com/pt/search?q="&B104, "Link Web")) -> 
F105: =IF(B105 =ISTEXT(qualquer), "", HYPERLINK("https://pt.firesecurityproducts.com/pt/search?q="&B105, "Link Web")) -> 
F106: =IF(B106 =ISTEXT(qualquer), "", HYPERLINK("https://pt.firesecurityproducts.com/pt/search?q="&B106, "Link Web")) -> 
F107: =IF(B107 =ISTEXT(qualquer), "", HYPERLINK("https://pt.firesecurityproducts.com/pt/search?q="&B107, "Link Web")) -> 
F109: =IF(B109 =ISTEXT(qualquer), "", HYPERLINK("https://pt.firesecurityproducts.com/pt/search?q="&B109, "Link Web")) -> 
F110: =IF(B110 =ISTEXT(qualquer), "", HYPERLINK("https://pt.firesecurityproducts.com/pt/search?q="&B110, "Link Web")) -> 
F111: =IF(B111 =ISTEXT(qualquer), "", HYPERLINK("https://pt.firesecurityproducts.com/pt/search?q="&B111, "Link Web")) -> 
F112: =IF(B112 =ISTEXT(qualquer), "", HYPERLINK("https://pt.firesecurityproducts.com/pt/search?q="&B112, "Link Web")) -> 
B113: 2 Feixes | E113: PVP | G113: Desconto | H113: Preço Liquido
B114: PB501 | C114: =_xlfn.XLOOKUP($B114,Tabela!A:A,Tabela!C:C,"não encontrado") -> Mature | D114: Infravermelho Ativo Linear de 2 beams infravermelhos - 20m exterior Alcance interior: 40 m - Dimensões: 170 x 72 x 70 mm | E114: =_xlfn.XLOOKUP($B114,Tabela!$A:$A,Tabela!$D:$D,"não encontrado") -> 344.63 | F114: =IF(B114 =ISTEXT(qualquer), "", HYPERLINK("https://pt.firesecurityproducts.com/pt/search?q="&B114, "Link Web")) -> Link Web | G114: =$G$2 -> 0 | H114: =IF(ISBLANK(G114),"",E114-(E114*$G114)) -> 344.63
B115: PB511 | C115: =_xlfn.XLOOKUP($B115,Tabela!A:A,Tabela!C:C,"não encontrado") -> Mature | D115: Infravermelho Ativo Linear de 2 beams infravermelhos - 40m exterior Alcance interior: 80 m - Dimensões: 170 x 72 x 72 mm | E115: =_xlfn.XLOOKUP($B115,Tabela!$A:$A,Tabela!$D:$D,"não encontrado") -> 366.21 | F115: =IF(B115 =ISTEXT(qualquer), "", HYPERLINK("https://pt.firesecurityproducts.com/pt/search?q="&B115, "Link Web")) -> Link Web | G115: =$G$2 -> 0 | H115: 366.21
B116: PB521 | C116: =_xlfn.XLOOKUP($B116,Tabela!A:A,Tabela!C:C,"não encontrado") -> Mature | D116: Infravermelho Ativo Linear de 2 beams infravermelhos - 60m exterior Alcance interior: 120 m - Dimensões: 170 x 72 x 72 mm | E116: =_xlfn.XLOOKUP($B116,Tabela!$A:$A,Tabela!$D:$D,"não encontrado") -> 393.51 | F116: =IF(B116 =ISTEXT(qualquer), "", HYPERLINK("https://pt.firesecurityproducts.com/pt/search?q="&B116, "Link Web")) -> Link Web | G116: =$G$2 -> 0 | H116: 393.51
F117: =IF(B117 =ISTEXT(qualquer), "", HYPERLINK("https://pt.firesecurityproducts.com/pt/search?q="&B117, "Link Web")) -> 
B118: 4 Feixes
B119: PB601 | C119: =_xlfn.XLOOKUP($B119,Tabela!A:A,Tabela!C:C,"não encontrado") -> Mature | D119: Infravermelho Ativo Linear de 4 beams infravermelhos - 50m exterior Dimensões: 390 x 104 x 98 mm | E119: =_xlfn.XLOOKUP($B119,Tabela!$A:$A,Tabela!$D:$D,"não encontrado") -> 594.12 | F119: =IF(B119 =ISTEXT(qualquer), "", HYPERLINK("https://pt.firesecurityproducts.com/pt/search?q="&B119, "Link Web")) -> Link Web | G119: =$G$2 -> 0 | H119: =IF(ISBLANK(G119),"",E119-(E119*$G119)) -> 594.12
B120: PB611 | C120: =_xlfn.XLOOKUP($B120,Tabela!A:A,Tabela!C:C,"não encontrado") -> Mature | D120: Infravermelho Ativo Linear de 4 beams infravermelhos - 100m exterior Dimensões: 390 x 104 x 98 mm | E120: =_xlfn.XLOOKUP($B120,Tabela!$A:$A,Tabela!$D:$D,"não encontrado") -> 666.16 | F120: =IF(B120 =ISTEXT(qualquer), "", HYPERLINK("https://pt.firesecurityproducts.com/pt/search?q="&B120, "Link Web")) -> Link Web | G120: =$G$2 -> 0 | H120: 666.16
B121: PB621 | C121: =_xlfn.XLOOKUP($B121,Tabela!A:A,Tabela!C:C,"não encontrado") -> Mature | D121: Infravermelho Ativo Linear de 4 beams infravermelhos - 200m exterior Dimensões: 390 x 104 x 98 mm | E121: =_xlfn.XLOOKUP($B121,Tabela!$A:$A,Tabela!$D:$D,"não encontrado") -> 758.17 | F121: =IF(B121 =ISTEXT(qualquer), "", HYPERLINK("https://pt.firesecurityproducts.com/pt/search?q="&B121, "Link Web")) -> Link Web | G121: =$G$2 -> 0 | H121: 758.17
F122: =IF(B122 =ISTEXT(qualquer), "", HYPERLINK("https://pt.firesecurityproducts.com/pt/search?q="&B122, "Link Web")) -> 
B123: 4 Feixes Para Pilar
B124: PB611M | C124: =_xlfn.XLOOKUP($B124,Tabela!A:A,Tabela!C:C,"não encontrado") -> Mature | D124: Infravermelho Ativo Linear de 4 beams infravermelhos - 100m - Sem Caixa | E124: =_xlfn.XLOOKUP($B124,Tabela!$A:$A,Tabela!$D:$D,"não encontrado") -> 633.28 | F124: =IF(B124 =ISTEXT(qualquer), "", HYPERLINK("https://pt.firesecurityproducts.com/pt/search?q="&B124, "Link Web")) -> Link Web | G124: =$G$2 -> 0 | H124: =IF(ISBLANK(G124),"",E124-(E124*$G124)) -> 633.28
B125: PB621 | C125: =_xlfn.XLOOKUP($B125,Tabela!A:A,Tabela!C:C,"não encontrado") -> Mature | D125: Infravermelho Ativo Linear de 4 beams infravermelhos - 200m exterior Dimensões: 390 x 104 x 98 mm | E125: =_xlfn.XLOOKUP($B125,Tabela!$A:$A,Tabela!$D:$D,"não encontrado") -> 758.17 | F125: =IF(B125 =ISTEXT(qualquer), "", HYPERLINK("https://pt.firesecurityproducts.com/pt/search?q="&B125, "Link Web")) -> Link Web | G125: =$G$2 -> 0 | H125: =IF(ISBLANK(G125),"",E125-(E125*$G125)) -> 758.17
F126: =IF(B126 =ISTEXT(qualquer), "", HYPERLINK("https://pt.firesecurityproducts.com/pt/search?q="&B126, "Link Web")) -> 
B127: Pilares para montagem 1 Lado | E127: PVP | G127: Desconto | H127: Preço Liquido
B128: PB10 | C128: =_xlfn.XLOOKUP($B128,Tabela!A:A,Tabela!C:C,"não encontrado") -> Mature | D128: Pilar 1m - 180º Inclui kit instalação | E128: =_xlfn.XLOOKUP($B128,Tabela!$A:$A,Tabela!$D:$D,"não encontrado") -> 368.84 | F128: =IF(B128 =ISTEXT(qualquer), "", HYPERLINK("https://pt.firesecurityproducts.com/pt/search?q="&B128, "Link Web")) -> Link Web | G128: =$G$2 -> 0 | H128: =IF(ISBLANK(G128),"",E128-(E128*$G128)) -> 368.84
B129: PB15 | C129: =_xlfn.XLOOKUP($B129,Tabela!A:A,Tabela!C:C,"não encontrado") -> Mature | D129: Pilar 1,5m - 180º Inclui kit instalação | E129: =_xlfn.XLOOKUP($B129,Tabela!$A:$A,Tabela!$D:$D,"não encontrado") -> 494.68 | F129: =IF(B129 =ISTEXT(qualquer), "", HYPERLINK("https://pt.firesecurityproducts.com/pt/search?q="&B129, "Link Web")) -> Link Web | G129: =$G$2 -> 0 | H129: 494.68
B130: PB20 | C130: =_xlfn.XLOOKUP($B130,Tabela!A:A,Tabela!C:C,"não encontrado") -> Mature | D130: Pilar 2m - 180º Inclui kit instalação | E130: =_xlfn.XLOOKUP($B130,Tabela!$A:$A,Tabela!$D:$D,"não encontrado") -> 629.07 | F130: =IF(B130 =ISTEXT(qualquer), "", HYPERLINK("https://pt.firesecurityproducts.com/pt/search?q="&B130, "Link Web")) -> Link Web | G130: =$G$2 -> 0 | H130: 629.07
B131: PB30 | C131: =_xlfn.XLOOKUP($B131,Tabela!A:A,Tabela!C:C,"não encontrado") -> Mature | D131: Pilar 3m - 180º Inclui kit instalação | E131: =_xlfn.XLOOKUP($B131,Tabela!$A:$A,Tabela!$D:$D,"não encontrado") -> 913.27 | F131: =IF(B131 =ISTEXT(qualquer), "", HYPERLINK("https://pt.firesecurityproducts.com/pt/search?q="&B131, "Link Web")) -> Link Web | G131: =$G$2 -> 0 | H131: 913.27
F132: =IF(B132 =ISTEXT(qualquer), "", HYPERLINK("https://pt.firesecurityproducts.com/pt/search?q="&B132, "Link Web")) -> 
B133: Pilares para montagem 2 Lados
B134: PB21 | C134: =_xlfn.XLOOKUP($B134,Tabela!A:A,Tabela!C:C,"não encontrado") -> Mature | D134: Pilar 2m - 360º Inclui kit instalação | E134: =_xlfn.XLOOKUP($B134,Tabela!$A:$A,Tabela!$D:$D,"não encontrado") -> 866.46 | F134: =IF(B134 =ISTEXT(qualquer), "", HYPERLINK("https://pt.firesecurityproducts.com/pt/search?q="&B134, "Link Web")) -> Link Web | G134: =$G$2 -> 0 | H134: =IF(ISBLANK(G134),"",E134-(E134*$G134)) -> 866.46
B135: PB30 | C135: =_xlfn.XLOOKUP($B135,Tabela!A:A,Tabela!C:C,"não encontrado") -> Mature | D135: Pilar 3m - 360º Inclui kit instalação | E135: =_xlfn.XLOOKUP($B135,Tabela!$A:$A,Tabela!$D:$D,"não encontrado") -> 913.27 | F135: =IF(B135 =ISTEXT(qualquer), "", HYPERLINK("https://pt.firesecurityproducts.com/pt/search?q="&B135, "Link Web")) -> Link Web | G135: =$G$2 -> 0 | H135: 913.27
F136: =IF(B136 =ISTEXT(qualquer), "", HYPERLINK("https://pt.firesecurityproducts.com/pt/search?q="&B136, "Link Web")) -> 
B137: Proteção Anti Escalada
B138: PB50-AC180 | C138: =_xlfn.XLOOKUP($B138,Tabela!A:A,Tabela!C:C,"não encontrado") -> Mature | D138: Proteção Tamper anti escalada para Pilares 180º | E138: =_xlfn.XLOOKUP($B138,Tabela!$A:$A,Tabela!$D:$D,"não encontrado") -> 76.09 | F138: =IF(B138 =ISTEXT(qualquer), "", HYPERLINK("https://pt.firesecurityproducts.com/pt/search?q="&B138, "Link Web")) -> Link Web | G138: =$G$2 -> 0 | H138: =IF(ISBLANK(G138),"",E138-(E138*$G138)) -> 76.09
F139: =IF(B139 =ISTEXT(qualquer), "", HYPERLINK("https://pt.firesecurityproducts.com/pt/search?q="&B139, "Link Web")) -> 
B140: Fixação
B141: PB50-WB | C141: =_xlfn.XLOOKUP($B141,Tabela!A:A,Tabela!C:C,"não encontrado") -> Mature | D141: Suporte de parede para Pilares 180º | E141: =_xlfn.XLOOKUP($B141,Tabela!$A:$A,Tabela!$D:$D,"não encontrado") -> 70.25 | F141: =IF(B141 =ISTEXT(qualquer), "", HYPERLINK("https://pt.firesecurityproducts.com/pt/search?q="&B141, "Link Web")) -> Link Web | G141: =$G$2 -> 0 | H141: =IF(ISBLANK(G141),"",E141-(E141*$G141)) -> 70.25
F142: =IF(B142 =ISTEXT(qualquer), "", HYPERLINK("https://pt.firesecurityproducts.com/pt/search?q="&B142, "Link Web")) -> 
B143: Aquecimento
B144: PB103 | C144: =_xlfn.XLOOKUP($B144,Tabela!A:A,Tabela!C:C,"não encontrado") -> Mature | D144: Aquecimento com termostato para a série PB5xx e PB6xx Conjunto para TX e RX | E144: =_xlfn.XLOOKUP($B144,Tabela!$A:$A,Tabela!$D:$D,"não encontrado") -> 212.2 | F144: =IF(B144 =ISTEXT(qualquer), "", HYPERLINK("https://pt.firesecurityproducts.com/pt/search?q="&B144, "Link Web")) -> Link Web | G144: =$G$2 -> 0 | H144: =IF(ISBLANK(G144),"",E144-(E144*$G144)) -> 212.2
F145: =IF(B145 =ISTEXT(qualquer), "", HYPERLINK("https://pt.firesecurityproducts.com/pt/search?q="&B145, "Link Web")) -> 
A146: Série DF | C146: Proteção de Rede | F146: =IF(B146 =ISTEXT(qualquer), "", HYPERLINK("https://pt.firesecurityproducts.com/pt/search?q="&B146, "Link Web")) -> 
C147: O processador FlexZone, possibilita o alarme antecipado de intrusões indesejadas no perímetro e é facilmente instalado na maioria das vedações, ligando o seu cabo sensor leve ao tecido da vedação com braçadeiras de cabo. • Processamento Avançado de Sinal Digital (DSP) permite uma grande flexibilidade de instalação ao permitir que o FlexZone se adapte a uma ampla variedade de tipos de redes. • Requisitos de infraestrutura simples, pois permite o transporte de dados e energia através do cabo sensor • Baixa taxa de falsos alarmes através de analise de perturbações ambientais localizadas e distribuídas • Fácil de instalar e manter • Caixa em Alumínio NEMA. • Até 600m cabo (2 entradas) | F147: =IF(B147 =ISTEXT(qualquer), "", HYPERLINK("https://pt.firesecurityproducts.com/pt/search?q="&B147, "Link Web")) -> 
F148: =IF(B148 =ISTEXT(qualquer), "", HYPERLINK("https://pt.firesecurityproducts.com/pt/search?q="&B148, "Link Web")) -> 
F149: =IF(B149 =ISTEXT(qualquer), "", HYPERLINK("https://pt.firesecurityproducts.com/pt/search?q="&B149, "Link Web")) -> 
F150: =IF(B150 =ISTEXT(qualquer), "", HYPERLINK("https://pt.firesecurityproducts.com/pt/search?q="&B150, "Link Web")) -> 
F151: =IF(B151 =ISTEXT(qualquer), "", HYPERLINK("https://pt.firesecurityproducts.com/pt/search?q="&B151, "Link Web")) -> 
F152: =IF(B152 =ISTEXT(qualquer), "", HYPERLINK("https://pt.firesecurityproducts.com/pt/search?q="&B152, "Link Web")) -> 
F153: =IF(B153 =ISTEXT(qualquer), "", HYPERLINK("https://pt.firesecurityproducts.com/pt/search?q="&B153, "Link Web")) -> 
F154: =IF(B154 =ISTEXT(qualquer), "", HYPERLINK("https://pt.firesecurityproducts.com/pt/search?q="&B154, "Link Web")) -> 
F155: =IF(B155 =ISTEXT(qualquer), "", HYPERLINK("https://pt.firesecurityproducts.com/pt/search?q="&B155, "Link Web")) -> 
E156: PVP | F156: =IF(B156 =ISTEXT(qualquer), "", HYPERLINK("https://pt.firesecurityproducts.com/pt/search?q="&B156, "Link Web")) ->  | G156: Desconto | H156: Preço Liquido
B157: DF104 | C157: =_xlfn.XLOOKUP($B157,Tabela!A:A,Tabela!C:C,"não encontrado") -> Mature | D157: Processador FlexZone-4, até 600 metros, 4 zonas independentes. | E157: =_xlfn.XLOOKUP($B157,Tabela!$A:$A,Tabela!$D:$D,"não encontrado") -> 6208.45 | F157: =IF(B157 =ISTEXT(qualquer), "", HYPERLINK("https://pt.firesecurityproducts.com/pt/search?q="&B157, "Link Web")) -> Link Web | G157: =$G$2 -> 0 | H157: =IF(ISBLANK(G157),"",E157-(E157*$G157)) -> 6208.45
B158: DF160 | C158: =_xlfn.XLOOKUP($B158,Tabela!A:A,Tabela!C:C,"não encontrado") -> Mature | D158: Processador FlexZone-60. até 600 metros, 60 zonas independentes. | E158: =_xlfn.XLOOKUP($B158,Tabela!$A:$A,Tabela!$D:$D,"não encontrado") -> 8795.24 | F158: =IF(B158 =ISTEXT(qualquer), "", HYPERLINK("https://pt.firesecurityproducts.com/pt/search?q="&B158, "Link Web")) -> Link Web | G158: =$G$2 -> 0 | H158: =IF(ISBLANK(G158),"",E158-(E158*$G158)) -> 8795.24
F159: =IF(B159 =ISTEXT(qualquer), "", HYPERLINK("https://pt.firesecurityproducts.com/pt/search?q="&B159, "Link Web")) -> 
B160: Interfaces de Comunicação
B161: DF955-U | C161: =_xlfn.XLOOKUP($B161,Tabela!A:A,Tabela!C:C,"não encontrado") -> Mature | D161: Interface de comunicação em rede 'Silver Network' (SNIU) - sem fonte de alimentação | E161: =_xlfn.XLOOKUP($B161,Tabela!$A:$A,Tabela!$D:$D,"não encontrado") -> 5902.25 | F161: =IF(B161 =ISTEXT(qualquer), "", HYPERLINK("https://pt.firesecurityproducts.com/pt/search?q="&B161, "Link Web")) -> Link Web | G161: =$G$2 -> 0 | H161: =IF(ISBLANK(G161),"",E161-(E161*$G161)) -> 5902.25
B162: DF955-C1 | C162: =_xlfn.XLOOKUP($B162,Tabela!A:A,Tabela!C:C,"não encontrado") -> Mature | D162: Interface de comunicação via fibra multi modo (MMFO), rede de processadores | E162: =_xlfn.XLOOKUP($B162,Tabela!$A:$A,Tabela!$D:$D,"não encontrado") -> 1478.21 | F162: =IF(B162 =ISTEXT(qualquer), "", HYPERLINK("https://pt.firesecurityproducts.com/pt/search?q="&B162, "Link Web")) -> Link Web | G162: 0 | H162: 1478.21
B163: DF955-C2 | C163: =_xlfn.XLOOKUP($B163,Tabela!A:A,Tabela!C:C,"não encontrado") -> Mature | D163: Carta comunicação via cobre EIA-422 , rede de processadores | E163: =_xlfn.XLOOKUP($B163,Tabela!$A:$A,Tabela!$D:$D,"não encontrado") -> 1552.11 | F163: =IF(B163 =ISTEXT(qualquer), "", HYPERLINK("https://pt.firesecurityproducts.com/pt/search?q="&B163, "Link Web")) -> Link Web | G163: 0 | H163: 1552.11
B164: DF955-C3 | C164: =_xlfn.XLOOKUP($B164,Tabela!A:A,Tabela!C:C,"não encontrado") -> Mature | D164: Interface de comunicação via fibra mono modo (SMFO) , rede de processadores | E164: =_xlfn.XLOOKUP($B164,Tabela!$A:$A,Tabela!$D:$D,"não encontrado") -> 1552.11 | F164: =IF(B164 =ISTEXT(qualquer), "", HYPERLINK("https://pt.firesecurityproducts.com/pt/search?q="&B164, "Link Web")) -> Link Web | G164: 0 | H164: 1552.11
B165: DF955-C4 | C165: =_xlfn.XLOOKUP($B165,Tabela!A:A,Tabela!C:C,"não encontrado") -> Mature | D165: Carta Ethernet, 10/100BASE-TX , RJ45, PoE, G2 Silver | E165: =_xlfn.XLOOKUP($B165,Tabela!$A:$A,Tabela!$D:$D,"não encontrado") -> 1552.11 | F165: =IF(B165 =ISTEXT(qualquer), "", HYPERLINK("https://pt.firesecurityproducts.com/pt/search?q="&B165, "Link Web")) -> Link Web | G165: 0 | H165: 1552.11
B166: DF502 | C166: =_xlfn.XLOOKUP($B166,Tabela!A:A,Tabela!C:C,"não encontrado") -> Mature | D166: Mini Interface de rede 'Silver Network' – USB para RS-422 e fibra monomodo – montagem em calha DIN | E166: =_xlfn.XLOOKUP($B166,Tabela!$A:$A,Tabela!$D:$D,"não encontrado") -> 1806.75 | F166: =IF(B166 =ISTEXT(qualquer), "", HYPERLINK("https://pt.firesecurityproducts.com/pt/search?q="&B166, "Link Web")) -> Link Web | G166: 0 | H166: 1806.75
F167: =IF(B167 =ISTEXT(qualquer), "", HYPERLINK("https://pt.firesecurityproducts.com/pt/search?q="&B167, "Link Web")) -> 
B168: Interfaces I/O
B169: DF400 | C169: =_xlfn.XLOOKUP($B169,Tabela!A:A,Tabela!C:C,"não encontrado") -> Mature | D169: Módulo processador UltraLink com 8 entradas e 8 relés. Montagem calha DIN | E169: =_xlfn.XLOOKUP($B169,Tabela!$A:$A,Tabela!$D:$D,"não encontrado") -> 2724.82 | F169: =IF(B169 =ISTEXT(qualquer), "", HYPERLINK("https://pt.firesecurityproducts.com/pt/search?q="&B169, "Link Web")) -> Link Web | G169: =$G$2 -> 0 | H169: =IF(ISBLANK(G169),"",E169-(E169*$G169)) -> 2724.82
B170: DF432 | C170: =_xlfn.XLOOKUP($B170,Tabela!A:A,Tabela!C:C,"não encontrado") -> Mature | D170: Módulo expansão UltraLink, 32 relés | E170: =_xlfn.XLOOKUP($B170,Tabela!$A:$A,Tabela!$D:$D,"não encontrado") -> 3120.64 | F170: =IF(B170 =ISTEXT(qualquer), "", HYPERLINK("https://pt.firesecurityproducts.com/pt/search?q="&B170, "Link Web")) -> Link Web | G170: =$G$2 -> 0 | H170: 3120.64
B171: DF205 | C171: =_xlfn.XLOOKUP($B171,Tabela!A:A,Tabela!C:C,"não encontrado") -> Mature | D171: Cabo de extensão ligação UltraLink, 58 cm | E171: =_xlfn.XLOOKUP($B171,Tabela!$A:$A,Tabela!$D:$D,"não encontrado") -> 172.51 | F171: =IF(B171 =ISTEXT(qualquer), "", HYPERLINK("https://pt.firesecurityproducts.com/pt/search?q="&B171, "Link Web")) -> Link Web | G171: =$G$2 -> 0 | H171: 172.51
F172: =IF(B172 =ISTEXT(qualquer), "", HYPERLINK("https://pt.firesecurityproducts.com/pt/search?q="&B172, "Link Web")) -> 
B173: Fonte Alimentação
B174: DF648 | C174: =_xlfn.XLOOKUP($B174,Tabela!A:A,Tabela!C:C,"não encontrado") -> Mature | D174: Fonte de Alimentação para módulos I/O UltraLink. Montagem calha DIN 24 VDC, 40W, 85 – 264 VAC 47 – 64 Hz input, Relé DC OK | E174: =_xlfn.XLOOKUP($B174,Tabela!$A:$A,Tabela!$D:$D,"não encontrado") -> 362.18 | F174: =IF(B174 =ISTEXT(qualquer), "", HYPERLINK("https://pt.firesecurityproducts.com/pt/search?q="&B174, "Link Web")) -> Link Web | G174: =$G$2 -> 0 | H174: =IF(ISBLANK(G174),"",E174-(E174*$G174)) -> 362.18
F175: =IF(B175 =ISTEXT(qualquer), "", HYPERLINK("https://pt.firesecurityproducts.com/pt/search?q="&B175, "Link Web")) -> 
B176: Acessórios Controlo Portões | E176: PVP | G176: Desconto | H176: Preço Liquido
B177: DF410 | C177: =_xlfn.XLOOKUP($B177,Tabela!A:A,Tabela!C:C,"não encontrado") -> Mature | D177: Módulo sensor de portão, sem fios. Alimentação por bateria. Cor cinzento | E177: =_xlfn.XLOOKUP($B177,Tabela!$A:$A,Tabela!$D:$D,"não encontrado") -> 1552.11 | F177: =IF(B177 =ISTEXT(qualquer), "", HYPERLINK("https://pt.firesecurityproducts.com/pt/search?q="&B177, "Link Web")) -> Link Web | G177: =$G$2 -> 0 | H177: =IF(ISBLANK(G177),"",E177-(E177*$G177)) -> 1552.11
B178: DF955-C5 | C178: =_xlfn.XLOOKUP($B178,Tabela!A:A,Tabela!C:C,"não encontrado") -> Mature | D178: Cabo de extensão ligação UltraLink, 58 cm | E178: =_xlfn.XLOOKUP($B178,Tabela!$A:$A,Tabela!$D:$D,"não encontrado") -> 2463.69 | F178: =IF(B178 =ISTEXT(qualquer), "", HYPERLINK("https://pt.firesecurityproducts.com/pt/search?q="&B178, "Link Web")) -> Link Web | G178: =$G$2 -> 0 | H178: 2463.69
F179: =IF(B179 =ISTEXT(qualquer), "", HYPERLINK("https://pt.firesecurityproducts.com/pt/search?q="&B179, "Link Web")) -> 
B180: Cabos e Acessórios
B181: DF215 | C181: =_xlfn.XLOOKUP($B181,Tabela!A:A,Tabela!C:C,"não encontrado") -> Mature | D181: Cabo sensor FlexZone - Bobine 150m | E181: =_xlfn.XLOOKUP($B181,Tabela!$A:$A,Tabela!$D:$D,"não encontrado") -> 3276.67 | F181: =IF(B181 =ISTEXT(qualquer), "", HYPERLINK("https://pt.firesecurityproducts.com/pt/search?q="&B181, "Link Web")) -> Link Web | G181: =$G$2 -> 0 | H181: =IF(ISBLANK(G181),"",E181-(E181*$G181)) -> 3276.67
B182: DF800 | C182: =_xlfn.XLOOKUP($B182,Tabela!A:A,Tabela!C:C,"não encontrado") -> Mature | D182: Kit de emenda de cabo FlexZone | E182: =_xlfn.XLOOKUP($B182,Tabela!$A:$A,Tabela!$D:$D,"não encontrado") -> 207 | F182: =IF(B182 =ISTEXT(qualquer), "", HYPERLINK("https://pt.firesecurityproducts.com/pt/search?q="&B182, "Link Web")) -> Link Web | G182: =$G$2 -> 0 | H182: 207
B183: DF801 | C183: =_xlfn.XLOOKUP($B183,Tabela!A:A,Tabela!C:C,"não encontrado") -> Mature | D183: Terminação de cabo FlexZone | E183: =_xlfn.XLOOKUP($B183,Tabela!$A:$A,Tabela!$D:$D,"não encontrado") -> 310.44 | F183: =IF(B183 =ISTEXT(qualquer), "", HYPERLINK("https://pt.firesecurityproducts.com/pt/search?q="&B183, "Link Web")) -> Link Web | G183: =$G$2 -> 0 | H183: 310.44
B184: DF860 | C184: =_xlfn.XLOOKUP($B184,Tabela!A:A,Tabela!C:C,"não encontrado") -> Mature | D184: Braçadeiras (1000 peças) | E184: =_xlfn.XLOOKUP($B184,Tabela!$A:$A,Tabela!$D:$D,"não encontrado") -> 275.99 | F184: =IF(B184 =ISTEXT(qualquer), "", HYPERLINK("https://pt.firesecurityproducts.com/pt/search?q="&B184, "Link Web")) -> Link Web | G184: =$G$2 -> 0 | H184: 275.99
F185: =IF(B185 =ISTEXT(qualquer), "", HYPERLINK("https://pt.firesecurityproducts.com/pt/search?q="&B185, "Link Web")) -> 
B186: Software Configuração
B187: DF950-CM | C187: =_xlfn.XLOOKUP($B187,Tabela!A:A,Tabela!C:C,"não encontrado") -> Mature | D187: Software UCM (Universal Configuration Module) Kit, Incluí cabo. | E187: =_xlfn.XLOOKUP($B187,Tabela!$A:$A,Tabela!$D:$D,"não encontrado") -> 310.44 | F187: =IF(B187 =ISTEXT(qualquer), "", HYPERLINK("https://pt.firesecurityproducts.com/pt/search?q="&B187, "Link Web")) -> Link Web | G187: =$G$2 -> 0 | H187: =IF(ISBLANK(G187),"",E187-(E187*$G187)) -> 310.44
F188: =IF(B188 =ISTEXT(qualquer), "", HYPERLINK("https://pt.firesecurityproducts.com/pt/search?q="&B188, "Link Web")) -> 
B189: Software Gestão
B190: DF955-SW | C190: =_xlfn.XLOOKUP($B190,Tabela!A:A,Tabela!C:C,"não encontrado") -> Mature | D190: Software de Gestão de Processadores em Rede | E190: =_xlfn.XLOOKUP($B190,Tabela!$A:$A,Tabela!$D:$D,"não encontrado") -> 2356.74 | F190: =IF(B190 =ISTEXT(qualquer), "", HYPERLINK("https://pt.firesecurityproducts.com/pt/search?q="&B190, "Link Web")) -> Link Web | G190: =$G$2 -> 0 | H190: =IF(ISBLANK(G190),"",E190-(E190*$G190)) -> 2356.74

Sheet Série Advanced + Everon
C1: Centrais Intrusão
G2: 0
C4: Status | E4: PVP | G4: Desconto | H4: Preço Liquido
A5: Everon
C6: Novo painel de segurança integrado da Aritech™ coloca mais no núcleo da nossa gama de tecnologia de edifícios inteligentes - mais intuitivo, mais inovador e mais integrado. • 8 ou 16 entradas de zona na central (depende do modelo) • Capacidade máxima de 48 a 1000 zonas (depende do modelo, cabladas, via radio ou mista) • Expansão de entradas e saídas “plug in” • Até 16 entradas de sensores de choque • Até 64 áreas • Até 65000 utilizadores • EN50131 Grau de segurança da classe 3 / 2 Ambiental • Porta USB para configuração local • Multilingue - cada utilizador pode ter o seu próprio idioma • Ligação Ethernet integrada 10/100Mb • Reporte de Alarme por IP para a recetora OH-NETREC / opcional por GPRS) • Configuração via Web browser • Funcionamento com cloud "UltraSync" • Conetores amovíveis e código de cores • Retrocompatível com ATS Advanced • Fonte de Alimentação inteligente
B26: Central de 8 a 48 Zonas | E26: PVP | G26: Desconto | H26: Preço Liquido
B27: EVN1700-MM | C27: =_xlfn.XLOOKUP($B27,Tabela!A:A,Tabela!C:C,"não encontrado") -> NPI | D27: Painel de segurança Everon 1700, IP incorporado, EN grau 3, Web App, 8 a 48 zonas, 4 áreas, caixa metálica média, multilingue EN50131 Grau 3 | E27: =_xlfn.XLOOKUP($B27,Tabela!$A:$A,Tabela!$D:$D,"não encontrado") -> 485.95 | F27: =IF(B27 =ISTEXT(qualquer), "", HYPERLINK("https://pt.firesecurityproducts.com/pt/search?q="&B27, "Link Web")) -> Link Web | G27: =$G$2 -> 0 | H27: =IF(ISBLANK(G27),"",E27-(E27*$G27)) -> 485.95
F28: =IF(B28 =ISTEXT(qualquer), "", HYPERLINK("https://pt.firesecurityproducts.com/pt/search?q="&B28, "Link Web")) -> 
B29: Central de 8 a 256 Zonas
B30: EVN3700-MM | C30: =_xlfn.XLOOKUP($B30,Tabela!A:A,Tabela!C:C,"não encontrado") -> NPI | D30: Painel de segurança Everon 3700, IP incorporado, EN grau 3, Web App, 8 a 256 zonas,16 áreas, caixa metálica média, multilingue EN50131 Grau 3 | E30: =_xlfn.XLOOKUP($B30,Tabela!$A:$A,Tabela!$D:$D,"não encontrado") -> 853.47 | F30: =IF(B30 =ISTEXT(qualquer), "", HYPERLINK("https://pt.firesecurityproducts.com/pt/search?q="&B30, "Link Web")) -> Link Web | G30: =$G$2 -> 0 | H30: =IF(ISBLANK(G30),"",E30-(E30*$G30)) -> 853.47
B32: Centrais de 16 a 1000 Zonas
B33: EVN4700-MM | C33: =_xlfn.XLOOKUP($B33,Tabela!A:A,Tabela!C:C,"não encontrado") -> NPI | D33: Painel de segurança Everon 4700, IP incorporado, EN grau 3, Web App, 16 a 1000 zonas, 64 áreas, caixa metálica média, multilingue EN50131 Grau 3 | E33: =_xlfn.XLOOKUP($B33,Tabela!$A:$A,Tabela!$D:$D,"não encontrado") -> 1270.42 | F33: =IF(B33 =ISTEXT(qualquer), "", HYPERLINK("https://pt.firesecurityproducts.com/pt/search?q="&B33, "Link Web")) -> Link Web | G33: =$G$2 -> 0 | H33: =IF(ISBLANK(G33),"",E33-(E33*$G33)) -> 1270.42
B34: EVN4700-LM | C34: =_xlfn.XLOOKUP($B34,Tabela!A:A,Tabela!C:C,"não encontrado") -> NPI | D34: Painel de segurança Everon 4700, IP incorporado, EN grau 3, Web App, 16 a 1000 zonas, 64 áreas, caixa metálica grande, multilingue EN50131 Grau 3 | E34: =_xlfn.XLOOKUP($B34,Tabela!$A:$A,Tabela!$D:$D,"não encontrado") -> 1343.63 | F34: =IF(B34 =ISTEXT(qualquer), "", HYPERLINK("https://pt.firesecurityproducts.com/pt/search?q="&B34, "Link Web")) -> Link Web | G34: =$G$2 -> 0 | H34: =IF(ISBLANK(G34),"",E34-(E34*$G34)) -> 1343.63
A36: Everon | C36: Teclados e Leitores | F36: =IF(B36 =ISTEXT(qualquer), "", HYPERLINK("https://pt.firesecurityproducts.com/pt/search?q="&B36, "Link Web")) -> 
F37: =IF(B37 =ISTEXT(qualquer), "", HYPERLINK("https://pt.firesecurityproducts.com/pt/search?q="&B37, "Link Web")) -> 
B38: Teclados com Leitor Incorporado - Cartões Mifare
B39: ATS1125 | C39: =_xlfn.XLOOKUP($B39,Tabela!A:A,Tabela!C:C,"não encontrado") -> Mature | D39: Teclado Everon com leitor Mifare (Desfire EV1/EV2/EV3) - Branco LCD Gráfico de grades dimensões (possibilidade de colocar logótipo da empresa) Compatível com cartões ATS145x. EN50131 Grau 3 | E39: =_xlfn.XLOOKUP($B39,Tabela!$A:$A,Tabela!$D:$D,"não encontrado") -> 184.64 | F39: =IF(B39 =ISTEXT(qualquer), "", HYPERLINK("https://pt.firesecurityproducts.com/pt/search?q="&B39, "Link Web")) -> Link Web | G39: =$G$2 -> 0 | H39: =IF(ISBLANK(G39),"",E39-(E39*$G39)) -> 184.64
B40: ATS1125-B | C40: =_xlfn.XLOOKUP($B40,Tabela!A:A,Tabela!C:C,"não encontrado") -> Mature | D40: Teclado Everon com leitor Mifare (Desfire EV1/EV2/EV3) - Preto LCD Gráfico de grades dimensões (possibilidade de colocar logótipo da empresa) Compatível com cartões ATS145x. EN50131 Grau 3 | E40: =_xlfn.XLOOKUP($B40,Tabela!$A:$A,Tabela!$D:$D,"não encontrado") -> 206.84 | F40: =IF(B40 =ISTEXT(qualquer), "", HYPERLINK("https://pt.firesecurityproducts.com/pt/search?q="&B40, "Link Web")) -> Link Web | G40: =$G$2 -> 0 | H40: =IF(ISBLANK(G40),"",E40-(E40*$G40)) -> 206.84
B41: ATS1140 | C41: =_xlfn.XLOOKUP($B41,Tabela!A:A,Tabela!C:C,"não encontrado") -> Mature | D41: Teclado Touch de 7" Everon com Mifare (Desfire EV1/EV2/EV3). EN50131 Grau 3 | E41: =_xlfn.XLOOKUP($B41,Tabela!$A:$A,Tabela!$D:$D,"não encontrado") -> 543.58 | F41: =IF(B41 =ISTEXT(qualquer), "", HYPERLINK("https://pt.firesecurityproducts.com/pt/search?q="&B41, "Link Web")) -> Link Web | G41: =$G$2 -> 0 | H41: =IF(ISBLANK(G41),"",E41-(E41*$G41)) -> 543.58
F42: =IF(B42 =ISTEXT(qualquer), "", HYPERLINK("https://pt.firesecurityproducts.com/pt/search?q="&B42, "Link Web")) -> 
A43: ATSx500 | C43: Centrais Intrusão | F43: =IF(B43 =ISTEXT(qualquer), "", HYPERLINK("https://pt.firesecurityproducts.com/pt/search?q="&B43, "Link Web")) -> 
B44: Centrais de 8 a 32 Zonas | E44: PVP | G44: Desconto | H44: Preço Liquido
B45: ATS1500A-IP-LP | C45: =_xlfn.XLOOKUP($B45,Tabela!A:A,Tabela!C:C,"não encontrado") -> Mature | D45: Central 8 a 48 Zonas | E45: =_xlfn.XLOOKUP($B45,Tabela!$A:$A,Tabela!$D:$D,"não encontrado") -> 558.41 | F45: =IF(B45 =ISTEXT(qualquer), "", HYPERLINK("https://pt.firesecurityproducts.com/pt/search?q="&B45, "Link Web")) -> Link Web | G45: =$G$2 -> 0 | H45: =IF(ISBLANK(G45),"",E45-(E45*$G45)) -> 558.41
B46: ATS1500A-IP-MM | C46: =_xlfn.XLOOKUP($B46,Tabela!A:A,Tabela!C:C,"não encontrado") -> Mature | D46: Central 8 a 48 Zonas | E46: =_xlfn.XLOOKUP($B46,Tabela!$A:$A,Tabela!$D:$D,"não encontrado") -> 512.16 | F46: =IF(B46 =ISTEXT(qualquer), "", HYPERLINK("https://pt.firesecurityproducts.com/pt/search?q="&B46, "Link Web")) -> Link Web | G46: =$G$2 -> 0 | H46: =IF(ISBLANK(G46),"",E46-(E46*$G46)) -> 512.16
B47: ATS-MM-TK | C47: =_xlfn.XLOOKUP($B47,Tabela!A:A,Tabela!C:C,"não encontrado") -> Mature | D47: Kit de Tamper de Caixa para ATS1500A | E47: =_xlfn.XLOOKUP($B47,Tabela!$A:$A,Tabela!$D:$D,"não encontrado") -> 73.55 | F47: =IF(B47 =ISTEXT(qualquer), "", HYPERLINK("https://pt.firesecurityproducts.com/pt/search?q="&B47, "Link Web")) -> Link Web | G47: =$G$2 -> 0 | H47: =IF(ISBLANK(G47),"",E47-(E47*$G47)) -> 73.55
F48: =IF(B48 =ISTEXT(qualquer), "", HYPERLINK("https://pt.firesecurityproducts.com/pt/search?q="&B48, "Link Web")) -> 
B49: Centrais de 8 a 128 Zonas
B50: ATS3500A-IP-MM | C50: =_xlfn.XLOOKUP($B50,Tabela!A:A,Tabela!C:C,"não encontrado") -> Mature | D50: Central 8 a 128 zonas | E50: =_xlfn.XLOOKUP($B50,Tabela!$A:$A,Tabela!$D:$D,"não encontrado") -> 860.83 | F50: =IF(B50 =ISTEXT(qualquer), "", HYPERLINK("https://pt.firesecurityproducts.com/pt/search?q="&B50, "Link Web")) -> Link Web | G50: =$G$2 -> 0 | H50: =IF(ISBLANK(G50),"",E50-(E50*$G50)) -> 860.83
F51: =IF(B51 =ISTEXT(qualquer), "", HYPERLINK("https://pt.firesecurityproducts.com/pt/search?q="&B51, "Link Web")) -> 
B52: Centrais de 8 a 512 Zonas
B53: ATS4500A-IP-MM | C53: =_xlfn.XLOOKUP($B53,Tabela!A:A,Tabela!C:C,"não encontrado") -> Mature | D53: Central 8 a 512 zonas | E53: =_xlfn.XLOOKUP($B53,Tabela!$A:$A,Tabela!$D:$D,"não encontrado") -> 1208.89 | F53: =IF(B53 =ISTEXT(qualquer), "", HYPERLINK("https://pt.firesecurityproducts.com/pt/search?q="&B53, "Link Web")) -> Link Web | G53: =$G$2 -> 0 | H53: =IF(ISBLANK(G53),"",E53-(E53*$G53)) -> 1208.89
B54: ATS4500A-IP-LM | C54: =_xlfn.XLOOKUP($B54,Tabela!A:A,Tabela!C:C,"não encontrado") -> Mature | D54: Central 8 a 512 zonas | E54: =_xlfn.XLOOKUP($B54,Tabela!$A:$A,Tabela!$D:$D,"não encontrado") -> 1290.63 | F54: =IF(B54 =ISTEXT(qualquer), "", HYPERLINK("https://pt.firesecurityproducts.com/pt/search?q="&B54, "Link Web")) -> Link Web | G54: =$G$2 -> 0 | H54: =IF(ISBLANK(G54),"",E54-(E54*$G54)) -> 1290.63
B55: ATS670 | C55: =_xlfn.XLOOKUP($B55,Tabela!A:A,Tabela!C:C,"não encontrado") -> Mature | D55: Placa de expansão de segundo BUS RS485. Apenas para ATS4500A | E55: =_xlfn.XLOOKUP($B55,Tabela!$A:$A,Tabela!$D:$D,"não encontrado") -> 142.17 | F55: =IF(B55 =ISTEXT(qualquer), "", HYPERLINK("https://pt.firesecurityproducts.com/pt/search?q="&B55, "Link Web")) -> Link Web | G55: =$G$2 -> 0 | H55: =IF(ISBLANK(G55),"",E55-(E55*$G55)) -> 142.17
F56: =IF(B56 =ISTEXT(qualquer), "", HYPERLINK("https://pt.firesecurityproducts.com/pt/search?q="&B56, "Link Web")) -> 
A57: Plugin | C57: Módulos para Centrais ATS | F57: =IF(B57 =ISTEXT(qualquer), "", HYPERLINK("https://pt.firesecurityproducts.com/pt/search?q="&B57, "Link Web")) -> 
F58: =IF(B58 =ISTEXT(qualquer), "", HYPERLINK("https://pt.firesecurityproducts.com/pt/search?q="&B58, "Link Web")) -> 
B59: Entradas e Saídas | E59: PVP | G59: Desconto | H59: Preço Liquido
B60: ATS608 | C60: =_xlfn.XLOOKUP($B60,Tabela!A:A,Tabela!C:C,"não encontrado") -> Mature | D60: Expansor "plug in" de 8 Zonas | E60: =_xlfn.XLOOKUP($B60,Tabela!$A:$A,Tabela!$D:$D,"não encontrado") -> 98.22 | F60: =IF(B60 =ISTEXT(qualquer), "", HYPERLINK("https://pt.firesecurityproducts.com/pt/search?q="&B60, "Link Web")) -> Link Web | G60: =$G$2 -> 0 | H60: =IF(ISBLANK(G60),"",E60-(E60*$G60)) -> 98.22
B61: ATS624 | C61: =_xlfn.XLOOKUP($B61,Tabela!A:A,Tabela!C:C,"não encontrado") -> Mature | D61: Expansor "plug in" 4 Saídas por relé | E61: =_xlfn.XLOOKUP($B61,Tabela!$A:$A,Tabela!$D:$D,"não encontrado") -> 114.94 | F61: =IF(B61 =ISTEXT(qualquer), "", HYPERLINK("https://pt.firesecurityproducts.com/pt/search?q="&B61, "Link Web")) -> Link Web | G61: =$G$2 -> 0 | H61: =IF(ISBLANK(G61),"",E61-(E61*$G61)) -> 114.94
B62: ATS626 | C62: =_xlfn.XLOOKUP($B62,Tabela!A:A,Tabela!C:C,"não encontrado") -> Mature | D62: Expansor "plug in" 16 Saídas "Open Coletor" | E62: =_xlfn.XLOOKUP($B62,Tabela!$A:$A,Tabela!$D:$D,"não encontrado") -> 111.55 | F62: =IF(B62 =ISTEXT(qualquer), "", HYPERLINK("https://pt.firesecurityproducts.com/pt/search?q="&B62, "Link Web")) -> Link Web | G62: =$G$2 -> 0 | H62: =IF(ISBLANK(G62),"",E62-(E62*$G62)) -> 111.55
F63: =IF(B63 =ISTEXT(qualquer), "", HYPERLINK("https://pt.firesecurityproducts.com/pt/search?q="&B63, "Link Web")) -> 
B64: Interface Linha Telefónica
B65: ATS7700 | C65: =_xlfn.XLOOKUP($B65,Tabela!A:A,Tabela!C:C,"não encontrado") -> Mature | D65: Transmissor telefónico para ATSX500A | E65: =_xlfn.XLOOKUP($B65,Tabela!$A:$A,Tabela!$D:$D,"não encontrado") -> 114.81 | F65: =IF(B65 =ISTEXT(qualquer), "", HYPERLINK("https://pt.firesecurityproducts.com/pt/search?q="&B65, "Link Web")) -> Link Web | G65: =$G$2 -> 0 | H65: =IF(ISBLANK(G65),"",E65-(E65*$G65)) -> 114.81
F66: =IF(B66 =ISTEXT(qualquer), "", HYPERLINK("https://pt.firesecurityproducts.com/pt/search?q="&B66, "Link Web")) -> 
B67: Mensagens de Voz
B68: ATS7200E | C68: =_xlfn.XLOOKUP($B68,Tabela!A:A,Tabela!C:C,"não encontrado") -> Mature | D68: Módulo de Mensagens de Voz Permite a gravação até 6 mensagens de alarme | E68: =_xlfn.XLOOKUP($B68,Tabela!$A:$A,Tabela!$D:$D,"não encontrado") -> 142.74 | F68: =IF(B68 =ISTEXT(qualquer), "", HYPERLINK("https://pt.firesecurityproducts.com/pt/search?q="&B68, "Link Web")) -> Link Web | G68: =$G$2 -> 0 | H68: =IF(ISBLANK(G68),"",E68-(E68*$G68)) -> 142.74
F69: =IF(B69 =ISTEXT(qualquer), "", HYPERLINK("https://pt.firesecurityproducts.com/pt/search?q="&B69, "Link Web")) -> 
B70: Interface Backup GSM
B71: ATS7341 | C71: =_xlfn.XLOOKUP($B71,Tabela!A:A,Tabela!C:C,"não encontrado") -> Mature | D71: Módulo Backup 4G/3G/2G - ATSX500A / Everon Comando e controlo via SMS, Upload e Download e controlo via App. Utiliza cartões Micro SIM | E71: =_xlfn.XLOOKUP($B71,Tabela!$A:$A,Tabela!$D:$D,"não encontrado") -> 384.11 | F71: =IF(B71 =ISTEXT(qualquer), "", HYPERLINK("https://pt.firesecurityproducts.com/pt/search?q="&B71, "Link Web")) -> Link Web | G71: =$G$2 -> 0 | H71: =IF(ISBLANK(G71),"",E71-(E71*$G71)) -> 384.11
B72: ATS7341-SIM | C72: =_xlfn.XLOOKUP($B72,Tabela!A:A,Tabela!C:C,"não encontrado") -> Mature | D72: Módulo Backup 4G/3G/2G - ATSX500A / Everon Comando e controlo via SMS, Upload e Download e controlo via App. Incorpora cartão Micro SIM para ligação via UltraSync | E72: =_xlfn.XLOOKUP($B72,Tabela!$A:$A,Tabela!$D:$D,"não encontrado") -> 316.93 | F72: =IF(B72 =ISTEXT(qualquer), "", HYPERLINK("https://pt.firesecurityproducts.com/pt/search?q="&B72, "Link Web")) -> Link Web | G72: =$G$2 -> 0 | H72: =IF(ISBLANK(G72),"",E72-(E72*$G72)) -> 316.93
B73: ANT-MLTB | C73: =_xlfn.XLOOKUP($B73,Tabela!A:A,Tabela!C:C,"não encontrado") -> Mature | D73: Antena de alto ganho para ATS7340/41 - Cabo de 3m Frequências 698-960 / 170-2690 MHz | E73: =_xlfn.XLOOKUP($B73,Tabela!$A:$A,Tabela!$D:$D,"não encontrado") -> 110.1 | F73: =IF(B73 =ISTEXT(qualquer), "", HYPERLINK("https://pt.firesecurityproducts.com/pt/search?q="&B73, "Link Web")) -> Link Web | G73: =$G$2 -> 0 | H73: =IF(ISBLANK(G73),"",E73-(E73*$G73)) -> 110.1
F74: =IF(B74 =ISTEXT(qualquer), "", HYPERLINK("https://pt.firesecurityproducts.com/pt/search?q="&B74, "Link Web")) -> 
A75: ATS Smart | C75: Teclados e Leitores | F75: =IF(B75 =ISTEXT(qualquer), "", HYPERLINK("https://pt.firesecurityproducts.com/pt/search?q="&B75, "Link Web")) -> 
F76: =IF(B76 =ISTEXT(qualquer), "", HYPERLINK("https://pt.firesecurityproducts.com/pt/search?q="&B76, "Link Web")) -> 
B77: Teclados com Leitor Incorporado - Cartões ATS Smart
B78: ATS1110A-N | C78: =_xlfn.XLOOKUP($B78,Tabela!A:A,Tabela!C:C,"não encontrado") -> Mature | D78: Teclado LCD 2x16 Carateres, Indicação LED 16 Áreas EN50131 Grau 3 | E78: =_xlfn.XLOOKUP($B78,Tabela!$A:$A,Tabela!$D:$D,"não encontrado") -> 229.4 | F78: =IF(B78 =ISTEXT(qualquer), "", HYPERLINK("https://pt.firesecurityproducts.com/pt/search?q="&B78, "Link Web")) -> Link Web | G78: =$G$2 -> 0 | H78: =IF(ISBLANK(G78),"",E78-(E78*$G78)) -> 229.4
B79: ATS1115A-N | C79: =_xlfn.XLOOKUP($B79,Tabela!A:A,Tabela!C:C,"não encontrado") -> Mature | D79: Teclado LCD 2 x 16 caracteres com Leitor de cartões, indicação LED 16 áreas EN50131 Grau 3 | E79: =_xlfn.XLOOKUP($B79,Tabela!$A:$A,Tabela!$D:$D,"não encontrado") -> 293.88 | F79: =IF(B79 =ISTEXT(qualquer), "", HYPERLINK("https://pt.firesecurityproducts.com/pt/search?q="&B79, "Link Web")) -> Link Web | G79: =$G$2 -> 0 | H79: =IF(ISBLANK(G79),"",E79-(E79*$G79)) -> 293.88
B80: ATS1135 | C80: =_xlfn.XLOOKUP($B80,Tabela!A:A,Tabela!C:C,"não encontrado") -> Mature | D80: Teclado LCD 2 x 16 caracteres com indicação de áreas e Leitor de cartões EN50131 Grau 3 | E80: =_xlfn.XLOOKUP($B80,Tabela!$A:$A,Tabela!$D:$D,"não encontrado") -> 165.67 | F80: =IF(B80 =ISTEXT(qualquer), "", HYPERLINK("https://pt.firesecurityproducts.com/pt/search?q="&B80, "Link Web")) -> Link Web | G80: =$G$2 -> 0 | H80: =IF(ISBLANK(G80),"",E80-(E80*$G80)) -> 165.67
F81: =IF(B81 =ISTEXT(qualquer), "", HYPERLINK("https://pt.firesecurityproducts.com/pt/search?q="&B81, "Link Web")) -> 
B82: Leitor - Cartões ATS Smart
B83: ATS1190 | C83: =_xlfn.XLOOKUP($B83,Tabela!A:A,Tabela!C:C,"não encontrado") -> Mature | D83: Leitor de proximidade "ATS Smart cards ( 2,5 m de cabo) (necessita do cartão de programação de endereços) | E83: =_xlfn.XLOOKUP($B83,Tabela!$A:$A,Tabela!$D:$D,"não encontrado") -> 332.63 | F83: =IF(B83 =ISTEXT(qualquer), "", HYPERLINK("https://pt.firesecurityproducts.com/pt/search?q="&B83, "Link Web")) -> Link Web | G83: =$G$2 -> 0 | H83: =IF(ISBLANK(G83),"",E83-(E83*$G83)) -> 332.63
B84: ATS1192 | C84: =_xlfn.XLOOKUP($B84,Tabela!A:A,Tabela!C:C,"não encontrado") -> Mature | D84: Leitor de proximidade "Heavy duty" ( 2,5 m de cabo) (necessita do cartão de programação de endereços) | E84: =_xlfn.XLOOKUP($B84,Tabela!$A:$A,Tabela!$D:$D,"não encontrado") -> 348.45 | F84: =IF(B84 =ISTEXT(qualquer), "", HYPERLINK("https://pt.firesecurityproducts.com/pt/search?q="&B84, "Link Web")) -> Link Web | G84: =$G$2 -> 0 | H84: =IF(ISBLANK(G84),"",E84-(E84*$G84)) -> 348.45
F85: =IF(B85 =ISTEXT(qualquer), "", HYPERLINK("https://pt.firesecurityproducts.com/pt/search?q="&B85, "Link Web")) -> 
B86: Teclado Com Leitor Incorporado para Exterior - Cartões ATS Smart
B87: ATS1197 | C87: =_xlfn.XLOOKUP($B87,Tabela!A:A,Tabela!C:C,"não encontrado") -> Mature | D87: Leitor de Smart card & Teclado Pin (necessita do cartão de programação de endereços) | E87: =_xlfn.XLOOKUP($B87,Tabela!$A:$A,Tabela!$D:$D,"não encontrado") -> 474.78 | F87: =IF(B87 =ISTEXT(qualquer), "", HYPERLINK("https://pt.firesecurityproducts.com/pt/search?q="&B87, "Link Web")) -> Link Web | G87: =$G$2 -> 0 | H87: =IF(ISBLANK(G87),"",E87-(E87*$G87)) -> 474.78
F88: =IF(B88 =ISTEXT(qualquer), "", HYPERLINK("https://pt.firesecurityproducts.com/pt/search?q="&B88, "Link Web")) -> 
F89: =IF(B89 =ISTEXT(qualquer), "", HYPERLINK("https://pt.firesecurityproducts.com/pt/search?q="&B89, "Link Web")) -> 
B90: Interface para Leitores c/ Protocolo Wiegand
B91: ATS1170 | C91: =_xlfn.XLOOKUP($B91,Tabela!A:A,Tabela!C:C,"não encontrado") -> Mature | D91: Interface para Leitor Wiegand - ATS | E91: =_xlfn.XLOOKUP($B91,Tabela!$A:$A,Tabela!$D:$D,"não encontrado") -> 126.18 | F91: =IF(B91 =ISTEXT(qualquer), "", HYPERLINK("https://pt.firesecurityproducts.com/pt/search?q="&B91, "Link Web")) -> Link Web | G91: =$G$2 -> 0 | H91: =IF(ISBLANK(G91),"",E91-(E91*$G91)) -> 126.18
F92: =IF(B92 =ISTEXT(qualquer), "", HYPERLINK("https://pt.firesecurityproducts.com/pt/search?q="&B92, "Link Web")) -> 
A93: ATS Mifare | C93: Teclados e Leitores - Comunicação Encriptada com a Central | F93: =IF(B93 =ISTEXT(qualquer), "", HYPERLINK("https://pt.firesecurityproducts.com/pt/search?q="&B93, "Link Web")) -> 
F94: =IF(B94 =ISTEXT(qualquer), "", HYPERLINK("https://pt.firesecurityproducts.com/pt/search?q="&B94, "Link Web")) -> 
B95: Teclado com Leitor Incorporado - Cartões Mifare | E95: PVP | G95: Desconto | H95: Preço Liquido
B96: ATS1136 | C96: =_xlfn.XLOOKUP($B96,Tabela!A:A,Tabela!C:C,"não encontrado") -> Mature | D96: Teclado LCD 2 x 16 caracteres e Leitor de cartões Mifare Desfire EV1/EV2 EN50131 Grau 3 | E96: =_xlfn.XLOOKUP($B96,Tabela!$A:$A,Tabela!$D:$D,"não encontrado") -> 173.66 | F96: =IF(B96 =ISTEXT(qualquer), "", HYPERLINK("https://pt.firesecurityproducts.com/pt/search?q="&B96, "Link Web")) -> Link Web | G96: =$G$2 -> 0 | H96: =IF(ISBLANK(G96),"",E96-(E96*$G96)) -> 173.66
F97: =IF(B97 =ISTEXT(qualquer), "", HYPERLINK("https://pt.firesecurityproducts.com/pt/search?q="&B97, "Link Web")) -> 
B98: Aplicação Exterior
B99: ATS1180 | C99: =_xlfn.XLOOKUP($B99,Tabela!A:A,Tabela!C:C,"não encontrado") -> Phase-out | D99: Leitor Seguro MIFARE DesFire EV1/EV2 - IP67 Incorpora saída OC para abertura de porta e entrada para botão RTE | E99: =_xlfn.XLOOKUP($B99,Tabela!$A:$A,Tabela!$D:$D,"não encontrado") -> 309.39 | F99: =IF(B99 =ISTEXT(qualquer), "", HYPERLINK("https://pt.firesecurityproducts.com/pt/search?q="&B99, "Link Web")) -> Link Web | G99: =$G$2 -> 0 | H99: =IF(ISBLANK(G99),"",E99-(E99*$G99)) -> 309.39
B100: ATS1181 | C100: =_xlfn.XLOOKUP($B100,Tabela!A:A,Tabela!C:C,"não encontrado") -> Phase-out | D100: Leitor Seguro MIFARE DesFire EV1/EV2 com PIN Incorpora saída OC para abertura de porta e entrada para botão RTE | E100: =_xlfn.XLOOKUP($B100,Tabela!$A:$A,Tabela!$D:$D,"não encontrado") -> 433.16 | F100: =IF(B100 =ISTEXT(qualquer), "", HYPERLINK("https://pt.firesecurityproducts.com/pt/search?q="&B100, "Link Web")) -> Link Web | G100: 0 | H100: 433.16
B101: ATS1188 | C101: =_xlfn.XLOOKUP($B101,Tabela!A:A,Tabela!C:C,"não encontrado") -> NPI | D101: MIFARE READER - BLE -PIN - ATS LAN - STD FORMAT - EV3 | E101: =_xlfn.XLOOKUP($B101,Tabela!$A:$A,Tabela!$D:$D,"não encontrado") -> 476.59 | F101: =IF(B101 =ISTEXT(qualquer), "", HYPERLINK("https://pt.firesecurityproducts.com/pt/search?q="&B101, "Link Web")) -> Link Web | G101: 0 | H101: 476.59
B102: ATS1180M | C102: =_xlfn.XLOOKUP($B102,Tabela!A:A,Tabela!C:C,"não encontrado") -> Phase-out | D102: Leitor Seguro MIFARE DesFire EV1/EV2 - IP67 Incorpora saída OC para abertura de porta e entrada para botão RTE Preparado para credenciação móvel utilizando Bluetooth | E102: =_xlfn.XLOOKUP($B102,Tabela!$A:$A,Tabela!$D:$D,"não encontrado") -> 341.05 | F102: =IF(B102 =ISTEXT(qualquer), "", HYPERLINK("https://pt.firesecurityproducts.com/pt/search?q="&B102, "Link Web")) -> Link Web | G102: 0 | H102: 341.05
B103: ATS1181M | C103: =_xlfn.XLOOKUP($B103,Tabela!A:A,Tabela!C:C,"não encontrado") -> Phase-out | D103: Leitor Seguro MIFARE DesFire EV1/EV2 com PIN - IP67 Incorpora saída OC para abertura de porta e entrada para botão RTE Preparado para credenciação móvel utilizando Bluetooth | E103: =_xlfn.XLOOKUP($B103,Tabela!$A:$A,Tabela!$D:$D,"não encontrado") -> 465.75 | F103: =IF(B103 =ISTEXT(qualquer), "", HYPERLINK("https://pt.firesecurityproducts.com/pt/search?q="&B103, "Link Web")) -> Link Web | G103: 0 | H103: 465.75
F105: =IF(B105 =ISTEXT(qualquer), "", HYPERLINK("https://pt.firesecurityproducts.com/pt/search?q="&B105, "Link Web")) -> 
A106: DGP | C106: Expansores - Instalação no BUS | F106: =IF(B106 =ISTEXT(qualquer), "", HYPERLINK("https://pt.firesecurityproducts.com/pt/search?q="&B106, "Link Web")) -> 
F107: =IF(B107 =ISTEXT(qualquer), "", HYPERLINK("https://pt.firesecurityproducts.com/pt/search?q="&B107, "Link Web")) -> 
B108: Expansores Sem Fonte de Alimentação
B109: ATS1210E | C109: =_xlfn.XLOOKUP($B109,Tabela!A:A,Tabela!C:C,"não encontrado") -> Mature | D109: Expansor de 8 zonas com 8 outputs do tipo coletor aberto - Caixa Plástica EN50131 Grau 3 | E109: =_xlfn.XLOOKUP($B109,Tabela!$A:$A,Tabela!$D:$D,"não encontrado") -> 188.91 | F109: =IF(B109 =ISTEXT(qualquer), "", HYPERLINK("https://pt.firesecurityproducts.com/pt/search?q="&B109, "Link Web")) -> Link Web | G109: =$G$2 -> 0 | H109: =IF(ISBLANK(G109),"",E109-(E109*$G109)) -> 188.91
B110: ATS1210LE | C110: =_xlfn.XLOOKUP($B110,Tabela!A:A,Tabela!C:C,"não encontrado") -> Mature | D110: Expansor de 8 zonas com 8 outputs do tipo coletor aberto- Caixa Plástica Grande EN50131 Grau 3 | E110: =_xlfn.XLOOKUP($B110,Tabela!$A:$A,Tabela!$D:$D,"não encontrado") -> 226.05 | F110: =IF(B110 =ISTEXT(qualquer), "", HYPERLINK("https://pt.firesecurityproducts.com/pt/search?q="&B110, "Link Web")) -> Link Web | G110: =$G$2 -> 0 | H110: =IF(ISBLANK(G110),"",E110-(E110*$G110)) -> 226.05
B111: ATS1211E | C111: =_xlfn.XLOOKUP($B111,Tabela!A:A,Tabela!C:C,"não encontrado") -> Mature | D111: Expansor de 8 zonas com 8 outputs do tipo coletor aberto - Caixa Metálica EN50131 Grau 3 | E111: =_xlfn.XLOOKUP($B111,Tabela!$A:$A,Tabela!$D:$D,"não encontrado") -> 285 | F111: =IF(B111 =ISTEXT(qualquer), "", HYPERLINK("https://pt.firesecurityproducts.com/pt/search?q="&B111, "Link Web")) -> Link Web | G111: =$G$2 -> 0 | H111: =IF(ISBLANK(G111),"",E111-(E111*$G111)) -> 285
F112: =IF(B112 =ISTEXT(qualquer), "", HYPERLINK("https://pt.firesecurityproducts.com/pt/search?q="&B112, "Link Web")) -> 
B113: Expansor Para Porta
B114: ATS1226 | C114: =_xlfn.XLOOKUP($B114,Tabela!A:A,Tabela!C:C,"não encontrado") -> Mature | D114: Expansor Interligação de Porta com 4 zonas; 2 Relés; 6 saídas OC; Saída Isolada para leitor Caixa Plástica | E114: =_xlfn.XLOOKUP($B114,Tabela!$A:$A,Tabela!$D:$D,"não encontrado") -> 422.06 | F114: =IF(B114 =ISTEXT(qualquer), "", HYPERLINK("https://pt.firesecurityproducts.com/pt/search?q="&B114, "Link Web")) -> Link Web | G114: =$G$2 -> 0 | H114: =IF(ISBLANK(G114),"",E114-(E114*$G114)) -> 422.06
F115: =IF(B115 =ISTEXT(qualquer), "", HYPERLINK("https://pt.firesecurityproducts.com/pt/search?q="&B115, "Link Web")) -> 
B116: Expansores Com Fonte de Alimentação
B117: ATS1201E | C117: =_xlfn.XLOOKUP($B117,Tabela!A:A,Tabela!C:C,"não encontrado") -> Mature | D117: Expansor de 8 - 32 zonas, 8 outputs e output sirene, com PSU 12V/3 A Fornecido em caixa metálica 315x388x85 mm. EN50131 Grau 3 | E117: =_xlfn.XLOOKUP($B117,Tabela!$A:$A,Tabela!$D:$D,"não encontrado") -> 429.13 | F117: =IF(B117 =ISTEXT(qualquer), "", HYPERLINK("https://pt.firesecurityproducts.com/pt/search?q="&B117, "Link Web")) -> Link Web | G117: =$G$2 -> 0 | H117: =IF(ISBLANK(G117),"",E117-(E117*$G117)) -> 429.13
B118: ATS1204E | C118: =_xlfn.XLOOKUP($B118,Tabela!A:A,Tabela!C:C,"não encontrado") -> Mature | D118: Expansor de 8 - 32 zonas, 8 outputs e output sirene , com PSU 12V/3 A Fornecido em caixa metálica 475x460x160 mm. EN50131 Grau 3 | E118: =_xlfn.XLOOKUP($B118,Tabela!$A:$A,Tabela!$D:$D,"não encontrado") -> 669.28 | F118: =IF(B118 =ISTEXT(qualquer), "", HYPERLINK("https://pt.firesecurityproducts.com/pt/search?q="&B118, "Link Web")) -> Link Web | G118: =$G$2 -> 0 | H118: =IF(ISBLANK(G118),"",E118-(E118*$G118)) -> 669.28
B119: ATS1810 | C119: =_xlfn.XLOOKUP($B119,Tabela!A:A,Tabela!C:C,"não encontrado") -> Mature | D119: Carta de outputs com 4 relés para ATS120xE | E119: =_xlfn.XLOOKUP($B119,Tabela!$A:$A,Tabela!$D:$D,"não encontrado") -> 96.07 | F119: =IF(B119 =ISTEXT(qualquer), "", HYPERLINK("https://pt.firesecurityproducts.com/pt/search?q="&B119, "Link Web")) -> Link Web | G119: =$G$2 -> 0 | H119: =IF(ISBLANK(G119),"",E119-(E119*$G119)) -> 96.07
B120: ATS1811 | C120: =_xlfn.XLOOKUP($B120,Tabela!A:A,Tabela!C:C,"não encontrado") -> Mature | D120: Carta de 8 Relé, endereçável para ATS120xE | E120: =_xlfn.XLOOKUP($B120,Tabela!$A:$A,Tabela!$D:$D,"não encontrado") -> 182.54 | F120: =IF(B120 =ISTEXT(qualquer), "", HYPERLINK("https://pt.firesecurityproducts.com/pt/search?q="&B120, "Link Web")) -> Link Web | G120: =$G$2 -> 0 | H120: =IF(ISBLANK(G120),"",E120-(E120*$G120)) -> 182.54
B121: ATS1202 | C121: =_xlfn.XLOOKUP($B121,Tabela!A:A,Tabela!C:C,"não encontrado") -> Mature | D121: Expansor de 8 zonas "Plug in" para ATS120xE | E121: =_xlfn.XLOOKUP($B121,Tabela!$A:$A,Tabela!$D:$D,"não encontrado") -> 86.48 | F121: =IF(B121 =ISTEXT(qualquer), "", HYPERLINK("https://pt.firesecurityproducts.com/pt/search?q="&B121, "Link Web")) -> Link Web | G121: =$G$2 -> 0 | H121: =IF(ISBLANK(G121),"",E121-(E121*$G121)) -> 86.48
F122: =IF(B122 =ISTEXT(qualquer), "", HYPERLINK("https://pt.firesecurityproducts.com/pt/search?q="&B122, "Link Web")) -> 
A123: Controlo Acessos | C123: Controladores 4 a 8 Portas e Elevadores | F123: =IF(B123 =ISTEXT(qualquer), "", HYPERLINK("https://pt.firesecurityproducts.com/pt/search?q="&B123, "Link Web")) -> 
C124: Controlo em tempo real de alarme & acessos de 4-8 portas por controlador. • Base de dados completa para operação offline • Até 12 Controladores de porta CDC4 disponibilizando de 48 a 96 porta inteligentes • Recursos completos de controlo de acesso: interbloqueio, contagem de utilizadores, utilizadores de alta segurança, anti-passback com regiões • Até 32 leitores por cada CDC4 e 6 por porta • Dois databus locais com protocolo configurável • Suporta leitores seguros, leitores OSDP e fechaduras wireless • Entradas incorporadas, relés de porta, ligação IP e opções de expansão • Operação em modo estendido: utilizadores de controlo de acesso geridos pelo Advisor Management • Anti-passback entre todos os controladores de porta em modo standard e ligado Advisor Advanced •Disponível em Versão com aprovação EN50131-3, EN50134-6 e NFa2p para utilização em sistemas de intrusão | F124: =IF(B124 =ISTEXT(qualquer), "", HYPERLINK("https://pt.firesecurityproducts.com/pt/search?q="&B124, "Link Web")) -> 
F125: =IF(B125 =ISTEXT(qualquer), "", HYPERLINK("https://pt.firesecurityproducts.com/pt/search?q="&B125, "Link Web")) -> 
F126: =IF(B126 =ISTEXT(qualquer), "", HYPERLINK("https://pt.firesecurityproducts.com/pt/search?q="&B126, "Link Web")) -> 
F132: =IF(B132 =ISTEXT(qualquer), "", HYPERLINK("https://pt.firesecurityproducts.com/pt/search?q="&B132, "Link Web")) -> 
F133: =IF(B133 =ISTEXT(qualquer), "", HYPERLINK("https://pt.firesecurityproducts.com/pt/search?q="&B133, "Link Web")) -> 
F134: =IF(B134 =ISTEXT(qualquer), "", HYPERLINK("https://pt.firesecurityproducts.com/pt/search?q="&B134, "Link Web")) -> 
F135: =IF(B135 =ISTEXT(qualquer), "", HYPERLINK("https://pt.firesecurityproducts.com/pt/search?q="&B135, "Link Web")) -> 
F136: =IF(B136 =ISTEXT(qualquer), "", HYPERLINK("https://pt.firesecurityproducts.com/pt/search?q="&B136, "Link Web")) -> 
B137: Controladores | E137: PVP | G137: Desconto | H137: Preço Liquido
B138: CDC4 | C138: =_xlfn.XLOOKUP($B138,Tabela!A:A,Tabela!C:C,"não encontrado") -> Mature | D138: Controlador Inteligente para 4 a 8 portas, com fonte de alimentação | E138: =_xlfn.XLOOKUP($B138,Tabela!$A:$A,Tabela!$D:$D,"não encontrado") -> 1534.51 | F138: =IF(B138 =ISTEXT(qualquer), "", HYPERLINK("https://pt.firesecurityproducts.com/pt/search?q="&B138, "Link Web")) -> Link Web | G138: =$G$2 -> 0 | H138: =IF(ISBLANK(G138),"",E138-(E138*$G138)) -> 1534.51
B139: CDC4-EN | C139: =_xlfn.XLOOKUP($B139,Tabela!A:A,Tabela!C:C,"não encontrado") -> Mature | D139: Controlador Inteligente para 4 a 8 portas/ elevadores, com fonte de alimentação 12V 4 Entradas Wiegand. Aprovação EN50131-3, EN50131-6 e NFa2p para utilização em sistemas de intrusão | E139: =_xlfn.XLOOKUP($B139,Tabela!$A:$A,Tabela!$D:$D,"não encontrado") -> 1849.01 | F139: =IF(B139 =ISTEXT(qualquer), "", HYPERLINK("https://pt.firesecurityproducts.com/pt/search?q="&B139, "Link Web")) -> Link Web | G139: =$G$2 -> 0 | H139: =IF(ISBLANK(G139),"",E139-(E139*$G139)) -> 1849.01
F140: =IF(B140 =ISTEXT(qualquer), "", HYPERLINK("https://pt.firesecurityproducts.com/pt/search?q="&B140, "Link Web")) -> 
B141: Expansão para CDC4
B142: CDC-2DWIF | C142: =_xlfn.XLOOKUP($B142,Tabela!A:A,Tabela!C:C,"não encontrado") -> Mature | D142: DGP Wiegand de 2 portas, 2 relés e 4 zonas para CDC 4 | E142: =_xlfn.XLOOKUP($B142,Tabela!$A:$A,Tabela!$D:$D,"não encontrado") -> 299.23 | F142: =IF(B142 =ISTEXT(qualquer), "", HYPERLINK("https://pt.firesecurityproducts.com/pt/search?q="&B142, "Link Web")) -> Link Web | G142: =$G$2 -> 0 | H142: =IF(ISBLANK(G142),"",E142-(E142*$G142)) -> 299.23
F143: =IF(B143 =ISTEXT(qualquer), "", HYPERLINK("https://pt.firesecurityproducts.com/pt/search?q="&B143, "Link Web")) -> 
A144: BUS | C144: Interfaces e Proteção de BUS | F144: =IF(B144 =ISTEXT(qualquer), "", HYPERLINK("https://pt.firesecurityproducts.com/pt/search?q="&B144, "Link Web")) -> 
F145: =IF(B145 =ISTEXT(qualquer), "", HYPERLINK("https://pt.firesecurityproducts.com/pt/search?q="&B145, "Link Web")) -> 
B146: ATS1330 | C146: =_xlfn.XLOOKUP($B146,Tabela!A:A,Tabela!C:C,"não encontrado") -> Mature | D146: Placa Distribuição de BUS+ Alimentação - 1 Entrada 5 Saídas | E146: =_xlfn.XLOOKUP($B146,Tabela!$A:$A,Tabela!$D:$D,"não encontrado") -> 47.6 | F146: =IF(B146 =ISTEXT(qualquer), "", HYPERLINK("https://pt.firesecurityproducts.com/pt/search?q="&B146, "Link Web")) -> Link Web | G146: =$G$2 -> 0 | H146: =IF(ISBLANK(G146),"",E146-(E146*$G146)) -> 47.6
B147: ATS1340 | C147: =_xlfn.XLOOKUP($B147,Tabela!A:A,Tabela!C:C,"não encontrado") -> Mature | D147: Caixa de ligações para portas | E147: =_xlfn.XLOOKUP($B147,Tabela!$A:$A,Tabela!$D:$D,"não encontrado") -> 144.8 | F147: =IF(B147 =ISTEXT(qualquer), "", HYPERLINK("https://pt.firesecurityproducts.com/pt/search?q="&B147, "Link Web")) -> Link Web | G147: 0 | H147: 144.8
B148: ATS1740 | C148: =_xlfn.XLOOKUP($B148,Tabela!A:A,Tabela!C:C,"não encontrado") -> Mature | D148: Isolador/repetidor de bus. Este módulo permite efetuar o isolamento de bus contra curto-circuitos assim como aumentar a o comprimento do bus até 6Km. Máximo 3 módulos por sistema. Fornecido sem caixa. | E148: =_xlfn.XLOOKUP($B148,Tabela!$A:$A,Tabela!$D:$D,"não encontrado") -> 175.47 | F148: =IF(B148 =ISTEXT(qualquer), "", HYPERLINK("https://pt.firesecurityproducts.com/pt/search?q="&B148, "Link Web")) -> Link Web | G148: 0 | H148: 175.47
B149: ATS1743 | C149: =_xlfn.XLOOKUP($B149,Tabela!A:A,Tabela!C:C,"não encontrado") -> Mature | D149: Módulo conversor de bus < - > fibra cóptica. Permite converter o bus para fibra cóptica e vice versa. Distância máxima da fibra 1.5Km ( Para distâncias superiores consulte o capítulo “ Fibra Ótica ) | E149: =_xlfn.XLOOKUP($B149,Tabela!$A:$A,Tabela!$D:$D,"não encontrado") -> 526.43 | F149: =IF(B149 =ISTEXT(qualquer), "", HYPERLINK("https://pt.firesecurityproducts.com/pt/search?q="&B149, "Link Web")) -> Link Web | G149: 0 | H149: 526.43
B150: ATS1744 | C150: =_xlfn.XLOOKUP($B150,Tabela!A:A,Tabela!C:C,"não encontrado") -> Mature | D150: Isolador/repetidor de bus Quadruplo | E150: =_xlfn.XLOOKUP($B150,Tabela!$A:$A,Tabela!$D:$D,"não encontrado") -> 199.37 | F150: =IF(B150 =ISTEXT(qualquer), "", HYPERLINK("https://pt.firesecurityproducts.com/pt/search?q="&B150, "Link Web")) -> Link Web | G150: 0 | H150: 199.37
B151: ATS1745 | C151: =_xlfn.XLOOKUP($B151,Tabela!A:A,Tabela!C:C,"não encontrado") -> Mature | D151: Interface de BUS RS485 para IP-LAN Até 32 interfaces (1 na central + 31 remotos) Comunicação segura AES 128 bit | E151: =_xlfn.XLOOKUP($B151,Tabela!$A:$A,Tabela!$D:$D,"não encontrado") -> 235.04 | F151: =IF(B151 =ISTEXT(qualquer), "", HYPERLINK("https://pt.firesecurityproducts.com/pt/search?q="&B151, "Link Web")) -> Link Web | G151: 0 | H151: 235.04
B152: ATS1840 | C152: =_xlfn.XLOOKUP($B152,Tabela!A:A,Tabela!C:C,"não encontrado") -> Mature | D152: Placa de fusíveis de 8 vias com fusíveis separados. A falha do fusível é indicada por uma saída dedicada que pode ser ligada diretamente a qualquer zona no painel de controlo ATS. | E152: =_xlfn.XLOOKUP($B152,Tabela!$A:$A,Tabela!$D:$D,"não encontrado") -> 93.36 | F152: =IF(B152 =ISTEXT(qualquer), "", HYPERLINK("https://pt.firesecurityproducts.com/pt/search?q="&B152, "Link Web")) -> Link Web | G152: 0 | H152: 93.36
F153: =IF(B153 =ISTEXT(qualquer), "", HYPERLINK("https://pt.firesecurityproducts.com/pt/search?q="&B153, "Link Web")) -> 
A154: Software | C154: Software de Programação ATS/ATSx500 | F154: =IF(B154 =ISTEXT(qualquer), "", HYPERLINK("https://pt.firesecurityproducts.com/pt/search?q="&B154, "Link Web")) -> 
B155: ATS8500-2 | C155: =_xlfn.XLOOKUP($B155,Tabela!A:A,Tabela!C:C,"não encontrado") -> Mature | D155: Software de Programação | E155: =_xlfn.XLOOKUP($B155,Tabela!$A:$A,Tabela!$D:$D,"não encontrado") -> 396.75 | F155: =IF(B155 =ISTEXT(qualquer), "", HYPERLINK("https://pt.firesecurityproducts.com/pt/search?q="&B155, "Link Web")) -> Link Web | G155: =$G$2 -> 0 | H155: =IF(ISBLANK(G155),"",E155-(E155*$G155)) -> 396.75
B156: ATS8520-2 | C156: =_xlfn.XLOOKUP($B156,Tabela!A:A,Tabela!C:C,"não encontrado") -> Mature | D156: Software Gestão Utilizadores | E156: =_xlfn.XLOOKUP($B156,Tabela!$A:$A,Tabela!$D:$D,"não encontrado") -> 373.66 | F156: =IF(B156 =ISTEXT(qualquer), "", HYPERLINK("https://pt.firesecurityproducts.com/pt/search?q="&B156, "Link Web")) -> Link Web | G156: 0 | H156: 373.66
B157: ATS8550-2 | C157: =_xlfn.XLOOKUP($B157,Tabela!A:A,Tabela!C:C,"não encontrado") -> Mature | D157: Advisor Configurator - Serviço Remoto Multi Cliente Licença Install - 5 Painéis ATS/ATSa | E157: =_xlfn.XLOOKUP($B157,Tabela!$A:$A,Tabela!$D:$D,"não encontrado") -> 40.79 | F157: =IF(B157 =ISTEXT(qualquer), "", HYPERLINK("https://pt.firesecurityproducts.com/pt/search?q="&B157, "Link Web")) -> Link Web | G157: 0 | H157: 40.79
B158: ATS8551 | C158: =_xlfn.XLOOKUP($B158,Tabela!A:A,Tabela!C:C,"não encontrado") -> Mature | D158: Advisor Configurator - Serviço Remoto Multi Cliente Licença Intro - 250 Painéis ATS/ATSa | E158: =_xlfn.XLOOKUP($B158,Tabela!$A:$A,Tabela!$D:$D,"não encontrado") -> 1428.02 | F158: =IF(B158 =ISTEXT(qualquer), "", HYPERLINK("https://pt.firesecurityproducts.com/pt/search?q="&B158, "Link Web")) -> Link Web | G158: 0 | H158: 1428.02
B159: ATS8552 | C159: =_xlfn.XLOOKUP($B159,Tabela!A:A,Tabela!C:C,"não encontrado") -> Mature | D159: Advisor Configurator - Serviço Remoto Multi Cliente Licença Midsize - 1500 Painéis ATS/ATSa | E159: =_xlfn.XLOOKUP($B159,Tabela!$A:$A,Tabela!$D:$D,"não encontrado") -> 7140.01 | F159: =IF(B159 =ISTEXT(qualquer), "", HYPERLINK("https://pt.firesecurityproducts.com/pt/search?q="&B159, "Link Web")) -> Link Web | G159: 0 | H159: 7140.01
B160: ATS8553 | C160: =_xlfn.XLOOKUP($B160,Tabela!A:A,Tabela!C:C,"não encontrado") -> Mature | D160: Advisor Configurator - Serviço Remoto Multi Cliente Licença Fullsize - 10000 Painéis ATS/ATSa | E160: =_xlfn.XLOOKUP($B160,Tabela!$A:$A,Tabela!$D:$D,"não encontrado") -> 42839.96 | F160: =IF(B160 =ISTEXT(qualquer), "", HYPERLINK("https://pt.firesecurityproducts.com/pt/search?q="&B160, "Link Web")) -> Link Web | G160: 0 | H160: 42839.96
F161: =IF(B161 =ISTEXT(qualquer), "", HYPERLINK("https://pt.firesecurityproducts.com/pt/search?q="&B161, "Link Web")) -> 
A162: Credênciais | C162: Cartões e Etiquetas de Identificação | F162: =IF(B162 =ISTEXT(qualquer), "", HYPERLINK("https://pt.firesecurityproducts.com/pt/search?q="&B162, "Link Web")) -> 
F163: =IF(B163 =ISTEXT(qualquer), "", HYPERLINK("https://pt.firesecurityproducts.com/pt/search?q="&B163, "Link Web")) -> 
B164: Cartões de configuração | E164: PVP | G164: Desconto | H164: Preço Liquido
B165: ATS1481 | C165: =_xlfn.XLOOKUP($B165,Tabela!A:A,Tabela!C:C,"não encontrado") -> Mature | D165: Cartão Endereçamento de Leitores ATS Smart | E165: =_xlfn.XLOOKUP($B165,Tabela!$A:$A,Tabela!$D:$D,"não encontrado") -> 32.93 | F165: =IF(B165 =ISTEXT(qualquer), "", HYPERLINK("https://pt.firesecurityproducts.com/pt/search?q="&B165, "Link Web")) -> Link Web | G165: =$G$2 -> 0 | H165: =IF(ISBLANK(G165),"",E165-(E165*$G165)) -> 32.93
B166: ATS1482 | C166: =_xlfn.XLOOKUP($B166,Tabela!A:A,Tabela!C:C,"não encontrado") -> Mature | D166: Cartão Endereçamento de Leitores Mifare ATS116x e ATS8x | E166: =_xlfn.XLOOKUP($B166,Tabela!$A:$A,Tabela!$D:$D,"não encontrado") -> 33.25 | F166: =IF(B166 =ISTEXT(qualquer), "", HYPERLINK("https://pt.firesecurityproducts.com/pt/search?q="&B166, "Link Web")) -> Link Web | G166: =$G$2 -> 0 | H166: =IF(ISBLANK(G166),"",E166-(E166*$G166)) -> 33.25
B167: ATS1483 | C167: =_xlfn.XLOOKUP($B167,Tabela!A:A,Tabela!C:C,"não encontrado") -> Mature | D167: Cartão Modo Operação. Permite colocar ATS1180/ATS1181 em modo ATS1160N/ATS1161N | E167: =_xlfn.XLOOKUP($B167,Tabela!$A:$A,Tabela!$D:$D,"não encontrado") -> 33.25 | F167: =IF(B167 =ISTEXT(qualquer), "", HYPERLINK("https://pt.firesecurityproducts.com/pt/search?q="&B167, "Link Web")) -> Link Web | G167: =$G$2 -> 0 | H167: =IF(ISBLANK(G167),"",E167-(E167*$G167)) -> 33.25
F168: =IF(B168 =ISTEXT(qualquer), "", HYPERLINK("https://pt.firesecurityproducts.com/pt/search?q="&B168, "Link Web")) -> 
B169: Identificações ATS Smart
B170: ATS1471-5 | C170: =_xlfn.XLOOKUP($B170,Tabela!A:A,Tabela!C:C,"não encontrado") -> Mature | D170: Identificação tipo porta-chaves (Pack 5) | E170: =_xlfn.XLOOKUP($B170,Tabela!$A:$A,Tabela!$D:$D,"não encontrado") -> 109.81 | F170: =IF(B170 =ISTEXT(qualquer), "", HYPERLINK("https://pt.firesecurityproducts.com/pt/search?q="&B170, "Link Web")) -> Link Web | G170: =$G$2 -> 0 | H170: =IF(ISBLANK(G170),"",E170-(E170*$G170)) -> 109.81
B171: ATS1473-5 | C171: =_xlfn.XLOOKUP($B171,Tabela!A:A,Tabela!C:C,"não encontrado") -> Mature | D171: Identificação tipo porta-chaves (Pack 5) | E171: =_xlfn.XLOOKUP($B171,Tabela!$A:$A,Tabela!$D:$D,"não encontrado") -> 59.67 | F171: =IF(B171 =ISTEXT(qualquer), "", HYPERLINK("https://pt.firesecurityproducts.com/pt/search?q="&B171, "Link Web")) -> Link Web | G171: 0 | H171: 59.67
B172: ATS1475 | C172: =_xlfn.XLOOKUP($B172,Tabela!A:A,Tabela!C:C,"não encontrado") -> Mature | D172: Cartão de proximidade "ATS Smart card" (10 UNIDADES) | E172: =_xlfn.XLOOKUP($B172,Tabela!$A:$A,Tabela!$D:$D,"não encontrado") -> 91.79 | F172: =IF(B172 =ISTEXT(qualquer), "", HYPERLINK("https://pt.firesecurityproducts.com/pt/search?q="&B172, "Link Web")) -> Link Web | G172: 0 | H172: 91.79
B173: ATS1476 | C173: =_xlfn.XLOOKUP($B173,Tabela!A:A,Tabela!C:C,"não encontrado") -> Mature | D173: Cartão de prox. "ATS Smart card" C/ Banda Mag. programável (10 UNIDADES) | E173: =_xlfn.XLOOKUP($B173,Tabela!$A:$A,Tabela!$D:$D,"não encontrado") -> 103.75 | F173: =IF(B173 =ISTEXT(qualquer), "", HYPERLINK("https://pt.firesecurityproducts.com/pt/search?q="&B173, "Link Web")) -> Link Web | G173: 0 | H173: 103.75
B174: ATS1477 | C174: =_xlfn.XLOOKUP($B174,Tabela!A:A,Tabela!C:C,"não encontrado") -> Mature | D174: Etiqueta de proximidade ultra fina em fibra (Pack 10) | E174: =_xlfn.XLOOKUP($B174,Tabela!$A:$A,Tabela!$D:$D,"não encontrado") -> 105.9 | F174: =IF(B174 =ISTEXT(qualquer), "", HYPERLINK("https://pt.firesecurityproducts.com/pt/search?q="&B174, "Link Web")) -> Link Web | G174: 0 | H174: 105.9
B175: ATS1870 | C175: =_xlfn.XLOOKUP($B175,Tabela!A:A,Tabela!C:C,"não encontrado") -> Mature | D175: Leitor USB de Aprendizagem de Cartões Hitag2 e Mifare CSN | E175: =_xlfn.XLOOKUP($B175,Tabela!$A:$A,Tabela!$D:$D,"não encontrado") -> 435.95 | F175: =IF(B175 =ISTEXT(qualquer), "", HYPERLINK("https://pt.firesecurityproducts.com/pt/search?q="&B175, "Link Web")) -> Link Web | G175: 0 | H175: 435.95
F176: =IF(B176 =ISTEXT(qualquer), "", HYPERLINK("https://pt.firesecurityproducts.com/pt/search?q="&B176, "Link Web")) -> 
B177: Identificações de Transição
B178: ATS1495 | C178: =_xlfn.XLOOKUP($B178,Tabela!A:A,Tabela!C:C,"não encontrado") -> Mature | D178: Pack de 10 cartões formato ISO em cor branca. Mifare Desfire EV2, para utilizar com ATS118x e ATS1136. Possui também CSN Hitag2 para utilizar com ATS119x, ATS111x e ATS1135. Permitindo a utilização do mesmo cartão em sistemas antigos e em nos novos sistemas. | E178: =_xlfn.XLOOKUP($B178,Tabela!$A:$A,Tabela!$D:$D,"não encontrado") -> 149.49 | F178: =IF(B178 =ISTEXT(qualquer), "", HYPERLINK("https://pt.firesecurityproducts.com/pt/search?q="&B178, "Link Web")) -> Link Web | G178: =$G$2 -> 0 | H178: =IF(ISBLANK(G178),"",E178-(E178*$G178)) -> 149.49
B179: ATS1497 | C179: =_xlfn.XLOOKUP($B179,Tabela!A:A,Tabela!C:C,"não encontrado") -> Mature | D179: Pack de 10 porta chaves em cor preta. Mifare Desfire EV2, para utilizar com ATS118x e ATS1136. Possui também CSN Hitag2 para utilizar com ATS119x, ATS111x e ATS1135. Permitindo a utilização do mesmo cartão em sistemas antigos e em nos novos sistemas. | E179: =_xlfn.XLOOKUP($B179,Tabela!$A:$A,Tabela!$D:$D,"não encontrado") -> 185.54 | F179: =IF(B179 =ISTEXT(qualquer), "", HYPERLINK("https://pt.firesecurityproducts.com/pt/search?q="&B179, "Link Web")) -> Link Web | G179: =$G$2 -> 0 | H179: =IF(ISBLANK(G179),"",E179-(E179*$G179)) -> 185.54
F180: =IF(B180 =ISTEXT(qualquer), "", HYPERLINK("https://pt.firesecurityproducts.com/pt/search?q="&B180, "Link Web")) -> 
B181: Identificações Mifare | E181: PVP | G181: Desconto | H181: Preço Liquido
B182: ATS1451 | C182: =_xlfn.XLOOKUP($B182,Tabela!A:A,Tabela!C:C,"não encontrado") -> Mature | D182: Identificação Mifare Desfire EV2 - Porta-chaves (Pack 5). Encriptação AES | E182: =_xlfn.XLOOKUP($B182,Tabela!$A:$A,Tabela!$D:$D,"não encontrado") -> 90.59 | F182: =IF(B182 =ISTEXT(qualquer), "", HYPERLINK("https://pt.firesecurityproducts.com/pt/search?q="&B182, "Link Web")) -> Link Web | G182: =$G$2 -> 0 | H182: =IF(ISBLANK(G182),"",E182-(E182*$G182)) -> 90.59
B183: ATS1452 | C183: =_xlfn.XLOOKUP($B183,Tabela!A:A,Tabela!C:C,"não encontrado") -> Mature | D183: Cartão Mifare Desfire EV2 (Pack 5). Encriptação AES | E183: =_xlfn.XLOOKUP($B183,Tabela!$A:$A,Tabela!$D:$D,"não encontrado") -> 82.16 | F183: =IF(B183 =ISTEXT(qualquer), "", HYPERLINK("https://pt.firesecurityproducts.com/pt/search?q="&B183, "Link Web")) -> Link Web | G183: 0 | H183: 82.16
B184: ATS1453 | C184: =_xlfn.XLOOKUP($B184,Tabela!A:A,Tabela!C:C,"não encontrado") -> Mature | D184: Identificação Mifare Desfire EV2 - Porta Chaves (Pack 5). Encriptação AES | E184: =_xlfn.XLOOKUP($B184,Tabela!$A:$A,Tabela!$D:$D,"não encontrado") -> 56.58 | F184: =IF(B184 =ISTEXT(qualquer), "", HYPERLINK("https://pt.firesecurityproducts.com/pt/search?q="&B184, "Link Web")) -> Link Web | G184: 0 | H184: 56.58
B185: ATS1455 | C185: =_xlfn.XLOOKUP($B185,Tabela!A:A,Tabela!C:C,"não encontrado") -> Mature | D185: Cartão Mifare Desfire EV2 (Pack 10). Encriptação AES. Cartão formato ISO | E185: =_xlfn.XLOOKUP($B185,Tabela!$A:$A,Tabela!$D:$D,"não encontrado") -> 87 | F185: =IF(B185 =ISTEXT(qualquer), "", HYPERLINK("https://pt.firesecurityproducts.com/pt/search?q="&B185, "Link Web")) -> Link Web | G185: 0 | H185: 87
B186: ATS1457 | C186: =_xlfn.XLOOKUP($B186,Tabela!A:A,Tabela!C:C,"não encontrado") -> Mature | D186: Porta chaves Mifare Desfire EV2 (10 PACK). Utilizar com leitores seguros ATS118x | E186: =_xlfn.XLOOKUP($B186,Tabela!$A:$A,Tabela!$D:$D,"não encontrado") -> 101.15 | F186: =IF(B186 =ISTEXT(qualquer), "", HYPERLINK("https://pt.firesecurityproducts.com/pt/search?q="&B186, "Link Web")) -> Link Web | G186: 0 | H186: 101.15
B187: ATS1459 | C187: =_xlfn.XLOOKUP($B187,Tabela!A:A,Tabela!C:C,"não encontrado") -> Mature | D187: Identificação Mifare Desfire EV2 - Pulseira Preta (Pack 5). Encriptação AES | E187: =_xlfn.XLOOKUP($B187,Tabela!$A:$A,Tabela!$D:$D,"não encontrado") -> 104.14 | F187: =IF(B187 =ISTEXT(qualquer), "", HYPERLINK("https://pt.firesecurityproducts.com/pt/search?q="&B187, "Link Web")) -> Link Web | G187: 0 | H187: 104.14
B188: ATS1460 | C188: =_xlfn.XLOOKUP($B188,Tabela!A:A,Tabela!C:C,"não encontrado") -> Mature | D188: Etiquetas autocolante "tamper proof" (Pack 10). Identificação Mifare Desfire EV2. Pode ser utilizado em modo seguro com ATS118x e ATS1136 | E188: =_xlfn.XLOOKUP($B188,Tabela!$A:$A,Tabela!$D:$D,"não encontrado") -> 53.61 | F188: =IF(B188 =ISTEXT(qualquer), "", HYPERLINK("https://pt.firesecurityproducts.com/pt/search?q="&B188, "Link Web")) -> Link Web | G188: 0 | H188: 53.61
F189: =IF(B189 =ISTEXT(qualquer), "", HYPERLINK("https://pt.firesecurityproducts.com/pt/search?q="&B189, "Link Web")) -> 
B190: Identificações Sem Programação
B191: ACT455 | C191: =_xlfn.XLOOKUP($B191,Tabela!A:A,Tabela!C:C,"não encontrado") -> Mature | D191: Pack de 25 cartões EV2 virgens em PVC | E191: =_xlfn.XLOOKUP($B191,Tabela!$A:$A,Tabela!$D:$D,"não encontrado") -> 143.21 | F191: =IF(B191 =ISTEXT(qualquer), "", HYPERLINK("https://pt.firesecurityproducts.com/pt/search?q="&B191, "Link Web")) -> Link Web | G191: =$G$2 -> 0 | H191: =IF(ISBLANK(G191),"",E191-(E191*$G191)) -> 143.21
B192: ACT457 | C192: =_xlfn.XLOOKUP($B192,Tabela!A:A,Tabela!C:C,"não encontrado") -> Mature | D192: Pack de 25 Porta chaves EV2 virgens | E192: =_xlfn.XLOOKUP($B192,Tabela!$A:$A,Tabela!$D:$D,"não encontrado") -> 175.9 | F192: =IF(B192 =ISTEXT(qualquer), "", HYPERLINK("https://pt.firesecurityproducts.com/pt/search?q="&B192, "Link Web")) -> Link Web | G192: =$G$2 -> 0 | H192: =IF(ISBLANK(G192),"",E192-(E192*$G192)) -> 175.9
F193: =IF(B193 =ISTEXT(qualquer), "", HYPERLINK("https://pt.firesecurityproducts.com/pt/search?q="&B193, "Link Web")) -> 
A194: Acessórios | C194: Instalação e Manutenção | F194: =IF(B194 =ISTEXT(qualquer), "", HYPERLINK("https://pt.firesecurityproducts.com/pt/search?q="&B194, "Link Web")) -> 
F195: =IF(B195 =ISTEXT(qualquer), "", HYPERLINK("https://pt.firesecurityproducts.com/pt/search?q="&B195, "Link Web")) -> 
B196: Bases Montagem
B197: ATS1135BPL | C197: =_xlfn.XLOOKUP($B197,Tabela!A:A,Tabela!C:C,"não encontrado") -> Mature | D197: Pack 10 Bases Montagem e Acabamento para ATS1135 | E197: =_xlfn.XLOOKUP($B197,Tabela!$A:$A,Tabela!$D:$D,"não encontrado") -> 295.18 | F197: =IF(B197 =ISTEXT(qualquer), "", HYPERLINK("https://pt.firesecurityproducts.com/pt/search?q="&B197, "Link Web")) -> Link Web | G197: =$G$2 -> 0 | H197: =IF(ISBLANK(G197),"",E197-(E197*$G197)) -> 295.18
B198: ATS118X-CVR-SP | C198: =_xlfn.XLOOKUP($B198,Tabela!A:A,Tabela!C:C,"não encontrado") -> Mature | D198: Base Montagem para ATS1160N, ATS1161N, ATS1180N e ATS1181N. 144 x 49 x 10 mm | E198: =_xlfn.XLOOKUP($B198,Tabela!$A:$A,Tabela!$D:$D,"não encontrado") -> 30.12 | F198: =IF(B198 =ISTEXT(qualquer), "", HYPERLINK("https://pt.firesecurityproducts.com/pt/search?q="&B198, "Link Web")) -> Link Web | G198: =$G$2 -> 0 | H198: =IF(ISBLANK(G198),"",E198-(E198*$G198)) -> 30.12
B199: ATS118X-CVR-SP | C199: =_xlfn.XLOOKUP($B199,Tabela!A:A,Tabela!C:C,"não encontrado") -> Mature | D199: Base Montagem Longa para ATS1160N, ATS1161N, ATS1180N e ATS1181N. 170 x 80 x 10 mm | E199: =_xlfn.XLOOKUP($B199,Tabela!$A:$A,Tabela!$D:$D,"não encontrado") -> 30.12 | F199: =IF(B199 =ISTEXT(qualquer), "", HYPERLINK("https://pt.firesecurityproducts.com/pt/search?q="&B199, "Link Web")) -> Link Web | G199: =$G$2 -> 0 | H199: =IF(ISBLANK(G199),"",E199-(E199*$G199)) -> 30.12
B200: ATS118X-CVR-SQ | C200: =_xlfn.XLOOKUP($B200,Tabela!A:A,Tabela!C:C,"não encontrado") -> Mature | D200: Base Montagem para ATS1182N, ATS1183N e ATS1184N. 86 x 86 x 10 mm | E200: =_xlfn.XLOOKUP($B200,Tabela!$A:$A,Tabela!$D:$D,"não encontrado") -> 36.24 | F200: =IF(B200 =ISTEXT(qualquer), "", HYPERLINK("https://pt.firesecurityproducts.com/pt/search?q="&B200, "Link Web")) -> Link Web | G200: =$G$2 -> 0 | H200: =IF(ISBLANK(G200),"",E200-(E200*$G200)) -> 36.24
B201: ATS1184-MNT-33 | C201: =_xlfn.XLOOKUP($B201,Tabela!A:A,Tabela!C:C,"não encontrado") -> Mature | D201: Base Montagem com inclinação 33º para ATS1184N | E201: =_xlfn.XLOOKUP($B201,Tabela!$A:$A,Tabela!$D:$D,"não encontrado") -> 86.29 | F201: =IF(B201 =ISTEXT(qualquer), "", HYPERLINK("https://pt.firesecurityproducts.com/pt/search?q="&B201, "Link Web")) -> Link Web | G201: =$G$2 -> 0 | H201: =IF(ISBLANK(G201),"",E201-(E201*$G201)) -> 86.29
F202: =IF(B202 =ISTEXT(qualquer), "", HYPERLINK("https://pt.firesecurityproducts.com/pt/search?q="&B202, "Link Web")) -> 
B203: Autocolante Frente Leitor
B204: ATS1160S | C204: =_xlfn.XLOOKUP($B204,Tabela!A:A,Tabela!C:C,"não encontrado") -> Mature | D204: Autocolante frontal para leitor ATS1160(N) | E204: =_xlfn.XLOOKUP($B204,Tabela!$A:$A,Tabela!$D:$D,"não encontrado") -> 21.16 | F204: =IF(B204 =ISTEXT(qualquer), "", HYPERLINK("https://pt.firesecurityproducts.com/pt/search?q="&B204, "Link Web")) -> Link Web | G204: =$G$2 -> 0 | H204: =IF(ISBLANK(G204),"",E204-(E204*$G204)) -> 21.16
B205: ATS1161S | C205: =_xlfn.XLOOKUP($B205,Tabela!A:A,Tabela!C:C,"não encontrado") -> Mature | D205: Autocolante frontal para leitor ATS1161(N) | E205: =_xlfn.XLOOKUP($B205,Tabela!$A:$A,Tabela!$D:$D,"não encontrado") -> 21.16 | F205: =IF(B205 =ISTEXT(qualquer), "", HYPERLINK("https://pt.firesecurityproducts.com/pt/search?q="&B205, "Link Web")) -> Link Web | G205: =$G$2 -> 0 | H205: =IF(ISBLANK(G205),"",E205-(E205*$G205)) -> 21.16
B207: Suportes PCB
B208: ATS-Spacers-High | C208: =_xlfn.XLOOKUP($B208,Tabela!A:A,Tabela!C:C,"não encontrado") -> Mature | D208: Pack de 25 suportes para orifícios caixas ATS | E208: =_xlfn.XLOOKUP($B208,Tabela!$A:$A,Tabela!$D:$D,"não encontrado") -> 9.66 | F208: =IF(B208 =ISTEXT(qualquer), "", HYPERLINK("https://pt.firesecurityproducts.com/pt/search?q="&B208, "Link Web")) -> Link Web | G208: =$G$2 -> 0 | H208: =IF(ISBLANK(G208),"",E208-(E208*$G208)) -> 9.66
B209: ATS-Metal-Studs | C209: =_xlfn.XLOOKUP($B209,Tabela!A:A,Tabela!C:C,"não encontrado") -> Mature | D209: Pack de 100 suportes com parafuso para orifícios caixas ATS | E209: =_xlfn.XLOOKUP($B209,Tabela!$A:$A,Tabela!$D:$D,"não encontrado") -> 75.97 | F209: =IF(B209 =ISTEXT(qualquer), "", HYPERLINK("https://pt.firesecurityproducts.com/pt/search?q="&B209, "Link Web")) -> Link Web | G209: =$G$2 -> 0 | H209: =IF(ISBLANK(G209),"",E209-(E209*$G209)) -> 75.97
F210: =IF(B210 =ISTEXT(qualquer), "", HYPERLINK("https://pt.firesecurityproducts.com/pt/search?q="&B210, "Link Web")) -> 
B211: Caixas
B212: ATS1640 | C212: =_xlfn.XLOOKUP($B212,Tabela!A:A,Tabela!C:C,"não encontrado") -> Mature | D212: Caixa para Centrais 315 x 445 x 85 mm (L x A x P) | E212: =_xlfn.XLOOKUP($B212,Tabela!$A:$A,Tabela!$D:$D,"não encontrado") -> 148.42 | F212: =IF(B212 =ISTEXT(qualquer), "", HYPERLINK("https://pt.firesecurityproducts.com/pt/search?q="&B212, "Link Web")) -> Link Web | G212: =$G$2 -> 0 | H212: =IF(ISBLANK(G212),"",E212-(E212*$G212)) -> 148.42
B213: ATS1641 | C213: =_xlfn.XLOOKUP($B213,Tabela!A:A,Tabela!C:C,"não encontrado") -> Mature | D213: Caixa para Centrais 315 x 388 x 85 mm (L x A x P) | E213: =_xlfn.XLOOKUP($B213,Tabela!$A:$A,Tabela!$D:$D,"não encontrado") -> 123.3 | F213: =IF(B213 =ISTEXT(qualquer), "", HYPERLINK("https://pt.firesecurityproducts.com/pt/search?q="&B213, "Link Web")) -> Link Web | G213: =$G$2 -> 0 | H213: =IF(ISBLANK(G213),"",E213-(E213*$G213)) -> 123.3
B214: ATS1642 | C214: =_xlfn.XLOOKUP($B214,Tabela!A:A,Tabela!C:C,"não encontrado") -> Mature | D214: Caixa grande para Centrais 475 x 460 x 160 mm (L x A x P) | E214: =_xlfn.XLOOKUP($B214,Tabela!$A:$A,Tabela!$D:$D,"não encontrado") -> 313.4 | F214: =IF(B214 =ISTEXT(qualquer), "", HYPERLINK("https://pt.firesecurityproducts.com/pt/search?q="&B214, "Link Web")) -> Link Web | G214: =$G$2 -> 0 | H214: =IF(ISBLANK(G214),"",E214-(E214*$G214)) -> 313.4
B215: ATS1643 | C215: =_xlfn.XLOOKUP($B215,Tabela!A:A,Tabela!C:C,"não encontrado") -> Mature | D215: Caixa metálica para os expansores de saídas | E215: =_xlfn.XLOOKUP($B215,Tabela!$A:$A,Tabela!$D:$D,"não encontrado") -> 101.84 | F215: =IF(B215 =ISTEXT(qualquer), "", HYPERLINK("https://pt.firesecurityproducts.com/pt/search?q="&B215, "Link Web")) -> Link Web | G215: =$G$2 -> 0 | H215: =IF(ISBLANK(G215),"",E215-(E215*$G215)) -> 101.84
B216: ATS1647 | C216: =_xlfn.XLOOKUP($B216,Tabela!A:A,Tabela!C:C,"não encontrado") -> Mature | D216: Caixa Plástica Média para cartas | E216: =_xlfn.XLOOKUP($B216,Tabela!$A:$A,Tabela!$D:$D,"não encontrado") -> 34.55 | F216: =IF(B216 =ISTEXT(qualquer), "", HYPERLINK("https://pt.firesecurityproducts.com/pt/search?q="&B216, "Link Web")) -> Link Web | G216: =$G$2 -> 0 | H216: =IF(ISBLANK(G216),"",E216-(E216*$G216)) -> 34.55

Sheet Via Rádio ATS
C1: Via Rádio ATS
G2: 0
C4: Status | E4: PVP | G4: Desconto | H4: Preço Liquido
A5: Expansor RF | C5: Interface Dispositivos RF
C6: Este expansor permite adicionar a capacidades sem fios à gama de painéis Advisor Advanced. Suporta a maioria dos dispositivos antigos de 433 MHz de 63 bits, bem como a nova geração de dispositivos LoNa de 433 MHz, cuja comunicação sem fios é totalmente encriptada, evitando interferências não autorizadas. Podem ser programados até 32 dispositivos sem fios e até 16 comandos. • Até 15 ou 30 expansores por central (dependente do modelo) • Incorpora 2 zonas físicas • Incorpora 1 saída por relé
E13: PVP | G13: Desconto | H13: Preço Liquido
B14: ATS1236 | C14: =_xlfn.XLOOKUP($B14,Tabela!A:A,Tabela!C:C,"não encontrado") -> Mature | D14: DGP 32 zonas 433Mhz LoNa e 433Mhz 63-bit Incorpora 2 zonas cabladas. Incorpora 1 saída por relé | E14: =_xlfn.XLOOKUP($B14,Tabela!$A:$A,Tabela!$D:$D,"não encontrado") -> 183.18 | F14: =IF(B14 =ISTEXT(qualquer), "", HYPERLINK("https://pt.firesecurityproducts.com/pt/search?q="&B14, "Link Web")) -> Link Web | G14: =$G$2 -> 0 | H14: =IF(ISBLANK(G14),"",E14-(E14*$G14)) -> 183.18
A16: RF 433MHz LoNa | C16: Dispositivos
B18: Contactos Magnéticos
B19: RF-DC101-K4 | C19: =_xlfn.XLOOKUP($B19,Tabela!A:A,Tabela!C:C,"não encontrado") -> Mature | D19: Contato Magnético Branco - LoNa, 1 Entrada física GAP: 7-13mm 101 x 31 x 28 EN50131 - Grau 2 | E19: =_xlfn.XLOOKUP($B19,Tabela!$A:$A,Tabela!$D:$D,"não encontrado") -> 64.41 | F19: =IF(B19 =ISTEXT(qualquer), "", HYPERLINK("https://pt.firesecurityproducts.com/pt/search?q="&B19, "Link Web")) -> Link Web | G19: =$G$2 -> 0 | H19: =IF(ISBLANK(G19),"",E19-(E19*$G19)) -> 64.41
B20: RF-DC101B-K4 | C20: =_xlfn.XLOOKUP($B20,Tabela!A:A,Tabela!C:C,"não encontrado") -> Mature | D20: Contato Magnético Castanho - LoNa, 1 Entrada física GAP: 7-13mm 101 x 31 x 28 EN50131 - Grau 2 | E20: =_xlfn.XLOOKUP($B20,Tabela!$A:$A,Tabela!$D:$D,"não encontrado") -> 64.41 | F20: =IF(B20 =ISTEXT(qualquer), "", HYPERLINK("https://pt.firesecurityproducts.com/pt/search?q="&B20, "Link Web")) -> Link Web | G20: =$G$2 -> 0 | H20: 64.41
B22: Detetores Volumétricos PIR
B23: RF-EV1012-K4 | C23: =_xlfn.XLOOKUP($B23,Tabela!A:A,Tabela!C:C,"não encontrado") -> Mature | D23: Detetor PIR - LoNa Processamento de sinal 5D; 9 cortinas de 12m EN50131 - Grau 2 | E23: =_xlfn.XLOOKUP($B23,Tabela!$A:$A,Tabela!$D:$D,"não encontrado") -> 91.95 | F23: =IF(B23 =ISTEXT(qualquer), "", HYPERLINK("https://pt.firesecurityproducts.com/pt/search?q="&B23, "Link Web")) -> Link Web | G23: =$G$2 -> 0 | H23: =IF(ISBLANK(G23),"",E23-(E23*$G23)) -> 91.95
B24: RF-EV1016-K4 | C24: =_xlfn.XLOOKUP($B24,Tabela!A:A,Tabela!C:C,"não encontrado") -> Mature | D24: Detetor PIR - LoNa Processamento de sinal 5D; 9 cortinas de 16m EN50131 - Grau 2 | E24: =_xlfn.XLOOKUP($B24,Tabela!$A:$A,Tabela!$D:$D,"não encontrado") -> 114.02 | F24: =IF(B24 =ISTEXT(qualquer), "", HYPERLINK("https://pt.firesecurityproducts.com/pt/search?q="&B24, "Link Web")) -> Link Web | G24: =$G$2 -> 0 | H24: 114.02
B25: RF-EV1012PI-K4 | C25: =_xlfn.XLOOKUP($B25,Tabela!A:A,Tabela!C:C,"não encontrado") -> Mature | D25: Detetor PIR, Imune a Pequenos Animais (PI) - LoNa Processamento de sinal 5D; 9 cortinas de 12m EN50131 - Grau 2 | E25: =_xlfn.XLOOKUP($B25,Tabela!$A:$A,Tabela!$D:$D,"não encontrado") -> 91.95 | F25: =IF(B25 =ISTEXT(qualquer), "", HYPERLINK("https://pt.firesecurityproducts.com/pt/search?q="&B25, "Link Web")) -> Link Web | G25: =$G$2 -> 0 | H25: 91.95
B27: Detetores Dupla Tecnologia
B28: RF-DD1012-K4 | C28: =_xlfn.XLOOKUP($B28,Tabela!A:A,Tabela!C:C,"não encontrado") -> Mature | D28: Detetor Dupla Tecnologia - LoNa Cobertura 86º -12m EN50131 - Grau 2 | E28: =_xlfn.XLOOKUP($B28,Tabela!$A:$A,Tabela!$D:$D,"não encontrado") -> 134.13 | F28: =IF(B28 =ISTEXT(qualquer), "", HYPERLINK("https://pt.firesecurityproducts.com/pt/search?q="&B28, "Link Web")) -> Link Web | G28: =$G$2 -> 0 | H28: =IF(ISBLANK(G28),"",E28-(E28*$G28)) -> 134.13
B29: RF-DD1012PI-K4 | C29: =_xlfn.XLOOKUP($B29,Tabela!A:A,Tabela!C:C,"não encontrado") -> Mature | D29: Detetor Dupla Tecnologia Imune a Pequenos Animais (PI) - LoNa Processamento de sinal 5D; 9 cortinas de 12m EN50131 - Grau 2 | E29: =_xlfn.XLOOKUP($B29,Tabela!$A:$A,Tabela!$D:$D,"não encontrado") -> 134.13 | F29: =IF(B29 =ISTEXT(qualquer), "", HYPERLINK("https://pt.firesecurityproducts.com/pt/search?q="&B29, "Link Web")) -> Link Web | G29: =$G$2 -> 0 | H29: =IF(ISBLANK(G29),"",E29-(E29*$G29)) -> 134.13
B31: Acessórios
B32: RF-DC101BSR-K4 | C32: =_xlfn.XLOOKUP($B32,Tabela!A:A,Tabela!C:C,"não encontrado") -> Mature | D32: Espaçadores castanhos para sensores RF-DC101B-K4 - Pack de 10 | E32: =_xlfn.XLOOKUP($B32,Tabela!$A:$A,Tabela!$D:$D,"não encontrado") -> 22.03 | F32: =IF(B32 =ISTEXT(qualquer), "", HYPERLINK("https://pt.firesecurityproducts.com/pt/search?q="&B32, "Link Web")) -> Link Web | G32: =$G$2 -> 0 | H32: =IF(ISBLANK(G32),"",E32-(E32*$G32)) -> 22.03
B33: RF-DC101SR-K4 | C33: =_xlfn.XLOOKUP($B33,Tabela!A:A,Tabela!C:C,"não encontrado") -> Mature | D33: Espaçadores brancos para sensores RF-DC101-K4 - Pack de 10 | E33: =_xlfn.XLOOKUP($B33,Tabela!$A:$A,Tabela!$D:$D,"não encontrado") -> 22.03 | F33: =IF(B33 =ISTEXT(qualquer), "", HYPERLINK("https://pt.firesecurityproducts.com/pt/search?q="&B33, "Link Web")) -> Link Web | G33: =$G$2 -> 0 | H33: 22.03
B34: RF-DC101BBM-K4 | C34: =_xlfn.XLOOKUP($B34,Tabela!A:A,Tabela!C:C,"não encontrado") -> Mature | D34: Magneto extra fluxo, Castanho para RF-DC101B-K4 | E34: =_xlfn.XLOOKUP($B34,Tabela!$A:$A,Tabela!$D:$D,"não encontrado") -> 9.21 | F34: =IF(B34 =ISTEXT(qualquer), "", HYPERLINK("https://pt.firesecurityproducts.com/pt/search?q="&B34, "Link Web")) -> Link Web | G34: =$G$2 -> 0 | H34: 9.21
B35: RF-DC101BM-K4 | C35: =_xlfn.XLOOKUP($B35,Tabela!A:A,Tabela!C:C,"não encontrado") -> Mature | D35: Magneto extra fluxo, branco para RF-DC101-K4 | E35: =_xlfn.XLOOKUP($B35,Tabela!$A:$A,Tabela!$D:$D,"não encontrado") -> 9.21 | F35: =IF(B35 =ISTEXT(qualquer), "", HYPERLINK("https://pt.firesecurityproducts.com/pt/search?q="&B35, "Link Web")) -> Link Web | G35: =$G$2 -> 0 | H35: 9.21
A37: RF 433MHz 63 Bits | C37: Dispositivos
B39: Contactos Magnéticos | E39: PVP | G39: Desconto | H39: Preço Liquido
B40: RF320I4B-N | C40: =_xlfn.XLOOKUP($B40,Tabela!A:A,Tabela!C:C,"não encontrado") -> Mature | D40: Contato Magnético Castanho - RF433 MHz, 1 Entrada física GAP: 10 mm 32 x 32 x 102 mm | E40: =_xlfn.XLOOKUP($B40,Tabela!$A:$A,Tabela!$D:$D,"não encontrado") -> 91.29 | F40: =IF(B40 =ISTEXT(qualquer), "", HYPERLINK("https://pt.firesecurityproducts.com/pt/search?q="&B40, "Link Web")) -> Link Web | G40: =$G$2 -> 0 | H40: =IF(ISBLANK(G40),"",E40-(E40*$G40)) -> 91.29
B41: RF320I4-N | C41: =_xlfn.XLOOKUP($B41,Tabela!A:A,Tabela!C:C,"não encontrado") -> Mature | D41: Contato Magnético Branco - RF433 MHz, 1 Entrada física GAP: 10 mm 32 x 32 x 102 mm | E41: =_xlfn.XLOOKUP($B41,Tabela!$A:$A,Tabela!$D:$D,"não encontrado") -> 91.29 | F41: =IF(B41 =ISTEXT(qualquer), "", HYPERLINK("https://pt.firesecurityproducts.com/pt/search?q="&B41, "Link Web")) -> Link Web | G41: =$G$2 -> 0 | H41: 91.29
B43: Dispositivos Choque e Inércia com Contacto Magnético
B44: RF620I4-N | C44: =_xlfn.XLOOKUP($B44,Tabela!A:A,Tabela!C:C,"não encontrado") -> Mature | D44: Sensor choque e inércia com contato magnético, branco - 433 MHz | E44: =_xlfn.XLOOKUP($B44,Tabela!$A:$A,Tabela!$D:$D,"não encontrado") -> 135.22 | F44: =IF(B44 =ISTEXT(qualquer), "", HYPERLINK("https://pt.firesecurityproducts.com/pt/search?q="&B44, "Link Web")) -> Link Web | G44: =$G$2 -> 0 | H44: =IF(ISBLANK(G44),"",E44-(E44*$G44)) -> 135.22
B45: RF620I4B-N | C45: =_xlfn.XLOOKUP($B45,Tabela!A:A,Tabela!C:C,"não encontrado") -> Mature | D45: Sensor choque e inércia com contato magnético, castanho - 433 MHz | E45: =_xlfn.XLOOKUP($B45,Tabela!$A:$A,Tabela!$D:$D,"não encontrado") -> 141.99 | F45: =IF(B45 =ISTEXT(qualquer), "", HYPERLINK("https://pt.firesecurityproducts.com/pt/search?q="&B45, "Link Web")) -> Link Web | G45: 0 | H45: 141.99
B47: Dispositivos Pânico
B48: RF-4200-01-1 | C48: =_xlfn.XLOOKUP($B48,Tabela!A:A,Tabela!C:C,"não encontrado") -> Mature | D48: Dispositivo Pânico Branco - 433MHz Utilização como colar ou no pulso | E48: =_xlfn.XLOOKUP($B48,Tabela!$A:$A,Tabela!$D:$D,"não encontrado") -> 73.74 | F48: =IF(B48 =ISTEXT(qualquer), "", HYPERLINK("https://pt.firesecurityproducts.com/pt/search?q="&B48, "Link Web")) -> Link Web | G48: 0 | H48: =IF(ISBLANK(G48),"",E48-(E48*$G48)) -> 73.74
B49: RF-4200-01-2 | C49: =_xlfn.XLOOKUP($B49,Tabela!A:A,Tabela!C:C,"não encontrado") -> Mature | D49: Dispositivo Pânico Preto - 433MHz Utilização como colar ou no pulso | E49: =_xlfn.XLOOKUP($B49,Tabela!$A:$A,Tabela!$D:$D,"não encontrado") -> 73.74 | F49: =IF(B49 =ISTEXT(qualquer), "", HYPERLINK("https://pt.firesecurityproducts.com/pt/search?q="&B49, "Link Web")) -> Link Web | G49: 0 | H49: 73.74
B51: Detetores Volumétricos PIR
B52: RF4012I4 | C52: =_xlfn.XLOOKUP($B52,Tabela!A:A,Tabela!C:C,"não encontrado") -> Mature | D52: Detetor PIR - 433 MHz Processamento de sinal 5D; 9 cortinas de 12m | E52: =_xlfn.XLOOKUP($B52,Tabela!$A:$A,Tabela!$D:$D,"não encontrado") -> 81.96 | F52: =IF(B52 =ISTEXT(qualquer), "", HYPERLINK("https://pt.firesecurityproducts.com/pt/search?q="&B52, "Link Web")) -> Link Web | G52: 0 | H52: =IF(ISBLANK(G52),"",E52-(E52*$G52)) -> 81.96
B53: RF4012I4PI | C53: =_xlfn.XLOOKUP($B53,Tabela!A:A,Tabela!C:C,"não encontrado") -> Mature | D53: Detetor PIR Imune a pequenos animais (PI) - 433 MHz Processamento de sinal 5D; 9 cortinas de 12m | E53: =_xlfn.XLOOKUP($B53,Tabela!$A:$A,Tabela!$D:$D,"não encontrado") -> 81.96 | F53: =IF(B53 =ISTEXT(qualquer), "", HYPERLINK("https://pt.firesecurityproducts.com/pt/search?q="&B53, "Link Web")) -> Link Web | G53: 0 | H53: 81.96
B54: RF4016I4 | C54: =_xlfn.XLOOKUP($B54,Tabela!A:A,Tabela!C:C,"não encontrado") -> Mature | D54: Detetor PIR - 433 MHz Processamento de sinal 5D; 9 cortinas de 16m | E54: =_xlfn.XLOOKUP($B54,Tabela!$A:$A,Tabela!$D:$D,"não encontrado") -> 102.63 | F54: =IF(B54 =ISTEXT(qualquer), "", HYPERLINK("https://pt.firesecurityproducts.com/pt/search?q="&B54, "Link Web")) -> Link Web | G54: 0 | H54: 102.63
B56: Detetores Dupla Tecnologia
B57: RF4112I4 | C57: =_xlfn.XLOOKUP($B57,Tabela!A:A,Tabela!C:C,"não encontrado") -> Mature | D57: Detetor Dupla Tecnologia - 433 MHz 9 Cortinas de 12m | E57: =_xlfn.XLOOKUP($B57,Tabela!$A:$A,Tabela!$D:$D,"não encontrado") -> 154.36 | F57: =IF(B57 =ISTEXT(qualquer), "", HYPERLINK("https://pt.firesecurityproducts.com/pt/search?q="&B57, "Link Web")) -> Link Web | G57: =$G$2 -> 0 | H57: =IF(ISBLANK(G57),"",E57-(E57*$G57)) -> 154.36
B58: RF4112I4PI | C58: =_xlfn.XLOOKUP($B58,Tabela!A:A,Tabela!C:C,"não encontrado") -> Mature | D58: Detetor Dupla Tecnologia Imune a pequenos animais (PI) - 433 MHz Imune a pequenos animais (PI), 9 cortinas -12m | E58: =_xlfn.XLOOKUP($B58,Tabela!$A:$A,Tabela!$D:$D,"não encontrado") -> 154.36 | F58: =IF(B58 =ISTEXT(qualquer), "", HYPERLINK("https://pt.firesecurityproducts.com/pt/search?q="&B58, "Link Web")) -> Link Web | G58: =$G$2 -> 0 | H58: 154.36
B60: Detetores Volumétricos PIR - Aplicação Exterior
B61: RF430I4 | C61: =_xlfn.XLOOKUP($B61,Tabela!A:A,Tabela!C:C,"não encontrado") -> Mature | D61: Detetor para exterior - 433 MHz Campo de visão 70º , 15 m - Altura de instalação 3 -6m. Classificação IP: IP65 | E61: =_xlfn.XLOOKUP($B61,Tabela!$A:$A,Tabela!$D:$D,"não encontrado") -> 234.54 | F61: =IF(B61 =ISTEXT(qualquer), "", HYPERLINK("https://pt.firesecurityproducts.com/pt/search?q="&B61, "Link Web")) -> Link Web | G61: =$G$2 -> 0 | H61: =IF(ISBLANK(G61),"",E61-(E61*$G61)) -> 234.54
B62: RF440I4 | C62: =_xlfn.XLOOKUP($B62,Tabela!A:A,Tabela!C:C,"não encontrado") -> Mature | D62: Detetor para exterior - 433 MHz Campo de visão 70º , 15 / 20 / 30 m - Altura de instalação 3 -6m, Classificação IP: IP55 | E62: =_xlfn.XLOOKUP($B62,Tabela!$A:$A,Tabela!$D:$D,"não encontrado") -> 267.7 | F62: =IF(B62 =ISTEXT(qualquer), "", HYPERLINK("https://pt.firesecurityproducts.com/pt/search?q="&B62, "Link Web")) -> Link Web | G62: =$G$2 -> 0 | H62: 267.7
B64: Detetores de Incêndio
B65: RF581I4 | C65: =_xlfn.XLOOKUP($B65,Tabela!A:A,Tabela!C:C,"não encontrado") -> Mature | D65: Detetor ótico/térmico com sirene incorporada- 433Mhz. Seleção de modo de deteção: só ótico / só térmico / ótico e térmico. 8 Tipo de toque de sirene. Botão de teste com contorno LED de estado. Certificação EN14604 | E65: =_xlfn.XLOOKUP($B65,Tabela!$A:$A,Tabela!$D:$D,"não encontrado") -> 207.06 | F65: =IF(B65 =ISTEXT(qualquer), "", HYPERLINK("https://pt.firesecurityproducts.com/pt/search?q="&B65, "Link Web")) -> Link Web | G65: =$G$2 -> 0 | H65: =IF(ISBLANK(G65),"",E65-(E65*$G65)) -> 207.06
B67: Comandos | E67: PVP | G67: Desconto | H67: Preço Liquido
B68: RF352I4 | C68: =_xlfn.XLOOKUP($B68,Tabela!A:A,Tabela!C:C,"não encontrado") -> Mature | D68: Comando de 2 botões - 433 MHZ | E68: =_xlfn.XLOOKUP($B68,Tabela!$A:$A,Tabela!$D:$D,"não encontrado") -> 104.35 | F68: =IF(B68 =ISTEXT(qualquer), "", HYPERLINK("https://pt.firesecurityproducts.com/pt/search?q="&B68, "Link Web")) -> Link Web | G68: =$G$2 -> 0 | H68: =IF(ISBLANK(G68),"",E68-(E68*$G68)) -> 104.35
B69: RF354I4 | C69: =_xlfn.XLOOKUP($B69,Tabela!A:A,Tabela!C:C,"não encontrado") -> Mature | D69: Comando de 4 botões - 433MHz | E69: =_xlfn.XLOOKUP($B69,Tabela!$A:$A,Tabela!$D:$D,"não encontrado") -> 113.04 | F69: =IF(B69 =ISTEXT(qualquer), "", HYPERLINK("https://pt.firesecurityproducts.com/pt/search?q="&B69, "Link Web")) -> Link Web | G69: =$G$2 -> 0 | H69: 113.04
A71: RF 868 Gen2 | C71: Vídeo Verificação
C72: O expansor ATS238 Advanced permite a capacidade de entrada dos painéis Advisor Advanced até 32 zonas, utilizando sensores sem fios PIRCam e sensores sem fios 868 MHz Gen2: i.e. PIR, contacto de porta, etc. O ATS1238 é normalmente instalado no interior da caixa grande de poliéster e ligado ao interface de bus MI do painel Advisor Advanced. • Até 32 Zonas Via Rádio incluindo Câmaras PIR • Máximo de 8 Câmaras PIR • EN50131 Grau 2
B81: ATS1238 | C81: =_xlfn.XLOOKUP($B81,Tabela!A:A,Tabela!C:C,"não encontrado") -> Mature | D81: Interface Wireless 868Gen2 - para detetores via radio 868Gen2 e PIRCAM Liga no BUS MI da Central | E81: =_xlfn.XLOOKUP($B81,Tabela!$A:$A,Tabela!$D:$D,"não encontrado") -> 211.28 | F81: =IF(B81 =ISTEXT(qualquer), "", HYPERLINK("https://pt.firesecurityproducts.com/pt/search?q="&B81, "Link Web")) -> Link Web | G81: =$G$2 -> 0 | H81: =IF(ISBLANK(G81),"",E81-(E81*$G81)) -> 211.28
B83: Câmara PIR
B84: TX-2344-03-1-N | C84: =_xlfn.XLOOKUP($B84,Tabela!A:A,Tabela!C:C,"não encontrado") -> Mature | D84: PIRCAM - Detetor via radio com câmara para vídeo verificação - IR 12metros, tecnologia vetorial (VE), 9 cortinas 86º - Grau 2 EN50131 - Camara VGA Day/Night com cobertura igual ao detetor, Iluminação mínima 0,2 Lux @ f1.2 | E84: =_xlfn.XLOOKUP($B84,Tabela!$A:$A,Tabela!$D:$D,"não encontrado") -> 484.81 | F84: =IF(B84 =ISTEXT(qualquer), "", HYPERLINK("https://pt.firesecurityproducts.com/pt/search?q="&B84, "Link Web")) -> Link Web | G84: =$G$2 -> 0 | H84: =IF(ISBLANK(G84),"",E84-(E84*$G84)) -> 484.81
B86: Extensor para ATS1238
B87: ATS7072 | C87: =_xlfn.XLOOKUP($B87,Tabela!A:A,Tabela!C:C,"não encontrado") -> Mature | D87: Extensor com caixa para ATS1238 Permite colocar o interface ATS1238, até 100 da central | E87: =_xlfn.XLOOKUP($B87,Tabela!$A:$A,Tabela!$D:$D,"não encontrado") -> 155.87 | F87: =IF(B87 =ISTEXT(qualquer), "", HYPERLINK("https://pt.firesecurityproducts.com/pt/search?q="&B87, "Link Web")) -> Link Web | G87: =$G$2 -> 0 | H87: =IF(ISBLANK(G87),"",E87-(E87*$G87)) -> 155.87
A89: RF 868 Gen2 | C89: Interface Dispositivos RF
C90: O expansor ATS235 Advanced permite a capacidade de entrada dos painéis Advisor Advanced até 32 zonas, • Até 32 dispositivos RF • Até 15 ou 30 expansores por central (dependente do modelo) • EN50131 Grau 2
E97: PVP | G97: Desconto | H97: Preço Liquido
B98: ATS1235 | C98: =_xlfn.XLOOKUP($B98,Tabela!A:A,Tabela!C:C,"não encontrado") -> Mature | D98: DGP 32 zonas via rádio. Ligação em bus. Frequência 868Mhz Gen2 EN50131 Grau 2 | E98: =_xlfn.XLOOKUP($B98,Tabela!$A:$A,Tabela!$D:$D,"não encontrado") -> 174.34 | F98: =IF(B98 =ISTEXT(qualquer), "", HYPERLINK("https://pt.firesecurityproducts.com/pt/search?q="&B98, "Link Web")) -> Link Web | G98: =$G$2 -> 0 | H98: =IF(ISBLANK(G98),"",E98-(E98*$G98)) -> 174.34
B100: Contactos Magnéticos
B101: TX-1011-03-1 | C101: =_xlfn.XLOOKUP($B101,Tabela!A:A,Tabela!C:C,"não encontrado") -> Mature | D101: Transmissor universal e contacto magnético via rádio supervisionado 868 MHz Gen2, branco. Incorpora um contacto magnético, com duas posições e tamper. Funciona com 1 pilha de lítio de 3 V tipo CR123A, duração 3-5 anos. | E101: =_xlfn.XLOOKUP($B101,Tabela!$A:$A,Tabela!$D:$D,"não encontrado") -> 71.7 | F101: =IF(B101 =ISTEXT(qualquer), "", HYPERLINK("https://pt.firesecurityproducts.com/pt/search?q="&B101, "Link Web")) -> Link Web | G101: =$G$2 -> 0 | H101: =IF(ISBLANK(G101),"",E101-(E101*$G101)) -> 71.7
B102: TX-1011-03-3 | C102: =_xlfn.XLOOKUP($B102,Tabela!A:A,Tabela!C:C,"não encontrado") -> Mature | D102: Transmissor universal e contacto magnético via rádio supervisionado 868 MHz Gen2, Castanho. Incorpora um contacto magnético, com duas posições e tamper. Funciona com 1 pilha de lítio de 3 V tipo CR123A, duração 3-5 anos. | E102: =_xlfn.XLOOKUP($B102,Tabela!$A:$A,Tabela!$D:$D,"não encontrado") -> 71.7 | F102: =IF(B102 =ISTEXT(qualquer), "", HYPERLINK("https://pt.firesecurityproducts.com/pt/search?q="&B102, "Link Web")) -> Link Web | G102: =$G$2 -> 0 | H102: 71.7
B104: Dispositivos Choque e Inércia com Contacto Magnético
B105: TX-5011-03-1 | C105: =_xlfn.XLOOKUP($B105,Tabela!A:A,Tabela!C:C,"não encontrado") -> Mature | D105: Detetor de choque/inércia e contacto magnético via rádio supervisionado 868 MHz Gen2, branco. Deteta abertura e impacto. Incorpora um contacto magnético, com duas posições e tamper. Funciona com 1 pilha de lítio de 3 V tipo CR123A, duração 5 anos. | E105: =_xlfn.XLOOKUP($B105,Tabela!$A:$A,Tabela!$D:$D,"não encontrado") -> 115.84 | F105: =IF(B105 =ISTEXT(qualquer), "", HYPERLINK("https://pt.firesecurityproducts.com/pt/search?q="&B105, "Link Web")) -> Link Web | G105: =$G$2 -> 0 | H105: =IF(ISBLANK(G105),"",E105-(E105*$G105)) -> 115.84
B106: TX-5011-03-3 | C106: =_xlfn.XLOOKUP($B106,Tabela!A:A,Tabela!C:C,"não encontrado") -> Mature | D106: Detetor de choque/inércia e contacto magnético via rádio supervisionado 868 MHz Gen2, Castanho. Deteta abertura e impacto. Incorpora um contacto magnético, com duas posições e tamper. Funciona com 1 pilha de lítio de 3 V tipo CR123A, duração 5 anos. | E106: =_xlfn.XLOOKUP($B106,Tabela!$A:$A,Tabela!$D:$D,"não encontrado") -> 121.63 | F106: =IF(B106 =ISTEXT(qualquer), "", HYPERLINK("https://pt.firesecurityproducts.com/pt/search?q="&B106, "Link Web")) -> Link Web | G106: 0 | H106: 121.63
B108: Detetores Volumétricos PIR
B109: TX-2213-03-1 | C109: =_xlfn.XLOOKUP($B109,Tabela!A:A,Tabela!C:C,"não encontrado") -> Mature | D109: Wireless PIR 12m 868AM Gen2 | E109: =_xlfn.XLOOKUP($B109,Tabela!$A:$A,Tabela!$D:$D,"não encontrado") -> 94.67 | F109: =IF(B109 =ISTEXT(qualquer), "", HYPERLINK("https://pt.firesecurityproducts.com/pt/search?q="&B109, "Link Web")) -> Link Web | G109: =$G$2 -> 0 | H109: =IF(ISBLANK(G109),"",E109-(E109*$G109)) -> 94.67
B110: TX-2214-03-1 | C110: =_xlfn.XLOOKUP($B110,Tabela!A:A,Tabela!C:C,"não encontrado") -> Mature | D110: Wireless PIR 16m 868AM Gen2 | E110: =_xlfn.XLOOKUP($B110,Tabela!$A:$A,Tabela!$D:$D,"não encontrado") -> 117.4 | F110: =IF(B110 =ISTEXT(qualquer), "", HYPERLINK("https://pt.firesecurityproducts.com/pt/search?q="&B110, "Link Web")) -> Link Web | G110: 0 | H110: 117.4
B111: TX-2311-03-1 | C111: =_xlfn.XLOOKUP($B111,Tabela!A:A,Tabela!C:C,"não encontrado") -> Mature | D111: Wireless PIR 12m PI 868AM Gen2 | E111: =_xlfn.XLOOKUP($B111,Tabela!$A:$A,Tabela!$D:$D,"não encontrado") -> 94.67 | F111: =IF(B111 =ISTEXT(qualquer), "", HYPERLINK("https://pt.firesecurityproducts.com/pt/search?q="&B111, "Link Web")) -> Link Web | G111: 0 | H111: 94.67
B113: Detetores Dupla Tecnologia
B114: TX-2413-03-1 | C114: =_xlfn.XLOOKUP($B114,Tabela!A:A,Tabela!C:C,"não encontrado") -> Mature | D114: Wireless Dual Technology 12m 868AM Gen2 | E114: =_xlfn.XLOOKUP($B114,Tabela!$A:$A,Tabela!$D:$D,"não encontrado") -> 131.26 | F114: =IF(B114 =ISTEXT(qualquer), "", HYPERLINK("https://pt.firesecurityproducts.com/pt/search?q="&B114, "Link Web")) -> Link Web | G114: =$G$2 -> 0 | H114: =IF(ISBLANK(G114),"",E114-(E114*$G114)) -> 131.26
B115: TX-2511-03-1 | C115: =_xlfn.XLOOKUP($B115,Tabela!A:A,Tabela!C:C,"não encontrado") -> Mature | D115: Wireless Dual Technology 12m PI 868AM Gen2 | E115: =_xlfn.XLOOKUP($B115,Tabela!$A:$A,Tabela!$D:$D,"não encontrado") -> 131.26 | F115: =IF(B115 =ISTEXT(qualquer), "", HYPERLINK("https://pt.firesecurityproducts.com/pt/search?q="&B115, "Link Web")) -> Link Web | G115: =$G$2 -> 0 | H115: =IF(ISBLANK(G115),"",E115-(E115*$G115)) -> 131.26
B117: Detetores Volumétricos PIR - Aplicação Exterior
B118: TX-2810-03-4 | C118: =_xlfn.XLOOKUP($B118,Tabela!A:A,Tabela!C:C,"não encontrado") -> Mature | D118: Wireless outdoor PIR 868AM Gen2 Funciona com os recetores ATS1235 e repetidor TX-9001-03 | E118: =_xlfn.XLOOKUP($B118,Tabela!$A:$A,Tabela!$D:$D,"não encontrado") -> 279.87 | F118: =IF(B118 =ISTEXT(qualquer), "", HYPERLINK("https://pt.firesecurityproducts.com/pt/search?q="&B118, "Link Web")) -> Link Web | G118: =$G$2 -> 0 | H118: =IF(ISBLANK(G118),"",E118-(E118*$G118)) -> 279.87
B119: TX-2821-03-4 | C119: =_xlfn.XLOOKUP($B119,Tabela!A:A,Tabela!C:C,"não encontrado") -> Mature | D119: Detetor PIR 868 Gen2 para exterior. Campo de visão 70º , 15 m - Altura de instalação 3 -6m. Classificação IP: IP65 | E119: =_xlfn.XLOOKUP($B119,Tabela!$A:$A,Tabela!$D:$D,"não encontrado") -> 293.09 | F119: =IF(B119 =ISTEXT(qualquer), "", HYPERLINK("https://pt.firesecurityproducts.com/pt/search?q="&B119, "Link Web")) -> Link Web | G119: =$G$2 -> 0 | H119: 293.09
B121: Dispositivos Pânico
B122: TX-3011-03-1 | C122: =_xlfn.XLOOKUP($B122,Tabela!A:A,Tabela!C:C,"não encontrado") -> Mature | D122: Botão de pânico ou emergência, pendente, via rádio supervisionado 868 MHz Gen2. Resistente á agua (3mt) e impacto. Configuração independente por botão. Funciona com 1 pilha de lítio de 3 V tipo. | E122: =_xlfn.XLOOKUP($B122,Tabela!$A:$A,Tabela!$D:$D,"não encontrado") -> 71.7 | F122: =IF(B122 =ISTEXT(qualquer), "", HYPERLINK("https://pt.firesecurityproducts.com/pt/search?q="&B122, "Link Web")) -> Link Web | G122: =$G$2 -> 0 | H122: =IF(ISBLANK(G122),"",E122-(E122*$G122)) -> 71.7
B123: TX-3011-03-2 | C123: =_xlfn.XLOOKUP($B123,Tabela!A:A,Tabela!C:C,"não encontrado") -> Mature | D123: Comando 2 botões de pânico, 868 MHz Gen2 - Preto | E123: =_xlfn.XLOOKUP($B123,Tabela!$A:$A,Tabela!$D:$D,"não encontrado") -> 71.7 | F123: =IF(B123 =ISTEXT(qualquer), "", HYPERLINK("https://pt.firesecurityproducts.com/pt/search?q="&B123, "Link Web")) -> Link Web | G123: =$G$2 -> 0 | H123: 71.7
B125: Comandos | E125: PVP | G125: Desconto | H125: Preço Liquido
B126: TX-4131-03-2 | C126: =_xlfn.XLOOKUP($B126,Tabela!A:A,Tabela!C:C,"não encontrado") -> Mature | D126: Comando via rádio de 4 botões, 868 MHz Gen2.Permite ligar e desligar a central e ativar funções programáveis. Funciona com 1 pilha alcalina de 12 V tipo A23, duração 3 anos. | E126: =_xlfn.XLOOKUP($B126,Tabela!$A:$A,Tabela!$D:$D,"não encontrado") -> 70.96 | F126: =IF(B126 =ISTEXT(qualquer), "", HYPERLINK("https://pt.firesecurityproducts.com/pt/search?q="&B126, "Link Web")) -> Link Web | G126: =$G$2 -> 0 | H126: =IF(ISBLANK(G126),"",E126-(E126*$G126)) -> 70.96
B128: Detetores de Incêndio
B129: TX-6010-03-1 | C129: =_xlfn.XLOOKUP($B129,Tabela!A:A,Tabela!C:C,"não encontrado") -> Mature | D129: Detetor de Fumo/temperatura 868AM Gen2 | E129: =_xlfn.XLOOKUP($B129,Tabela!$A:$A,Tabela!$D:$D,"não encontrado") -> 241.57 | F129: =IF(B129 =ISTEXT(qualquer), "", HYPERLINK("https://pt.firesecurityproducts.com/pt/search?q="&B129, "Link Web")) -> Link Web | G129: =$G$2 -> 0 | H129: =IF(ISBLANK(G129),"",E129-(E129*$G129)) -> 241.57
A131: RF 868 Gen2 | C131: Interface Dispositivos RF
C132: O repetidor sem fios recebe e retransmite sinais 433 MHz de sensores registados. • Seleção de funcionamento 433 MHz 63 bit ou 433 MHz LoNa • Sem antenas externas • Visualização de RSSI, Nível de ruído de fundo, Nível de bateria do sensor • Bateria de backup recarregável de iões de Lítio, incluída • Reporte de falha AC, bateria baixa, tamper, supervisão RF, empastelamento RF • 4 repetidores em cascata (modo inteligente) • 16 repetidores por sistema EN50131 Grau 2, INCERT Grau 2
B143: RF-9011-07-1 | C143: =_xlfn.XLOOKUP($B143,Tabela!A:A,Tabela!C:C,"não encontrado") -> Mature | D143: Repetidor 433Mhz LoNa / 433Mhz 63-bit EN50131 Grau 2, INCERT Grau 2 | E143: =_xlfn.XLOOKUP($B143,Tabela!$A:$A,Tabela!$D:$D,"não encontrado") -> 178.52 | F143: =IF(B143 =ISTEXT(qualquer), "", HYPERLINK("https://pt.firesecurityproducts.com/pt/search?q="&B143, "Link Web")) -> Link Web | G143: =$G$2 -> 0 | H143: =IF(ISBLANK(G143),"",E143-(E143*$G143)) -> 178.52

Sheet Sinalização
C1: Sinalização
G2: 0
C4: Status | E4: PVP | G4: Desconto | H4: Preço Liquido
A5: Série AS50x | C5: Sirene Exterior com 1 Flash
C6: Sirene autoalimentada p/exterior 114 dBA, freq. 0,5 - 3,0Khz • Temporização ajustável em 3, 5, 10, 20 minutos. • 1 Flash incorporado, com lente de cor • Bateria não incluída • 2 Speakers tipo Piezo • Caixa em policarbonato anti - corrosão, branco de 3mm. • Caixa Metálica p/Interior. (OPCIONAL) • 12VDC Baixo consumo 70 mA • Circuito temporizador/modulador impregnado de resina.
E15: PVP | G15: Desconto | H15: Preço Liquido
B16: AS507 | C16: =_xlfn.XLOOKUP($B16,Tabela!A:A,Tabela!C:C,"não encontrado") -> Mature | D16: Sirene autoalimentada p/exterior 114 dBA - 1 Flash Azul | E16: =_xlfn.XLOOKUP($B16,Tabela!$A:$A,Tabela!$D:$D,"não encontrado") -> 95.33 | F16: =IF(B16 =ISTEXT(qualquer), "", HYPERLINK("https://pt.firesecurityproducts.com/pt/search?q="&B16, "Link Web")) -> Link Web | G16: =$G$2 -> 0 | H16: =IF(ISBLANK(G16),"",E16-(E16*$G16)) -> 95.33
B17: AS505 | C17: =_xlfn.XLOOKUP($B17,Tabela!A:A,Tabela!C:C,"não encontrado") -> Mature | D17: Sirene autoalimentada p/exterior 114 dBA - 1 Flash Âmbar | E17: =_xlfn.XLOOKUP($B17,Tabela!$A:$A,Tabela!$D:$D,"não encontrado") -> 100.97 | F17: =IF(B17 =ISTEXT(qualquer), "", HYPERLINK("https://pt.firesecurityproducts.com/pt/search?q="&B17, "Link Web")) -> Link Web | G17: =$G$2 -> 0 | H17: =IF(ISBLANK(G17),"",E17-(E17*$G17)) -> 100.97
B18: AS506 | C18: =_xlfn.XLOOKUP($B18,Tabela!A:A,Tabela!C:C,"não encontrado") -> Mature | D18: Sirene autoalimentada p/exterior 114 dBA - 1 Flash Vermelho | E18: =_xlfn.XLOOKUP($B18,Tabela!$A:$A,Tabela!$D:$D,"não encontrado") -> 100.97 | F18: =IF(B18 =ISTEXT(qualquer), "", HYPERLINK("https://pt.firesecurityproducts.com/pt/search?q="&B18, "Link Web")) -> Link Web | G18: =$G$2 -> 0 | H18: 100.97
A20: Série AS52x | C20: Sirene Exterior com 2 Flashs
C21: Sirene auto - alimentada p/exterior 114 dBA, freq. 0,5 - 3,0Khz • Temporização ajustável em 3, 5, 10, 20 minutos. • 2 Flash incorporados, com lentes coloridas • Bateria não incluída • 2 Besouros tipo Piezo • Caixa em policarbonato anti - corrosão, branco de 3mm. • Caixa Metálica p/Interior. (OPCIONAL) • Montagem Vertical / Horizontal • 12VDC Baixo consumo 70 mA • Circuito temporizador/modulador impregnado de resina.
B32: AS525 | C32: =_xlfn.XLOOKUP($B32,Tabela!A:A,Tabela!C:C,"não encontrado") -> Sell-out | D32: Sirene autoalimentada p/exterior 114 dBA - 2 Flash Azuis | E32: =_xlfn.XLOOKUP($B32,Tabela!$A:$A,Tabela!$D:$D,"não encontrado") -> 107.05 | F32: =IF(B32 =ISTEXT(qualquer), "", HYPERLINK("https://pt.firesecurityproducts.com/pt/search?q="&B32, "Link Web")) -> Link Web | G32: =$G$2 -> 0 | H32: =IF(ISBLANK(G32),"",E32-(E32*$G32)) -> 107.05
B33: AS527 | C33: =_xlfn.XLOOKUP($B33,Tabela!A:A,Tabela!C:C,"não encontrado") -> Sell-out | D33: Sirene autoalimentada p/exterior 114 dBA - 2 Flash Âmbar | E33: =_xlfn.XLOOKUP($B33,Tabela!$A:$A,Tabela!$D:$D,"não encontrado") -> 111.39 | F33: =IF(B33 =ISTEXT(qualquer), "", HYPERLINK("https://pt.firesecurityproducts.com/pt/search?q="&B33, "Link Web")) -> Link Web | G33: =$G$2 -> 0 | H33: 111.39
A35: Série AS6xx | C35: Sirene Exterior - EN50131 Grau 3
C36: Sirene Exterior Autoalimentada EN50131 Grau 3 Class III • 120 dBA@ 1m • Circuito temporizador/modulador impregnado de resina • Temporização ajustável em 3, 5, 10, 20 minutos. • Flash incorporados, com lentes coloridas • Bateria não incluída • Speaker tipo Piezo • Caixa em policarbonato anti corrosão, branco de 3,5mm. • Caixa Metálica Interior com grelha anti afonia • 12VDC Baixo consumo • Circuito temporizador/modulador impregnado de resina • Formato A4 - 300 x 210 x 87 mm
B48: AS610 | C48: =_xlfn.XLOOKUP($B48,Tabela!A:A,Tabela!C:C,"não encontrado") -> Mature | D48: Sirene Autoalimentada em ABS, 120 dBA, EN50131 G3 - Lente ÂMBAR | E48: =_xlfn.XLOOKUP($B48,Tabela!$A:$A,Tabela!$D:$D,"não encontrado") -> 136.48 | F48: =IF(B48 =ISTEXT(qualquer), "", HYPERLINK("https://pt.firesecurityproducts.com/pt/search?q="&B48, "Link Web")) -> Link Web | G48: =$G$2 -> 0 | H48: =IF(ISBLANK(G48),"",E48-(E48*$G48)) -> 136.48
B49: AS619 | C49: =_xlfn.XLOOKUP($B49,Tabela!A:A,Tabela!C:C,"não encontrado") -> Mature | D49: Sirene autoalimentada em ABS, 120 dBA, EN50131 G3 - Lente Azul | E49: =_xlfn.XLOOKUP($B49,Tabela!$A:$A,Tabela!$D:$D,"não encontrado") -> 157.35 | F49: =IF(B49 =ISTEXT(qualquer), "", HYPERLINK("https://pt.firesecurityproducts.com/pt/search?q="&B49, "Link Web")) -> Link Web | G49: =$G$2 -> 0 | H49: 157.35
B50: AS630 | C50: =_xlfn.XLOOKUP($B50,Tabela!A:A,Tabela!C:C,"não encontrado") -> Mature | D50: Sirene autoalimentada Metálica, 120 dBA, EN50131 G3 - Lente Âmbar | E50: =_xlfn.XLOOKUP($B50,Tabela!$A:$A,Tabela!$D:$D,"não encontrado") -> 171.2 | F50: =IF(B50 =ISTEXT(qualquer), "", HYPERLINK("https://pt.firesecurityproducts.com/pt/search?q="&B50, "Link Web")) -> Link Web | G50: =$G$2 -> 0 | H50: 171.2
B52: Acessórios
B53: AB611 | C53: =_xlfn.XLOOKUP($B53,Tabela!A:A,Tabela!C:C,"não encontrado") -> Mature | D53: Lente ÂMBAR p/ Série AS610 | E53: =_xlfn.XLOOKUP($B53,Tabela!$A:$A,Tabela!$D:$D,"não encontrado") -> 18.43 | F53: =IF(B53 =ISTEXT(qualquer), "", HYPERLINK("https://pt.firesecurityproducts.com/pt/search?q="&B53, "Link Web")) -> Link Web | G53: =$G$2 -> 0 | H53: =IF(ISBLANK(G53),"",E53-(E53*$G53)) -> 18.43
B54: AB612 | C54: =_xlfn.XLOOKUP($B54,Tabela!A:A,Tabela!C:C,"não encontrado") -> Mature | D54: Lente AZUL p/ Série AS610 | E54: =_xlfn.XLOOKUP($B54,Tabela!$A:$A,Tabela!$D:$D,"não encontrado") -> 14.65 | F54: =IF(B54 =ISTEXT(qualquer), "", HYPERLINK("https://pt.firesecurityproducts.com/pt/search?q="&B54, "Link Web")) -> Link Web | G54: =$G$2 -> 0 | H54: 14.65
B55: AB630 | C55: =_xlfn.XLOOKUP($B55,Tabela!A:A,Tabela!C:C,"não encontrado") -> Mature | D55: Lente TRANSPARENTE p/ Série AS630 | E55: =_xlfn.XLOOKUP($B55,Tabela!$A:$A,Tabela!$D:$D,"não encontrado") -> 17 | F55: =IF(B55 =ISTEXT(qualquer), "", HYPERLINK("https://pt.firesecurityproducts.com/pt/search?q="&B55, "Link Web")) -> Link Web | G55: =$G$2 -> 0 | H55: 17
B56: AS600S19 | C56: =_xlfn.XLOOKUP($B56,Tabela!A:A,Tabela!C:C,"não encontrado") -> Mature | D56: Tampa Vermelha e lente laranja p/ Série AS610 | E56: =_xlfn.XLOOKUP($B56,Tabela!$A:$A,Tabela!$D:$D,"não encontrado") -> 63.64 | F56: =IF(B56 =ISTEXT(qualquer), "", HYPERLINK("https://pt.firesecurityproducts.com/pt/search?q="&B56, "Link Web")) -> Link Web | G56: =$G$2 -> 0 | H56: 63.64
A59: Série AS7xxG# | C59: Sirene Exterior - EN50131 Grau 3
C60: Sirene Exterior Autoalimentada Grau 3 • Proteção circuito bateria via fusível automático • Proteção avançada de tamper • Auto teste de integridade de bateria e do circuito de carga • Modo Técnico (inibição de som, para efeitos de instalação e manutenção) • 105 dB @ 1m • Fabricada em ABS Branco • Certificação EN50131 Grau 3 • Noma NFA2P Grau 3
B70: AS700G3 | C70: =_xlfn.XLOOKUP($B70,Tabela!A:A,Tabela!C:C,"não encontrado") -> Mature | D70: Sirene Autoalimentada em ABS, 105 dB , EN50131 G3 - Lente ÂMBAR Dimensões: 203 x 260 x 81mm | E70: =_xlfn.XLOOKUP($B70,Tabela!$A:$A,Tabela!$D:$D,"não encontrado") -> 159.83 | F70: =IF(B70 =ISTEXT(qualquer), "", HYPERLINK("https://pt.firesecurityproducts.com/pt/search?q="&B70, "Link Web")) -> Link Web | G70: =$G$2 -> 0 | H70: =IF(ISBLANK(G70),"",E70-(E70*$G70)) -> 159.83
A72: Série AS27x | C72: Sirene Interior
C73: Sirene Interior EN50131 Grau 2 • 110 dBA@ 1m • 1 toque - 2000-2600Hz • Proteção Tamper abertura e remoção. • 12 VDC - 120mA • Versão autoalimentada (opção) • Proteção Tamper abertura e remoção. • Versão com flash incorporado (opção) • Caixa 155 x 114 x 44mm em ABS Branco
B83: Sirene
B84: AS270 | C84: =_xlfn.XLOOKUP($B84,Tabela!A:A,Tabela!C:C,"não encontrado") -> Mature | D84: Sirene interior – EN50131 Classe II Grau 2 | E84: =_xlfn.XLOOKUP($B84,Tabela!$A:$A,Tabela!$D:$D,"não encontrado") -> 30.17 | F84: =IF(B84 =ISTEXT(qualquer), "", HYPERLINK("https://pt.firesecurityproducts.com/pt/search?q="&B84, "Link Web")) -> Link Web | G84: =$G$2 -> 0 | H84: =IF(ISBLANK(G84),"",E84-(E84*$G84)) -> 30.17
B85: AS271 | C85: =_xlfn.XLOOKUP($B85,Tabela!A:A,Tabela!C:C,"não encontrado") -> Mature | D85: Sirene interior com Flash – EN50131 Classe II Grau 2 | E85: =_xlfn.XLOOKUP($B85,Tabela!$A:$A,Tabela!$D:$D,"não encontrado") -> 49.54 | F85: =IF(B85 =ISTEXT(qualquer), "", HYPERLINK("https://pt.firesecurityproducts.com/pt/search?q="&B85, "Link Web")) -> Link Web | G85: =$G$2 -> 0 | H85: 49.54
B87: Sirene Autoalimentada
B88: AS272 | C88: =_xlfn.XLOOKUP($B88,Tabela!A:A,Tabela!C:C,"não encontrado") -> Mature | D88: Sirene interior autoalimentada – EN50131 Classe II Grau 2 | E88: =_xlfn.XLOOKUP($B88,Tabela!$A:$A,Tabela!$D:$D,"não encontrado") -> 45.02 | F88: =IF(B88 =ISTEXT(qualquer), "", HYPERLINK("https://pt.firesecurityproducts.com/pt/search?q="&B88, "Link Web")) -> Link Web | G88: =$G$2 -> 0 | H88: =IF(ISBLANK(G88),"",E88-(E88*$G88)) -> 45.02
B89: AS273 | C89: =_xlfn.XLOOKUP($B89,Tabela!A:A,Tabela!C:C,"não encontrado") -> Mature | D89: Sirene interior autoalimentada com Flash – EN50131 Classe II Grau 2 | E89: =_xlfn.XLOOKUP($B89,Tabela!$A:$A,Tabela!$D:$D,"não encontrado") -> 56.22 | F89: =IF(B89 =ISTEXT(qualquer), "", HYPERLINK("https://pt.firesecurityproducts.com/pt/search?q="&B89, "Link Web")) -> Link Web | G89: =$G$2 -> 0 | H89: =IF(ISBLANK(G89),"",E89-(E89*$G89)) -> 56.22
A91: Série AS28x | C91: Sirene Interior
C92: Sirene Interior EN50131 Grau 3 com certificação NFA2P • 105 dBA@ 1m • 1 toque - 2000-2600Hz • Proteção Tamper abertura e remoção. • 9-15 VDC - 100mA • Caixa 187 x 167 x 44mm • Caixa aço pintado
B100: AS280G3 | C100: =_xlfn.XLOOKUP($B100,Tabela!A:A,Tabela!C:C,"não encontrado") -> Mature | D100: Sirene interior - caixa aço branca EN50131 Classe II Grau 3 | E100: =_xlfn.XLOOKUP($B100,Tabela!$A:$A,Tabela!$D:$D,"não encontrado") -> 134.08 | F100: =IF(B100 =ISTEXT(qualquer), "", HYPERLINK("https://pt.firesecurityproducts.com/pt/search?q="&B100, "Link Web")) -> Link Web | G100: =$G$2 -> 0 | H100: =IF(ISBLANK(G100),"",E100-(E100*$G100)) -> 134.08
A102: Série AS21x | C102: Sirene Interior
C103: Sirene Interior EN50131 Grau 3 • 110 dBA@ 1m • 1 toque - 2000-2600Hz • Proteção Tamper abertura e remoção. • 12 VDC - 120mA • Caixa 155 x 114 x 44mm em ABS Branco
B110: AS210N | C110: =_xlfn.XLOOKUP($B110,Tabela!A:A,Tabela!C:C,"não encontrado") -> Mature | D110: Sirene interior - caixa ABS branca EN50131 Classe II Grau 3 | E110: =_xlfn.XLOOKUP($B110,Tabela!$A:$A,Tabela!$D:$D,"não encontrado") -> 20.67 | F110: =IF(B110 =ISTEXT(qualquer), "", HYPERLINK("https://pt.firesecurityproducts.com/pt/search?q="&B110, "Link Web")) -> Link Web | G110: =$G$2 -> 0 | H110: =IF(ISBLANK(G110),"",E110-(E110*$G110)) -> 20.67
A112: Série AB30x | C112: Sinalização Luminosa
E113: PVP | G113: Desconto | H113: Preço Liquido
B114: AB300 | C114: =_xlfn.XLOOKUP($B114,Tabela!A:A,Tabela!C:C,"não encontrado") -> Mature | D114: Lâmpada flash Xénon, Transparente 10-15 VDC - 115 mA / 1 Watt - IP 65 freq. flash +/-60/min. | E114: =_xlfn.XLOOKUP($B114,Tabela!$A:$A,Tabela!$D:$D,"não encontrado") -> 37.47 | F114: =IF(B114 =ISTEXT(qualquer), "", HYPERLINK("https://pt.firesecurityproducts.com/pt/search?q="&B114, "Link Web")) -> Link Web | G114: =$G$2 -> 0 | H114: =IF(ISBLANK(G114),"",E114-(E114*$G114)) -> 37.47
B115: AB301 | C115: =_xlfn.XLOOKUP($B115,Tabela!A:A,Tabela!C:C,"não encontrado") -> Mature | D115: Lâmpada flash Xénon, Âmbar 10-15 VDC - 115 mA / 1 Watt - IP 65 freq. flash +/-60/min. | E115: =_xlfn.XLOOKUP($B115,Tabela!$A:$A,Tabela!$D:$D,"não encontrado") -> 37.47 | F115: =IF(B115 =ISTEXT(qualquer), "", HYPERLINK("https://pt.firesecurityproducts.com/pt/search?q="&B115, "Link Web")) -> Link Web | G115: =$G$2 -> 0 | H115: 37.47
B116: AB302 | C116: =_xlfn.XLOOKUP($B116,Tabela!A:A,Tabela!C:C,"não encontrado") -> Mature | D116: Lâmpada flash Xénon, Azul 10-15 VDC - 115 mA / 1 Watt - IP 65 freq. flash +/-60/min. | E116: =_xlfn.XLOOKUP($B116,Tabela!$A:$A,Tabela!$D:$D,"não encontrado") -> 37.47 | F116: =IF(B116 =ISTEXT(qualquer), "", HYPERLINK("https://pt.firesecurityproducts.com/pt/search?q="&B116, "Link Web")) -> Link Web | G116: =$G$2 -> 0 | H116: 37.47
B117: AB303 | C117: =_xlfn.XLOOKUP($B117,Tabela!A:A,Tabela!C:C,"não encontrado") -> Mature | D117: Lâmpada flash Xénon, Vermelho 10-15 VDC - 115 mA / 1 Watt - IP 65 freq. flash +/-60/min. | E117: =_xlfn.XLOOKUP($B117,Tabela!$A:$A,Tabela!$D:$D,"não encontrado") -> 37.47 | F117: =IF(B117 =ISTEXT(qualquer), "", HYPERLINK("https://pt.firesecurityproducts.com/pt/search?q="&B117, "Link Web")) -> Link Web | G117: =$G$2 -> 0 | H117: 37.47

Sheet Integração
C1: Integração
C4: Status | E4: PVP | G4: Desconto | H4: Preço Liquido
A5: ATS86xx | C5: Software Gráfico de Gestão Integrada
C6: Software Gráfico de gestão integrada de equipamentos KGS • Destinado a utilizadores finais • Vários Idiomas - Selecionável por cada operador • Um só GUI para todos os dispositivos • Controlo e Gestão de Múltiplas Instalações • Sem Limite de Clientes • Gestão de pessoas, direitos de acesso e credências • Mapas e Gráficos Dinâmicos
E15: PVP | G15: Desconto | H15: Preço Liquido
B16: ATS8600 | C16: =_xlfn.XLOOKUP($B16,Tabela!A:A,Tabela!C:C,"não encontrado") -> Mature | D16: Advisor Management Starter 2 drivers de cada (2 xATS,/ ATSa; 2 x Vídeo; 2 SADI) | E16: =_xlfn.XLOOKUP($B16,Tabela!$A:$A,Tabela!$D:$D,"não encontrado") -> 1690.49 | F16: =IF(B16 =ISTEXT(qualquer), "", HYPERLINK("https://pt.firesecurityproducts.com/pt/search?q="&B16, "Link Web")) -> Link Web | G16: =$G$2 -> 0 | H16: =IF(ISBLANK(G16),"",E16-(E16*$G16)) -> 1690.49
B17: ATS8610 | C17: =_xlfn.XLOOKUP($B17,Tabela!A:A,Tabela!C:C,"não encontrado") -> Mature | D17: Advisor Management Business. Inclui Patrol tour e gestão de visitas 25 drivers por local (25 xATS / ATSa, 25 x Vídeo, 25 x SADI) | E17: =_xlfn.XLOOKUP($B17,Tabela!$A:$A,Tabela!$D:$D,"não encontrado") -> 7203 | F17: =IF(B17 =ISTEXT(qualquer), "", HYPERLINK("https://pt.firesecurityproducts.com/pt/search?q="&B17, "Link Web")) -> Link Web | G17: =$G$2 -> 0 | H17: =IF(ISBLANK(G17),"",E17-(E17*$G17)) -> 7203
B19: Upgrade
B20: ATS8605 | C20: =_xlfn.XLOOKUP($B20,Tabela!A:A,Tabela!C:C,"não encontrado") -> Mature | D20: Upgrade para ATS8600, permite adicionar mais que 2 drivers de cada | E20: =_xlfn.XLOOKUP($B20,Tabela!$A:$A,Tabela!$D:$D,"não encontrado") -> 556.15 | F20: =IF(B20 =ISTEXT(qualquer), "", HYPERLINK("https://pt.firesecurityproducts.com/pt/search?q="&B20, "Link Web")) -> Link Web | G20: =$G$2 -> 0 | H20: =IF(ISBLANK(G20),"",E20-(E20*$G20)) -> 556.15
B21: ATS8611 | C21: =_xlfn.XLOOKUP($B21,Tabela!A:A,Tabela!C:C,"não encontrado") -> Mature | D21: Upgrade de ATS8600 para ATS8610 (De versão Starter para Business) | E21: =_xlfn.XLOOKUP($B21,Tabela!$A:$A,Tabela!$D:$D,"não encontrado") -> 5370.49 | F21: =IF(B21 =ISTEXT(qualquer), "", HYPERLINK("https://pt.firesecurityproducts.com/pt/search?q="&B21, "Link Web")) -> Link Web | G21: =$G$2 -> 0 | H21: 5370.49
B22: ATS8640 | C22: =_xlfn.XLOOKUP($B22,Tabela!A:A,Tabela!C:C,"não encontrado") -> Mature | D22: Upgrade para ATS8610, permite adicionar mais que 25 drivers de cada | E22: =_xlfn.XLOOKUP($B22,Tabela!$A:$A,Tabela!$D:$D,"não encontrado") -> 556.15 | F22: =IF(B22 =ISTEXT(qualquer), "", HYPERLINK("https://pt.firesecurityproducts.com/pt/search?q="&B22, "Link Web")) -> Link Web | G22: =$G$2 -> 0 | H22: 556.15
B24: Drivers Adicionais
B25: ATS8641 | C25: =_xlfn.XLOOKUP($B25,Tabela!A:A,Tabela!C:C,"não encontrado") -> Mature | D25: Driver adicional - ATS Advanced | E25: =_xlfn.XLOOKUP($B25,Tabela!$A:$A,Tabela!$D:$D,"não encontrado") -> 685.05 | F25: =IF(B25 =ISTEXT(qualquer), "", HYPERLINK("https://pt.firesecurityproducts.com/pt/search?q="&B25, "Link Web")) -> Link Web | G25: =$G$2 -> 0 | H25: =IF(ISBLANK(G25),"",E25-(E25*$G25)) -> 685.05
B26: ATS8651 | C26: =_xlfn.XLOOKUP($B26,Tabela!A:A,Tabela!C:C,"não encontrado") -> Mature | D26: Driver adicional - ATS Advanced | E26: =_xlfn.XLOOKUP($B26,Tabela!$A:$A,Tabela!$D:$D,"não encontrado") -> 685.05 | F26: =IF(B26 =ISTEXT(qualquer), "", HYPERLINK("https://pt.firesecurityproducts.com/pt/search?q="&B26, "Link Web")) -> Link Web | G26: 0 | H26: =IF(ISBLANK(G26),"",E26-(E26*$G26)) -> 685.05
B27: ATS8643 | C27: =_xlfn.XLOOKUP($B27,Tabela!A:A,Tabela!C:C,"não encontrado") -> Mature | D27: Driver adicional - Vídeo, TruVision | E27: =_xlfn.XLOOKUP($B27,Tabela!$A:$A,Tabela!$D:$D,"não encontrado") -> 713.59 | F27: =IF(B27 =ISTEXT(qualquer), "", HYPERLINK("https://pt.firesecurityproducts.com/pt/search?q="&B27, "Link Web")) -> Link Web | G27: 0 | H27: 713.59
B28: ATS8644 | C28: =_xlfn.XLOOKUP($B28,Tabela!A:A,Tabela!C:C,"não encontrado") -> Mature | D28: Driver adicional - FP1200/2000 | E28: =_xlfn.XLOOKUP($B28,Tabela!$A:$A,Tabela!$D:$D,"não encontrado") -> 713.59 | F28: =IF(B28 =ISTEXT(qualquer), "", HYPERLINK("https://pt.firesecurityproducts.com/pt/search?q="&B28, "Link Web")) -> Link Web | G28: 0 | H28: 713.59
B29: ATS8645 | C29: =_xlfn.XLOOKUP($B29,Tabela!A:A,Tabela!C:C,"não encontrado") -> Mature | D29: Driver adicional - 2X-AFx | E29: =_xlfn.XLOOKUP($B29,Tabela!$A:$A,Tabela!$D:$D,"não encontrado") -> 713.59 | F29: =IF(B29 =ISTEXT(qualquer), "", HYPERLINK("https://pt.firesecurityproducts.com/pt/search?q="&B29, "Link Web")) -> Link Web | G29: 0 | H29: 713.59
B30: ATS8646 | C30: =_xlfn.XLOOKUP($B30,Tabela!A:A,Tabela!C:C,"não encontrado") -> NPI | D30: Driver adicional - ZP3 | E30: =_xlfn.XLOOKUP($B30,Tabela!$A:$A,Tabela!$D:$D,"não encontrado") -> 706.53 | F30: =IF(B30 =ISTEXT(qualquer), "", HYPERLINK("https://pt.firesecurityproducts.com/pt/search?q="&B30, "Link Web")) -> Link Web | G30: 0 | H30: 706.53
B31: ATS8647 | C31: =_xlfn.XLOOKUP($B31,Tabela!A:A,Tabela!C:C,"não encontrado") -> Mature | D31: Driver adicional - FlexZone (deteção perimétrica) | E31: =_xlfn.XLOOKUP($B31,Tabela!$A:$A,Tabela!$D:$D,"não encontrado") -> 811.11 | F31: =IF(B31 =ISTEXT(qualquer), "", HYPERLINK("https://pt.firesecurityproducts.com/pt/search?q="&B31, "Link Web")) -> Link Web | G31: 0 | H31: 811.11
B32: ATS8648 | C32: =_xlfn.XLOOKUP($B32,Tabela!A:A,Tabela!C:C,"não encontrado") -> Mature | D32: Driver adicional - Verex (um por cada: central, controlador, expansor) | E32: =_xlfn.XLOOKUP($B32,Tabela!$A:$A,Tabela!$D:$D,"não encontrado") -> 117.31 | F32: =IF(B32 =ISTEXT(qualquer), "", HYPERLINK("https://pt.firesecurityproducts.com/pt/search?q="&B32, "Link Web")) -> Link Web | G32: 0 | H32: 117.31
B33: ATS8649 | C33: =_xlfn.XLOOKUP($B33,Tabela!A:A,Tabela!C:C,"não encontrado") -> NPI | D33: Driver adicional - Modulaser | E33: =_xlfn.XLOOKUP($B33,Tabela!$A:$A,Tabela!$D:$D,"não encontrado") -> 646.88 | F33: =IF(B33 =ISTEXT(qualquer), "", HYPERLINK("https://pt.firesecurityproducts.com/pt/search?q="&B33, "Link Web")) -> Link Web | G33: 0 | H33: 646.88
B34: ATS8655 | C34: =_xlfn.XLOOKUP($B34,Tabela!A:A,Tabela!C:C,"não encontrado") -> Mature | D34: Driver adicional - ACCIO | E34: =_xlfn.XLOOKUP($B34,Tabela!$A:$A,Tabela!$D:$D,"não encontrado") -> 923.96 | F34: =IF(B34 =ISTEXT(qualquer), "", HYPERLINK("https://pt.firesecurityproducts.com/pt/search?q="&B34, "Link Web")) -> Link Web | G34: 0 | H34: 923.96
B35: ATS8656 | C35: =_xlfn.XLOOKUP($B35,Tabela!A:A,Tabela!C:C,"não encontrado") -> Mature | D35: Driver adicional - Everon | E35: =_xlfn.XLOOKUP($B35,Tabela!$A:$A,Tabela!$D:$D,"não encontrado") -> 924.26 | F35: =IF(B35 =ISTEXT(qualquer), "", HYPERLINK("https://pt.firesecurityproducts.com/pt/search?q="&B35, "Link Web")) -> Link Web | G35: 0 | H35: 924.26
B36: ATS8657 | C36: =_xlfn.XLOOKUP($B36,Tabela!A:A,Tabela!C:C,"não encontrado") -> NPI | D36: Driver adicional - Axon2600-MM | E36: =_xlfn.XLOOKUP($B36,Tabela!$A:$A,Tabela!$D:$D,"não encontrado") -> 657.61 | F36: =IF(B36 =ISTEXT(qualquer), "", HYPERLINK("https://pt.firesecurityproducts.com/pt/search?q="&B36, "Link Web")) -> Link Web | G36: 0 | H36: =IF(ISBLANK(G36),"",E36-(E36*$G36)) -> 657.61
B38: Update de Software
B39: ATS8690 | C39: =_xlfn.XLOOKUP($B39,Tabela!A:A,Tabela!C:C,"não encontrado") -> Mature | D39: Software de gestão integrada Advisor Management Update Anual para Starter Edition | E39: =_xlfn.XLOOKUP($B39,Tabela!$A:$A,Tabela!$D:$D,"não encontrado") -> 1152.86 | F39: =IF(B39 =ISTEXT(qualquer), "", HYPERLINK("https://pt.firesecurityproducts.com/pt/search?q="&B39, "Link Web")) -> Link Web | G39: =$G$2 -> 0 | H39: =IF(ISBLANK(G39),"",E39-(E39*$G39)) -> 1152.86
B40: ATS8691 | C40: =_xlfn.XLOOKUP($B40,Tabela!A:A,Tabela!C:C,"não encontrado") -> Mature | D40: Software de gestão integrada Advisor Management Update Anual para Business Edition | E40: =_xlfn.XLOOKUP($B40,Tabela!$A:$A,Tabela!$D:$D,"não encontrado") -> 4913.64 | F40: =IF(B40 =ISTEXT(qualquer), "", HYPERLINK("https://pt.firesecurityproducts.com/pt/search?q="&B40, "Link Web")) -> Link Web | G40: =$G$2 -> 0 | H40: 4913.64
B41: ATS8661 | C41: =_xlfn.XLOOKUP($B41,Tabela!A:A,Tabela!C:C,"não encontrado") -> Mature | D41: Driver Active Directory (Basic) | E41: =_xlfn.XLOOKUP($B41,Tabela!$A:$A,Tabela!$D:$D,"não encontrado") -> 94.63 | F41: =IF(B41 =ISTEXT(qualquer), "", HYPERLINK("https://pt.firesecurityproducts.com/pt/search?q="&B41, "Link Web")) -> Link Web | G41: =$G$2 -> 0 | H41: 94.63
B43: Conversão para C4
B44: ATS8681-STD | C44: =_xlfn.XLOOKUP($B44,Tabela!A:A,Tabela!C:C,"não encontrado") -> Mature | D44: Conversão ATS8610/8640 para C4 Standard | E44: =_xlfn.XLOOKUP($B44,Tabela!$A:$A,Tabela!$D:$D,"não encontrado") -> 5978.61 | F44: =IF(B44 =ISTEXT(qualquer), "", HYPERLINK("https://pt.firesecurityproducts.com/pt/search?q="&B44, "Link Web")) -> Link Web | G44: =$G$2 -> 0 | H44: =IF(ISBLANK(G44),"",E44-(E44*$G44)) -> 5978.61
A46: C4 | C46: Software Gráfico de Gestão Integrada
C47: Software Gráfico de gestão integrada de equipamentos multimarca • Destinado a utilizadores finais • Vários Idiomas - Selecionável por cada operador • Um só GUI para todos os dispositivos • Controlo e Gestão de Múltiplas Instalações • Sem Limete de Clientes • Gestão de pessoas, direitos de acesso e credências • Mapas e Gráficos Dinâmicos
E56: PVP | G56: Desconto | H56: Preço Liquido
B57: C4 Standard | C57: =_xlfn.XLOOKUP($B57,Tabela!A:A,Tabela!C:C,"não encontrado") -> NPI | D57: C4 Standard Edition (equivalente ao ATS8600, mas multimarcas) | E57: =_xlfn.XLOOKUP($B57,Tabela!$A:$A,Tabela!$D:$D,"não encontrado") -> 5508.75 | F57: =IF(B57 =ISTEXT(qualquer), "", HYPERLINK("https://pt.firesecurityproducts.com/pt/search?q="&B57, "Link Web")) -> Link Web | G57: =$G$2 -> 0 | H57: =IF(ISBLANK(G57),"",E57-(E57*$G57)) -> 5508.75
B58: C4 Advanced | C58: =_xlfn.XLOOKUP($B58,Tabela!A:A,Tabela!C:C,"não encontrado") -> NPI | D58: C4 Advanced Edition (equivalente ao ATS8610, mas multimarcas) | E58: =_xlfn.XLOOKUP($B58,Tabela!$A:$A,Tabela!$D:$D,"não encontrado") -> 20933.28 | F58: =IF(B58 =ISTEXT(qualquer), "", HYPERLINK("https://pt.firesecurityproducts.com/pt/search?q="&B58, "Link Web")) -> Link Web | G58: =$G$2 -> 0 | H58: 20933.28
B60: Upgrade
B61: C4STDADV | C61: =_xlfn.XLOOKUP($B61,Tabela!A:A,Tabela!C:C,"não encontrado") -> NPI | D61: Upgrade C4 Standard Edition para Advanced Edition | E61: =_xlfn.XLOOKUP($B61,Tabela!$A:$A,Tabela!$D:$D,"não encontrado") -> 15670.67 | F61: =IF(B61 =ISTEXT(qualquer), "", HYPERLINK("https://pt.firesecurityproducts.com/pt/search?q="&B61, "Link Web")) -> Link Web | G61: =$G$2 -> 0 | H61: =IF(ISBLANK(G61),"",E61-(E61*$G61)) -> 15670.67
B62: ATS8611 | C62: =_xlfn.XLOOKUP($B62,Tabela!A:A,Tabela!C:C,"não encontrado") -> Mature | D62: Upgrade de ATS8600 para ATS8610 (De versão Starter para Business) | E62: =_xlfn.XLOOKUP($B62,Tabela!$A:$A,Tabela!$D:$D,"não encontrado") -> 5370.49 | F62: =IF(B62 =ISTEXT(qualquer), "", HYPERLINK("https://pt.firesecurityproducts.com/pt/search?q="&B62, "Link Web")) -> Link Web | G62: =$G$2 -> 0 | H62: 5370.49
B63: ATS8640 | C63: =_xlfn.XLOOKUP($B63,Tabela!A:A,Tabela!C:C,"não encontrado") -> Mature | D63: Upgrade para ATS8610, permite adicionar mais que 25 drivers de cada | E63: =_xlfn.XLOOKUP($B63,Tabela!$A:$A,Tabela!$D:$D,"não encontrado") -> 556.15 | F63: =IF(B63 =ISTEXT(qualquer), "", HYPERLINK("https://pt.firesecurityproducts.com/pt/search?q="&B63, "Link Web")) -> Link Web | G63: =$G$2 -> 0 | H63: 556.15
A65: Drivers C4 | C65: Drivers KGS para Software C4
C66: Os driver são divididos em categorias, e a quantidade de drivers depende do modelo de sistema. Por favor, contate os nosso serviços para ajuda na quantificação.
B71: Categoria Fogo
B72: C4DRV-2010-2 | C72: =_xlfn.XLOOKUP($B72,Tabela!A:A,Tabela!C:C,"não encontrado") -> NPI | D72: C4 Driver - UTC-2010-2 | E72: =_xlfn.XLOOKUP($B72,Tabela!$A:$A,Tabela!$D:$D,"não encontrado") -> 673.47 | F72: =IF(B72 =ISTEXT(qualquer), "", HYPERLINK("https://pt.firesecurityproducts.com/pt/search?q="&B72, "Link Web")) -> Link Web | G72: =$G$2 -> 0 | H72: =IF(ISBLANK(G72),"",E72-(E72*$G72)) -> 673.47
B73: C4DRV-FP2000 | C73: =_xlfn.XLOOKUP($B73,Tabela!A:A,Tabela!C:C,"não encontrado") -> NPI | D73: C4 Driver - FP1200/2000 | E73: =_xlfn.XLOOKUP($B73,Tabela!$A:$A,Tabela!$D:$D,"não encontrado") -> 1346.91 | F73: =IF(B73 =ISTEXT(qualquer), "", HYPERLINK("https://pt.firesecurityproducts.com/pt/search?q="&B73, "Link Web")) -> Link Web | G73: =$G$2 -> 0 | H73: 1346.91
B74: ATS8640 | C74: =_xlfn.XLOOKUP($B74,Tabela!A:A,Tabela!C:C,"não encontrado") -> Mature | D74: Upgrade para ATS8610, permite adicionar mais que 25 drivers de cada | E74: =_xlfn.XLOOKUP($B74,Tabela!$A:$A,Tabela!$D:$D,"não encontrado") -> 556.15 | F74: =IF(B74 =ISTEXT(qualquer), "", HYPERLINK("https://pt.firesecurityproducts.com/pt/search?q="&B74, "Link Web")) -> Link Web | G74: =$G$2 -> 0 | H74: 556.15
B76: Categoria Intrusão
B77: C4DRV-ATS ADV UTC | C77: =_xlfn.XLOOKUP($B77,Tabela!A:A,Tabela!C:C,"não encontrado") -> NPI | D77: C4 Driver - Categoria -- UTC-Adv Advanced | E77: =_xlfn.XLOOKUP($B77,Tabela!$A:$A,Tabela!$D:$D,"não encontrado") -> 673.47 | F77: =IF(B77 =ISTEXT(qualquer), "", HYPERLINK("https://pt.firesecurityproducts.com/pt/search?q="&B77, "Link Web")) -> Link Web | G77: =$G$2 -> 0 | H77: =IF(ISBLANK(G77),"",E77-(E77*$G77)) -> 673.47
B78: C4DRV-MASTER GAMA | C78: =_xlfn.XLOOKUP($B78,Tabela!A:A,Tabela!C:C,"não encontrado") -> NPI | D78: C4 Driver - Categoria - Gamanet Adv MASTER | E78: =_xlfn.XLOOKUP($B78,Tabela!$A:$A,Tabela!$D:$D,"não encontrado") -> 1346.91 | F78: =IF(B78 =ISTEXT(qualquer), "", HYPERLINK("https://pt.firesecurityproducts.com/pt/search?q="&B78, "Link Web")) -> Link Web | G78: =$G$2 -> 0 | H78: 1346.91
B79: C4DRV-MASTER UTC | C79: =_xlfn.XLOOKUP($B79,Tabela!A:A,Tabela!C:C,"não encontrado") -> NPI | D79: C4 Driver - Categoria - UTC-Adv MASTER | E79: =_xlfn.XLOOKUP($B79,Tabela!$A:$A,Tabela!$D:$D,"não encontrado") -> 890.3 | F79: =IF(B79 =ISTEXT(qualquer), "", HYPERLINK("https://pt.firesecurityproducts.com/pt/search?q="&B79, "Link Web")) -> Link Web | G79: =$G$2 -> 0 | H79: 890.3
B80: C4DRV-GUARDALLPX | C80: =_xlfn.XLOOKUP($B80,Tabela!A:A,Tabela!C:C,"não encontrado") -> NPI | D80: C4 Driver - Categoria - Guardall PX | E80: =_xlfn.XLOOKUP($B80,Tabela!$A:$A,Tabela!$D:$D,"não encontrado") -> 743.84 | F80: =IF(B80 =ISTEXT(qualquer), "", HYPERLINK("https://pt.firesecurityproducts.com/pt/search?q="&B80, "Link Web")) -> Link Web | G80: =$G$2 -> 0 | H80: 743.84
B81: C4DRV-VEREX | C81: =_xlfn.XLOOKUP($B81,Tabela!A:A,Tabela!C:C,"não encontrado") -> NPI | D81: C4 Driver - Categoria - Verex | E81: =_xlfn.XLOOKUP($B81,Tabela!$A:$A,Tabela!$D:$D,"não encontrado") -> 81.76 | F81: =IF(B81 =ISTEXT(qualquer), "", HYPERLINK("https://pt.firesecurityproducts.com/pt/search?q="&B81, "Link Web")) -> Link Web | G81: =$G$2 -> 0 | H81: 81.76
B83: Categoria CCTV
B84: C4DRV-DVMRe | C84: =_xlfn.XLOOKUP($B84,Tabela!A:A,Tabela!C:C,"não encontrado") -> NPI | D84: C4 Driver - Categoria - DVMRe | E84: =_xlfn.XLOOKUP($B84,Tabela!$A:$A,Tabela!$D:$D,"não encontrado") -> 856.33 | F84: =IF(B84 =ISTEXT(qualquer), "", HYPERLINK("https://pt.firesecurityproducts.com/pt/search?q="&B84, "Link Web")) -> Link Web | G84: =$G$2 -> 0 | H84: =IF(ISBLANK(G84),"",E84-(E84*$G84)) -> 856.33
B85: C4DRV-TRUVISION | C85: =_xlfn.XLOOKUP($B85,Tabela!A:A,Tabela!C:C,"não encontrado") -> NPI | D85: C4 Driver - Categoria -TruVision | E85: =_xlfn.XLOOKUP($B85,Tabela!$A:$A,Tabela!$D:$D,"não encontrado") -> 673.47 | F85: =IF(B85 =ISTEXT(qualquer), "", HYPERLINK("https://pt.firesecurityproducts.com/pt/search?q="&B85, "Link Web")) -> Link Web | G85: =$G$2 -> 0 | H85: 673.47
A88: Drivers C4 | C88: Drivers Multimarcas para Software C4
C89: Os driver são divididos em categorias, e a quantidade de drivers depende do modelo de sistema. Por favor, contate os nosso serviços para ajuda na quantificação.
B94: Categoria Fogo | E94: PVP | G94: Desconto | H94: Preço Liquido
B95: C4DRV-FIRE-LARGE | C95: =_xlfn.XLOOKUP($B95,Tabela!A:A,Tabela!C:C,"não encontrado") -> NPI | D95: C4 Driver - Categoria - Grande Sistema de Incêndio | E95: =_xlfn.XLOOKUP($B95,Tabela!$A:$A,Tabela!$D:$D,"não encontrado") -> 1459.15 | G95: =$G$2 -> 0 | H95: =IF(ISBLANK(G95),"",E95-(E95*$G95)) -> 1459.15
B96: C4DRV-SCHRACK | C96: =_xlfn.XLOOKUP($B96,Tabela!A:A,Tabela!C:C,"não encontrado") -> NPI | D96: C4 Driver - Categoria - Painéis de Incêndio Schrack | E96: =_xlfn.XLOOKUP($B96,Tabela!$A:$A,Tabela!$D:$D,"não encontrado") -> 3.71 | G96: =$G$2 -> 0 | H96: 3.71
B98: Categoria Intrusão
B99: C4DRV-INTR-LARGE | C99: =_xlfn.XLOOKUP($B99,Tabela!A:A,Tabela!C:C,"não encontrado") -> NPI | D99: C4 Driver - Categoria - Grande Sistema de Intrusão | E99: =_xlfn.XLOOKUP($B99,Tabela!$A:$A,Tabela!$D:$D,"não encontrado") -> 1525.49 | G99: =$G$2 -> 0 | H99: =IF(ISBLANK(G99),"",E99-(E99*$G99)) -> 1525.49
B100: C4DRV-INTR-SMALL | C100: =_xlfn.XLOOKUP($B100,Tabela!A:A,Tabela!C:C,"não encontrado") -> NPI | D100: C4 Driver - Categoria - Pequeno Sistema de Intrusão | E100: =_xlfn.XLOOKUP($B100,Tabela!$A:$A,Tabela!$D:$D,"não encontrado") -> 473.74 | G100: =$G$2 -> 0 | H100: 473.74
B101: C4DRV-PERIMETER | C101: =_xlfn.XLOOKUP($B101,Tabela!A:A,Tabela!C:C,"não encontrado") -> NPI | D101: C4 Driver - Categoria - Perímetro | E101: =_xlfn.XLOOKUP($B101,Tabela!$A:$A,Tabela!$D:$D,"não encontrado") -> 1102.12 | G101: =$G$2 -> 0 | H101: 1102.12
B103: Categoria CCTV
B104: C4DRV-VIDEO MATRIX | C104: =_xlfn.XLOOKUP($B104,Tabela!A:A,Tabela!C:C,"não encontrado") -> NPI | D104: C4 Driver - Categoria - Sistemas de Matriz de Vídeo | E104: =_xlfn.XLOOKUP($B104,Tabela!$A:$A,Tabela!$D:$D,"não encontrado") -> 815.02 | G104: =$G$2 -> 0 | H104: =IF(ISBLANK(G104),"",E104-(E104*$G104)) -> 815.02
B105: C4DRV-VIDEO RECORDER | C105: =_xlfn.XLOOKUP($B105,Tabela!A:A,Tabela!C:C,"não encontrado") -> NPI | D105: C4 Driver - Categoria Gravadores Vídeo | E105: =_xlfn.XLOOKUP($B105,Tabela!$A:$A,Tabela!$D:$D,"não encontrado") -> 788.24 | G105: =$G$2 -> 0 | H105: 788.24
B106: C4DRV-CCTV-IP | C106: =_xlfn.XLOOKUP($B106,Tabela!A:A,Tabela!C:C,"não encontrado") -> NPI | D106: C4 Driver - Categoria - Sistema Gestão Vídeo | E106: =_xlfn.XLOOKUP($B106,Tabela!$A:$A,Tabela!$D:$D,"não encontrado") -> 119.45 | G106: =$G$2 -> 0 | H106: 119.45
B108: Categoria Controlo de Acessos
B109: C4DRV-ACC-LARGE | C109: =_xlfn.XLOOKUP($B109,Tabela!A:A,Tabela!C:C,"não encontrado") -> NPI | D109: C4 Driver - Categoria - Grande Sistema de Controlo de Acesso | E109: =_xlfn.XLOOKUP($B109,Tabela!$A:$A,Tabela!$D:$D,"não encontrado") -> 1525.49 | G109: =$G$2 -> 0 | H109: =IF(ISBLANK(G109),"",E109-(E109*$G109)) -> 1525.49
B110: C4DRV-ACC-SMALL | C110: =_xlfn.XLOOKUP($B110,Tabela!A:A,Tabela!C:C,"não encontrado") -> NPI | D110: C4 Driver - Categoria - Pequeno Sistema de Controlo de Acessos | E110: =_xlfn.XLOOKUP($B110,Tabela!$A:$A,Tabela!$D:$D,"não encontrado") -> 73.51 | G110: =$G$2 -> 0 | H110: 73.51
B112: Categoria Diversos
B113: C4DRV-OTHER | C113: =_xlfn.XLOOKUP($B113,Tabela!A:A,Tabela!C:C,"não encontrado") -> NPI | D113: C4 Driver - Categoria - Outros | E113: =_xlfn.XLOOKUP($B113,Tabela!$A:$A,Tabela!$D:$D,"não encontrado") -> 1508.75 | G113: =$G$2 -> 0 | H113: =IF(ISBLANK(G113),"",E113-(E113*$G113)) -> 1508.75
B114: C4DRV-PUBL ANN SYST | C114: =_xlfn.XLOOKUP($B114,Tabela!A:A,Tabela!C:C,"não encontrado") -> NPI | D114: C4 Driver - Categoria - Public Announcement System | E114: =_xlfn.XLOOKUP($B114,Tabela!$A:$A,Tabela!$D:$D,"não encontrado") -> 1508.75 | G114: =$G$2 -> 0 | H114: 1508.75
B115: C4DRV-AUTOMATION | C115: =_xlfn.XLOOKUP($B115,Tabela!A:A,Tabela!C:C,"não encontrado") -> NPI | D115: C4 Driver - Categoria - Building Automation | E115: =_xlfn.XLOOKUP($B115,Tabela!$A:$A,Tabela!$D:$D,"não encontrado") -> 1459.15 | G115: =$G$2 -> 0 | H115: 1459.15
B116: C4DRV-MODBUS | C116: =_xlfn.XLOOKUP($B116,Tabela!A:A,Tabela!C:C,"não encontrado") -> NPI | D116: C4 Driver - Categoria - Protocolo MODBUS | E116: =_xlfn.XLOOKUP($B116,Tabela!$A:$A,Tabela!$D:$D,"não encontrado") -> 157.56 | G116: =$G$2 -> 0 | H116: 157.56
A118: Drivers C4 | C118: Drivers Software C4
A119: Um Driver por cada | E119: PVP Categoria
A120: Painel Controlo | B120: SW-CUAPERIO | D120: Aperio | E120: C4DRV-ACC-LARGE
A121: Painel Controlo | B121: SW-CUAPS | D121: APS (Tech Fass s.r.o. ) | E121: C4DRV-ACC-LARGE
A122: Painel Controlo | B122: SW-CUCC9000 | D122: C-CURE 9000 (Software House) | E122: C4DRV-ACC-LARGE
A123: Painel Controlo | B123: SW-CUCOLOSSE | D123: Colosseo (ColosseoEAS, a.s. ) | E123: C4DRV-ACC-LARGE
A124: Painel Controlo | B124: SW-CUKWATCH | D124: KeyWatcher (Morse Canada Sysems Inc.) | E124: C4DRV-ACC-LARGE
A125: Painel Controlo | B125: SW-CUSALTO | D125: Salto (Salto Systems S.L. ) | E125: C4DRV-ACC-LARGE
A126: Painel Controlo | B126: SW-CUSAMAC | D126: Samsung ACS (Idteck ) | E126: C4DRV-ACC-LARGE
A127: Painel Controlo | B127: SW-CUSCHLFT | D127: Schindler Lift (Schindler výťahy a eskalátory a.s. ) | E127: C4DRV-ACC-LARGE
A128: Painel Controlo | B128: SW-CUTECOMDC | D128: Tecom Network Access Controller (UTC Fire and Security Australia ) | E128: C4DRV-ACC-LARGE
A129: Painel Controlo | B129: SW-CUTRAKA | D129: Traka (Traka plc ) | E129: C4DRV-ACC-LARGE
A130: Painel Controlo | B130: SW-CU2NHELI | D130: 2N Helios (2N Telekomunikace a.s. ) | E130: C4DRV-ACC-SMALL
A131: Controlador | B131: SW-CUAKT | D131: Aktion (EFG CZ spol. s.r.o. ) | E131: C4DRV-ACC-SMALL
A132: Painel Controlo | B132: SW-CUANDCO | D132: Andover Continuum (Schneider Electric ) | E132: C4DRV-ACC-SMALL
A133: Controlador | B133: SW-CUANT | D133: ANeT Guard (ANeT-Advanced Network Technology, s.r.o. ) | E133: C4DRV-ACC-SMALL
A134: Painel Controlo | B134: SW-CUCANS | D134: Cansec Hurricane (Cansec systems ltd. ) | E134: C4DRV-ACC-SMALL
A135: Controlador | B135: SW-CUCODEKS | D135: Codeks (Jantar d.o.o. ) | E135: C4DRV-ACC-SMALL
A136: Controlador | B136: SW-CUCOMINFO | D136: Cominfo Access (COMINFO, a.s. ) | E136: C4DRV-ACC-SMALL
A137: Controlador | B137: SW-CUCOG | D137: Cotag (Siemens Switzerland Ltd. - Building Technologies Division ) | E137: C4DRV-ACC-SMALL
A138: Controlador | B138: SW-CUDAACS | D138: Dahua ACS (Zhejiang Dahua Vision Technology Co., Ltd. ) | E138: C4DRV-ACC-SMALL
A139: Painel Controlo | B139: SW-CUDUHA | D139: DUHAsys (DUHA system, spol. s r.o. ) | E139: C4DRV-ACC-SMALL
A140: Controlador | B140: SW-CUENTPA | D140: EntraPass (Tyco Security Products ) | E140: C4DRV-ACC-SMALL
A141: Controlador | B141: SW-CUGCD | D141: GoldCard (GOLDCARD, spol. s r. o. ) | E141: C4DRV-ACC-SMALL
A142: Controlador | B142: SW-CUHID | D142: HID (HID Global ) | E142: C4DRV-ACC-SMALL
A143: Controlador | B143: SW-CUHUB | D143: HUB Pro (Ademco CZ s.r.o. ) | E143: C4DRV-ACC-SMALL
A144: Controlador | B144: SW-CUK4 | D144: IDSIMA4-PRO (Institut mikroelektronických aplikací s.r.o. ) | E144: C4DRV-ACC-SMALL
A145: Controlador | B145: SW-CUINTLM | D145: Intelli-M (Infinias, Inc ) | E145: C4DRV-ACC-SMALL
A146: Painel Controlo | B146: SW-CUKEYSC | D146: Keyscan System VII (Keyscan Inc.) | E146: C4DRV-ACC-SMALL
A147: Controlador | B147: SW-CUMEDRO | D147: Medro (VIDAL EQUIPAMIENTO S.A.) | E147: C4DRV-ACC-SMALL
A148: Controlador | B148: SW-CUPAXTON | D148: Paxton (Paxton House ) | E148: C4DRV-ACC-SMALL
A149: Controlador | B149: SW-CUPROXX | D149: PRO22XX (Honeywell International Inc. ) | E149: C4DRV-ACC-SMALL
A150: Controlador | B150: SW-CUPRO32XX | D150: PRO32XX (Honeywell International Inc. ) | E150: C4DRV-ACC-SMALL
A151: Controlador | B151: SW-CUPWSER | D151: PW Series | E151: C4DRV-ACC-SMALL
A152: Controlador | B152: SW-CUSUPREM | D152: Suprema (Suprema Inc. ) | E152: C4DRV-ACC-SMALL
A153: Controlador | B153: SW-CUSUPG | D153: Suprema (Gamanet) (Suprema Inc. ) | E153: C4DRV-ACC-SMALL
A154: Controlador | B154: SW-CUSUPBIO2 | D154: Suprema BioStar 2 (Suprema Inc. ) | E154: C4DRV-ACC-SMALL
A155: Controlador | B155: SW-CUSYMET | D155: Symmetry (AMAG Technology, Inc. ) | E155: C4DRV-ACC-SMALL
A156: Controlador | B156: SW-CUTRUPOR | D156: TruPortal (UTC Climate, Controls & Security ) | E156: C4DRV-ACC-SMALL
A157: Controlador | B157: SW-CUVRX | D157: Verex/SNAPP (UTC Climate, Controls & Security ) | E157: C4DRV-ACC-SMALL
A158: Controlador | B158: SW-CUWIS | D158: WIS (WEGA LH, s.r.o. ) | E158: C4DRV-ACC-SMALL
A159: Controlador | B159: SW-CUXPREW | D159: XPR EWS | E159: C4DRV-ACC-SMALL
A160: Controlador | B160: SW-CUZKT | D160: ZKT (ZKTeco CO., LTD. ) | E160: C4DRV-ACC-SMALL
A161: Componente | B161: SW-CUMBUS | D161: M-BUS | E161: C4DRV-AUTOMATION
A162: Câmara | B162: SW-CUACCAPI | D162: ACC WebAPI (Avigilon Corporation, Canada ) | E162: C4DRV-CCTV-IP
A163: Câmara | B163: SW-CUACC5 | D163: Avigilon Control Center (Avigilon Corporation, Canada ) | E163: C4DRV-CCTV-IP
A164: Câmara | B164: SW-CUAVL | D164: Avigilon Control Center 4 (Avigilon Corporation, Canada ) | E164: C4DRV-CCTV-IP
A165: Câmara | B165: SW-CUAXIS | D165: Axis (Axis Communications AB ) | E165: C4DRV-CCTV-IP
A166: Câmara | B166: SW-CUBVMS3 | D166: BVMS 3 (Bosch Sicherheitssysteme GmbH ) | E166: C4DRV-CCTV-IP
A167: Câmara | B167: SW-CUCWATCH | D167: cWatch (CANEX connections, spol. s r.o. ) | E167: C4DRV-CCTV-IP
A168: Câmara | B168: SW-CUSEMSY | D168: Dallmeier SeMSy (Dallmeier electronic GmbH & Co.KG ) | E168: C4DRV-CCTV-IP
A169: Câmara | B169: SW-CUDFORT | D169: Digifort (SYSTRADE COMÉRCIO E SERVIÇOS ) | E169: C4DRV-CCTV-IP
A170: Câmara | B170: SW-CUINDIGV | D170: IndigoVision (Indigovision Ltd. ) | E170: C4DRV-CCTV-IP
A171: Câmara | B171: SW-CUINTELLI | D171: Intellio (Intellio Technologies Zrt.) | E171: C4DRV-CCTV-IP
A172: Câmara | B172: SW-CULUXRIOT | D172: Luxriot VMS (A&H Software House Inc. ) | E172: C4DRV-CCTV-IP
A173: Câmara | B173: SW-CULUXLPR | D173: Luxriot/LPR (A&H Software House Inc. ) | E173: C4DRV-CCTV-IP
A174: Câmara | B174: SW-CUMIL | D174: Milestone (Milestone) | E174: C4DRV-CCTV-IP
A175: Câmara | B175: SW-CUMPLUS | D175: Milestone Plus (Milestone) | E175: C4DRV-CCTV-IP
A176: Câmara | B176: SW-CUMIP | D176: Milestone/MIP (Milestone) | E176: C4DRV-CCTV-IP
A177: Câmara | B177: SW-CUMOL | D177: Molekula (HDS, a.s. ) | E177: C4DRV-CCTV-IP
A178: Câmara | B178: SW-CUOMNIC | D178: Omnicast (Genetec Inc. ) | E178: C4DRV-CCTV-IP
A179: Câmara | B179: SW-CUNETIW | D179: Samsung-NET-I-WARE (SAMSUNG TECHWIN CO, LTD ) | E179: C4DRV-CCTV-IP
A180: Câmara | B180: SW-CUSEETEC | D180: SeeTec (SeeTec AG ) | E180: C4DRV-CCTV-IP
A181: Câmara | B181: SW-CUCAYU | D181: SeeTec Cayuga (SeeTec AG ) | E181: C4DRV-CCTV-IP
A182: Câmara | B182: SW-CUIPELA | D182: Sony Ipela (TSS Group a.s. ) | E182: C4DRV-CCTV-IP
A183: Câmara | B183: SW-CUWNR86XX | D183: Wonderex-WNR-8632/8616/8608 (ATIS GROUP s.r.o. ) | E183: C4DRV-CCTV-IP
A184: Painel Controlo | B184: SW-CUAPOLLO | D184: APOLLO Solution F1/F2 | E184: C4DRV-FIRE-LARGE
A185: Painel Controlo | B185: SW-CULST | D185: BC216 (LABOR STRAUSS Sicherungsanlagenbau Gesellschaft GmbH ) | E185: C4DRV-FIRE-LARGE
A186: Painel Controlo | B186: SW-CUBC600 | D186: BC600 (LABOR STRAUSS Sicherungsanlagenbau Gesellschaft GmbH ) | E186: C4DRV-FIRE-LARGE
A187: Painel Controlo | B187: SW-CUBOSCHFPA | D187: Bosch FPA5000 (Bosch Sicherheitssysteme GmbH ) | E187: C4DRV-FIRE-LARGE
A188: Painel Controlo | B188: SW-CUDIG111 | D188: DIGISYS 111 (DIGISYS, s.r.o. ) | E188: C4DRV-FIRE-LARGE
A189: Painel Controlo | B189: SW-CUFC500IP | D189: DSC/FC500IP (Tyco Security Products ) | E189: C4DRV-FIRE-LARGE
A190: Painel Controlo | B190: SW-CUESSM | D190: Esser Mikromodul RS232/TTY (Honeywell Life Safety Austria GmbH ) | E190: C4DRV-FIRE-LARGE
A191: Painel Controlo | B191: SW-CUESSS | D191: EsserSEI (Honeywell Life Safety Austria GmbH ) | E191: C4DRV-FIRE-LARGE
A192: Painel Controlo | B192: SW-CUEXP | D192: Expert (Tyco Fire & Integrated Solutions s.r.o. ) | E192: C4DRV-FIRE-LARGE
A193: Painel Controlo | B193: SW-CUFC330A | D193: FC330A (Siemens Switzerland Ltd. - Building Technologies Division ) | E193: C4DRV-FIRE-LARGE
A194: Painel Controlo | B194: SW-CULHD | D194: FibroLaser III (Siemens Switzerland Ltd. - Building Technologies Division) | E194: C4DRV-FIRE-LARGE
A195: Painel Controlo | B195: SW-CUFLOOP | D195: Fireloop (Inim electronic s.r.l. ) | E195: C4DRV-FIRE-LARGE
A196: Painel Controlo | B196: SW-CUHOCHGN | D196: Hochiki (Hochiki America Corporation ) | E196: C4DRV-FIRE-LARGE
A197: Painel Controlo | B197: SW-CUHOCHI | D197: Hochiki-HFP-AP1/AP2 (Hochiki America Corporation ) | E197: C4DRV-FIRE-LARGE
A198: Painel Controlo | B198: SW-CULIT109 | D198: Lites MHU 109 (LITES Liberec s.r.o. ) | E198: C4DRV-FIRE-LARGE
A199: Painel Controlo | B199: SW-CULIT | D199: Lites MHU 110/111 (LITES Liberec s.r.o. ) | E199: C4DRV-FIRE-LARGE
A200: Painel Controlo | B200: SW-CULIT116 | D200: Lites MHU 116/117 (LITES Liberec s.r.o. ) | E200: C4DRV-FIRE-LARGE
A201: Painel Controlo | B201: SW-CULP500 | D201: Loop500 (Tyco Fire & Integrated Solutions s.r.o. ) | E201: C4DRV-FIRE-LARGE
A202: Painel Controlo | B202: SW-CUNOTIFI | D202: Notifier (Notifier Italia Srl ) | E202: C4DRV-FIRE-LARGE
A203: Painel Controlo | B203: SW-CUID3000 | D203: Notifier/ID3000 (Notifier Italia Srl ) | E203: C4DRV-FIRE-LARGE
A204: Painel Controlo | B204: SW-CUNOTIF | D204: Notifier/SIB600 (Notifier Italia Srl ) | E204: C4DRV-FIRE-LARGE
A205: Painel Controlo | B205: SW-CUNOTIFGN | D205: Notifier/SIB600 (Gamanet) (Notifier Italia Srl ) | E205: C4DRV-FIRE-LARGE
A206: Painel Controlo | B206: SW-CUPRFBF | D206: Protec 6500/6600 (Protec House ) | E206: C4DRV-FIRE-LARGE
A207: Painel Controlo | B207: SW-CUPROTEC | D207: Protec X400 (Protec House ) | E207: C4DRV-FIRE-LARGE
A208: Painel Controlo | B208: SW-CUCERPRO | D208: Siemens Fire BacNet (Siemens s.r.o. ) | E208: C4DRV-FIRE-LARGE
A209: Painel Controlo | B209: SW-CUNK8237 | D209: Siemens NK8237 | E209: C4DRV-FIRE-LARGE
A210: Painel Controlo | B210: SW-CUSINT | D210: Sinteso - OPC Server MK8000 (Siemens Switzerland Ltd. - Building Technologies Division ) | E210: C4DRV-FIRE-LARGE
A211: Painel Controlo | B211: SW-CUSYNCRO | D211: Syncro AS (Kentec Electronics Ltd. ) | E211: C4DRV-FIRE-LARGE
A212: Painel Controlo | B212: SW-CUSYNRSC | D212: Syncro AS RSC (Kentec Electronics Ltd. ) | E212: C4DRV-FIRE-LARGE
A213: Painel Controlo | B213: SW-CUASSET | D213: Asset/FXP (Trade FIDES, a.s. ) | E213: C4DRV-INTR-LARGE
A214: Painel Controlo | B214: SW-CUBOSCHM2 | D214: Bosch IIP Mode 2 (Bosch Security Systems, Inc.) | E214: C4DRV-INTR-LARGE
A215: Painel Controlo | B215: SW-CUCNT | D215: Concept (Inner Range Pty Ltd ) | E215: C4DRV-INTR-LARGE
A216: Painel Controlo | B216: SW-CUDMP | D216: DMP (Digital Monitoring Products, Inc. ) | E216: C4DRV-INTR-LARGE
A217: Painel Controlo | B217: SW-CUDM | D217: Dominus Millennium (ABBAS, a.s. ) | E217: C4DRV-INTR-LARGE
A218: Painel Controlo | B218: SW-CUGXRS | D218: Galaxy RSC (Ademco CZ s.r.o. ) | E218: C4DRV-INTR-LARGE
A219: Painel Controlo | B219: SW-CUGXYSIA | D219: Galaxy SIA (Ademco CZ s.r.o. ) | E219: C4DRV-INTR-LARGE
A220: Painel Controlo | B220: SW-CUGG3 | D220: Galaxy UNI1INT (Ademco CZ s.r.o. ) | E220: C4DRV-INTR-LARGE
A221: Painel Controlo | B221: SW-CUGXYS | D221: GalaxyGxySmart (Ademco CZ s.r.o. ) | E221: C4DRV-INTR-LARGE
A222: Painel Controlo | B222: SW-CUMBSEC | D222: MB Secure (Ademco CZ s.r.o. ) | E222: C4DRV-INTR-LARGE
A223: Painel Controlo | B223: SW-CUPROSYPL | D223: Prosys Plus (Risco Ltd. ) | E223: C4DRV-INTR-LARGE
A224: Painel Controlo | B224: SW-CUSAT | D224: Satel (Satel sp. z o.o. ) | E224: C4DRV-INTR-LARGE
A225: Painel Controlo | B225: SW-CUSINTON | D225: Sintony (Siemens Building Technologies ) | E225: C4DRV-INTR-LARGE
A226: Painel Controlo | B226: SW-CUTXC168 | D226: Texecom-ELITE-168/88/48 (Texecom ) | E226: C4DRV-INTR-LARGE
A227: Painel Controlo | B227: SW-CUTXC640 | D227: Texecom-ELITE-640 (Texecom ) | E227: C4DRV-INTR-LARGE
A228: Painel Controlo | B228: SW-CUTL280NEO | D228: DSC Power Neo/TL280 (Tyco Security Products ) | E228: C4DRV-INTR-SMALL
A229: Painel Controlo | B229: SW-CUIT100 | D229: DSC/IT-100 (Tyco Security Products ) | E229: C4DRV-INTR-SMALL
A230: Painel Controlo | B230: SW-CUPC4401 | D230: DSC/PC4401 (Tyco Security Products ) | E230: C4DRV-INTR-SMALL
A231: Painel Controlo | B231: SW-CULARES | D231: Ksenia lares (Ksenia Security s.r.l ) | E231: C4DRV-INTR-SMALL
A232: Painel Controlo | B232: SW-CUNX | D232: NX (UTC Climate, Controls & Security ) | E232: C4DRV-INTR-SMALL
A233: Painel Controlo | B233: SW-CUEVOIP150 | D233: Paradox EVO/IP150 (Paradox Security Systems Ltd ) | E233: C4DRV-INTR-SMALL
A234: Painel Controlo | B234: SW-CUPARADOX | D234: Paradox/IP150 (Paradox Security Systems Ltd ) | E234: C4DRV-INTR-SMALL
A235: Painel Controlo | B235: SW-CUPCM | D235: PCM (ABBAS, a.s. ) | E235: C4DRV-INTR-SMALL
A236: Painel Controlo | B236: SW-CUVIS128 | D236: Vista 128BPT/250BPT (Honeywell International Inc. ) | E236: C4DRV-INTR-SMALL
A237: Componente | B237: SW-CUAPIS7000 | D237: Apis 7000 (APIS spol. s r.o. ) | E237: C4DRV-OTHER
A238: Componente | B238: SW-CUARH | D238: ARH (ARH Inc. ) | E238: C4DRV-OTHER
A239: Painel Controlo | B239: SW-CUA9188 | D239: Axis A9188 (Axis Communications AB ) | E239: C4DRV-OTHER
A240: Componente | B240: SW-CUAXISIO | D240: Axis P8221 (Axis Communications AB ) | E240: C4DRV-OTHER
A241: Painel Controlo | B241: SW-CUBUSTEC | D241: BUSTEC_IZ_TCP (Bustec s.r.o. ) | E241: C4DRV-OTHER
A242: Componente | B242: SW-CUCMIND | D242: CenterMind (RiT Technologies Ltd. ) | E242: C4DRV-OTHER
... 87 more rows

Sheet Comunicações
C1: Comunicações
G2: 0
C4: Status | E4: PVP | G4: Desconto | H4: Preço Liquido
A5: Série Ohxxx | C5: Recetora de Alarmes IP
C6: Software de receção de alarmes OH-NetRec - Via IP • Receção de alarmes de equipamentos IP da UTC e TDA74xx • Baseado em JAVA • Supervisão de presença "Heartbeat" e de substituição de equipamento. • Ligação RS232 com software de gestão de alarmes, protocolo OH-2000 & Sur-Gard • Ligação IP com software, protocolo OH-2000
B13: OH-NETREC-100 | C13: =_xlfn.XLOOKUP($B13,Tabela!A:A,Tabela!C:C,"não encontrado") -> Mature | D13: Software 100 clientes | E13: =_xlfn.XLOOKUP($B13,Tabela!$A:$A,Tabela!$D:$D,"não encontrado") -> 1798.04 | F13: =IF(B13 =ISTEXT(qualquer), "", HYPERLINK("https://pt.firesecurityproducts.com/pt/search?q="&B13, "Link Web")) -> Link Web | G13: =$G$2 -> 0 | H13: =IF(ISBLANK(G13),"",E13-(E13*$G13)) -> 1798.04
B14: OH-NETREC-1000 | C14: =_xlfn.XLOOKUP($B14,Tabela!A:A,Tabela!C:C,"não encontrado") -> Mature | D14: Software 1.000 clientes | E14: =_xlfn.XLOOKUP($B14,Tabela!$A:$A,Tabela!$D:$D,"não encontrado") -> 3592.1 | F14: =IF(B14 =ISTEXT(qualquer), "", HYPERLINK("https://pt.firesecurityproducts.com/pt/search?q="&B14, "Link Web")) -> Link Web | G14: =$G$2 -> 0 | H14: =IF(ISBLANK(G14),"",E14-(E14*$G14)) -> 3592.1
B15: OH-NETREC-Software | C15: =_xlfn.XLOOKUP($B15,Tabela!A:A,Tabela!C:C,"não encontrado") -> Mature | D15: Software 10.000 clientes | E15: =_xlfn.XLOOKUP($B15,Tabela!$A:$A,Tabela!$D:$D,"não encontrado") -> 8324.78 | F15: =IF(B15 =ISTEXT(qualquer), "", HYPERLINK("https://pt.firesecurityproducts.com/pt/search?q="&B15, "Link Web")) -> Link Web | G15: =$G$2 -> 0 | H15: =IF(ISBLANK(G15),"",E15-(E15*$G15)) -> 8324.78

Sheet Controlo Acessos
C1: Controlo de Acessos
G2: 0
C4: Status | E4: PVP | G4: Desconto | H4: Preço Liquido
A5: AXON | C5: Controlador de Portas
C6: Controlador de Acessos - Autónomo com capacidade de 2 a 6 portas. • Até 12 leitores, até 6 leitores por porta • OSDP V2 Secure Channel • Suporta leitores: Seguros e OSDP • Incorpora entradas, relés de abertura de porta • Incorpora ligação IP • 100.000 utilizadores (com cartão e/ou PIN) • 16 entradas supervisadas • Até 54 portas com 12 x CDC4 (-EN) • Permite ligação a software ATS8500 e ATS8600 • PSU incorporada: 13.8 , 2,5 Amp - Bateria de backup (não incluída) até 26 Ah(externa) , 18Ah no interior da caixa • Caixa metálica (315 x 445 x 88 mm)
B20: Controlador | E20: PVP | G20: Desconto | H20: Preço Liquido
B21: AXON2600-MM | C21: =_xlfn.XLOOKUP($B21,Tabela!A:A,Tabela!C:C,"não encontrado") -> Mature | D21: Controlador de acessos de 2 a 6 portas, escalável até 54 portas utilizando o CDC4 | E21: =_xlfn.XLOOKUP($B21,Tabela!$A:$A,Tabela!$D:$D,"não encontrado") -> 890.01 | F21: =IF(B21 =ISTEXT(qualquer), "", HYPERLINK("https://pt.firesecurityproducts.com/pt/search?q="&B21, "Link Web")) -> Link Web | G21: =$G$2 -> 0 | H21: =IF(ISBLANK(G21),"",E21-(E21*$G21)) -> 890.01
B22: ATS624 | C22: =_xlfn.XLOOKUP($B22,Tabela!A:A,Tabela!C:C,"não encontrado") -> Mature | D22: Expansor "plug in" 4 Saídas por relé | E22: =_xlfn.XLOOKUP($B22,Tabela!$A:$A,Tabela!$D:$D,"não encontrado") -> 114.94 | F22: =IF(B22 =ISTEXT(qualquer), "", HYPERLINK("https://pt.firesecurityproducts.com/pt/search?q="&B22, "Link Web")) -> Link Web | G22: =$G$2 -> 0 | H22: =IF(ISBLANK(G22),"",E22-(E22*$G22)) -> 114.94
A25: Série ACL5xx | C25: Teclados Autónomos
C26: Estes teclados autónomos robustos foram concebidos para funcionar tanto em ambientes interiores como exteriores. Os teclados estão disponíveis com teclas de metal/plástico retro iluminadas e em várias opções de caixas de plástico ou metal. • Teclado stand alone • Aplicação interior e exterior • IP65 - Resistente ás intempéries e ao pó • Até 99 códigos de utilizador • Retro iluminados • Códigos de 1 a 8 dígitos • Besouro incorporado • Alimentação 12/24 VAC/DC
B38: Caixa Plástica | E38: PVP | G38: Desconto | H38: Preço Liquido
B39: ACL580 | C39: =_xlfn.XLOOKUP($B39,Tabela!A:A,Tabela!C:C,"não encontrado") -> Mature | D39: Teclado Standalone - Master - Montagem superfície -Caixa Plástica, IP65 | E39: =_xlfn.XLOOKUP($B39,Tabela!$A:$A,Tabela!$D:$D,"não encontrado") -> 197.58 | F39: =IF(B39 =ISTEXT(qualquer), "", HYPERLINK("https://pt.firesecurityproducts.com/pt/search?q="&B39, "Link Web")) -> Link Web | G39: =$G$2 -> 0 | H39: =IF(ISBLANK(G39),"",E39-(E39*$G39)) -> 197.58
B41: Caixa Metálica
B42: ACL580WI | C42: =_xlfn.XLOOKUP($B42,Tabela!A:A,Tabela!C:C,"não encontrado") -> Mature | D42: Teclado Standalone - Master - Montagem superfície - Caixa Alumínio, IP65 | E42: =_xlfn.XLOOKUP($B42,Tabela!$A:$A,Tabela!$D:$D,"não encontrado") -> 311.02 | F42: =IF(B42 =ISTEXT(qualquer), "", HYPERLINK("https://pt.firesecurityproducts.com/pt/search?q="&B42, "Link Web")) -> Link Web | G42: =$G$2 -> 0 | H42: =IF(ISBLANK(G42),"",E42-(E42*$G42)) -> 311.02
B43: ACL580FI | C43: =_xlfn.XLOOKUP($B43,Tabela!A:A,Tabela!C:C,"não encontrado") -> Mature | D43: Teclado Standalone - Master - Montagem embutir - Caixa aço, IP65 | E43: =_xlfn.XLOOKUP($B43,Tabela!$A:$A,Tabela!$D:$D,"não encontrado") -> 279.28 | F43: =IF(B43 =ISTEXT(qualquer), "", HYPERLINK("https://pt.firesecurityproducts.com/pt/search?q="&B43, "Link Web")) -> Link Web | G43: =$G$2 -> 0 | H43: =IF(ISBLANK(G43),"",E43-(E43*$G43)) -> 279.28
B45: Anti vandálico
B46: ACL585 | C46: =_xlfn.XLOOKUP($B46,Tabela!A:A,Tabela!C:C,"não encontrado") -> Mature | D46: Teclado Standalone Antivandalismo - Montagem superfície | E46: =_xlfn.XLOOKUP($B46,Tabela!$A:$A,Tabela!$D:$D,"não encontrado") -> 243.69 | F46: =IF(B46 =ISTEXT(qualquer), "", HYPERLINK("https://pt.firesecurityproducts.com/pt/search?q="&B46, "Link Web")) -> Link Web | G46: =$G$2 -> 0 | H46: =IF(ISBLANK(G46),"",E46-(E46*$G46)) -> 243.69
A48: Série ACL8xx | C48: Teclados Autónomos
C49: Estes teclado autónomo retro iluminado, incorpora besouro e LED tricolor para indicação de estado (acesso concedido/negado, inativo). • Instalação interior/exterior - IP65 • Teclado PIN retro iluminado (1 a 8 dígitos) • 99 utilizadores. • Saída abertura por relé (C/NF/NA) • Entrada RTE • Besouro incorporado • Retro iluminado • Alimentação 9 -14 VDC
B61: Montagem Superfície
B62: ACL875SU-S | C62: =_xlfn.XLOOKUP($B62,Tabela!A:A,Tabela!C:C,"não encontrado") -> Mature | D62: Teclado PIN standalone, 99 Utilizadores - Prateado | E62: =_xlfn.XLOOKUP($B62,Tabela!$A:$A,Tabela!$D:$D,"não encontrado") -> 198.93 | F62: =IF(B62 =ISTEXT(qualquer), "", HYPERLINK("https://pt.firesecurityproducts.com/pt/search?q="&B62, "Link Web")) -> Link Web | G62: =$G$2 -> 0 | H62: =IF(ISBLANK(G62),"",E62-(E62*$G62)) -> 198.93
B63: ACL875SU-B | C63: =_xlfn.XLOOKUP($B63,Tabela!A:A,Tabela!C:C,"não encontrado") -> Mature | D63: Teclado PIN standalone, 99 Utilizadores - Preto | E63: =_xlfn.XLOOKUP($B63,Tabela!$A:$A,Tabela!$D:$D,"não encontrado") -> 170.34 | F63: =IF(B63 =ISTEXT(qualquer), "", HYPERLINK("https://pt.firesecurityproducts.com/pt/search?q="&B63, "Link Web")) -> Link Web | G63: =$G$2 -> 0 | H63: 170.34
A66: Série ACL8xx | C66: Leitor Proximidade 125KHz com ou sem Teclado
C67: Leitor multiprotocolo para aplicações de controlo de acesso, retro iluminado protocolo de saída selecionável. Oferece protocolos Wiegand programáveis para uma fácil integração com sistemas de acesso standard. A saída do tamper pode acionar o sistema de alarme, se for feita uma tentativa de abrir ou remover a unidade da parede. • Instalação interior/exterior - IP65 • Leitor cartões 125KHz (Cartões EM4102,​ GE ProxLite/CASI Prox,​ HID ProxEM) • Protocolo Wiegand • Besouro • Retro iluminado • Alimentação 9 -14 VDC
B78: Leitor Sem Teclado | E78: PVP | G78: Desconto | H78: Preço Liquido
B79: ACL800SUW-RDPX-S | C79: =_xlfn.XLOOKUP($B79,Tabela!A:A,Tabela!C:C,"não encontrado") -> Mature | D79: Leitor de Proximidade 125 KHz - Saída Wiegand - Prata | E79: =_xlfn.XLOOKUP($B79,Tabela!$A:$A,Tabela!$D:$D,"não encontrado") -> 163.14 | F79: =IF(B79 =ISTEXT(qualquer), "", HYPERLINK("https://pt.firesecurityproducts.com/pt/search?q="&B79, "Link Web")) -> Link Web | G79: =$G$2 -> 0 | H79: =IF(ISBLANK(G79),"",E79-(E79*$G79)) -> 163.14
B80: ACL800SUW-RDPX-B | C80: =_xlfn.XLOOKUP($B80,Tabela!A:A,Tabela!C:C,"não encontrado") -> Mature | D80: Leitor de Proximidade 125 KHz - Saída Wiegand - Preto | E80: =_xlfn.XLOOKUP($B80,Tabela!$A:$A,Tabela!$D:$D,"não encontrado") -> 138.02 | F80: =IF(B80 =ISTEXT(qualquer), "", HYPERLINK("https://pt.firesecurityproducts.com/pt/search?q="&B80, "Link Web")) -> Link Web | G80: =$G$2 -> 0 | H80: 138.02
A83: Série ACL8xx | C83: Leitor Mifare
C84: Leitor Mifare de controlo de acesso, retro iluminado protocolo de saída selecionável. Oferece protocolos Wiegand programáveis para uma fácil integração com sistemas de acesso standard. A saída do tamper pode acionar o sistema de alarme, se for feita uma tentativa de abrir ou remover a unidade da parede. • Instalação interior/exterior - IP65 • Leitor Mifare 13.56MHz ISO14443A : MIFARE Classic (CSN),​ MIFARE DESFire (CSN),​ MIFARE DESFire EV1 (CSN),​ Mifare DESFire EV2 (CSN),​ MIFARE Plus (CSN),​ MIFARE Ultralight (CSN) • Protocolo Wiegand • Besouro incorporado • Retro iluminado • Alimentação 9 -14 VDC
B96: Leitor Sem Teclado
B97: ACL800SUW-RDMF-S | C97: =_xlfn.XLOOKUP($B97,Tabela!A:A,Tabela!C:C,"não encontrado") -> Mature | D97: Leitor Mifare (ISO14443A) 13.56 MHz - Prata | E97: =_xlfn.XLOOKUP($B97,Tabela!$A:$A,Tabela!$D:$D,"não encontrado") -> 186.97 | F97: =IF(B97 =ISTEXT(qualquer), "", HYPERLINK("https://pt.firesecurityproducts.com/pt/search?q="&B97, "Link Web")) -> Link Web | G97: =$G$2 -> 0 | H97: =IF(ISBLANK(G97),"",E97-(E97*$G97)) -> 186.97
B98: ACL800SUW-RDMF-B | C98: =_xlfn.XLOOKUP($B98,Tabela!A:A,Tabela!C:C,"não encontrado") -> Mature | D98: Leitor Mifare (ISO14443A) 13.56 MHz - Preto | E98: =_xlfn.XLOOKUP($B98,Tabela!$A:$A,Tabela!$D:$D,"não encontrado") -> 156.83 | F98: =IF(B98 =ISTEXT(qualquer), "", HYPERLINK("https://pt.firesecurityproducts.com/pt/search?q="&B98, "Link Web")) -> Link Web | G98: =$G$2 -> 0 | H98: 156.83
A101: Série ACL8xx | C101: Leitor Biométrico Capacitivo
C102: Leitor biométrico capacitivo, inclui besouro e LED tricolor para indicação de estado (acesso concedido/negado, inativo). • Instalação interior/exterior - IP65 •Leitura Biométrica Capacitiva • Até 9500 impressões digitais • Protocolo Wiegand de 24 a 80 bits • Programação via software ACL800 BioManager (sem custos) • Besouro incorporado • Retro iluminado • Alimentação 9 -14 VDC
B113: ACL800SUW-BC-S | C113: =_xlfn.XLOOKUP($B113,Tabela!A:A,Tabela!C:C,"não encontrado") -> Mature | D113: Leitor Biométrico Capacitivo - 9500 impressões digitais - Wiegand - Prata | E113: =_xlfn.XLOOKUP($B113,Tabela!$A:$A,Tabela!$D:$D,"não encontrado") -> 772.97 | F113: =IF(B113 =ISTEXT(qualquer), "", HYPERLINK("https://pt.firesecurityproducts.com/pt/search?q="&B113, "Link Web")) -> Link Web | G113: =$G$2 -> 0 | H113: =IF(ISBLANK(G113),"",E113-(E113*$G113)) -> 772.97
A115: Série ACL8xx | C115: Leitor Biométrico Capacitivo com Leitor Mifare
C116: Estes leitores biométricos capacitivos, incluem besouro e LED tricolor para indicação de estado (acesso concedido/negado, inativo). • Instalação interior/exterior - IP65 • Leitura capacitiva • Leitor Mifare 13.56MHz ISO14443A : Mifare Classic (CSN),​ MIFARE DESFire (CSN),​ MIFARE DESFire EV1 (CSN),​ Mifare DESFire EV2 (CSN),​ MIFARE Plus (CSN),​ MIFARE Ultralight (CSN) • 100 Templates • Protocolo Wiegand de 24 a 80 bits • Programação via software ACL800 BioManager (sem custos) • Besouro incorporado • Retro iluminado • Alimentação 9 -14 VDC
E129: PVP | G129: Desconto | H129: Preço Liquido
B130: ACL800SUW-BCMF-S | C130: =_xlfn.XLOOKUP($B130,Tabela!A:A,Tabela!C:C,"não encontrado") -> Mature | D130: Leitor Biométrico Capacitivo - 9500 impressões digitais - Wiegand - Prata | E130: =_xlfn.XLOOKUP($B130,Tabela!$A:$A,Tabela!$D:$D,"não encontrado") -> 918.61 | F130: =IF(B130 =ISTEXT(qualquer), "", HYPERLINK("https://pt.firesecurityproducts.com/pt/search?q="&B130, "Link Web")) -> Link Web | G130: =$G$2 -> 0 | H130: =IF(ISBLANK(G130),"",E130-(E130*$G130)) -> 918.61
A132: Série ACL8xx | C132: Botões Capacitivos de Abertura de Porta
C133: A série ACL800-PB é botão de saída por toque para montagem em superfície. • Botão Capacitivo de Superfície ou embutir • Besouro e Iluminação indicação de estado: Verde ; Vermelho; Laranja • Relé Programável: Latched, 3s, 5s, 10s • Alimentação: 5 a 24 VDC / 15 a 24 VAC • Instalação interior/exterior - IP65
B141: Montagem Superfície
B142: ACL800-PB-S | C142: =_xlfn.XLOOKUP($B142,Tabela!A:A,Tabela!C:C,"não encontrado") -> Mature | D142: Botão Capacitivo de Superfície - Prata | E142: =_xlfn.XLOOKUP($B142,Tabela!$A:$A,Tabela!$D:$D,"não encontrado") -> 110.94 | F142: =IF(B142 =ISTEXT(qualquer), "", HYPERLINK("https://pt.firesecurityproducts.com/pt/search?q="&B142, "Link Web")) -> Link Web | G142: =$G$2 -> 0 | H142: =IF(ISBLANK(G142),"",E142-(E142*$G142)) -> 110.94
B143: ACL800-PB-B | C143: =_xlfn.XLOOKUP($B143,Tabela!A:A,Tabela!C:C,"não encontrado") -> Mature | D143: Botão Capacitivo de Superfície - Preto | E143: =_xlfn.XLOOKUP($B143,Tabela!$A:$A,Tabela!$D:$D,"não encontrado") -> 99.77 | F143: =IF(B143 =ISTEXT(qualquer), "", HYPERLINK("https://pt.firesecurityproducts.com/pt/search?q="&B143, "Link Web")) -> Link Web | G143: =$G$2 -> 0 | H143: 99.77
A147: Série ACL8xx | C147: Acessórios
B150: Interface Comunicação
B151: ACL800FL-CONV-W | C151: =_xlfn.XLOOKUP($B151,Tabela!A:A,Tabela!C:C,"não encontrado") -> Mature | D151: Conversor ACL800 - RS485 para TCP/IP, montagem calha DIN | E151: =_xlfn.XLOOKUP($B151,Tabela!$A:$A,Tabela!$D:$D,"não encontrado") -> 153.73 | F151: =IF(B151 =ISTEXT(qualquer), "", HYPERLINK("https://pt.firesecurityproducts.com/pt/search?q="&B151, "Link Web")) -> Link Web | G151: =$G$2 -> 0 | H151: =IF(ISBLANK(G151),"",E151-(E151*$G151)) -> 153.73
A153: Série ACAxx | C153: Botão Proximidade Abertura de Porta
C154: A série de "botões" de abertura de porta sem contato, baseados na tecnologia de infravermelhos são adequados para todos os ambientes onde se pretende evitar o contacto físico para abrir portas pelo interior, tais como cozinhas, instalações sanitárias, salas limpas, etc.: como o botão não precisa de ser tocado, é também adequado em portas de tráfego intenso com um desgaste mecânico mínimo. • Sensor IR • Distância de deteção ajustável de 3 a 15 cm • Ajuste de temporização de ativação de relé • Indicação LED vermelho e Verde para standby e ativo • Alimentação 12 -24 VDC
B165: ABS | E165: PVP | G165: Desconto | H165: Preço Liquido
B166: ACA-Touch | C166: =_xlfn.XLOOKUP($B166,Tabela!A:A,Tabela!C:C,"não encontrado") -> Mature | D166: Botão Slim IR para abertura de porta sem contato - ABS - 86 x 55 x 20mm Distância de deteção ajustável de 3 a 15 cm Ajuste de temporização de ativação de relé Indicação LED vermelho e Verde para standby e ativo Alimentação 12 -24 VDC | E166: =_xlfn.XLOOKUP($B166,Tabela!$A:$A,Tabela!$D:$D,"não encontrado") -> 72.32 | F166: =IF(B166 =ISTEXT(qualquer), "", HYPERLINK("https://pt.firesecurityproducts.com/pt/search?q="&B166, "Link Web")) -> Link Web | G166: =$G$2 -> 0 | H166: =IF(ISBLANK(G166),"",E166-(E166*$G166)) -> 72.32
B167: ACA-Touch-slim | C167: =_xlfn.XLOOKUP($B167,Tabela!A:A,Tabela!C:C,"não encontrado") -> Mature | D167: Botão Slim IR para abertura de porta sem contato - ABS - 86 x 55 x 20mm Distância de deteção ajustável de 3 a 15 cm Ajuste de temporização de ativação de relé Indicação LED vermelho e Verde para standby e ativo Alimentação 12 -24 VDC | E167: =_xlfn.XLOOKUP($B167,Tabela!$A:$A,Tabela!$D:$D,"não encontrado") -> 72.32 | F167: =IF(B167 =ISTEXT(qualquer), "", HYPERLINK("https://pt.firesecurityproducts.com/pt/search?q="&B167, "Link Web")) -> Link Web | G167: =$G$2 -> 0 | H167: 72.32
B169: Aço Inox
B170: ACA-STEEL | C170: =_xlfn.XLOOKUP($B170,Tabela!A:A,Tabela!C:C,"não encontrado") -> Mature | D170: Botão IR para abertura de porta sem contato - Aço Inox - 86 x 86 x 30mm Distância de deteção ajustável de 3 a 15 cm Ajuste de temporização de ativação de relé Indicação LED vermelho e Verde para standby e ativo Alimentação 12 -24 VDC | E170: =_xlfn.XLOOKUP($B170,Tabela!$A:$A,Tabela!$D:$D,"não encontrado") -> 69.8 | F170: =IF(B170 =ISTEXT(qualquer), "", HYPERLINK("https://pt.firesecurityproducts.com/pt/search?q="&B170, "Link Web")) -> Link Web | G170: =$G$2 -> 0 | H170: =IF(ISBLANK(G170),"",E170-(E170*$G170)) -> 69.8
B171: ACA-Steel-slim | C171: =_xlfn.XLOOKUP($B171,Tabela!A:A,Tabela!C:C,"não encontrado") -> Mature | D171: Botão Slim IR abertura de porta sem contato - Aço Inox - 115 x 40 x 30mm Distância de deteção ajustável de 3 a 15 cm Ajuste de temporização de ativação de relé Indicação LED vermelho e Verde para standby e ativo Alimentação 12 -24 VDC | E171: =_xlfn.XLOOKUP($B171,Tabela!$A:$A,Tabela!$D:$D,"não encontrado") -> 69.8 | F171: =IF(B171 =ISTEXT(qualquer), "", HYPERLINK("https://pt.firesecurityproducts.com/pt/search?q="&B171, "Link Web")) -> Link Web | G171: =$G$2 -> 0 | H171: 69.8
A173: Série ACAxx | C173: Botão Mecânico Abertura de Porta
B174: ACA001 | C174: =_xlfn.XLOOKUP($B174,Tabela!A:A,Tabela!C:C,"não encontrado") -> Mature | D174: Botão de saída “Request to Exit” - Normalmente Aberto Conforme design Europeu, branco e símbolo de chave | E174: =_xlfn.XLOOKUP($B174,Tabela!$A:$A,Tabela!$D:$D,"não encontrado") -> 33.89 | F174: =IF(B174 =ISTEXT(qualquer), "", HYPERLINK("https://pt.firesecurityproducts.com/pt/search?q="&B174, "Link Web")) -> Link Web | G174: =$G$2 -> 0 | H174: =IF(ISBLANK(G174),"",E174-(E174*$G174)) -> 33.89
A176: Série SMA-VP-xx | C176: Leitores Reconhecimento Facial - Idemia VisionPass™
C177: Conjunto ótico de última geração que combina câmaras 2D, 3D e infravermelhos com um algoritmo de processamento de imagem estereoscópico. • Alto desempenho: perto de 1 segundo para encontrar correspondência entre 40.000 utilizadores • Resistência a tentativas de falsificação: imagem, máscara 3D • Eficiência em todas as condições de luz: da completa escuridão a iluminação solar • Compatível com plataforma de gestão IDEMIA’s MorphoManager • Plug-and-play com a maioria dos sistemas de controlo de acessos • Touchscreen capacitivo a cores de 7” WVGA
B187: SMA-VP-DB-40K | C187: =_xlfn.XLOOKUP($B187,Tabela!A:A,Tabela!C:C,"não encontrado") -> NPI | D187: Atualização de base dados Idemia VisionPass de 20K para 40K. Aplica-se a Leitor Reconhecimento Facial MD/MDPI - Para licença é necessário o S/N ou ID Licença do terminal, em conjunto com a fatura. | E187: =_xlfn.XLOOKUP($B187,Tabela!$A:$A,Tabela!$D:$D,"não encontrado") -> 1013.44 | F187: =IF(B187 =ISTEXT(qualquer), "", HYPERLINK("https://pt.firesecurityproducts.com/pt/search?q="&B187, "Link Web")) -> Link Web | G187: =$G$2 -> 0 | H187: =IF(ISBLANK(G187),"",E187-(E187*$G187)) -> 1013.44
B188: SMA-VP-MDPI | C188: =_xlfn.XLOOKUP($B188,Tabela!A:A,Tabela!C:C,"não encontrado") -> Mature | D188: Leitor Reconhecimento Facial Idemia VisionPass MD - Bio/Cartão/PIN/BioPIN (20K utilizadores e 40K com licença) com leitor Mifare/DESFire/Prox/HID iCLASS/iCLASS SEOS.Necessário software MorphoManager e integração OAAP Necessita PSU de 12 VDC @ 3 A (sem PoE) | E188: =_xlfn.XLOOKUP($B188,Tabela!$A:$A,Tabela!$D:$D,"não encontrado") -> 7156.09 | F188: =IF(B188 =ISTEXT(qualquer), "", HYPERLINK("https://pt.firesecurityproducts.com/pt/search?q="&B188, "Link Web")) -> Link Web | G188: =$G$2 -> 0 | H188: 7156.09
A190: Série SMA-L-xx | C190: Leitores Biométricos MORPHO - Sigma
C191: Concebidos com especial atenção aos detalhes e desempenho, os terminais MorphoAccess® SIGMA Lite foram especificamente concebidos para equipar superfícies de montagem estreitas, como por exemplo, molduras de portas de vidro/alumínio, torniquetes ou portas de rack de servidores. Estes leitores biométricos capacitivos, incluem besouro e LED tricolor para indicação de estado (acesso concedido/negado, inativo). • Interface: Ethernet​ • OSDP V2​ • OSDP V2 Secure Channel • RS-485​ • USB • Wiegand
E202: PVP | G202: Desconto | H202: Preço Liquido
B203: SMA-L-BIO | C203: =_xlfn.XLOOKUP($B203,Tabela!A:A,Tabela!C:C,"não encontrado") -> Mature | D203: MA SIGMA Lite Plus - Bio, ecrã tátil QVGA de 2,8 polegadas, apenas MoNo-fator Bio, IP65, 500 utilizadores, CE | E203: =_xlfn.XLOOKUP($B203,Tabela!$A:$A,Tabela!$D:$D,"não encontrado") -> 1121.2 | F203: =IF(B203 =ISTEXT(qualquer), "", HYPERLINK("https://pt.firesecurityproducts.com/pt/search?q="&B203, "Link Web")) -> Link Web | G203: =$G$2 -> 0 | H203: =IF(ISBLANK(G203),"",E203-(E203*$G203)) -> 1121.2
B204: SMA-L-MULTI | C204: =_xlfn.XLOOKUP($B204,Tabela!A:A,Tabela!C:C,"não encontrado") -> Mature | D204: MA SIGMA Lite - Multi, cartão biológico multifactor, MIFARE/MIFARE Plus/DESFIRE, 500 utilizadores, IP65, CE | E204: =_xlfn.XLOOKUP($B204,Tabela!$A:$A,Tabela!$D:$D,"não encontrado") -> 1256.42 | F204: =IF(B204 =ISTEXT(qualquer), "", HYPERLINK("https://pt.firesecurityproducts.com/pt/search?q="&B204, "Link Web")) -> Link Web | G204: =$G$2 -> 0 | H204: 1256.42
A206: Série SMA-LP-xx | C206: Leitores Biométricos com Display Touch - Lite Plus
C207: Concebidos com especial atenção aos detalhes e desempenho, os terminais MorphoAccess® SIGMA Lite Plus com display tátil foram especificamente concebidos para equipar superfícies de montagem estreitas, como por exemplo, molduras de portas de vidro/alumínio, torniquetes ou portas de rack de servidores. Estes leitores biométricos capacitivos, incluem besouro e LED tricolor para indicação de estado (acesso concedido/negado, inativo). • Interface: Ethernet​ • OSDP V2​ • OSDP V2 Secure Channel • RS-485​ • USB • Wiegand
B219: SMA-LP-MULTI | C219: =_xlfn.XLOOKUP($B219,Tabela!A:A,Tabela!C:C,"não encontrado") -> Mature | D219: MA SIGMA Lite Plus - Multi, 2.8 inch QVGA touchscreen, Multi-factor Bio/Cartão, MIFARE/MIFARE Plus/DESFIRE, IP65, 500 utilizadores, CE | E219: =_xlfn.XLOOKUP($B219,Tabela!$A:$A,Tabela!$D:$D,"não encontrado") -> 1597.15 | F219: =IF(B219 =ISTEXT(qualquer), "", HYPERLINK("https://pt.firesecurityproducts.com/pt/search?q="&B219, "Link Web")) -> Link Web | G219: =$G$2 -> 0 | H219: =IF(ISBLANK(G219),"",E219-(E219*$G219)) -> 1597.15
A222: Série Multi | C222: Leitores Biométricos com Display Touch - Multi
C223: Concebidos com especial atenção aos detalhes e desempenho, os terminais MorphoAccess® SMA com display tátil de grandes dimensões, possuem uma grande capacidade de memória: • 3000 utilizadores • 1 M de eventos em memória • Interface: Ethernet​ • OSDP V2​ • OSDP V2 Secure Channel • RS-485​ • USB • Wiegand
E234: PVP | G234: Desconto | H234: Preço Liquido
B235: SMA-ICLASS-WR | C235: =_xlfn.XLOOKUP($B235,Tabela!A:A,Tabela!C:C,"não encontrado") -> Mature | D235: SIGMA Series - Outdoor/WR/IP65, Multi-factor Bio/Card/PIN/BioPIN (3k users incl.), HID iClass, 1M logs storage capacity, PoE incl. | E235: =_xlfn.XLOOKUP($B235,Tabela!$A:$A,Tabela!$D:$D,"não encontrado") -> 2249.46 | F235: =IF(B235 =ISTEXT(qualquer), "", HYPERLINK("https://pt.firesecurityproducts.com/pt/search?q="&B235, "Link Web")) -> Link Web | G235: =$G$2 -> 0 | H235: =IF(ISBLANK(G235),"",E235-(E235*$G235)) -> 2249.46
A237: Software | C237: Configuração e Gestão Biométricos
C238: O MorphoManager é a última geração de software de controlo de acessos e controlo de assiduidade. O software funciona com o leitor biométrico para capturar impressões digitais, fotografias e detalhes do utilizador. A informação das impressões digitais é enviada para os leitores biométricos especificados onde o controlo de acesso. MorphoManager também trabalha com os Leitores de Face Morpho 3D captar os traços faciais do utilizador. Recomenda-se a versão SMA-MM-PRO para a administração de um número limitado de terminais (impressão digital e facial) num único PC.
B245: SMA-MM-LIGHT | C245: =_xlfn.XLOOKUP($B245,Tabela!A:A,Tabela!C:C,"não encontrado") -> Mature | D245: MORPHOMANAGER SW LIGHT, 1MM, 1 SM-MSO-1300, 1 MSO DONGLE VERIF | E245: =_xlfn.XLOOKUP($B245,Tabela!$A:$A,Tabela!$D:$D,"não encontrado") -> 1158.37 | F245: =IF(B245 =ISTEXT(qualquer), "", HYPERLINK("https://pt.firesecurityproducts.com/pt/search?q="&B245, "Link Web")) -> Link Web | G245: =$G$2 -> 0 | H245: =IF(ISBLANK(G245),"",E245-(E245*$G245)) -> 1158.37
A247: Série ACI42x | C247: Leitores OSDP
C248: A gama de leitores ACI42x é composta por diferentes leitores com e sem teclado para leitura de cartões Mifare Desfire EV1/EV2/EV3 e Mifare CSN. Adicionalmente, incorporam comunicação Bluetooth. diferentes perfies baixo perfil ou padrão de cartões de suporte com segurança Mifare Desfire EV1/EV2/EV3 segura. Além disso, o leitor fornece suporte de Bluetooth (BLE). Algumas características: • Interface OSDP V2.17 • Instalação interior/exterior • Bluetooth Baixa Energia incorporado (BLE) • Entrada RTE e 1 Saída • Suportado pelo CDC4 ​ OSDP V2 Secure Channel,​ Wiegand • Classificação Segurança EAL6+ • IP67 • IK09
B262: Leitor sem Teclado
B263: ACI420 | C263: =_xlfn.XLOOKUP($B263,Tabela!A:A,Tabela!C:C,"não encontrado") -> Mature | D263: Leitor Mifare, Slim, Mifare EV1/2/3, CSN com BLE | E263: =_xlfn.XLOOKUP($B263,Tabela!$A:$A,Tabela!$D:$D,"não encontrado") -> 483.99 | F263: =IF(B263 =ISTEXT(qualquer), "", HYPERLINK("https://pt.firesecurityproducts.com/pt/search?q="&B263, "Link Web")) -> Link Web | G263: =$G$2 -> 0 | H263: =IF(ISBLANK(G263),"",E263-(E263*$G263)) -> 483.99
B264: ACI421 | C264: =_xlfn.XLOOKUP($B264,Tabela!A:A,Tabela!C:C,"não encontrado") -> Mature | D264: Leitor Mifare EV1 com teclado e BLE | E264: =_xlfn.XLOOKUP($B264,Tabela!$A:$A,Tabela!$D:$D,"não encontrado") -> 509.68 | F264: =IF(B264 =ISTEXT(qualquer), "", HYPERLINK("https://pt.firesecurityproducts.com/pt/search?q="&B264, "Link Web")) -> Link Web | G264: =$G$2 -> 0 | H264: 509.68
B266: Leitor com Teclado
B267: ACI420-PIN | C267: =_xlfn.XLOOKUP($B267,Tabela!A:A,Tabela!C:C,"não encontrado") -> Mature | D267: Leitor Mifare com teclado, Slim, Mifare EV1/2/3, CSN com BLE | E267: =_xlfn.XLOOKUP($B267,Tabela!$A:$A,Tabela!$D:$D,"não encontrado") -> 579.78 | F267: =IF(B267 =ISTEXT(qualquer), "", HYPERLINK("https://pt.firesecurityproducts.com/pt/search?q="&B267, "Link Web")) -> Link Web | G267: =$G$2 -> 0 | H267: =IF(ISBLANK(G267),"",E267-(E267*$G267)) -> 579.78
B268: ACI421-PIN | C268: =_xlfn.XLOOKUP($B268,Tabela!A:A,Tabela!C:C,"não encontrado") -> Mature | D268: Leitor Mifare EV1 com teclado e BLE | E268: =_xlfn.XLOOKUP($B268,Tabela!$A:$A,Tabela!$D:$D,"não encontrado") -> 638.18 | F268: =IF(B268 =ISTEXT(qualquer), "", HYPERLINK("https://pt.firesecurityproducts.com/pt/search?q="&B268, "Link Web")) -> Link Web | G268: =$G$2 -> 0 | H268: 638.18
B270: Programação de Endereço
B271: ACI42x-A1-A4 | C271: =_xlfn.XLOOKUP($B271,Tabela!A:A,Tabela!C:C,"não encontrado") -> Mature | D271: Cartões de configuração de endereço (1 a 4) | E271: =_xlfn.XLOOKUP($B271,Tabela!$A:$A,Tabela!$D:$D,"não encontrado") -> 102.8 | F271: =IF(B271 =ISTEXT(qualquer), "", HYPERLINK("https://pt.firesecurityproducts.com/pt/search?q="&B271, "Link Web")) -> Link Web | G271: =$G$2 -> 0 | H271: =IF(ISBLANK(G271),"",E271-(E271*$G271)) -> 102.8
B272: ACI42x-A5-A8 | C272: =_xlfn.XLOOKUP($B272,Tabela!A:A,Tabela!C:C,"não encontrado") -> Mature | D272: Cartões de configuração de endereço (5 a 8) | E272: =_xlfn.XLOOKUP($B272,Tabela!$A:$A,Tabela!$D:$D,"não encontrado") -> 102.8 | F272: =IF(B272 =ISTEXT(qualquer), "", HYPERLINK("https://pt.firesecurityproducts.com/pt/search?q="&B272, "Link Web")) -> Link Web | G272: =$G$2 -> 0 | H272: 102.8
A274: HID Signo | C274: Leitores Proximidade
C275: HID Signo é uma boa escolha para aqueles que procuram fazer a transição para outra tecnologia. Os leitores HID Signo são concebidos para serem ligados e geridos remotamente através do HID Reader Manager® por Bluetooth. Algumas características: • Multifrequência: 125KHz, 13.56 MHz, 2.4 GHz • 125 KHz: AWID Prox,​ EM4102,​ HID Prox,​ Indala Prox,​ Standard profile • 13.56 MHz Corporate 1000,​ iCLASS ELITE,​ iCLASS SE,​ iCLASS SR,​ MIFARE Classic (CSN),​ Mifare Classic (SIO),​ MIFARE DESFire EV1 (CSN),​ Mifare DESFire EV1 (SIO),​ Mifare DESFire EV2 (CSN),​ Mifare DESFire EV2 (SIO),​ SEOS,​ SEOS (Mobile IDs via NFC/BLE),​ SEOS profile,​ Smart profile,​ Standard profile • 2.4 GHz Bluetooth,​ Mobile ready,​ SEOS profile,​ Smart profile,​ Standard profile • Interface OSDP V1,​ OSDP V2,​ OSDP V2 Secure Channel,​ Wiegand • Classificação Segurança EAL6+ • IP65
E289: PVP | G289: Desconto | H289: Preço Liquido
B290: 20NKS-00-000000 | C290: =_xlfn.XLOOKUP($B290,Tabela!A:A,Tabela!C:C,"não encontrado") -> Mature | D290: Signo20, Mullion, 13.56mHz &125kHz, OSDP/Wiegand, Pigtail, Mobile Ready, BLE | E290: =_xlfn.XLOOKUP($B290,Tabela!$A:$A,Tabela!$D:$D,"não encontrado") -> 371.33 | F290: =IF(B290 =ISTEXT(qualquer), "", HYPERLINK("https://pt.firesecurityproducts.com/pt/search?q="&B290, "Link Web")) -> Link Web | G290: =$G$2 -> 0 | H290: =IF(ISBLANK(G290),"",E290-(E290*$G290)) -> 371.33
B291: 20TKS-00-000000 | C291: =_xlfn.XLOOKUP($B291,Tabela!A:A,Tabela!C:C,"não encontrado") -> Mature | D291: Signo20, Mullion, 13.56mHz &125kHz, OSDP/Wiegand, Terminal, Mobile Ready, BLE | E291: =_xlfn.XLOOKUP($B291,Tabela!$A:$A,Tabela!$D:$D,"não encontrado") -> 371.33 | F291: =IF(B291 =ISTEXT(qualquer), "", HYPERLINK("https://pt.firesecurityproducts.com/pt/search?q="&B291, "Link Web")) -> Link Web | G291: 0 | H291: =IF(ISBLANK(G291),"",E291-(E291*$G291)) -> 371.33
